Workbook

Sheet Contents
C1: Go to Charts by Pressing Shift and Enter on Menu Item
C3: Sheet Tab | D3: Description | E3: Author
B4: 1 | C4: Contents
B5: 2 | C5: Transaction Assumptions
B6: 3 | C6: Transaction Structure
B7: 4 | C7: Merger Assumptions
B8: 5 | C8: Merger Model
B9: 6 | C9: Acquiror Scenario
B10: 7 | C10: Acquiror Assumptions
B11: 8 | C11: Acquiror Model
B12: 9 | C12: Target Scenario
B13: 10 | C13: Target Assumptions
B14: 11 | C14: Target Model
B15: 12 | C15: Airline Fleet (2)
B16: 13 | C16: Debt 1998
B17: 14 | C17: Pro Forma BS
B18: 15 | C18: Airline Fleet
B19: 16 | C19: Fleet Before Merger
B20: 17 | C20: Aircraft Purchase
B21: 18 | C21: Pro Forma IS
B22: 19 | C22: Plant Balance
B23: 20 | C23: Purchase Price Allocation
B24: 21 | C24: Sources and Uses
B27: Colour Codes

Sheet Transaction Assumptions
A1: Transaction Period | D1: Period | E1: Column | H1: KH Plane Strategy
B2: Period in KH Model | D2: 6 | E2: =MATCH(D2,'Acquiror Model'!1:1) -> 13 | H2: KH Scenario
B3: Period in Kalitta Model | D3: 6 | E3: =MATCH(D3,'Target Model'!1:1) -> 14 | H3: Kalitta Scenario
A5: Consideration for Equity | G5: Accretion and Dilution
B6: Total Consideration
B7: Cash to Kalitta | D7: 20000
B8: Shares to Kalitta | D8: 4099 | P8: ='Merger Model'!H208 -> 1997 | Q8: ='Merger Model'!I208 -> 1998 | R8: ='Merger Model'!J208 -> 1999 | S8: ='Merger Model'!K208 -> 2000 | T8: ='Merger Model'!L208 -> 2001
B9: Applied Share Price in Issue to Kalitta | D9: 19 | O9: EPS | P9: ='Merger Model'!H209 -> 0.9568913526 | Q9: ='Merger Model'!I209 -> 2.721480001 | R9: ='Merger Model'!J209 -> 3.475067788 | S9: ='Merger Model'!K209 -> 3.534644948 | T9: ='Merger Model'!L209 -> 3.597735675
B10: Total Value of Shares | D10: =D8*D9 -> 77881
B11: Payment for 727's in September | D11: 51000
C12: Total Consideration | D12: =SUM(D7:D11) -> 152999
B14: Capital Expenditure for two747's | D14: 39600
B15: Reserve for conversion of two 747's | D15: 16400
C16: Total Payment for 747's | D16: =SUM(D14:D15) -> 56000
B18: Transaction Fees | D18: 16895
B19: Percent of Consideration | D19: =D18/D12 -> 0.1104255583
B21: Shares Owned by Christopher | D21: 5948
B22: Initial Shares Outstanding | D22: ='Acquiror Model'!M297 -> 7928
B23: Percent Owned by Christopher Before | D23: =D21/D22 -> 0.7502522704
B25: Kalitta Shares | D25: =D8 -> 4099
B26: Percent of Kalitta & Christoper owned by Christopher | D26: =D21/(D8+D21) -> 0.5920175177
B28: New Shares | D28: =D25+D33 -> 6299
B29: Total Shares After Merger | D29: =D28+D22 -> 14227
B30: Percent Owned by Christopher | D30: =D21/D29 -> 0.4180783018
A32: Transaction Financing
B33: New Shares Issued | D33: =D35/D34 -> 2200
B34: Share Price Assumed | D34: =D9 -> 19
C35: Cash From Share Issuance | D35: ='Transaction Structure'!E18 -> 41800
B37: New Notes Issued
C38: Amount | D38: 340000
C39: Interest Rate | D39: 0.095
B41: New Term Loan
C42: Amount | D42: 45900
C43: Interest Rate | D43: 0.088
B45: Revolving Credit
C46: Amount of Commitment | D46: 10000
C47: Interest | D47: =D43 -> 0.088
D49: Year 1 | E49: Year 2 | F49: Year 3 | G49: Year 4 | H49: Year 5 | I49: Year 6 | J49: Year 7 | K49: Year 8 | L49: Year 9 | M49: Year 10 | N49: Total
C50: Repayment | D50: 0.03063241897 | E50: 0.02804590738 | F50: 0.02543486308 | G50: 0.02560374508 | H50: 0.04921259076 | I50: 0.1682140949 | J50: 0.1682140949 | K50: 0.1682140949 | L50: 0.1682140949 | M50: 0.1682140949 | N50: 1
A52: Existing Debt Retired
B53: Existing Kalitta Debt | D53: ='Transaction Structure'!I61 -> 255092.981
B54: Existing KH Debt | D54: ='Transaction Structure'!H61 -> 35146.73
C55: Total Debt Retired | D55: =SUM(D53:D54) -> 290239.711
B57: Breakage Fees on Debt | D57: 3000
A59: Accounting Adjusments
B60: Asset Increase - PP&E | D60: 46276
B61: Asset Increase - Other | D61: 10123
B62: Asset Increase - Current | D62: -101
A101: Combined EBITDA (USD Millions) | D101: =104917.923181616/1000 -> 104.9179232
D103: Cash | E103: Value/ | F103: Shares | G103: Stock
D104: USD MM | E104: EBTDA | F104: 000's | G104: Price
A105: Uses
B106: Consideration for Equity - Shares to Kalitta | D106: =G106*F106/1000 -> 61.485 | F106: ='Sources and Uses'!G10 -> 4099 | G106: 15 | K106: =F106+F117 -> 6299
B107: Consideration for Equity - Cash to Kalitta | D107: ='Sources and Uses'!H51 -> 20
B108: Capital Expenditure for two747's | D108: ='Sources and Uses'!H50 -> 39.6
B109: Reserve for conversion of two 747's | D109: ='Sources and Uses'!H53 -> 16.4
B110: Repayment of Kitty Hawk and Kalitta Debt | D110: ='Sources and Uses'!E76/-1000 -> 328.84 | E110: =D110/$D$101 -> 3.134259524
B111: Fees to Advisors and Banks | D111: ='Sources and Uses'!E78/-1000 -> 16.895
B112: Working Capital | D112: ='Sources and Uses'!E80/1000 -> 5.965
C113: Total | D113: =SUM(D106:D112) -> 489.185 | E113: =D113/D101 -> 4.662549402
A115: Sources
B116: Shares to Kalitta | D116: =D106 -> 61.485 | F116: =F106 -> 4099 | G116: =G106 -> 15 | J116: =D116+D117 -> 103.285 | M116: =D116+D117 -> 103.285 | N116: ='Pro Forma BS'!I31/1000 -> 99.47
B117: Shares to Public | D117: =G117*F117/1000 -> 41.8 | F117: ='Sources and Uses'!E71/1000 -> 2200 | G117: 19
B118: Proceeds from Notes | D118: ='Sources and Uses'!H74/1000 -> 340 | E118: =D118/D101 -> 3.240628385
B119: Proceeds from Term Loan | D119: ='Sources and Uses'!E79/1000 -> 45.9 | E119: =(D118+D119)/D101 -> 3.678113217
C120: Total | D120: =SUM(D116:D119) -> 489.185
A122: Enterprise Value Paid
B123: Total Consideration | D123: =D116+D117 -> 103.285
B124: Total New Debt | D124: =D118+D119 -> 385.9
B125: Minority Interest | D125: ='Pro Forma BS'!E30/1000 -> 3.572
B126: Existing Debt | D126: ='Pro Forma BS'!E25/1000 -> 0.3
B127: Less: Cash | D127: =-'Pro Forma BS'!D6/1000 -> -56
C128: Total Enterprise Value | D128: =SUM(D123:D127) -> 437.057 | E128: =D128/D101 -> 4.165703883
D130: =D120-D113 -> 0
D132: =D120-D116 -> 427.7
A135: Consideration for Merger | D135: =D106+D107 -> 81.485
A136: Book Value | D136: ='Pro Forma BS'!C31/1000 -> 35.65
B137: Market to Book Ratio | D137: =D135/D136 -> 2.28569425
A139: Enterprise Value | D139: =D128 -> 437.057
A140: EBITDA | D140: ='Pro Forma IS'!C35/1000 -> 75.46332318
B141: EV/EBITDA | D141: =D139/D140 -> 5.791647937
A146: Uses
B147: Purchase of 16 727's | D147: 51
A149: Sources
B150: Term Loan | D150: ='Sources and Uses'!H46 -> 45.9

Sheet Transaction Structure
P1: KH Planes
P2: KH Assumptions
A3: Uses and Sources | G3: Valuation Multiples for Transaction | P3: Kalitta Assumptions
B4: Uses of Funds | G4: Kalitta EBITDA | I4: ='Target Model'!P235 -> 87588.49539
C5: Consideration - Cash | E5: ='Transaction Assumptions'!D7 -> 20000
C6: Consideration - Shares | E6: ='Transaction Assumptions'!D10 -> 77881 | G6: Kalittal EV | I6: =SUM(E5:E10) -> 459015.711
C7: Consideration - Asset Purchase | E7: ='Transaction Assumptions'!D11 -> 51000 | G7: EV/EBITDA | I7: =I6/I4 -> 5.24059363
C8: Transaction Fees | E8: ='Transaction Assumptions'!D18 -> 16895
C9: Debt Retired | E9: ='Transaction Assumptions'!D55 -> 290239.711 | G9: Total Invested Capital | I9: =SUM(I65:I66,I61)-I52 -> 280278.636
C10: Fees for Debt Retirement | E10: ='Transaction Assumptions'!D57 -> 3000 | G10: EV/Invested Capital | I10: =I6/I9 -> 1.637712091
C11: Cash to Reserve for New 747's | E11: ='Transaction Assumptions'!D16 -> 56000
C12: Additional Cash | E12: =MAX(E23,0) -> 0 | G12: Total Consideration | I12: =(E5+E6+E7) -> 148881
D13: Total Uses of Funds | E13: =SUM(E5:E12) -> 515015.711 | G13: Commmon Equity | I13: =I66 -> 35650.142
G14: Price to Book | I14: =I12/I13 -> 4.176168499
B15: Sources of Funds
C16: New Notes Issued | E16: ='Transaction Assumptions'!D38 -> 340000 | G16: Solvency Ratios for Credti Analysis
C17: New Term Loan | E17: ='Transaction Assumptions'!D42 -> 45900 | G17: Kalitta EBITDA | I17: =I4 -> 87588.49539
C18: New Shares Issued to Public | E18: =E13-E16-E17-E19-E20 -> 41800 | G18: Kitty Hawk EBITDA | I18: ='Acquiror Model'!O210 -> 29386.35027
C19: New Shares Issued to Kalitta | E19: =E6 -> 77881 | G19: Total EBITDA | I19: =SUM(I17:I18) -> 116974.8457
C20: Cash Used | E20: 9434.711
D21: Total Sources of Funds | E21: =SUM(E16:E20) -> 515015.711 | G21: Total Debt | I21: =E16+E17 -> 385900
G22: Debt/EBITDA | I22: =I21/I19 -> 3.298999865
C23: Net Working Capital
G24: Total Capital | I24: =I21+R66+R65 -> 574394.517
C25: Total Consideration | E25: =SUM(E5:E7) -> 148881 | G25: Debt to Capital | I25: =I21/I24 -> 0.6718378894
A27: Goodwill and Purchase Price Allocation
B28: Goodwill
C29: Consideration | E29: =E5+E6+E7 -> 148881
C30: Less: Existing Equity | E30: =I66 -> 35650.142
D31: Base Increase in Net Assets | E31: =E29-E30 -> 113230.858
C33: Less: Increase in Assets
D34: Increase in Net Plant | E34: ='Transaction Assumptions'!D60 -> 46276
D35: Increase in Other Assets | E35: ='Transaction Assumptions'!D61 -> 10123
D36: Increase in Current Assets | E36: ='Transaction Assumptions'!D62 -> -101
D37: Total | E37: =SUM(E34:E36) -> 56298
C39: Net After Incease in Assets | E39: =E31-E37 -> 56932.858
C40: Add: Fees Capitalised | E40: ='Transaction Assumptions'!D18 -> 16895
C41: Add: Breakage Fees | E41: =E10 -> 3000
D42: Total Goodwill | E42: =E39+E40+E41 -> 76827.858
A47: Column Number | E47: ='Transaction Assumptions'!E2 -> 13 | F47: ='Transaction Assumptions'!E3 -> 14
A49: Pro-Forma Balance Sheet | E49: Row KH | F49: Row Kalitta | H49: KHC | I49: Kalitta | J49: Asset Writeup | K49: Goodwill | L49: Cash Change | M49: Debt Retired | N49: New Debt Issued | O49: Remove Existing Equity | P49: New Equity Issued | Q49: Total Adjustments | R49: Pro-Forma
B50: Assets
C51: Cash Balance | E51: =MATCH(C51,'Acquiror Model'!C:C,0) -> 255 | F51: =MATCH(C51,'Target Model'!C:C,0) -> 280 | H51: =INDEX('Acquiror Model'!$1:$1048576,'Transaction Structure'!E51,$E$47) -> 7503.48 | I51: =INDEX('Target Model'!$1:$1048576,'Transaction Structure'!F51,'Transaction Structure'!$F$47) -> 3282.142 | Q51: =SUM(J51:P51) -> 0 | R51: =Q51+H51+I51 -> 10785.622
C52: Restricted Cash | F52: =MATCH(C52,'Target Model'!C:C,0) -> 281 | I52: =INDEX('Target Model'!$1:$1048576,'Transaction Structure'!F52,'Transaction Structure'!$F$47) -> 14036.924 | J52: =E36 -> -101 | L52: =-E20 -> -9434.711 | Q52: -9535.711 | R52: =Q52+H52+I52 -> 4501.213
C53: Current Assets Less Cash | E53: =MATCH(C53,'Acquiror Model'!C:C,0) -> 256 | F53: =MATCH(C53,'Target Model'!C:C,0) -> 285 | H53: =INDEX('Acquiror Model'!$1:$1048576,'Transaction Structure'!E53,$E$47) -> 21644.727 | I53: =INDEX('Target Model'!$1:$1048576,'Transaction Structure'!F53,'Transaction Structure'!$F$47)-I52 -> 105113.409 | Q53: 0 | R53: =Q53+H53+I53 -> 126758.136
C54: Net Plant | E54: =MATCH(C54,'Acquiror Model'!C:C,0) -> 261 | F54: =MATCH(C54,'Target Model'!C:C,0) -> 290 | H54: =INDEX('Acquiror Model'!$1:$1048576,'Transaction Structure'!E54,$E$47) -> 89356.941 | I54: =INDEX('Target Model'!$1:$1048576,'Transaction Structure'!F54,'Transaction Structure'!$F$47) -> 271819.192 | J54: =E34 -> 46276 | L54: =E11 -> 56000 | Q54: 102276 | R54: =Q54+H54+I54 -> 463452.133
C55: Other Assets | E55: =MATCH(C55,'Acquiror Model'!C:C,0) -> 257 | F55: =MATCH(C55,'Target Model'!C:C,0) -> 291 | H55: =INDEX('Acquiror Model'!$1:$1048576,'Transaction Structure'!E55,$E$47) -> 12395.5 | I55: =INDEX('Target Model'!$1:$1048576,'Transaction Structure'!F55,'Transaction Structure'!$F$47) -> 6224.541 | J55: =E35 -> 10123 | Q55: 10123 | R55: 28743.041
C56: Goodwill | K56: =E42 -> 76827.858 | Q56: 76827.858 | R56: 76827.858
D57: Total Assets | H57: =SUM(H51:H55) -> 130900.648 | I57: =SUM(I51:I55) -> 400476.208 | Q57: =SUM(Q51:Q56) -> 179691.147 | R57: =Q57+H57+I57 -> 711068.003
C60: Current Liabilities Less Debt | E60: =MATCH(C60,'Acquiror Model'!C:C,0) -> 271 | F60: =MATCH(C60,'Target Model'!C:C,0) -> 301 | H60: =INDEX('Acquiror Model'!$1:$1048576,'Transaction Structure'!E60,$E$47) -> 27967.938 | I60: =INDEX('Target Model'!$1:$1048576,'Transaction Structure'!F60,'Transaction Structure'!$F$47) -> 75905.357 | Q60: =SUM(J60:P60) -> 0 | R60: =Q60+H60+I60 -> 103873.295
C61: Total Debt | E61: =MATCH(C61,'Acquiror Model'!C:C,0) -> 272 | F61: =MATCH(C61,'Target Model'!C:C,0) -> 303 | H61: =INDEX('Acquiror Model'!$1:$1048576,'Transaction Structure'!E61,$E$47) -> 35146.73 | I61: =INDEX('Target Model'!$1:$1048576,'Transaction Structure'!F61,'Transaction Structure'!$F$47) -> 255092.981 | M61: =-E9 -> -290239.711 | Q61: =SUM(J61:P61) -> -290239.711 | R61: 0
C62: New Notes | N62: =E16 -> 340000 | Q62: 340000 | R62: 340000
C63: New Term Loan | N63: =E17 -> 45900 | Q63: 45900 | R63: 45900
C64: Deferred Tax Liability | E64: =MATCH(C64,'Acquiror Model'!C:C,0) -> 273 | F64: =MATCH(C64,'Target Model'!C:C,0) -> 304 | H64: =INDEX('Acquiror Model'!$1:$1048576,'Transaction Structure'!E64,$E$47) -> 2544.9 | I64: =INDEX('Target Model'!$1:$1048576,'Transaction Structure'!F64,'Transaction Structure'!$F$47) -> 30255.291 | Q64: 0 | R64: 32800.191
C65: Minority Interest | F65: =MATCH(C65,'Target Model'!C:C,0) -> 306 | I65: =INDEX('Target Model'!$1:$1048576,'Transaction Structure'!F65,'Transaction Structure'!$F$47) -> 3572.437 | Q65: 0 | R65: 3572.437
C66: Common Equity | E66: =MATCH(C66,'Acquiror Model'!C:C,0) -> 274 | F66: =MATCH(C66,'Target Model'!C:C,0) -> 307 | H66: =INDEX('Acquiror Model'!$1:$1048576,'Transaction Structure'!E66,$E$47) -> 65241.08 | I66: =INDEX('Target Model'!$1:$1048576,'Transaction Structure'!F66,'Transaction Structure'!$F$47) -> 35650.142 | O66: =-I66 -> -35650.142 | P66: =E18+E19 -> 119681 | Q66: 84030.858 | R66: 184922.08
D67: Total Liabilities and Capital | H67: =SUM(H60:H66) -> 130900.648 | I67: =SUM(I60:I66) -> 400476.208 | Q67: =SUM(Q60:Q66) -> 179691.147 | R67: =Q67+H67+I67 -> 711068.003
H69: =H67-H57 -> 0 | I69: =I67-I57 -> 0 | R69: =R67-R57 -> 0
C71: Shares | E71: =MATCH(C71,'Acquiror Model'!C:C,0) -> 296 | Q71: ='Transaction Assumptions'!D33+'Transaction Assumptions'!D8 -> 6299 | R71: =Q71+E71 -> 6595
R72: =R71-Q71 -> 296

Sheet Merger Assumptions
A2: Assumptions | G2: 1997 | H2: =G2+1 -> 1998 | I2: =H2+1 -> 1999 | J2: 2000 | K2: 2001 | L2: 2002 | M2: 2003 | N2: 2004 | O2: 2005
B4: Cap Exp for 747
B5: Depreciation Write-up | E5: 14 | F5: ='Transaction Structure'!E34 -> 46276 | G5: =$F$5/$E$5 -> 3305.428571 | H5: =$F$5/$E$5 -> 3305.428571 | I5: 3305.428571 | J5: 3305.428571 | K5: 3305.428571 | L5: 3305.428571 | M5: 3305.428571 | N5: 3305.428571 | O5: 3305.428571
B7: Repayment Percent | G7: =H7/4 -> 0.007658104742 | H7: ='Transaction Assumptions'!D50 -> 0.03063241897 | I7: ='Transaction Assumptions'!E50 -> 0.02804590738 | J7: ='Transaction Assumptions'!F50 -> 0.02543486308 | K7: ='Transaction Assumptions'!G50 -> 0.02560374508 | L7: ='Transaction Assumptions'!H50 -> 0.04921259076 | M7: ='Transaction Assumptions'!I50 -> 0.1682140949 | N7: ='Transaction Assumptions'!J50 -> 0.1682140949 | O7: ='Transaction Assumptions'!K50 -> 0.1682140949
B9: Minimum Cash as Percent of Revenues | G9: 0.02 | H9: 0.02 | I9: 0.02 | J9: 0.02 | K9: 0.02 | L9: 0.02 | M9: 0.02 | N9: 0.02 | O9: 0.02
B11: Interest Income Rate | G11: 0.03 | H11: 0.03 | I11: 0.03 | J11: 0.03 | K11: 0.03 | L11: 0.03 | M11: 0.03 | N11: 0.03 | O11: 0.03
B13: Income Tax Rate | G13: 0.4 | H13: 0.4 | I13: 0.4 | J13: 0.4 | K13: 0.4 | L13: 0.4 | M13: 0.4 | N13: 0.4 | O13: 0.4

Sheet Merger Model
E1: Planes | G1: ='Merger Assumptions'!G2 -> 1997 | H1: ='Merger Assumptions'!H2 -> 1998 | I1: ='Merger Assumptions'!I2 -> 1999 | J1: ='Merger Assumptions'!J2 -> 2000 | K1: ='Merger Assumptions'!K2 -> 2001 | L1: ='Merger Assumptions'!L2 -> 2002 | M1: ='Merger Assumptions'!M2 -> 2003 | N1: ='Merger Assumptions'!N2 -> 2004 | O1: ='Merger Assumptions'!O2 -> 2005
A2: Period | E2: KH Case | G2: ='Acquiror Assumptions'!Q3 -> 0.28 | H2: ='Acquiror Assumptions'!R3 -> 1 | I2: ='Acquiror Assumptions'!S3 -> 1 | J2: ='Acquiror Assumptions'!T3 -> 1 | K2: ='Acquiror Assumptions'!U3 -> 1 | L2: ='Acquiror Assumptions'!V3 -> 1 | M2: ='Acquiror Assumptions'!W3 -> 1 | N2: ='Acquiror Assumptions'!X3 -> 1 | O2: ='Acquiror Assumptions'!Y3 -> 1
B3: KH Model Period | E3: Kalitta Case | F3: ='Transaction Assumptions'!D2 -> 6 | G3: =F3+1 -> 7 | H3: =G3+1 -> 8 | I3: 9 | J3: 10 | K3: 11 | L3: 12 | M3: 13 | N3: 14 | O3: 15
B4: Kalittal Model Period | F4: ='Transaction Assumptions'!D3 -> 6 | G4: =F4+1 -> 7 | H4: =G4+1 -> 8 | I4: 9 | J4: 10 | K4: 11 | L4: 12 | M4: 13 | N4: 14 | O4: 15
B5: KH Model Column | F5: =MATCH(F3,'Acquiror Model'!1:1) -> 13 | G5: =MATCH(G3,'Acquiror Model'!1:1) -> 14 | H5: =MATCH(H3,'Acquiror Model'!1:1) -> 15 | I5: =MATCH(I3,'Acquiror Model'!1:1) -> 16 | J5: =MATCH(J3,'Acquiror Model'!1:1) -> 17 | K5: =MATCH(K3,'Acquiror Model'!1:1) -> 18 | L5: =MATCH(L3,'Acquiror Model'!1:1) -> 19 | M5: =MATCH(M3,'Acquiror Model'!1:1) -> 20 | N5: =MATCH(N3,'Acquiror Model'!1:1) -> 21 | O5: =MATCH(O3,'Acquiror Model'!1:1) -> 22
B6: Kalittal Model Column | F6: =MATCH(F4,'Target Model'!1:1) -> 14 | G6: =MATCH(G4,'Target Model'!1:1) -> 15 | H6: =MATCH(H4,'Target Model'!1:1) -> 16 | I6: =MATCH(I4,'Target Model'!1:1) -> 17 | J6: =MATCH(J4,'Target Model'!1:1) -> 18 | K6: =MATCH(K4,'Target Model'!1:1) -> 19 | L6: =MATCH(L4,'Target Model'!1:1) -> 20 | M6: =MATCH(M4,'Target Model'!1:1) -> 21 | N6: =MATCH(N4,'Target Model'!1:1) -> 22 | O6: =MATCH(O4,'Target Model'!1:1) -> 23
A8: Pro-Forma Balance Sheet
B9: Assets
C10: Cash Balance | F10: ='Transaction Structure'!R51 -> 10785.622
C11: Restricted Cash | F11: ='Transaction Structure'!R52 -> 4501.213
C12: Current Assets Less Cash | F12: ='Transaction Structure'!R53 -> 126758.136
C13: Net Plant | F13: ='Transaction Structure'!R54 -> 463452.133
C14: Other Assets | F14: ='Transaction Structure'!R55 -> 28743.041
C15: Goodwill | F15: ='Transaction Structure'!R56 -> 76827.858
D16: Total Assets | F16: ='Transaction Structure'!R57 -> 711068.003
C19: Current Liabilities Less Debt | F19: ='Transaction Structure'!R60 -> 103873.295
C20: Total Debt | F20: ='Transaction Structure'!R61 -> 0
C21: New Notes | F21: ='Transaction Structure'!R62 -> 340000
C22: New Term Loan | F22: ='Transaction Structure'!R63 -> 45900
C23: Deferred Tax Liability | F23: ='Transaction Structure'!R64 -> 32800.191
C24: Minority Interest | F24: ='Transaction Structure'!R65 -> 3572.437
C25: Common Equity | F25: ='Transaction Structure'!R66 -> 184922.08
D26: Total Liabilities and Capital | F26: ='Transaction Structure'!R67 -> 711068.003
C28: Shares
A30: Operations Analysis
B31: Revenues - KH | E31: =ROW('Acquiror Model'!D202) -> 202 | G31: =INDEX(INDIRECT("'Acquiror Model'!"&$E31&":"&$E31),G$5) -> 38000.54772 | H31: =INDEX(INDIRECT("'Acquiror Model'!"&$E31&":"&$E31),H$5) -> 143660.334 | I31: 164012.2893 | J31: 187223.3815 | K31: 213687.3349 | L31: 243852.0369 | M31: 278227.0474 | N31: 317392.1628 | O31: 362007.1855
B32: Revenues - Kalitta | E32: =ROW('Target Model'!D233) -> 233 | G32: =INDEX(INDIRECT("'Target Model'!"&$E32&":"&$E32),G$6) -> 134730.0996 | H32: =INDEX(INDIRECT("'Target Model'!"&$E32&":"&$E32),H$6) -> 494301.4574 | I32: 496294.4656 | J32: 477993.4316 | K32: 457781.9381 | L32: 435467.332 | M32: 410837.6629 | N32: 383659.7523 | O32: 353677.0707
B33: Synergies
C34: Total | G34: =SUM(G31:G33) -> 172730.6473 | H34: =SUM(H31:H33) -> 637961.7915 | I34: 660306.7549 | J34: 665216.813 | K34: 671469.273 | L34: 679319.369 | M34: 689064.7103 | N34: 701051.9151 | O34: 715684.2562
B36: Cash Operating Expense - KH | E36: =ROW('Acquiror Model'!H209) -> 209 | G36: =INDEX(INDIRECT("'Acquiror Model'!"&$E36&":"&$E36),G$5) -> 30455.54802 | H36: =INDEX(INDIRECT("'Acquiror Model'!"&$E36&":"&$E36),H$5) -> 114273.9838 | I36: 127691.739 | J36: 142939.1539 | K36: 160267.0482 | L36: 179960.7138 | M36: 202344.6916 | N36: 227788.2189 | O36: 256711.4436
B37: Cash Operating Expense - Kalitta | E37: =ROW('Target Model'!D234) -> 234 | G37: =INDEX(INDIRECT("'Target Model'!"&$E37&":"&$E37),G$6) -> 123298.359 | H37: =INDEX(INDIRECT("'Target Model'!"&$E37&":"&$E37),H$6) -> 406712.9621 | I37: 388385.936 | J37: 364069.729 | K37: 348376.0141 | L37: 330660.0795 | M37: 308427.8465 | N37: 283972.3903 | O37: 257071.3884
B38: Synergies
C39: Total | G39: =SUM(G36:G38) -> 153753.907 | H39: =SUM(H36:H38) -> 520986.9458 | I39: 516077.6751 | J39: 507008.8829 | K39: 508643.0623 | L39: 510620.7933 | M39: 510772.5381 | N39: 511760.6091 | O39: 513782.832
B41: EBITDA | G41: =G34-G39 -> 18976.74031 | H41: =H34-H39 -> 116974.8457 | I41: 144229.0798 | J41: 158207.9301 | K41: 162826.2106 | L41: 168698.5756 | M41: 178292.1722 | N41: 189291.3059 | O41: 201901.4243
B43: Capital Expenditure - KH | E43: =ROW('Acquiror Model'!D230) -> 230 | G43: =INDEX(INDIRECT("'Acquiror Model'!"&$E43&":"&$E43),G$5) -> 11205.91385 | H43: =INDEX(INDIRECT("'Acquiror Model'!"&$E43&":"&$E43),H$5) -> 30485.55093 | I43: 33823.38357 | J43: 37538.39111 | K43: 41674.79977 | L43: 46282.23474 | M43: 51416.40645 | N43: 57139.88757 | O43: 63522.99287
B44: Capital Expenditure - Kalitta | E44: =ROW('Target Model'!D252) -> 252 | G44: =INDEX(INDIRECT("'Target Model'!"&$E44&":"&$E44),G$6) -> 62229.6 | H44: =INDEX(INDIRECT("'Target Model'!"&$E44&":"&$E44),H$6) -> 35000 | I44: 35000 | J44: 30000 | K44: 30000 | L44: 30000 | M44: 30000 | N44: 20000 | O44: 20000
B45: Capital Expenditures 747's | G45: ='Merger Assumptions'!G4 -> 0 | H45: ='Merger Assumptions'!H4 -> 0 | I45: ='Merger Assumptions'!I4 -> 0 | J45: ='Merger Assumptions'!J4 -> 0 | K45: ='Merger Assumptions'!K4 -> 0 | L45: ='Merger Assumptions'!L4 -> 0 | M45: ='Merger Assumptions'!M4 -> 0 | N45: ='Merger Assumptions'!N4 -> 0 | O45: ='Merger Assumptions'!O4 -> 0
B46: Synegies
C47: Total | G47: =SUM(G43:G46) -> 73435.51385 | H47: =SUM(H43:H46) -> 65485.55093 | I47: 68823.38357 | J47: 67538.39111 | K47: 71674.79977 | L47: 76282.23474 | M47: 81416.40645 | N47: 77139.88757 | O47: 83522.99287
B49: Depreciation - KH | E49: =ROW('Acquiror Model'!D211) -> 211 | G49: =INDEX(INDIRECT("'Acquiror Model'!"&$E49&":"&$E49),G$5) -> 3710.260625 | H49: =INDEX(INDIRECT("'Acquiror Model'!"&$E49&":"&$E49),H$5) -> 12989.03835 | I49: 15636.78616 | J49: 18563.5657 | K49: 21799.4187 | L49: 25377.71182 | M49: 29335.5173 | N49: 33714.03883 | O49: 38559.08835
B50: Depreciation - Kalitta | E50: =ROW('Target Model'!E236) -> 236 | G50: =INDEX(INDIRECT("'Target Model'!"&$E50&":"&$E50),G$6) -> 11269.53049 | H50: =INDEX(INDIRECT("'Target Model'!"&$E50&":"&$E50),H$6) -> 45100.59308 | I50: 47852.39103 | J50: 51376.29055 | K50: 55372.96269 | L50: 60806.79902 | M50: 68459.97566 | N50: 79751.53853 | O50: 95035.31902
B51: Added Depreciation from Writeup | G51: ='Merger Assumptions'!G5 -> 3305.428571 | H51: ='Merger Assumptions'!H5 -> 3305.428571 | I51: ='Merger Assumptions'!I5 -> 3305.428571 | J51: ='Merger Assumptions'!J5 -> 3305.428571 | K51: ='Merger Assumptions'!K5 -> 3305.428571 | L51: ='Merger Assumptions'!L5 -> 3305.428571 | M51: ='Merger Assumptions'!M5 -> 3305.428571 | N51: ='Merger Assumptions'!N5 -> 3305.428571 | O51: ='Merger Assumptions'!O5 -> 3305.428571
C52: Total | G52: =SUM(G49:G51) -> 18285.21969 | H52: =SUM(H49:H51) -> 61395.06 | I52: 66794.60576 | J52: 73245.28482 | K52: 80477.80995 | L52: 89489.93941 | M52: 101100.9215 | N52: 116771.0059 | O52: 136899.8359
B54: Net Plant
C55: Opening Balance | G55: =F58 -> 463452.133 | H55: =G58 -> 518602.4272 | I55: 522692.9181 | J55: 524721.6959 | K55: 519014.8022 | L55: 510211.792 | M55: 497004.0874 | N55: 477319.5723 | O55: 437688.4539
C56: Add: Capital Expenditures | G56: =G47 -> 73435.51385 | H56: =H47 -> 65485.55093 | I56: 68823.38357 | J56: 67538.39111 | K56: 71674.79977 | L56: 76282.23474 | M56: 81416.40645 | N56: 77139.88757 | O56: 83522.99287
C57: Less: Depreciation | G57: =G52 -> 18285.21969 | H57: =H52 -> 61395.06 | I57: 66794.60576 | J57: 73245.28482 | K57: 80477.80995 | L57: 89489.93941 | M57: 101100.9215 | N57: 116771.0059 | O57: 136899.8359
C58: Closing Balance | F58: =F13 -> 463452.133 | G58: =G55+G56-G57 -> 518602.4272 | H58: =H55+H56-H57 -> 522692.9181 | I58: 524721.6959 | J58: 519014.8022 | K58: 510211.792 | L58: 497004.0874 | M58: 477319.5723 | N58: 437688.4539 | O58: 384311.6109
B60: Current Assets - KH | E60: =ROW('Acquiror Model'!D256) -> 256 | G60: =INDEX(INDIRECT("'Acquiror Model'!"&$E60&":"&$E60),G$5) -> 20357.43628 | H60: =INDEX(INDIRECT("'Acquiror Model'!"&$E60&":"&$E60),H$5) -> 21549.0501 | I60: 24601.8434 | J60: 28083.50722 | K60: 32053.10024 | L60: 36577.80554 | M60: 41734.05711 | N60: 47608.82441 | O60: 54301.07783
B61: Current Assets - Kalitta | E61: =ROW('Target Model'!E285) -> 285 | G61: =INDEX(INDIRECT("'Target Model'!"&$E61&":"&$E61),G$6) -> 128929.9755 | H61: =INDEX(INDIRECT("'Target Model'!"&$E61&":"&$E61),H$6) -> 131867.0564 | I61: 131202.7028 | J61: 126311.8309 | K61: 121547.3098 | L61: 116264.8046 | M61: 110281.4146 | N61: 103683.3622 | O61: 96408.85459
B62: Total Curent Assets | F62: =F12 -> 126758.136 | G62: =SUM(G60:G61) -> 149287.4118 | H62: =SUM(H60:H61) -> 153416.1065 | I62: 155804.5462 | J62: 154395.3381 | K62: 153600.4101 | L62: 152842.6102 | M62: 152015.4717 | N62: 151292.1866 | O62: 150709.9324
B64: Current Liabilities - KH | E64: =ROW('Acquiror Model'!D271) -> 271 | G64: =INDEX(INDIRECT("'Acquiror Model'!"&$E64&":"&$E64),G$5) -> 25712.80177 | H64: =INDEX(INDIRECT("'Acquiror Model'!"&$E64&":"&$E64),H$5) -> 27148.87961 | I64: 30773.29552 | J64: 34902.45984 | K64: 39605.78916 | L64: 44962.24683 | M64: 51061.66635 | N64: 58006.26076 | O64: 65912.34415
B65: Current Liabilities - Kalitta | E65: =ROW('Target Model'!D301) -> 301 | G65: =INDEX(INDIRECT("'Target Model'!"&$E65&":"&$E65),G$6) -> 76016.7006 | H65: =INDEX(INDIRECT("'Target Model'!"&$E65&":"&$E65),H$6) -> 71974.92406 | I65: 68893.28887 | J65: 64665.06615 | K65: 61880.20986 | L65: 58739.84882 | M65: 54821.3925 | N65: 50510.52251 | O65: 45767.9861
B66: Total Current Liabilities | F66: =F19 -> 103873.295 | G66: =SUM(G64:G65) -> 101729.5024 | H66: =SUM(H64:H65) -> 99123.80366 | I66: 99666.58439 | J66: 99567.52599 | K66: 101485.999 | L66: 103702.0956 | M66: 105883.0589 | N66: 108516.7833 | O66: 111680.3303
B68: Working Capital | F68: =F12-F19 -> 22884.841 | G68: =G62-G66 -> 47557.90938 | H68: =H62-H66 -> 54292.30283 | I68: 56137.96185 | J68: 54827.8121 | K68: 52114.41105 | L68: 49140.51452 | M68: 46132.4129 | N68: 42775.40335 | O68: 39029.60217
C69: Change in Working Capital | G69: =G68-F68 -> 24673.06838 | H69: =H68-G68 -> 6734.393443 | I69: 1845.659021 | J69: -1310.149747 | K69: -2713.401052 | L69: -2973.896535 | M69: -3008.10162 | N69: -3357.009542 | O69: -3745.801187
B71: Other Assets | F71: =F14 -> 28743.041 | G71: =F71 -> 28743.041 | H71: =G71 -> 28743.041 | I71: 28743.041 | J71: 28743.041 | K71: 28743.041 | L71: 28743.041 | M71: 28743.041 | N71: 28743.041 | O71: 28743.041
B72: Goodwill | F72: =F15 -> 76827.858 | G72: =F72 -> 76827.858 | H72: =G72 -> 76827.858 | I72: 76827.858 | J72: 76827.858 | K72: 76827.858 | L72: 76827.858 | M72: 76827.858 | N72: 76827.858 | O72: 76827.858
B73: Deferred Tax Liability | F73: =F23 -> 32800.191 | G73: =F73 -> 32800.191 | H73: =G73 -> 32800.191 | I73: 32800.191 | J73: 32800.191 | K73: 32800.191 | L73: 32800.191 | M73: 32800.191 | N73: 32800.191 | O73: 32800.191
B75: Other Income - KH | E75: =ROW('Acquiror Model'!D233) -> 233 | G75: =INDEX(INDIRECT("'Acquiror Model'!"&$E75&":"&$E75),G$5) -> 0 | H75: =INDEX(INDIRECT("'Acquiror Model'!"&$E75&":"&$E75),H$5) -> 0 | I75: 0 | J75: 0 | K75: 0 | L75: 0 | M75: 0 | N75: 0 | O75: 0
B76: Other Income - Kalitta | E76: =ROW('Target Model'!D240) -> 240 | G76: =INDEX(INDIRECT("'Target Model'!"&$E76&":"&$E76),G$6) -> 0 | H76: =INDEX(INDIRECT("'Target Model'!"&$E76&":"&$E76),H$6) -> 0 | I76: 0 | J76: 0 | K76: 0 | L76: 0 | M76: 0 | N76: 0 | O76: 0
C77: Total Other Income | G77: =SUM(G75:G76) -> 0 | H77: =SUM(H75:H76) -> 0 | I77: 0 | J77: 0 | K77: 0 | L77: 0 | M77: 0 | N77: 0 | O77: 0
B79: Minority Interest | E79: =ROW('Target Model'!D242) -> 242 | G79: =INDEX(INDIRECT("'Target Model'!"&$E79&":"&$E79),G$6) -> -1658.852671 | H79: =INDEX(INDIRECT("'Target Model'!"&$E79&":"&$E79),H$6) -> 728.1135446 | I79: 2047.302933 | J79: 2485.533991 | K79: 2272.207118 | L79: 1967.686226 | M79: 1670.183994 | N79: 1117.360918 | O79: 189.4572477
A81: Financing
B83: Notes and Term Loan Repayment | G83: ='Merger Assumptions'!G7 -> 0.007658104742 | H83: ='Merger Assumptions'!H7 -> 0.03063241897 | I83: ='Merger Assumptions'!I7 -> 0.02804590738 | J83: ='Merger Assumptions'!J7 -> 0.02543486308 | K83: ='Merger Assumptions'!K7 -> 0.02560374508 | L83: ='Merger Assumptions'!L7 -> 0.04921259076 | M83: ='Merger Assumptions'!M7 -> 0.1682140949 | N83: ='Merger Assumptions'!N7 -> 0.1682140949 | O83: ='Merger Assumptions'!O7 -> 0.1682140949
B85: New Notes
C86: Amount Issued | F86: =$F$89 -> 340000 | G86: =$F$89 -> 340000 | H86: =$F$89 -> 340000 | I86: 340000 | J86: 340000 | K86: 340000 | L86: 340000 | M86: 340000 | N86: 340000 | O86: 340000
C87: Opening Balance | G87: =F89 -> 340000 | H87: =G89 -> 337396.2444 | I87: 326981.2219 | J87: 317445.6134 | K87: 308797.76 | L87: 300092.4867 | M87: 283360.2058 | N87: 226167.4135 | O87: 168974.6212
C88: Less: Repayments | G88: =G86*G83 -> 2603.755612 | H88: =H86*H83 -> 10415.02245 | I88: 9535.608508 | J88: 8647.853446 | K88: 8705.273329 | L88: 16732.28086 | M88: 57192.79228 | N88: 57192.79228 | O88: 57192.79228
C89: Closing Balance | F89: =F21 -> 340000 | G89: =G87-G88 -> 337396.2444 | H89: =H87-H88 -> 326981.2219 | I89: 317445.6134 | J89: 308797.76 | K89: 300092.4867 | L89: 283360.2058 | M89: 226167.4135 | N89: 168974.6212 | O89: 111781.829
C90: Interest | E90: ='Transaction Assumptions'!D39 -> 0.095 | G90: =$E$90*G87*G2 -> 9044 | H90: =$E$90*H87*H2 -> 32052.64322 | I90: 31063.21608 | J90: 30157.33328 | K90: 29335.7872 | L90: 28508.78623 | M90: 26919.21955 | N90: 21485.90428 | O90: 16052.58902
B92: New Term Loan
C93: Amount Issued | F93: =$F$22 -> 45900 | G93: =$F$22 -> 45900 | H93: =$F$22 -> 45900 | I93: 45900 | J93: 45900 | K93: 45900 | L93: 45900 | M93: 45900 | N93: 45900 | O93: 45900
C94: Opening Balance | G94: =F96 -> 45900 | H94: =G96 -> 45548.49299 | I94: 44142.46496 | J94: 42855.15781 | K94: 41687.6976 | L94: 40512.4857 | M94: 38253.62778 | N94: 30532.60082 | O94: 22811.57387
C95: Less: Repayments | G95: =G93*G83 -> 351.5070077 | H95: =H93*H83 -> 1406.028031 | I95: 1287.307149 | J95: 1167.460215 | K95: 1175.211899 | L95: 2258.857916 | M95: 7721.026958 | N95: 7721.026958 | O95: 7721.026958
C96: Closing Balance | F96: =F93 -> 45900 | G96: =G94-G95 -> 45548.49299 | H96: =H94-H95 -> 44142.46496 | I96: 42855.15781 | J96: 41687.6976 | K96: 40512.4857 | L96: 38253.62778 | M96: 30532.60082 | N96: 22811.57387 | O96: 15090.54691
C97: Interest | E97: ='Transaction Assumptions'!D43 -> 0.088 | G97: =$E$97*G94*G2 -> 1130.976 | H97: =$E$97*H94*H2 -> 4008.267383 | I97: 3884.536917 | J97: 3771.253888 | K97: 3668.517389 | L97: 3565.098741 | M97: 3366.319245 | N97: 2686.868873 | O97: 2007.4185
B99: Cash Balance
C100: Minimum Cash as Percent of Revenues | G100: ='Merger Assumptions'!G9 -> 0.02 | H100: ='Merger Assumptions'!H9 -> 0.02 | I100: ='Merger Assumptions'!I9 -> 0.02 | J100: ='Merger Assumptions'!J9 -> 0.02 | K100: ='Merger Assumptions'!K9 -> 0.02 | L100: ='Merger Assumptions'!L9 -> 0.02 | M100: ='Merger Assumptions'!M9 -> 0.02 | N100: ='Merger Assumptions'!N9 -> 0.02 | O100: ='Merger Assumptions'!O9 -> 0.02
C101: Minimum Cash Balance | G101: =G100*G34/G2 -> 12337.90338 | H101: =H100*H34/H2 -> 12759.23583 | I101: 13206.1351 | J101: 13304.33626 | K101: 13429.38546 | L101: 13586.38738 | M101: 13781.29421 | N101: 14021.0383 | O101: 14313.68512
C103: Opening Balance | G103: =F106 -> 10785.622 | H103: =G106 -> 10785.622 | I103: 10785.622 | J103: 10785.622 | K103: 10785.622 | L103: 10785.622 | M103: 10785.622 | N103: 10785.622 | O103: 10785.622
C104: Less Cash Reduced from Negative Cash Flow | G104: =G159 -> 0 | H104: =H159 -> 0 | I104: 0 | J104: 0 | K104: 0 | L104: 0 | M104: 0 | N104: 0 | O104: 0
C105: Add: Cash Increased from Surplus Cash | G105: =G162 -> 0 | H105: =H162 -> 0 | I105: 0 | J105: 0 | K105: 0 | L105: 0 | M105: 0 | N105: 0 | O105: 0
C106: Closing Balance | F106: =F10 -> 10785.622 | G106: =G103-G104+G105 -> 10785.622 | H106: =H103-H104+H105 -> 10785.622 | I106: 10785.622 | J106: 10785.622 | K106: 10785.622 | L106: 10785.622 | M106: 10785.622 | N106: 10785.622 | O106: 10785.622
C107: Interest Income Rate | G107: ='Merger Assumptions'!G11 -> 0.03 | H107: ='Merger Assumptions'!H11 -> 0.03 | I107: ='Merger Assumptions'!I11 -> 0.03 | J107: ='Merger Assumptions'!J11 -> 0.03 | K107: ='Merger Assumptions'!K11 -> 0.03 | L107: ='Merger Assumptions'!L11 -> 0.03 | M107: ='Merger Assumptions'!M11 -> 0.03 | N107: ='Merger Assumptions'!N11 -> 0.03 | O107: ='Merger Assumptions'!O11 -> 0.03
C108: Interest Income | G108: =G107*G103*G2 -> 90.5992248 | H108: =H107*H103*H2 -> 323.56866 | I108: 323.56866 | J108: 323.56866 | K108: 323.56866 | L108: 323.56866 | M108: 323.56866 | N108: 323.56866 | O108: 323.56866
C110: Minimum Balance Test | G110: =MAX(G103-G101,0) -> 0 | H110: =MAX(H103-H101,0) -> 0 | I110: 0 | J110: 0 | K110: 0 | L110: 0 | M110: 0 | N110: 0 | O110: 0
B112: Revolver/New Debt
C113: Opening Balance | G113: =F116 -> 0 | H113: =G116 -> 92171.48133 | I113: 107778.6042 | J113: 102480.4931 | K113: 79875.15727 | L113: 52656.04072 | M113: 29770.82529 | N113: 45226.35911 | O113: 40337.3449
C114: Less: Reduction from Positive Cash Flow | G114: =G160 -> 0 | H114: =H160 -> 0 | I114: 5298.111045 | J114: 22605.33585 | K114: 27219.11655 | L114: 22885.21543 | M114: 0 | N114: 4889.014209 | O114: 18438.10288
C115: Add: Increase from Negative Cash Flow | G115: =G163 -> 92171.48133 | H115: =H163 -> 15607.12284 | I115: 0 | J115: 0 | K115: 0 | L115: 0 | M115: 15455.53382 | N115: 0 | O115: 0
C116: Closing Balance | F116: =F20 -> 0 | G116: =G113-G114+G115 -> 92171.48133 | H116: =H113-H114+H115 -> 107778.6042 | I116: 102480.4931 | J116: 79875.15727 | K116: 52656.04072 | L116: 29770.82529 | M116: 45226.35911 | N116: 40337.3449 | O116: 21899.24202
C117: Interest Rate | E117: ='Transaction Assumptions'!D47 -> 0.088 | G117: =$E$117*G113*G2 -> 0 | H117: =$E$117*H113*H2 -> 8111.090357 | I117: 9484.517167 | J117: 9018.283395 | K117: 7029.01384 | L117: 4633.731583 | M117: 2619.832625 | N117: 3979.919601 | O117: 3549.686351
C118: Interest Expense
B120: Restricted Cash Balance
C121: Opening Balance | G121: =F123 -> 4501.213 | H121: =G123 -> 4501.213 | I121: 4501.213 | J121: 4501.213 | K121: 4501.213 | L121: 4501.213 | M121: 4501.213 | N121: 4501.213 | O121: 4501.213
C122: Less: Cash for 747's | G122: =G45 -> 0 | H122: =H45 -> 0 | I122: 0 | J122: 0 | K122: 0 | L122: 0 | M122: 0 | N122: 0 | O122: 0
C123: Closing Balance | F123: =F11 -> 4501.213 | G123: =G121-G122 -> 4501.213 | H123: =H121-H122 -> 4501.213 | I123: 4501.213 | J123: 4501.213 | K123: 4501.213 | L123: 4501.213 | M123: 4501.213 | N123: 4501.213 | O123: 4501.213
B125: Total Interest Expense | G125: =G117+G97+G90 -> 10174.976 | H125: =H117+H97+H90 -> 44172.00096 | I125: 44432.27017 | J125: 42946.87056 | K125: 40033.31843 | L125: 36707.61656 | M125: 32905.37142 | N125: 28152.69276 | O125: 21609.69387
A127: Profit and Loss
B128: Income Tax Rate | G128: ='Merger Assumptions'!G13 -> 0.4 | H128: ='Merger Assumptions'!H13 -> 0.4 | I128: ='Merger Assumptions'!I13 -> 0.4 | J128: ='Merger Assumptions'!J13 -> 0.4 | K128: ='Merger Assumptions'!K13 -> 0.4 | L128: ='Merger Assumptions'!L13 -> 0.4 | M128: ='Merger Assumptions'!M13 -> 0.4 | N128: ='Merger Assumptions'!N13 -> 0.4 | O128: ='Merger Assumptions'!O13 -> 0.4
B130: Revenues | G130: =G34 -> 172730.6473 | H130: =H34 -> 637961.7915 | I130: 660306.7549 | J130: 665216.813 | K130: 671469.273 | L130: 679319.369 | M130: 689064.7103 | N130: 701051.9151 | O130: 715684.2562
B131: Less: Cash Operating Expense | G131: =G39 -> 153753.907 | H131: =H39 -> 520986.9458 | I131: 516077.6751 | J131: 507008.8829 | K131: 508643.0623 | L131: 510620.7933 | M131: 510772.5381 | N131: 511760.6091 | O131: 513782.832
C132: EBITDA | G132: =G130-G131 -> 18976.74031 | H132: =H130-H131 -> 116974.8457 | I132: 144229.0798 | J132: 158207.9301 | K132: 162826.2106 | L132: 168698.5756 | M132: 178292.1722 | N132: 189291.3059 | O132: 201901.4243
B133: Less: Depreciation Expense | G133: =G52 -> 18285.21969 | H133: =H52 -> 61395.06 | I133: 66794.60576 | J133: 73245.28482 | K133: 80477.80995 | L133: 89489.93941 | M133: 101100.9215 | N133: 116771.0059 | O133: 136899.8359
C134: EBIT | G134: =G132-G133 -> 691.5206204 | H134: =H132-H133 -> 55579.78566 | I134: 77434.47407 | J134: 84962.64532 | K134: 82348.40069 | L134: 79208.63623 | M134: 77191.25064 | N134: 72520.30001 | O134: 65001.58832
B135: Less: Interest Expense | G135: =G125 -> 10174.976 | H135: =H125 -> 44172.00096 | I135: 44432.27017 | J135: 42946.87056 | K135: 40033.31843 | L135: 36707.61656 | M135: 32905.37142 | N135: 28152.69276 | O135: 21609.69387
B136: Add: Interest Income | G136: =G108 -> 90.5992248 | H136: =H108 -> 323.56866 | I136: 323.56866 | J136: 323.56866 | K136: 323.56866 | L136: 323.56866 | M136: 323.56866 | N136: 323.56866 | O136: 323.56866
B137: Add: Other Income | G137: =G77 -> 0 | H137: =H77 -> 0 | I137: 0 | J137: 0 | K137: 0 | L137: 0 | M137: 0 | N137: 0 | O137: 0
C138: EBT | G138: =G134-G135+G136+G137 -> -9392.856155 | H138: =H134-H135+H136+H137 -> 11731.35336 | I138: 33325.77257 | J138: 42339.34342 | K138: 42638.65092 | L138: 42824.58834 | M138: 44609.44788 | N138: 44691.17591 | O138: 43715.46311
B139: Less: Taxes | G139: =MAX(G138*G128,0) -> 0 | H139: =MAX(H138*H128,0) -> 4692.541343 | I139: 13330.30903 | J139: 16935.73737 | K139: 17055.46037 | L139: 17129.83533 | M139: 17843.77915 | N139: 17876.47037 | O139: 17486.18525
C140: Income before Minority Interest | G140: =G138-G139 -> -9392.856155 | H140: =H138-H139 -> 7038.812015 | I140: 19995.46354 | J140: 25403.60605 | K140: 25583.19055 | L140: 25694.753 | M140: 26765.66873 | N140: 26814.70555 | O140: 26229.27787
B141: Less: Minority Interest | G141: =G79 -> -1658.852671 | H141: =H79 -> 728.1135446 | I141: 2047.302933 | J141: 2485.533991 | K141: 2272.207118 | L141: 1967.686226 | M141: 1670.183994 | N141: 1117.360918 | O141: 189.4572477
C142: Net Income to Common | G142: =G140-G141 -> -7734.003484 | H142: =H140-H141 -> 6310.698471 | I142: 17948.16061 | J142: 22918.07206 | K142: 23310.98343 | L142: 23727.06678 | M142: 25095.48473 | N142: 25697.34463 | O142: 26039.82062
A144: Cash Flow
B145: EBITDA | G145: =G132 -> 18976.74031 | H145: =H132 -> 116974.8457 | I145: 144229.0798 | J145: 158207.9301 | K145: 162826.2106 | L145: 168698.5756 | M145: 178292.1722 | N145: 189291.3059 | O145: 201901.4243
B146: Less: Taxes | G146: =G139 -> 0 | H146: =H139 -> 4692.541343 | I146: 13330.30903 | J146: 16935.73737 | K146: 17055.46037 | L146: 17129.83533 | M146: 17843.77915 | N146: 17876.47037 | O146: 17486.18525
B147: Less: Change in Working Capital | G147: =G69 -> 24673.06838 | H147: =H69 -> 6734.393443 | I147: 1845.659021 | J147: -1310.149747 | K147: -2713.401052 | L147: -2973.896535 | M147: -3008.10162 | N147: -3357.009542 | O147: -3745.801187
C148: Operating Cash Flow | G148: =G145-G146-G147 -> -5696.328077 | H148: =H145-H146-H147 -> 105547.9109 | I148: 129053.1118 | J148: 142582.3425 | K148: 148484.1513 | L148: 154542.6368 | M148: 163456.4946 | N148: 174771.8451 | O148: 188161.0402
B149: Less: Capital Expenditures | G149: =G47 -> 73435.51385 | H149: =H47 -> 65485.55093 | I149: 68823.38357 | J149: 67538.39111 | K149: 71674.79977 | L149: 76282.23474 | M149: 81416.40645 | N149: 77139.88757 | O149: 83522.99287
B150: Add: Reduction in Restricted Cash | G150: =G122 -> 0 | H150: =H122 -> 0 | I150: 0 | J150: 0 | K150: 0 | L150: 0 | M150: 0 | N150: 0 | O150: 0
C151: Net Cash Flow | G151: =G148-G149+G150 -> -79131.84193 | H151: =H148-H149+H150 -> 40062.35994 | I151: 60229.72821 | J151: 75043.95141 | K151: 76809.35155 | L151: 78260.4021 | M151: 82040.08818 | N151: 97631.95755 | O151: 104638.0473
B152: Less: Interest Expense | G152: =G135 -> 10174.976 | H152: =H135 -> 44172.00096 | I152: 44432.27017 | J152: 42946.87056 | K152: 40033.31843 | L152: 36707.61656 | M152: 32905.37142 | N152: 28152.69276 | O152: 21609.69387
B153: Add: Interest Income | G153: =G136 -> 90.5992248 | H153: =H136 -> 323.56866 | I153: 323.56866 | J153: 323.56866 | K153: 323.56866 | L153: 323.56866 | M153: 323.56866 | N153: 323.56866 | O153: 323.56866
B154: Less: Repayment of Notes | G154: =G88 -> 2603.755612 | H154: =H88 -> 10415.02245 | I154: 9535.608508 | J154: 8647.853446 | K154: 8705.273329 | L154: 16732.28086 | M154: 57192.79228 | N154: 57192.79228 | O154: 57192.79228
B155: Less: Repayment of Term Loan | G155: =G95 -> 351.5070077 | H155: =H95 -> 1406.028031 | I155: 1287.307149 | J155: 1167.460215 | K155: 1175.211899 | L155: 2258.857916 | M155: 7721.026958 | N155: 7721.026958 | O155: 7721.026958
B156: Add: Other Income | G156: =G137 -> 0 | H156: =H137 -> 0 | I156: 0 | J156: 0 | K156: 0 | L156: 0 | M156: 0 | N156: 0 | O156: 0
B157: Less: Dividends
C158: Net Cash Flow | G158: =G151-G152+G153-G154-G155+G156-G157 -> -92171.48133 | H158: =H151-H152+H153-H154-H155+H156-H157 -> -15607.12284 | I158: 5298.111045 | J158: 22605.33585 | K158: 27219.11655 | L158: 22885.21543 | M158: -15455.53382 | N158: 4889.014209 | O158: 18438.10288
B159: Add: Reduction in Cash when Negative | G159: =MIN(MAX(-G158,0),G110) -> 0 | H159: =MIN(MAX(-H158,0),H110) -> 0 | I159: 0 | J159: 0 | K159: 0 | L159: 0 | M159: 0 | N159: 0 | O159: 0
B160: Less: Increase in Debt when Positive | G160: =MIN(G113,MAX(G158,0)) -> 0 | H160: =MIN(H113,MAX(H158,0)) -> 0 | I160: 5298.111045 | J160: 22605.33585 | K160: 27219.11655 | L160: 22885.21543 | M160: 0 | N160: 4889.014209 | O160: 18438.10288
C161: Cash Flow Subtotal | G161: =G158+G159-G160 -> -92171.48133 | H161: =H158+H159-H160 -> -15607.12284 | I161: 0 | J161: 0 | K161: 0 | L161: 0 | M161: -15455.53382 | N161: 0 | O161: 0
B162: Surplus cash when positive | G162: =MAX(G161,0) -> 0 | H162: =MAX(H161,0) -> 0 | I162: 0 | J162: 0 | K162: 0 | L162: 0 | M162: 0 | N162: 0 | O162: 0
B163: Added Debt when Negative | G163: =MAX(-G161,0) -> 92171.48133 | H163: =MAX(-H161,0) -> 15607.12284 | I163: 0 | J163: 0 | K163: 0 | L163: 0 | M163: 15455.53382 | N163: 0 | O163: 0
A165: Balance Sheet
B166: Equity Balance
C167: Opening Balance | G167: =F170 -> 184922.08 | H167: =G170 -> 177188.0765 | I167: 183498.775 | J167: 201446.9356 | K167: 224365.0077 | L167: 247675.9911 | M167: 271403.0579 | N167: 296498.5426 | O167: 322195.8872
C168: Add: Net Income | G168: =G142 -> -7734.003484 | H168: =H142 -> 6310.698471 | I168: 17948.16061 | J168: 22918.07206 | K168: 23310.98343 | L168: 23727.06678 | M168: 25095.48473 | N168: 25697.34463 | O168: 26039.82062
C169: Less: Dividends | G169: =G157 -> 0 | H169: =H157 -> 0 | I169: 0 | J169: 0 | K169: 0 | L169: 0 | M169: 0 | N169: 0 | O169: 0
C170: Closing Balance | F170: =F25 -> 184922.08 | G170: =G167+G168-G169 -> 177188.0765 | H170: =H167+H168-H169 -> 183498.775 | I170: 201446.9356 | J170: 224365.0077 | K170: 247675.9911 | L170: 271403.0579 | M170: 296498.5426 | N170: 322195.8872 | O170: 348235.7078
B172: Minority Balance
C173: Opening Balance | G173: =F176 -> 3572.437 | H173: =G176 -> 1913.584329 | I173: 2641.697874 | J173: 4689.000807 | K173: 7174.534798 | L173: 9446.741916 | M173: 11414.42814 | N173: 13084.61214 | O173: 14201.97305
C174: Add: Net Income | G174: =G141 -> -1658.852671 | H174: =H141 -> 728.1135446 | I174: 2047.302933 | J174: 2485.533991 | K174: 2272.207118 | L174: 1967.686226 | M174: 1670.183994 | N174: 1117.360918 | O174: 189.4572477
C175: Less: Dividends
C176: Closing Balance | F176: =F24 -> 3572.437 | G176: =G173+G174-G175 -> 1913.584329 | H176: =H173+H174-H175 -> 2641.697874 | I176: 4689.000807 | J176: 7174.534798 | K176: 9446.741916 | L176: 11414.42814 | M176: 13084.61214 | N176: 14201.97305 | O176: 14391.4303
B178: Assets
C179: Cash Balance | F179: =F106 -> 10785.622 | G179: 10785.622 | H179: 10785.622 | I179: 10785.622 | J179: 10785.622 | K179: 10785.622 | L179: 10785.622 | M179: 10785.622 | N179: 10785.622 | O179: 10785.622
C180: Restricted Cash | F180: =F123 -> 4501.213 | G180: 4501.213 | H180: 4501.213 | I180: 4501.213 | J180: 4501.213 | K180: 4501.213 | L180: 4501.213 | M180: 4501.213 | N180: 4501.213 | O180: 4501.213
C181: Current Assets Less Cash | F181: =F62 -> 126758.136 | G181: 149287.4118 | H181: 153416.1065 | I181: 155804.5462 | J181: 154395.3381 | K181: 153600.4101 | L181: 152842.6102 | M181: 152015.4717 | N181: 151292.1866 | O181: 150709.9324
C182: Net Plant | F182: =F58 -> 463452.133 | G182: 518602.4272 | H182: 522692.9181 | I182: 524721.6959 | J182: 519014.8022 | K182: 510211.792 | L182: 497004.0874 | M182: 477319.5723 | N182: 437688.4539 | O182: 384311.6109
C183: Other Assets | F183: =F71 -> 28743.041 | G183: 28743.041 | H183: 28743.041 | I183: 28743.041 | J183: 28743.041 | K183: 28743.041 | L183: 28743.041 | M183: 28743.041 | N183: 28743.041 | O183: 28743.041
C184: Goodwill | F184: =F72 -> 76827.858 | G184: 76827.858 | H184: 76827.858 | I184: 76827.858 | J184: 76827.858 | K184: 76827.858 | L184: 76827.858 | M184: 76827.858 | N184: 76827.858 | O184: 76827.858
D185: Total Assets | F185: =SUM(F179:F184) -> 711068.003 | G185: =SUM(G179:G184) -> 788747.5729 | H185: =SUM(H179:H184) -> 796966.7586 | I185: 801383.9761 | J185: 794267.8743 | K185: 784669.9361 | L185: 770704.4315 | M185: 750192.778 | N185: 709838.3745 | O185: 655879.2773
C188: Current Liabilities Less Debt | F188: =F66 -> 103873.295 | G188: 101729.5024 | H188: 99123.80366 | I188: 99666.58439 | J188: 99567.52599 | K188: 101485.999 | L188: 103702.0956 | M188: 105883.0589 | N188: 108516.7833 | O188: 111680.3303
C189: New Debt | F189: =F116 -> 0 | G189: 92171.48133 | H189: 107778.6042 | I189: 102480.4931 | J189: 79875.15727 | K189: 52656.04072 | L189: 29770.82529 | M189: 45226.35911 | N189: 40337.3449 | O189: 21899.24202
C190: New Notes | F190: =F89 -> 340000 | G190: 337396.2444 | H190: 326981.2219 | I190: 317445.6134 | J190: 308797.76 | K190: 300092.4867 | L190: 283360.2058 | M190: 226167.4135 | N190: 168974.6212 | O190: 111781.829
C191: New Term Loan | F191: =F96 -> 45900 | G191: 45548.49299 | H191: 44142.46496 | I191: 42855.15781 | J191: 41687.6976 | K191: 40512.4857 | L191: 38253.62778 | M191: 30532.60082 | N191: 22811.57387 | O191: 15090.54691
C192: Deferred Tax Liability | F192: =F73 -> 32800.191 | G192: 32800.191 | H192: 32800.191 | I192: 32800.191 | J192: 32800.191 | K192: 32800.191 | L192: 32800.191 | M192: 32800.191 | N192: 32800.191 | O192: 32800.191
C193: Minority Interest | F193: =F176 -> 3572.437 | G193: 1913.584329 | H193: 2641.697874 | I193: 4689.000807 | J193: 7174.534798 | K193: 9446.741916 | L193: 11414.42814 | M193: 13084.61214 | N193: 14201.97305 | O193: 14391.4303
C194: Common Equity | F194: =F170 -> 184922.08 | G194: 177188.0765 | H194: 183498.775 | I194: 201446.9356 | J194: 224365.0077 | K194: 247675.9911 | L194: 271403.0579 | M194: 296498.5426 | N194: 322195.8872 | O194: 348235.7078
D195: Total Liabilities and Capital | F195: =SUM(F188:F194) -> 711068.003 | G195: =SUM(G188:G194) -> 788747.5729 | H195: =SUM(H188:H194) -> 796966.7586 | I195: 801383.9761 | J195: 794267.8743 | K195: 784669.9361 | L195: 770704.4315 | M195: 750192.778 | N195: 709838.3745 | O195: 655879.2773
C197: Difference | F197: =F185-F195 -> 0 | G197: =G185-G195 -> 0 | H197: =H185-H195 -> 0 | I197: 0 | J197: 0 | K197: 0 | L197: 0 | M197: 0 | N197: 0 | O197: 0
C198: Test | F198: =F197=0 -> TRUE | G198: =G197=0 -> TRUE | H198: TRUE | I198: TRUE | J198: TRUE | K198: TRUE | L198: TRUE | M198: TRUE | N198: TRUE | O198: TRUE
C200: Shares | F200: ='Transaction Structure'!$R$71 -> 6595 | G200: =F200 -> 6595 | H200: =G200 -> 6595 | I200: 6595 | J200: 6595 | K200: 6595 | L200: 6595 | M200: 6595 | N200: 6595 | O200: 6595
C201: EPS | G201: =G142/G200 -> -1.172707124 | H201: =H142/H200 -> 0.9568913526 | I201: 2.721480001 | J201: 3.475067788 | K201: 3.534644948 | L201: 3.597735675 | M201: 3.805228921 | N201: 3.896488951 | O201: 3.948418593
G203: =G1 -> 1997 | H203: =H1 -> 1998 | I203: 1999 | J203: 2000 | K203: 2001 | L203: 2002 | M203: 2003 | N203: 2004 | O203: 2005
C204: Debt to Capital | F204: =(F189+F190)/(F189+F190+F193+F194) -> 0.6433368541 | G204: =(G189+G190)/(G189+G190+G193+G194) -> 0.7057488601 | H204: 0.7002087563 | I204: 0.6707419996 | J204: 0.6266770542 | K204: 0.5783983445 | L204: 0.5254330233 | M204: 0.4671334778 | N204: 0.3835590931 | O204: 0.2693509165
C205: Debt to EBITDA | G205: =((G189+G190+G191)/G145)/4 -> 6.25919166 | H205: =(H189+H190+H191)/H145 -> 4.094062175 | I205: =(I189+I190+I191)/I145 -> 3.20865435 | J205: =(J189+J190+J191)/J145 -> 2.720221511 | K205: =(K189+K190+K191)/K145 -> 2.41521934 | L205: =(L189+L190+L191)/L145 -> 2.082914201 | M205: =(M189+M190+M191)/M145 -> 1.693435947 | N205: =(N189+N190+N191)/N145 -> 1.226276816 | O205: =(O189+O190+O191)/O145 -> 0.736852741
C206: EBITDA Interest | G206: =G132/G135 -> 1.865040302 | H206: =H132/H135 -> 2.648167235 | I206: 3.246043456 | J206: 3.683805783 | K206: 4.067267392 | L206: 4.595737655 | M206: 5.418330335 | N206: 6.723737142 | O206: 9.343095071
H208: =G1 -> 1997 | I208: =H1 -> 1998 | J208: =I1 -> 1999 | K208: =J1 -> 2000 | L208: =K1 -> 2001 | M208: =L1 -> 2002 | N208: =M1 -> 2003 | O208: =N1 -> 2004
C209: Consolidated | H209: =H201 -> 0.9568913526 | I209: =I201 -> 2.721480001 | J209: 3.475067788 | K209: 3.534644948 | L209: 3.597735675 | M209: 3.805228921 | N209: 3.896488951 | O209: 3.948418593
C210: Standalone | H210: 1.015753561 | I210: 1.131936509 | J210: 1.268138478 | K210: 1.451263945 | L210: 1.68969701 | M210: 1.99410483 | N210: 2.377930818 | O210: 2.85715459
C212: New Debt Issued
H213: =G1 -> 1997 | I213: =H1 -> 1998 | J213: =I1 -> 1999 | K213: =J1 -> 2000 | L213: =K1 -> 2001 | M213: =L1 -> 2002 | N213: =M1 -> 2003 | O213: =N1 -> 2004
C214: Accumulated New Debt | H214: =H189 -> 107778.6042 | I214: =I189 -> 102480.4931 | J214: 79875.15727 | K214: 52656.04072 | L214: 29770.82529 | M214: 45226.35911 | N214: 40337.3449 | O214: 21899.24202

Sheet Acquiror Scenario
T1: Start Row | U1: =ROW(M12) -> 12
C2: Base for Comparison | F2: 1 | G2: =INDEX($C$12:$C$15,F2) -> Base Case | I2: Planes Added | T2: End Row | U2: =ROW(M24) -> 24
C3: Sensitivity Case | F3: 2 | G3: =INDEX($C$12:$C$15,F3) -> Low Case | T3: Start Col | U3: =COLUMN(O11) -> 15
T4: End Col | U4: =COLUMN(V11) -> 22
T5: Outputs Row | U5: =ROW(O11) -> 11
T6: Inputs Col | U6: =COLUMN(M12) -> 13
C7: Scenario Num | D7: 1 | O7: ='Acquiror Model'!C312 -> EPS
D9: 1 | E9: 2 | F9: 3 | G9: 4 | H9: 5 | I9: 6 | J9: 7 | K9: 8 | L9: 9 | O9: 1998 | P9: =O9+1 -> 1999 | Q9: =P9+1 -> 2000 | R9: 2001 | S9: 2002 | T9: 2003 | U9: 2004 | V9: 2005
D10: Flight Hours per Existing Plane | E10: Capital Expenditure Efficiency | F10: Cost of New Planes | G10: IRR on New Planes | H10: Logistics Growth | I10: Logistics Margin | J10: Admin Expense Percent | K10: Interest Expense Rate | L10: Interest Income Rate | O10: =$O$7&" "&O9 -> EPS 1998 | P10: =$O$7&" "&P9 -> EPS 1999 | Q10: EPS 2000 | R10: EPS 2001 | S10: EPS 2002 | T10: EPS 2003 | U10: EPS 2004 | V10: EPS 2005
N11: =C30 -> Base Case | O11: ='Acquiror Model'!O315 -> 1.738562796 | P11: ='Acquiror Model'!P315 -> 2.277783525 | Q11: ='Acquiror Model'!Q315 -> 2.96528556 | R11: ='Acquiror Model'!R315 -> 3.85928649 | S11: ='Acquiror Model'!S315 -> 4.998720887 | T11: ='Acquiror Model'!T315 -> 6.475468692 | U11: ='Acquiror Model'!U315 -> 8.508483025 | V11: ='Acquiror Model'!V315 -> 11.45481158
C12: Base Case | D12: 1100 | E12: 1 | F12: 1 | G12: 0.13 | H12: 0.02 | I12: 0.08 | J12: 0.05 | K12: 0.07 | L12: 0.02 | M12: 1 | N12: =C12 -> Base Case | O12: 1.155664232 | P12: 1.400153091 | Q12: 1.661646292 | R12: 1.965569865 | S12: 2.317372376 | T12: 2.665922485 | U12: 3.179475542 | V12: 3.646450537
C13: Low Case | D13: 1000 | E13: 1.1 | F13: 2 | G13: 0.06 | H13: -0.01 | I13: 0.06 | J13: 0.07 | K13: 0.08 | L13: 0.01 | M13: 2 | O13: 0.6034382149 | P13: 0.4173642985 | Q13: 0.3642285362 | R13: 0.2273302475 | S13: 0.3193216661 | T13: 0.4006904129 | U13: 0.4994939561 | V13: 0.6132303632
C14: High Case | D14: 1200 | E14: 0.9 | F14: 3 | G14: 0.18 | H14: 0.04 | I14: 0.09 | J14: 0.04 | K14: 0.06 | L14: 0.03 | M14: 3 | O14: 1.571224102 | P14: 2.072231507 | Q14: 2.603922559 | R14: 3.329782768 | S14: 4.172219478 | T14: 5.190388186 | U14: 6.475032099 | V14: 8.194366731
C15: Worst Case | D15: 900 | E15: 0.9 | F15: 1 | G15: 0.05 | H15: -0.01 | I15: 0.06 | J15: 0.07 | K15: 0.09 | L15: 0.01 | M15: 4 | O15: 0.4426753304 | P15: 0.5251855532 | Q15: 0.6209721188 | R15: 0.7463625564 | S15: 0.8880050071 | T15: 1.046380241 | U15: 1.218190355 | V15: 1.400760812
B16: 1 | C16: =TRANSPOSE(D10:L10)&" "&G3&" vs "&G2 -> Flight Hours per Existing Plane Low Case vs Base Case | D16: =IF(D$9=$B16,OFFSET(D$11,$F$3,0),OFFSET(D$11,$F$2,0)) -> 1000 | E16: 1 | F16: 1 | G16: 0.13 | H16: 0.02 | I16: 0.08 | J16: 0.05 | K16: 0.07 | L16: 0.02 | M16: 5 | O16: 0.9814629816 | P16: 1.141438014 | Q16: 1.452122875 | R16: 1.744210655 | S16: 2.086055811 | T16: 2.48453289 | U16: 2.947255666 | V16: 3.482601376
B17: 2 | C17: Capital Expenditure Efficiency Low Case vs Base Case | D17: 1100 | E17: 1.1 | F17: 1 | G17: 0.13 | H17: 0.02 | I17: 0.08 | J17: 0.05 | K17: 0.07 | L17: 0.02 | M17: 6 | O17: 1.13468841 | P17: 1.285307834 | Q17: 1.580197325 | R17: 1.850673549 | S17: 2.162090113 | T17: 2.519128327 | U17: 2.926397738 | V17: 3.388463795
B18: 3 | C18: Cost of New Planes Low Case vs Base Case | D18: 1100 | E18: 1 | F18: 2 | G18: 0.13 | H18: 0.02 | I18: 0.08 | J18: 0.05 | K18: 0.07 | L18: 0.02 | M18: 7 | O18: 1.155664232 | P18: 0.9981541385 | Q18: 1.015017474 | R18: 0.9344375389 | S18: 1.215654717 | T18: 1.539745754 | U18: 1.921937233 | V18: 2.366520475
B19: 4 | C19: IRR on New Planes Low Case vs Base Case | D19: 1100 | E19: 1 | F19: 1 | G19: 0.06 | H19: 0.02 | I19: 0.08 | J19: 0.05 | K19: 0.07 | L19: 0.02 | M19: 8 | O19: 1.127731999 | P19: 1.310481911 | Q19: 1.491751854 | R19: 1.692507439 | S19: 1.912223874 | T19: 2.149630864 | U19: 2.401636312 | V19: 2.663989085
B20: 5 | C20: Logistics Growth Low Case vs Base Case | D20: 1100 | E20: 1 | F20: 1 | G20: 0.13 | H20: -0.01 | I20: 0.08 | J20: 0.05 | K20: 0.07 | L20: 0.02 | M20: 9 | O20: 1.149859118 | P20: 1.391805189 | Q20: 1.650087652 | R20: 1.950367617 | S20: 2.210850282 | T20: 2.688959368 | U20: 3.088408961 | V20: 3.66216547
B21: 6 | C21: Logistics Margin Low Case vs Base Case | D21: 1100 | E21: 1 | F21: 1 | G21: 0.13 | H21: 0.02 | I21: 0.06 | J21: 0.05 | K21: 0.07 | L21: 0.02 | M21: 10 | O21: 1.054714577 | P21: 1.287781542 | Q21: 1.537622907 | R21: 1.828602466 | S21: 2.165941894 | T21: 2.460435598 | U21: 2.990943455 | V21: 3.432333004
B22: 7 | C22: Admin Expense Percent Low Case vs Base Case | D22: 1100 | E22: 1 | F22: 1 | G22: 0.13 | H22: 0.02 | I22: 0.08 | J22: 0.07 | K22: 0.07 | L22: 0.02 | M22: 11 | O22: 0.9450181875 | P22: 1.166806102 | Q22: 1.406683103 | R22: 1.687741213 | S22: 2.015666361 | T22: 2.396426425 | U22: 2.836667111 | V22: 3.343278036
B23: 8 | C23: Interest Expense Rate Low Case vs Base Case | D23: 1100 | E23: 1 | F23: 1 | G23: 0.13 | H23: 0.02 | I23: 0.08 | J23: 0.05 | K23: 0.08 | L23: 0.02 | M23: 12 | O23: 1.125837364 | P23: 1.362983371 | Q23: 1.620660522 | R23: 1.920429666 | S23: 2.267385711 | T23: 2.667142973 | U23: 3.072574813 | V23: 3.640240965
B24: 9 | C24: Interest Income Rate Low Case vs Base Case | D24: 1100 | E24: 1 | F24: 1 | G24: 0.13 | H24: 0.02 | I24: 0.08 | J24: 0.05 | K24: 0.07 | L24: 0.01 | M24: 13 | O24: 1.155425725 | P24: 1.399572757 | Q24: 1.660957724 | R24: 1.964755518 | S24: 2.316412453 | T24: 2.664818334 | U24: 3.178158937 | V24: 3.644940744
C30: =INDEX(C12:C24,$D$7) -> Base Case | D30: =INDEX(D12:D24,$D$7) -> 1100 | E30: =INDEX(E12:E24,$D$7) -> 1 | F30: =INDEX(F12:F24,$D$7) -> 1 | G30: 0.13 | H30: 0.02 | I30: 0.08 | J30: 0.05 | K30: 0.07 | L30: 0.02
C33: Year | D33: =R9 -> 2001
C34: Base | D34: =O9 -> 1998
C35: Cols to Move | D35: =D33-D34 -> 3
D37: =" Tornado Diagram for " &OFFSET(O10,0,D35) -> Tornado Diagram for EPS 2001
C38: =C16 -> Flight Hours per Existing Plane Low Case vs Base Case | D38: =OFFSET(O16,0,$D$35)-OFFSET($O$11,$F$2,$D$35) -> -0.22135921
C39: =C17 -> Capital Expenditure Efficiency Low Case vs Base Case | D39: =OFFSET(O17,0,$D$35)-OFFSET($O$11,$F$2,$D$35) -> -0.1148963169
C40: Cost of New Planes Low Case vs Base Case | D40: -1.031132327
C41: IRR on New Planes Low Case vs Base Case | D41: -0.2730624265
C42: Logistics Growth Low Case vs Base Case | D42: -0.01520224869
C43: Logistics Margin Low Case vs Base Case | D43: -0.1369673995
C44: Admin Expense Percent Low Case vs Base Case | D44: -0.2778286529
C45: Interest Expense Rate Low Case vs Base Case | D45: -0.04514019916
C46: Interest Income Rate Low Case vs Base Case | D46: -0.0008143474706

Sheet Acquiror Assumptions
P1: nine mos | Q1: three mos
K2: 1992 | L2: 1993 | M2: 1994 | N2: 1995 | O2: 1996 | P2: 1997 | Q2: =P2 -> 1997 | R2: =Q2+1 -> 1998 | S2: =R2+1 -> 1999 | T2: 2000 | U2: 2001 | V2: 2002 | W2: 2003 | X2: 2004 | Y2: 2005
K3: 1 | L3: 1 | M3: 1 | N3: 1 | O3: 1 | P3: 0.72 | Q3: =1-P3 -> 0.28 | R3: 1 | S3: 1 | T3: 1 | U3: 1 | V3: 1 | W3: 1 | X3: 1 | Y3: 1
A4: Last Historic Period | K4: FALSE | L4: FALSE | M4: FALSE | N4: FALSE | O4: FALSE | P4: TRUE | Q4: FALSE | R4: FALSE | S4: FALSE | T4: FALSE | U4: FALSE | V4: FALSE | W4: FALSE | X4: FALSE | Y4: FALSE
A5: History | E5: Driver | F5: Average | G5: Last | H5: Input | I5: Applied | J5: Code | K5: TRUE | L5: TRUE | M5: TRUE | N5: TRUE | O5: TRUE | P5: TRUE | Q5: FALSE | R5: FALSE | S5: FALSE | T5: FALSE | U5: FALSE | V5: FALSE | W5: FALSE | X5: FALSE | Y5: FALSE
A7: Economics of Incremental Aircraft
B8: Economics of Added Planes
C9: Real Cost of New Planes
D10: Base Case Planes | H10: 6175 | K10: =$H$10 -> 6175 | L10: 6175 | M10: 6175 | N10: 6175 | O10: 6175 | P10: 6175 | Q10: 6175 | R10: 6175 | S10: 6175 | T10: 6175 | U10: 6175 | V10: 6175 | W10: 6175 | X10: 6175 | Y10: 6175
D11: Downside Case | K11: =K10*0.9 -> 5557.5 | L11: =L10 -> 6175 | M11: =M10 -> 6175 | N11: 6175 | O11: 6175 | P11: 6175 | Q11: 6175 | R11: 6175 | S11: =R11/1.2 -> 5145.833333 | T11: =S11/1.1 -> 4678.030303 | U11: =T11/1.15 -> 4067.852437 | V11: =U11 -> 4067.852437 | W11: =V11 -> 4067.852437 | X11: =W11 -> 4067.852437 | Y11: =X11 -> 4067.852437
D12: Upside Case | K12: =K10*1.1 -> 6792.5 | L12: =L11 -> 6175 | M12: 6175 | N12: 6175 | O12: 6175 | P12: 6175 | Q12: 6175 | R12: 6175 | S12: =R12*1.05 -> 6483.75 | T12: 6807.9375 | U12: 7148.334375 | V12: 7505.751094 | W12: 7881.038648 | X12: 8275.090581 | Y12: 8688.84511
D13: Cost of New Planes | J13: ='Acquiror Scenario'!F30 -> 1 | K13: =INDEX(K10:K12,$J$13) -> 6175 | L13: 6175 | M13: 6175 | N13: 6175 | O13: 6175 | P13: 6175 | Q13: 6175 | R13: 6175 | S13: 6175 | T13: 6175 | U13: 6175 | V13: 6175 | W13: 6175 | X13: 6175 | Y13: 6175
C15: Inflation Rate for Incremental Aircraft | H15: 0.03 | K15: =IF(NOT(K$5),$H$15) -> FALSE | L15: =IF(NOT(L5),$H$15) -> FALSE | M15: FALSE | N15: FALSE | O15: FALSE | P15: FALSE | Q15: 0.03 | R15: 0.03 | S15: 0.03 | T15: 0.03 | U15: 0.03 | V15: 0.03 | W15: 0.03 | X15: 0.03 | Y15: 0.03
C16: Inflation Index for Incremental Aircraft | K16: =IF(K5,1,J16*(1+K15)) -> 1 | L16: 1 | M16: 1 | N16: 1 | O16: 1 | P16: 1 | Q16: 1.03 | R16: 1.0609 | S16: 1.092727 | T16: 1.12550881 | U16: 1.159274074 | V16: 1.194052297 | W16: 1.229873865 | X16: 1.266770081 | Y16: 1.304773184
C17: Inflated Cost of Converted Aircraft | K17: =K13*K16 -> 6175 | L17: =L13*L16 -> 6175 | M17: 6175 | N17: 6175 | O17: 6175 | P17: 6175 | Q17: 6360.25 | R17: 6551.0575 | S17: 6747.589225 | T17: 6950.016902 | U17: 7158.517409 | V17: 7373.272931 | W17: 7594.471119 | X17: 7822.305253 | Y17: 8056.97441
C19: IRR on Marginal Aircraft | H19: ='Acquiror Scenario'!G30 -> 0.13 | K19: =$H$19 -> 0.13 | L19: =$H$19 -> 0.13 | M19: 0.13 | N19: 0.13 | O19: 0.13 | P19: 0.13 | Q19: 0.13 | R19: 0.13 | S19: 0.13 | T19: 0.13 | U19: 0.13 | V19: 0.13 | W19: 0.13 | X19: 0.13 | Y19: 0.13
C20: Plane Life | H20: 10 | K20: =$H$20 -> 10 | L20: 10 | M20: 10 | N20: 10 | O20: 10 | P20: 10 | Q20: 10 | R20: 10 | S20: 10 | T20: 10 | U20: 10 | V20: 10 | W20: 10 | X20: 10 | Y20: 10
C21: Incremental Tax Rate for Plane Economics | H21: 0.4 | K21: =$H$21 -> 0.4 | L21: 0.4 | M21: 0.4 | N21: 0.4 | O21: 0.4 | P21: 0.4 | Q21: 0.4 | R21: 0.4 | S21: 0.4 | T21: 0.4 | U21: 0.4 | V21: 0.4 | W21: 0.4 | X21: 0.4 | Y21: 0.4
C22: EBITDA per Single Plane from Function | K22: =ebitda_plane(K20,K19,K17,K15,K21) -> 1485.010313 | L22: =ebitda_plane(L20,L19,L17,L15,L21) -> 1485.010313 | M22: 1485.010313 | N22: 1485.010313 | O22: 1485.010313 | P22: 1485.010313 | Q22: 1373.893503 | R22: 1415.110308 | S22: 1457.563617 | T22: 1501.290526 | U22: 1546.329242 | V22: 1592.719119 | W22: 1640.500693 | X22: 1689.715713 | Y22: 1740.407185
C24: Capacity Factor of converted aircraft | H24: 0.17 | K24: =$H$24 -> 0.17 | L24: =$H$24 -> 0.17 | M24: 0.17 | N24: 0.17 | O24: 0.17 | P24: 0.17 | Q24: 0.17 | R24: 0.17 | S24: 0.17 | T24: 0.17 | U24: 0.17 | V24: 0.17 | W24: 0.17 | X24: 0.17 | Y24: 0.17
C25: Hours of Operation per aircraft | H25: 8760 | K25: =K24*$H$25 -> 1489.2 | L25: =L24*$H$25 -> 1489.2 | M25: 1489.2 | N25: 1489.2 | O25: 1489.2 | P25: 1489.2 | Q25: 1489.2 | R25: 1489.2 | S25: 1489.2 | T25: 1489.2 | U25: 1489.2 | V25: 1489.2 | W25: 1489.2 | X25: 1489.2 | Y25: 1489.2
C26: Operating Cost of New Planes/Hour | K26: =K55 -> 1.114564059 | L26: 0.7311237553 | M26: 1.592115303 | N26: 1.686820786 | O26: 1.619113505 | P26: 1.416614412 | Q26: 1.459112845 | R26: 1.50288623 | S26: 1.547972817 | T26: 1.594412001 | U26: 1.642244361 | V26: 1.691511692 | W26: 1.742257043 | X26: 1.794524754 | Y26: 1.848360497
C27: EBITDA per hour for marginal converted planes | K27: =K22/K25 -> 0.9971866187 | L27: =L22/L25 -> 0.9971866187 | M27: 0.9971866187 | N27: 0.9971866187 | O27: 0.9971866187 | P27: 0.9971866187 | Q27: 0.922571517 | R27: 0.9502486625 | S27: 0.9787561224 | T27: 1.008118806 | U27: 1.03836237 | V27: 1.069513241 | W27: 1.101598639 | X27: 1.134646598 | Y27: 1.168685996
C28: Marginal price per hour including administrative | H28: =I100+I104 -> 0.0582 | K28: =(K26+K27)*(1+$H$28) -> 2.234654568 | L28: =(L26+L27)*(1+$H$28) -> 1.828898038 | M28: 2.739999294 | N28: 2.840216636 | O28: 2.768568791 | P28: 2.554284251 | Q28: 2.520298391 | R28: 2.595907343 | S28: 2.673784563 | T28: 2.7539981 | U28: 2.836618043 | V28: 2.921716585 | W28: 3.009368082 | X28: 3.099649125 | Y28: 3.192638598
Q29: =Q28/P28-1 -> -0.01330543358 | R29: =R28/Q28-1 -> 0.03 | S29: =S28/R28-1 -> 0.03 | T29: 0.03 | U29: 0.03 | V29: 0.03 | W29: 0.03 | X29: 0.03 | Y29: 0.03
A30: Existing Aircraft
B31: Existing Aircraft Analysis
C32: Opening Balance | K32: 11 | L32: =K35 -> 11 | M32: 10 | N32: 15 | O32: 22 | P32: 25 | Q32: 26 | R32: 25.18527711 | S32: 24.24834578 | T32: 23.17087476 | U32: 21.93178308 | V32: 20.50682765 | W32: 18.86812891 | X32: 16.98362535 | Y32: 14.81644627
C33: New Planes Added | K33: =IF(K5,K35-K32+K34) -> 3 | L33: 3 | M33: 5 | N33: 7 | O33: 3 | P33: 1 | Q33: FALSE | R33: FALSE | S33: FALSE | T33: FALSE | U33: FALSE | V33: FALSE | W33: FALSE | X33: FALSE | Y33: FALSE
C34: Planes Retired from Depreciation Analysis | K34: 3 | L34: 4 | Q34: =$Q$32*'[1]Depreciation and Retirement'!D15 -> 0.8147228914 | R34: =$Q$32*'[1]Depreciation and Retirement'!E15 -> 0.9369313251 | S34: =$Q$32*'[1]Depreciation and Retirement'!F15 -> 1.077471024 | T34: =$Q$32*'[1]Depreciation and Retirement'!G15 -> 1.239091678 | U34: =$Q$32*'[1]Depreciation and Retirement'!H15 -> 1.424955429 | V34: =$Q$32*'[1]Depreciation and Retirement'!I15 -> 1.638698744 | W34: =$Q$32*'[1]Depreciation and Retirement'!J15 -> 1.884503555 | X34: =$Q$32*'[1]Depreciation and Retirement'!K15 -> 2.167179088 | Y34: =$Q$32*'[1]Depreciation and Retirement'!L15 -> 2.492255952
C35: Closing Balance | K35: =IF(K5,'Acquiror Model'!H80,K32+K33-K34+K34) -> 11 | L35: =IF(L5,'Acquiror Model'!I80,L32+L33-L34) -> 10 | M35: =IF(M5,'Acquiror Model'!J80,M32+M33-M34) -> 15 | N35: =IF(N5,'Acquiror Model'!K80,N32+N33-N34) -> 22 | O35: =IF(O5,'Acquiror Model'!L80,O32+O33-O34) -> 25 | P35: =IF(P5,'Acquiror Model'!M80,P32+P33-P34) -> 26 | Q35: =IF(Q5,'Acquiror Model'!N80,Q32+Q33-Q34) -> 25.18527711 | R35: =IF(R5,'Acquiror Model'!O80,R32+R33-R34) -> 24.24834578 | S35: =IF(S5,'Acquiror Model'!P80,S32+S33-S34) -> 23.17087476 | T35: =IF(T5,'Acquiror Model'!Q80,T32+T33-T34) -> 21.93178308 | U35: =IF(U5,'Acquiror Model'!R80,U32+U33-U34) -> 20.50682765 | V35: =IF(V5,'Acquiror Model'!S80,V32+V33-V34) -> 18.86812891 | W35: =IF(W5,'Acquiror Model'!T80,W32+W33-W34) -> 16.98362535 | X35: =IF(X5,'Acquiror Model'!U80,X32+X33-X34) -> 14.81644627 | Y35: =IF(Y5,'Acquiror Model'!V80,Y32+Y33-Y34) -> 12.32419031
C36: Average Planes | K36: =AVERAGE(K35,K32) -> 11 | L36: =AVERAGE(L35,L32) -> 10.5 | M36: 12.5 | N36: 18.5 | O36: 23.5 | P36: 25.5 | Q36: 25.59263855 | R36: 24.71681145 | S36: 23.70961027 | T36: 22.55132892 | U36: 21.21930537 | V36: 19.68747828 | W36: =AVERAGE(W35,W32) -> 17.92587713 | X36: 15.90003581 | Y36: 13.57031829
B38: Historic Annualized Flight Hours | K38: =IF(K5,'Acquiror Model'!H81/K3) -> 3567 | L38: =IF(L5,'Acquiror Model'!I81/L3) -> 7030 | M38: =IF(M5,'Acquiror Model'!J81/M3) -> 11795 | N38: =IF(N5,'Acquiror Model'!K81/N3) -> 15183 | O38: =IF(O5,'Acquiror Model'!L81/O3) -> 20237 | P38: =IF(P5,'Acquiror Model'!M81/P3) -> 30433.33333 | Q38: =IF(Q5,'Acquiror Model'!N81/Q3) -> FALSE | R38: =IF(R5,'Acquiror Model'!O81/R3) -> FALSE | S38: =IF(S5,'Acquiror Model'!P81/S3) -> FALSE | T38: =IF(T5,'Acquiror Model'!Q81/T3) -> FALSE | U38: =IF(U5,'Acquiror Model'!R81/U3) -> FALSE | V38: =IF(V5,'Acquiror Model'!S81/V3) -> FALSE | W38: =IF(W5,'Acquiror Model'!T81/W3) -> FALSE | X38: =IF(X5,'Acquiror Model'!U81/X3) -> FALSE | Y38: =IF(Y5,'Acquiror Model'!V81/Y3) -> FALSE
B39: Flight Hours per Existing Plane | E39: 3 | F39: =AVERAGEIF(5:5,TRUE,39:39) -> 802.1187047 | G39: =AVERAGEIF(4:4,TRUE,39:39) -> 1193.464052 | H39: ='Acquiror Scenario'!D30 -> 1100 | I39: =CHOOSE(E39,F39,G39,H39) -> 1100 | K39: =IF(K$5,K38/K36,$I39) -> 324.2727273 | L39: 669.5238095 | M39: 943.6 | N39: 820.7027027 | O39: 861.1489362 | P39: 1193.464052 | Q39: 1100 | R39: 1100 | S39: 1100 | T39: 1100 | U39: 1100 | V39: 1100 | W39: 1100 | X39: 1100 | Y39: 1100
B40: Total Existing Planes | K40: =K36 -> 11 | L40: 10.5 | M40: 12.5 | N40: 18.5 | O40: 23.5 | P40: 25.5 | Q40: 25.59263855 | R40: 24.71681145 | S40: 23.70961027 | T40: 22.55132892 | U40: 21.21930537 | V40: 19.68747828 | W40: 17.92587713 | X40: 15.90003581 | Y40: 13.57031829
B41: Existing Flight Hours | K41: =K39*K40*K3 -> 3567 | L41: 7030 | M41: 11795 | N41: 15183 | O41: 20237 | P41: 21912 | Q41: 7882.532675 | R41: 27188.49259 | S41: 26080.5713 | T41: 24806.46181 | U41: 23341.2359 | V41: 21656.22611 | W41: 19718.46485 | X41: 17490.03939 | Y41: 14927.35012
B43: Freight Revenues | K43: =IF(K5,'Acquiror Model'!H50/K3) -> 6760 | L43: =IF(L5,'Acquiror Model'!I50/L3) -> 12939 | M43: =IF(M5,'Acquiror Model'!J50/M3) -> 28285 | N43: =IF(N5,'Acquiror Model'!K50/N3) -> 41117 | O43: =IF(O5,'Acquiror Model'!L50/O3) -> 52922 | P43: =IF(P5,'Acquiror Model'!M50/P3) -> 77484.72222 | Q43: =IF(Q5,'Acquiror Model'!N50/Q3) -> FALSE | R43: =IF(R5,'Acquiror Model'!O50/R3) -> FALSE | S43: =IF(S5,'Acquiror Model'!P50/S3) -> FALSE | T43: =IF(T5,'Acquiror Model'!Q50/T3) -> FALSE | U43: =IF(U5,'Acquiror Model'!R50/U3) -> FALSE | V43: =IF(V5,'Acquiror Model'!S50/V3) -> FALSE | W43: =IF(W5,'Acquiror Model'!T50/W3) -> FALSE | X43: =IF(X5,'Acquiror Model'!U50/X3) -> FALSE | Y43: =IF(Y5,'Acquiror Model'!V50/Y3) -> FALSE
B44: Freight Revenue per Plane - Existing | K44: =K43/K36 -> 614.5454545 | L44: 1232.285714 | M44: 2262.8 | N44: 2222.540541 | O44: 2252 | P44: 3038.616558 | Q44: 0 | R44: 0 | S44: 0 | T44: 0 | U44: 0 | V44: 0 | W44: 0 | X44: 0 | Y44: 0
B45: Freight Revenue per Hour - Existing | K45: =IF(K5,K43/K38) -> 1.895149986 | L45: 1.840540541 | M45: 2.398050021 | N45: 2.708094579 | O45: 2.615110935 | P45: 2.546047828 | Q45: FALSE | R45: FALSE | S45: FALSE | T45: FALSE | U45: FALSE | V45: FALSE | W45: FALSE | X45: FALSE | Y45: FALSE
B46: Percent Increase in Price of Existing Aircraft | L46: =IF(L5,L45/K45-1,L28/K28-1) -> -0.02881536862 | M46: 0.3029052979 | N46: 0.1292902798 | O46: -0.03433544927 | P46: -0.0264092459 | Q46: -0.01330543358 | R46: 0.03 | S46: 0.03 | T46: 0.03 | U46: 0.03 | V46: 0.03 | W46: 0.03 | X46: 0.03 | Y46: 0.03
B47: Price Applied for Existing Planes | K47: =IF(K5,K45,J47*(1+K46)) -> 1.895149986 | L47: 1.840540541 | M47: 2.398050021 | N47: 2.708094579 | O47: 2.615110935 | P47: 2.546047828 | Q47: 2.512171557 | R47: 2.587536704 | S47: 2.665162805 | T47: 2.745117689 | U47: 2.82747122 | V47: 2.912295357 | W47: 2.999664217 | X47: 3.089654144 | Y47: 3.182343768
B49: Revenues from Existing Aircraft | K49: =K47*K41 -> 6760 | L49: 12939 | M49: 28285 | N49: 41117 | O49: 52922 | P49: 55789 | Q49: 19802.27439 | R49: 70351.22251 | S49: 69508.96857 | T49: 68096.65713 | U49: 65996.67276 | V49: 63069.32674 | W49: 59148.77342 | X49: 54038.17268 | Y49: 47503.95963
B51: Operating Cost
C52: Operating Expenses for Freight | K52: ='Acquiror Model'!H53 -> 4866.65 | L52: ='Acquiror Model'!I53 -> 6059.8 | M52: ='Acquiror Model'!J53 -> 19550 | N52: ='Acquiror Model'!K53 -> 28104 | O52: ='Acquiror Model'!L53 -> 38760 | P52: ='Acquiror Model'!M53 -> 38075.855 | Q52: ='Acquiror Model'!N53 -> 0 | R52: ='Acquiror Model'!O53 -> 0 | S52: ='Acquiror Model'!P53 -> 0 | T52: ='Acquiror Model'!Q53 -> 0 | U52: ='Acquiror Model'!R53 -> 0 | V52: ='Acquiror Model'!S53 -> 0 | W52: ='Acquiror Model'!T53 -> 0 | X52: ='Acquiror Model'!U53 -> 0 | Y52: ='Acquiror Model'!V53 -> 0
C53: Less: Depreciation Expense | K53: =IF(K5,'Acquiror Model'!H77) -> 891 | L53: =IF(L5,'Acquiror Model'!I77) -> 920 | M53: =IF(M5,'Acquiror Model'!J77) -> 771 | N53: =IF(N5,'Acquiror Model'!K77) -> 2493 | O53: =IF(O5,'Acquiror Model'!L77) -> 5994 | P53: =IF(P5,'Acquiror Model'!M77) -> 7035 | Q53: =IF(Q5,'Acquiror Model'!N77) -> FALSE | R53: =IF(R5,'Acquiror Model'!O77) -> FALSE | S53: =IF(S5,'Acquiror Model'!P77) -> FALSE | T53: =IF(T5,'Acquiror Model'!Q77) -> FALSE | U53: =IF(U5,'Acquiror Model'!R77) -> FALSE | V53: =IF(V5,'Acquiror Model'!S77) -> FALSE | W53: =IF(W5,'Acquiror Model'!T77) -> FALSE | X53: =IF(X5,'Acquiror Model'!U77) -> FALSE | Y53: =IF(Y5,'Acquiror Model'!V77) -> FALSE
C54: Cash Operating Expense for Freight | K54: =K52-K53 -> 3975.65 | L54: =L52-L53 -> 5139.8 | M54: 18779 | N54: 25611 | O54: 32766 | P54: 31040.855 | Q54: 0 | R54: 0 | S54: 0 | T54: 0 | U54: 0 | V54: 0 | W54: 0 | X54: 0 | Y54: 0
C55: Operating Expense per Hour | H55: =H15 -> 0.03 | K55: =IF(K5,K54/K41,J55*(1+$H$55)) -> 1.114564059 | L55: 0.7311237553 | M55: 1.592115303 | N55: 1.686820786 | O55: 1.619113505 | P55: 1.416614412 | Q55: 1.459112845 | R55: 1.50288623 | S55: 1.547972817 | T55: 1.594412001 | U55: 1.642244361 | V55: 1.691511692 | W55: 1.742257043 | X55: 1.794524754 | Y55: 1.848360497
C57: Operating Costs for Existing Aircraft Fleet | K57: =K55*K41 -> 3975.65 | L57: 5139.8 | M57: 18779 | N57: 25611 | O57: 32766 | P57: 31040.855 | Q57: 11501.50467 | R57: 40861.21113 | S57: 40372.01542 | T57: 39551.72042 | U57: 38332.01305 | V57: 36631.75967 | W57: 34354.63425 | X57: 31386.30864 | Y57: 27591.12428
A59: Incremental Aircraft Added and Retired
B60: Incremental Fleet Size Assumptions
C61: Base Case Additions | Q61: 1 | R61: 4 | S61: =R61*1.1 -> 4.4 | T61: =S61*1.1 -> 4.84 | U61: 5.324 | V61: 5.8564 | W61: 6.44204 | X61: 7.086244 | Y61: 7.7948684
C62: High Aircraft Added | Q62: 2 | R62: 6 | S62: =R62*1.2 -> 7.2 | T62: =S62*1.2 -> 8.64 | U62: 10.368 | V62: 12.4416 | W62: 14.92992 | X62: 17.915904 | Y62: 21.4990848
C63: Low Aircraft Added | Q63: 1 | R63: 1 | S63: 1 | T63: 1 | U63: 1 | V63: 1 | W63: 1 | X63: 1 | Y63: 1
C64: No Aircraft Added | Q64: 0 | R64: 0 | S64: 0 | T64: 0 | U64: 0 | V64: 0 | W64: 0 | X64: 0 | Y64: 0
C65: =INDEX(C61:C64,$H$65) -> Base Case Additions | H65: 1 | Q65: =INDEX(Q61:Q64,$H$65) -> 1 | R65: 4 | S65: 4.4 | T65: 4.84 | U65: 5.324 | V65: 5.8564 | W65: 6.44204 | X65: 7.086244 | Y65: 7.7948684
B67: New Planes
C68: Opening Balance | K68: =J73 -> 0 | L68: =K73 -> 0 | M68: 0 | N68: 0 | O68: 0 | P68: 0 | Q68: 0 | R68: 1.814722891 | S68: 6.751654217 | T68: 12.22912524 | U68: 18.30821692 | V68: 25.05717235 | W68: 32.55227109 | X68: 40.87881465 | Y68: 50.13223773
C69: Replacement of New Planes | K69: =K72 -> 0 | L69: =L72 -> 0 | M69: 0 | N69: 0 | O69: 0 | P69: 0 | Q69: 0 | R69: 0 | S69: 0 | T69: 0 | U69: 0 | V69: 0 | W69: 0 | X69: 0 | Y69: 0
C70: Replacement of Existing Planes | K70: =NOT(K5)*K34 -> 0 | L70: 0 | M70: 0 | N70: 0 | O70: 0 | P70: 0 | Q70: 0.8147228914 | R70: 0.9369313251 | S70: 1.077471024 | T70: 1.239091678 | U70: 1.424955429 | V70: 1.638698744 | W70: 1.884503555 | X70: 2.167179088 | Y70: 2.492255952
C71: New Planes Added | K71: =K65+K69+K70 -> 0 | L71: 0 | M71: 0 | N71: 0 | O71: 0 | P71: 0 | Q71: 1.814722891 | R71: 4.936931325 | S71: 5.477471024 | T71: 6.079091678 | U71: 6.748955429 | V71: 7.495098744 | W71: 8.326543555 | X71: 9.253423088 | Y71: 10.28712435
C72: Planes Retired | J72: =H20 -> 10 | K72: =IF(NOT(K5),OFFSET(K71,0,-$J$72))*1 -> 0 | L72: 0 | M72: 0 | N72: 0 | O72: 0 | P72: 0 | Q72: 0 | R72: 0 | S72: 0 | T72: 0 | U72: 0 | V72: 0 | W72: 0 | X72: 0 | Y72: 0
C73: Closing Balance | K73: =K68+K71-K72 -> 0 | L73: =L68+L71-L72 -> 0 | M73: 0 | N73: 0 | O73: 0 | P73: 0 | Q73: 1.814722891 | R73: 6.751654217 | S73: 12.22912524 | T73: 18.30821692 | U73: 25.05717235 | V73: 32.55227109 | W73: 40.87881465 | X73: 50.13223773 | Y73: 60.41936209
C75: Incremental Operating Aircraft | K75: =J73 -> 0 | L75: =K73 -> 0 | M75: 0 | N75: 0 | O75: 0 | P75: 0 | Q75: 0 | R75: 1.814722891 | S75: 6.751654217 | T75: =S73 -> 12.22912524 | U75: 18.30821692 | V75: 25.05717235 | W75: 32.55227109 | X75: 40.87881465 | Y75: 50.13223773
C76: Existing Planes | K76: =K35 -> 11 | L76: =L35 -> 10 | M76: 15 | N76: 22 | O76: 25 | P76: 26 | Q76: 25.18527711 | R76: 24.24834578 | S76: 23.17087476 | T76: 21.93178308 | U76: 20.50682765 | V76: 18.86812891 | W76: 16.98362535 | X76: 14.81644627 | Y76: 12.32419031
C77: Total Planes Closing Balance | K77: =K73+K35 -> 11 | L77: 10 | M77: 15 | N77: 22 | O77: 25 | P77: 26 | Q77: 27 | R77: 31 | S77: 35.4 | T77: 40.24 | U77: 45.564 | V77: 51.4204 | W77: 57.86244 | X77: 64.948684 | Y77: 72.7435524
C79: EBITDA for Added Aircraft | K79: =K22*K75 -> 0 | L79: 0 | M79: 0 | N79: 0 | O79: 0 | P79: 0 | Q79: 0 | R79: 2568.03307 | S79: 9840.965544 | T79: 18359.46986 | U79: 28310.53118 | V79: 39909.03747 | W79: 53402.02327 | X79: 69073.57545 | Y79: 87250.50674
C80: Hours of Operation for Added Aircraft | K80: =K75*K25 -> 0 | L80: 0 | M80: 0 | N80: 0 | O80: 0 | P80: 0 | Q80: 0 | R80: 2702.48533 | S80: 10054.56346 | T80: 18211.61331 | U80: 27264.59663 | V80: 37315.14106 | W80: 48476.84211 | X80: 60876.73077 | Y80: 74656.92843
C82: Operating cost per Hour for Incremental Aircraft | K82: =K26 -> 1.114564059 | L82: =L26 -> 0.7311237553 | M82: 1.592115303 | N82: 1.686820786 | O82: 1.619113505 | P82: 1.416614412 | Q82: 1.459112845 | R82: 1.50288623 | S82: 1.547972817 | T82: 1.594412001 | U82: 1.642244361 | V82: 1.691511692 | W82: 1.742257043 | X82: 1.794524754 | Y82: 1.848360497
C83: Operating Cost of Added Aircraft | K83: =K82*K80 -> 0 | L83: =L82*L80 -> 0 | M83: 0 | N83: 0 | O83: 0 | P83: 0 | Q83: 0 | R83: 4061.527989 | S83: 15564.19092 | T83: 29036.81482 | U83: 44775.13009 | V83: 63118.9974 | W83: 84459.11958 | X83: 109244.8003 | Y83: 137992.9173
C85: Revenue per Hour for Incremental Aircraft | K85: =K28 -> 2.234654568 | L85: =L28 -> 1.828898038 | M85: 2.739999294 | N85: 2.840216636 | O85: 2.768568791 | P85: 2.554284251 | Q85: 2.520298391 | R85: 2.595907343 | S85: 2.673784563 | T85: 2.7539981 | U85: 2.836618043 | V85: 2.921716585 | W85: 3.009368082 | X85: 3.099649125 | Y85: 3.192638598
C86: Revenue from Incremental Aircraft | K86: =K85*K80 -> 0 | L86: =L85*L80 -> 0 | M86: 0 | N86: 0 | O86: 0 | P86: 0 | Q86: 0 | R86: 7015.401513 | S86: 26883.73657 | T86: 50154.74845 | U86: 77339.24676 | V86: 109024.2665 | W86: 145884.6614 | X86: 188696.5052 | Y86: 238352.5914
C88: Capital Expenditures Relative to New Aircraft Cost | H88: ='Acquiror Scenario'!E30 -> 1 | K88: =$H$88 -> 1 | L88: =$H$88 -> 1 | M88: 1 | N88: 1 | O88: 1 | P88: 1 | Q88: 1 | R88: 1 | S88: 1 | T88: 1 | U88: 1 | V88: 1 | W88: 1 | X88: 1 | Y88: 1
C89: Market Cost of Incremental Planes | K89: =K13*K88 -> 6175 | L89: =L13*L88 -> 6175 | M89: 6175 | N89: 6175 | O89: 6175 | P89: 6175 | Q89: 6175 | R89: 6175 | S89: 6175 | T89: 6175 | U89: 6175 | V89: 6175 | W89: 6175 | X89: 6175 | Y89: 6175
C90: Capital Expenditures for New Aircraft | K90: =K88*K71 -> 0 | L90: =L88*L71 -> 0 | M90: 0 | N90: 0 | O90: 0 | P90: 0 | Q90: 1.814722891 | R90: 4.936931325 | S90: 5.477471024 | T90: 6.079091678 | U90: 6.748955429 | V90: 7.495098744 | W90: 8.326543555 | X90: 9.253423088 | Y90: 10.28712435
B92: Air Logistics
C93: Revenues/Growth | H93: ='Acquiror Scenario'!H30 -> 0.02 | K93: =IF(K5,'Acquiror Model'!H51,J93*(1+$H$93)) -> 45893 | L93: =IF(L5,'Acquiror Model'!I51,K93*(1+$H$93)) -> 52840 | M93: =IF(M5,'Acquiror Model'!J51,L93*(1+$H$93)) -> 79415 | N93: =IF(N5,'Acquiror Model'!K51,M93*(1+$H$93)) -> 62593 | O93: =IF(O5,'Acquiror Model'!L51,N93*(1+$H$93)) -> 89493 | P93: =IF(P5,'Acquiror Model'!M51,O93*(1+$H$93)) -> 45878 | Q93: =IF(Q5,'Acquiror Model'!N51,P93/P3*Q3*(1+$H$93)) -> 18198.27333 | R93: =IF(R5,'Acquiror Model'!O51,Q93/Q3*R3*(1+$H$93)) -> 66293.71 | S93: =IF(S5,'Acquiror Model'!P51,R93/R3*S3*(1+$H$93)) -> 67619.5842 | T93: =IF(T5,'Acquiror Model'!Q51,S93/S3*T3*(1+$H$93)) -> 68971.97588 | U93: =IF(U5,'Acquiror Model'!R51,T93/T3*U3*(1+$H$93)) -> 70351.4154 | V93: =IF(V5,'Acquiror Model'!S51,U93/U3*V3*(1+$H$93)) -> 71758.44371 | W93: =IF(W5,'Acquiror Model'!T51,V93/V3*W3*(1+$H$93)) -> 73193.61258 | X93: =IF(X5,'Acquiror Model'!U51,W93/W3*X3*(1+$H$93)) -> 74657.48484 | Y93: =IF(Y5,'Acquiror Model'!V51,X93/X3*Y3*(1+$H$93)) -> 76150.63453
C94: Margin | E94: 3 | F94: =AVERAGEIF($5:$5,TRUE,94:94) -> 0.07774171199 | G94: =AVERAGEIF($4:$4,TRUE,94:94) -> 0.08370591569 | H94: ='Acquiror Scenario'!I30 -> 0.08 | I94: =CHOOSE(E94,F94,G94,H94) -> 0.08 | K94: 0.05 | L94: 0.07 | M94: =IF(M5,('Acquiror Model'!J51-'Acquiror Model'!J54)/M93,$I$94) -> 0.07571617453 | N94: =IF(N5,('Acquiror Model'!K51-'Acquiror Model'!K54)/N93,$I$94) -> 0.08251721438 | O94: =IF(O5,('Acquiror Model'!L51-'Acquiror Model'!L54)/O93,$I$94) -> 0.1045109673 | P94: =IF(P5,('Acquiror Model'!M51-'Acquiror Model'!M54)/P93,$I$94) -> 0.08370591569 | Q94: =IF(Q5,('Acquiror Model'!N51-'Acquiror Model'!N54)/Q93,$I$94) -> 0.08 | R94: =IF(R5,('Acquiror Model'!O51-'Acquiror Model'!O54)/R93,$I$94) -> 0.08 | S94: =IF(S5,('Acquiror Model'!P51-'Acquiror Model'!P54)/S93,$I$94) -> 0.08 | T94: =IF(T5,('Acquiror Model'!Q51-'Acquiror Model'!Q54)/T93,$I$94) -> 0.08 | U94: =IF(U5,('Acquiror Model'!R51-'Acquiror Model'!R54)/U93,$I$94) -> 0.08 | V94: =IF(V5,('Acquiror Model'!S51-'Acquiror Model'!S54)/V93,$I$94) -> 0.08 | W94: =IF(W5,('Acquiror Model'!T51-'Acquiror Model'!T54)/W93,$I$94) -> 0.08 | X94: =IF(X5,('Acquiror Model'!U51-'Acquiror Model'!U54)/X93,$I$94) -> 0.08 | Y94: =IF(Y5,('Acquiror Model'!V51-'Acquiror Model'!V54)/Y93,$I$94) -> 0.08
C95: Operatng Cost | K95: =K93-K94*K93 -> 43598.35 | L95: =L93-L94*L93 -> 49141.2 | M95: 73402 | N95: 57428 | O95: 80140 | P95: 42037.74 | Q95: 16742.41147 | R95: 60990.2132 | S95: 62210.01746 | T95: 63454.21781 | U95: 64723.30217 | V95: 66017.76821 | W95: 67338.12358 | X95: 68684.88605 | Y95: 70058.58377
B97: Admin Expenses and Profit Sharing
C98: Admin Expense | K98: =IF(K5,'Acquiror Model'!H57) -> 2930 | L98: =IF(L5,'Acquiror Model'!I57) -> 4394 | M98: =IF(M5,'Acquiror Model'!J57) -> 6013 | N98: =IF(N5,'Acquiror Model'!K57) -> 7832 | O98: =IF(O5,'Acquiror Model'!L57) -> 9080 | P98: =IF(P5,'Acquiror Model'!M57) -> 7550 | Q98: =IF(Q5,'Acquiror Model'!N57) -> FALSE | R98: =IF(R5,'Acquiror Model'!O57) -> FALSE | S98: =IF(S5,'Acquiror Model'!P57) -> FALSE | T98: =IF(T5,'Acquiror Model'!Q57) -> FALSE | U98: =IF(U5,'Acquiror Model'!R57) -> FALSE | V98: =IF(V5,'Acquiror Model'!S57) -> FALSE | W98: =IF(W5,'Acquiror Model'!T57) -> FALSE | X98: =IF(X5,'Acquiror Model'!U57) -> FALSE | Y98: =IF(Y5,'Acquiror Model'!V57) -> FALSE
C99: Revenues | K99: =IF(K5,'Acquiror Model'!H52) -> 52653 | L99: =IF(L5,'Acquiror Model'!I52) -> 65779 | M99: =IF(M5,'Acquiror Model'!J52) -> 107700 | N99: =IF(N5,'Acquiror Model'!K52) -> 103710 | O99: =IF(O5,'Acquiror Model'!L52) -> 142415 | P99: =IF(P5,'Acquiror Model'!M52) -> 101667 | Q99: =IF(Q5,'Acquiror Model'!N52) -> FALSE | R99: =IF(R5,'Acquiror Model'!O52) -> FALSE | S99: =IF(S5,'Acquiror Model'!P52) -> FALSE | T99: =IF(T5,'Acquiror Model'!Q52) -> FALSE | U99: =IF(U5,'Acquiror Model'!R52) -> FALSE | V99: =IF(V5,'Acquiror Model'!S52) -> FALSE | W99: =IF(W5,'Acquiror Model'!T52) -> FALSE | X99: =IF(X5,'Acquiror Model'!U52) -> FALSE | Y99: =IF(Y5,'Acquiror Model'!V52) -> FALSE
C100: Pct of Revenues | E100: 3 | F100: =AVERAGEIF($5:$5,TRUE,100:100) -> 0.06530257512 | G100: =AVERAGEIF($4:$4,TRUE,100:100) -> 0.0742620516 | H100: ='Acquiror Scenario'!J30 -> 0.05 | I100: =CHOOSE(E100,F100,G100,H100) -> 0.05 | K100: =IF(K$5,K98/K99,$I100) -> 0.05564735153 | L100: =IF(L$5,L98/L99,$I100) -> 0.06679943447 | M100: 0.05583101207 | N100: 0.0755182721 | O100: 0.06375732893 | P100: 0.0742620516 | Q100: 0.05 | R100: 0.05 | S100: 0.05 | T100: 0.05 | U100: 0.05 | V100: 0.05 | W100: 0.05 | X100: 0.05 | Y100: 0.05
C102: Profit Sharing | K102: =IF(K5,'Acquiror Model'!H58) -> 0 | L102: =IF(L5,'Acquiror Model'!I58) -> 250 | M102: =IF(M5,'Acquiror Model'!J58) -> 732 | N102: =IF(N5,'Acquiror Model'!K58) -> 1001 | O102: =IF(O5,'Acquiror Model'!L58) -> 1170 | P102: =IF(P5,'Acquiror Model'!M58) -> 1161 | Q102: =IF(Q5,'Acquiror Model'!N58) -> FALSE | R102: =IF(R5,'Acquiror Model'!O58) -> FALSE | S102: =IF(S5,'Acquiror Model'!P58) -> FALSE | T102: =IF(T5,'Acquiror Model'!Q58) -> FALSE | U102: =IF(U5,'Acquiror Model'!R58) -> FALSE | V102: =IF(V5,'Acquiror Model'!S58) -> FALSE | W102: =IF(W5,'Acquiror Model'!T58) -> FALSE | X102: =IF(X5,'Acquiror Model'!U58) -> FALSE | Y102: =IF(Y5,'Acquiror Model'!V58) -> FALSE
C103: Revenues | K103: =K99 -> 52653 | L103: =L99 -> 65779 | M103: 107700 | N103: 103710 | O103: 142415 | P103: 101667 | Q103: FALSE | R103: FALSE | S103: FALSE | T103: FALSE | U103: FALSE | V103: FALSE | W103: FALSE | X103: FALSE | Y103: FALSE
C104: Profit Sharing Percent | E104: 3 | F104: =AVERAGEIF($5:$5,TRUE,104:104) -> 0.006647372977 | G104: =AVERAGEIF($4:$4,TRUE,104:104) -> 0.01141963469 | H104: 0.0082 | I104: =CHOOSE(E104,F104,G104,H104) -> 0.0082 | K104: =IF(K$5,K102/K103,$I104) -> 0 | L104: 0.003800605056 | M104: 0.006796657382 | N104: 0.009651913991 | O104: 0.008215426746 | P104: 0.01141963469 | Q104: 0.0082 | R104: 0.0082 | S104: 0.0082 | T104: 0.0082 | U104: 0.0082 | V104: 0.0082 | W104: 0.0082 | X104: 0.0082 | Y104: 0.0082
C106: Other Income | E106: 3 | F106: =AVERAGEIF($5:$5,TRUE,106:106) -> -335.1666667 | G106: =AVERAGEIF($4:$4,TRUE,106:106) -> 579 | H106: 0 | I106: =CHOOSE(E106,F106,G106,H106) -> 0 | K106: =IF(K$5,'Acquiror Model'!H64+'Acquiror Model'!H63-'Acquiror Model'!H59,$I106) -> 287 | L106: =IF(L$5,'Acquiror Model'!I64+'Acquiror Model'!I63-'Acquiror Model'!I59,$I106) -> 918 | M106: =IF(M$5,'Acquiror Model'!J64+'Acquiror Model'!J63-'Acquiror Model'!J59,$I106) -> 746 | N106: =IF(N$5,'Acquiror Model'!K64+'Acquiror Model'!K63-'Acquiror Model'!K59,$I106) -> -601 | O106: =IF(O$5,'Acquiror Model'!L64+'Acquiror Model'!L63-'Acquiror Model'!L59,$I106) -> -3940 | P106: =IF(P$5,'Acquiror Model'!M64+'Acquiror Model'!M63-'Acquiror Model'!M59,$I106) -> 579 | Q106: =IF(Q$5,'Acquiror Model'!N64+'Acquiror Model'!N63-'Acquiror Model'!N59,$I106) -> 0 | R106: =IF(R$5,'Acquiror Model'!O64+'Acquiror Model'!O63-'Acquiror Model'!O59,$I106) -> 0 | S106: =IF(S$5,'Acquiror Model'!P64+'Acquiror Model'!P63-'Acquiror Model'!P59,$I106) -> 0 | T106: =IF(T$5,'Acquiror Model'!Q64+'Acquiror Model'!Q63-'Acquiror Model'!Q59,$I106) -> 0 | U106: =IF(U$5,'Acquiror Model'!R64+'Acquiror Model'!R63-'Acquiror Model'!R59,$I106) -> 0 | V106: =IF(V$5,'Acquiror Model'!S64+'Acquiror Model'!S63-'Acquiror Model'!S59,$I106) -> 0 | W106: =IF(W$5,'Acquiror Model'!T64+'Acquiror Model'!T63-'Acquiror Model'!T59,$I106) -> 0 | X106: =IF(X$5,'Acquiror Model'!U64+'Acquiror Model'!U63-'Acquiror Model'!U59,$I106) -> 0 | Y106: =IF(Y$5,'Acquiror Model'!V64+'Acquiror Model'!V63-'Acquiror Model'!V59,$I106) -> 0
C107: Deferred Taxes | K107: =IF(K5,'Acquiror Model'!H41,'Acquiror Assumptions'!J107) -> 0 | L107: =IF(L5,'Acquiror Model'!I41,'Acquiror Assumptions'!K107) -> 0 | M107: =IF(M5,'Acquiror Model'!J41,'Acquiror Assumptions'!L107) -> 0 | N107: =IF(N5,'Acquiror Model'!K41,'Acquiror Assumptions'!M107) -> 1316.365 | O107: =IF(O5,'Acquiror Model'!L41,'Acquiror Assumptions'!N107) -> 2421.48 | P107: =IF(P5,'Acquiror Model'!M41,'Acquiror Assumptions'!O107) -> 2544.9 | Q107: =IF(Q5,'Acquiror Model'!N41,'Acquiror Assumptions'!P107) -> 2544.9 | R107: =IF(R5,'Acquiror Model'!O41,'Acquiror Assumptions'!Q107) -> 2544.9 | S107: =IF(S5,'Acquiror Model'!P41,'Acquiror Assumptions'!R107) -> 2544.9 | T107: =IF(T5,'Acquiror Model'!Q41,'Acquiror Assumptions'!S107) -> 2544.9 | U107: =IF(U5,'Acquiror Model'!R41,'Acquiror Assumptions'!T107) -> 2544.9 | V107: =IF(V5,'Acquiror Model'!S41,'Acquiror Assumptions'!U107) -> 2544.9 | W107: =IF(W5,'Acquiror Model'!T41,'Acquiror Assumptions'!V107) -> 2544.9 | X107: =IF(X5,'Acquiror Model'!U41,'Acquiror Assumptions'!W107) -> 2544.9 | Y107: =IF(Y5,'Acquiror Model'!V41,'Acquiror Assumptions'!X107) -> 2544.9
B109: Interest and Taxes
C110: Interest Expense | K110: =IF(K5,-'Acquiror Model'!H62/K3) -> 157 | L110: =IF(L5,-'Acquiror Model'!I62/L3) -> 134 | M110: =IF(M5,-'Acquiror Model'!J62/M3) -> 343 | N110: =IF(N5,-'Acquiror Model'!K62/N3) -> 1185 | O110: =IF(O5,-'Acquiror Model'!L62/O3) -> 1859 | P110: =IF(P5,-'Acquiror Model'!M62/P3) -> 2512.5 | Q110: =IF(Q5,-'Acquiror Model'!N62/Q3) -> FALSE | R110: =IF(R5,-'Acquiror Model'!O62/R3) -> FALSE | S110: =IF(S5,-'Acquiror Model'!P62/S3) -> FALSE | T110: =IF(T5,-'Acquiror Model'!Q62/T3) -> FALSE | U110: =IF(U5,-'Acquiror Model'!R62/U3) -> FALSE | V110: =IF(V5,-'Acquiror Model'!S62/V3) -> FALSE | W110: =IF(W5,-'Acquiror Model'!T62/W3) -> FALSE | X110: =IF(X5,-'Acquiror Model'!U62/X3) -> FALSE | Y110: =IF(Y5,-'Acquiror Model'!V62/Y3) -> FALSE
C111: Debt | K111: =IF(K5,'Acquiror Model'!H45) -> 2367 | L111: =IF(L5,'Acquiror Model'!I45) -> 976 | M111: =IF(M5,'Acquiror Model'!J45) -> 9145 | N111: =IF(N5,'Acquiror Model'!K45) -> 16981.205 | O111: =IF(O5,'Acquiror Model'!L45) -> 36911.542 | P111: =IF(P5,'Acquiror Model'!M45) -> 35146.73 | Q111: =IF(Q5,'Acquiror Model'!N45) -> FALSE | R111: =IF(R5,'Acquiror Model'!O45) -> FALSE | S111: =IF(S5,'Acquiror Model'!P45) -> FALSE | T111: =IF(T5,'Acquiror Model'!Q45) -> FALSE | U111: =IF(U5,'Acquiror Model'!R45) -> FALSE | V111: =IF(V5,'Acquiror Model'!S45) -> FALSE | W111: =IF(W5,'Acquiror Model'!T45) -> FALSE | X111: =IF(X5,'Acquiror Model'!U45) -> FALSE | Y111: =IF(Y5,'Acquiror Model'!V45) -> FALSE
C112: Average Debt | K112: =IF(K5,AVERAGE(J111:K111)) -> 2367 | L112: 1671.5 | M112: 5060.5 | N112: 13063.1025 | O112: 26946.3735 | P112: 36029.136 | Q112: FALSE | R112: FALSE | S112: FALSE | T112: FALSE | U112: FALSE | V112: FALSE | W112: FALSE | X112: FALSE | Y112: FALSE
C113: Average Interest Rate | E113: 3 | F113: =AVERAGEIF($5:$5,TRUE,113:113) -> 0.07395228101 | G113: =AVERAGEIF($4:$4,TRUE,113:113) -> 0.06973522762 | H113: 0.08 | I113: =CHOOSE(E113,F113,G113,H113) -> 0.08 | K113: =IF(K$5,K110/K112,$I113) -> 0.0663286861 | L113: =IF(L$5,L110/L112,$I113) -> 0.08016751421 | M113: 0.06777986365 | N113: 0.09071351924 | O113: 0.06898887526 | P113: 0.06973522762 | Q113: 0.08 | R113: 0.08 | S113: 0.08 | T113: 0.08 | U113: 0.08 | V113: 0.08 | W113: 0.08 | X113: 0.08 | Y113: 0.08
C115: Tax Expense | K115: =IF(K5,'Acquiror Model'!H66) -> 375 | L115: =IF(L5,'Acquiror Model'!I66) -> 2613 | M115: =IF(M5,'Acquiror Model'!J66) -> 3146 | N115: =IF(N5,'Acquiror Model'!K66) -> 3143 | O115: =IF(O5,'Acquiror Model'!L66) -> 2768 | P115: =IF(P5,'Acquiror Model'!M66) -> 4645 | Q115: =IF(Q5,'Acquiror Model'!N66) -> FALSE | R115: =IF(R5,'Acquiror Model'!O66) -> FALSE | S115: =IF(S5,'Acquiror Model'!P66) -> FALSE | T115: =IF(T5,'Acquiror Model'!Q66) -> FALSE | U115: =IF(U5,'Acquiror Model'!R66) -> FALSE | V115: =IF(V5,'Acquiror Model'!S66) -> FALSE | W115: =IF(W5,'Acquiror Model'!T66) -> FALSE | X115: =IF(X5,'Acquiror Model'!U66) -> FALSE | Y115: =IF(Y5,'Acquiror Model'!V66) -> FALSE
C116: Pre-tax Income | K116: =IF(K5,'Acquiror Model'!H65) -> 1388 | L116: =IF(L5,'Acquiror Model'!I65) -> 6718 | M116: =IF(M5,'Acquiror Model'!J65) -> 8406 | N116: =IF(N5,'Acquiror Model'!K65) -> 7559 | O116: =IF(O5,'Acquiror Model'!L65) -> 7466 | P116: =IF(P5,'Acquiror Model'!M65) -> 11612.405 | Q116: =IF(Q5,'Acquiror Model'!N65) -> FALSE | R116: =IF(R5,'Acquiror Model'!O65) -> FALSE | S116: =IF(S5,'Acquiror Model'!P65) -> FALSE | T116: =IF(T5,'Acquiror Model'!Q65) -> FALSE | U116: =IF(U5,'Acquiror Model'!R65) -> FALSE | V116: =IF(V5,'Acquiror Model'!S65) -> FALSE | W116: =IF(W5,'Acquiror Model'!T65) -> FALSE | X116: =IF(X5,'Acquiror Model'!U65) -> FALSE | Y116: =IF(Y5,'Acquiror Model'!V65) -> FALSE
C117: Average Tax Rate | E117: 3 | F117: =AVERAGEIF($5:$5,TRUE,117:117) -> 0.3699884735 | G117: =AVERAGEIF($4:$4,TRUE,117:117) -> 0.4000032724 | H117: 0 | I117: =CHOOSE(E117,F117,G117,H117) -> 0 | K117: =IF(K$5,K115/K116,$I117) -> 0.2701729107 | L117: 0.3889550461 | M117: 0.3742564835 | N117: 0.4157957402 | O117: 0.3707473882 | P117: 0.4000032724 | Q117: 0 | R117: 0 | S117: 0 | T117: 0 | U117: 0 | V117: 0 | W117: 0 | X117: 0 | Y117: 0
A119: Depreciation
B120: Existing Depreciation | K120: ='Acquiror Model'!H77 -> 891 | L120: ='Acquiror Model'!I77 -> 920 | M120: ='Acquiror Model'!J77 -> 771 | N120: ='Acquiror Model'!K77 -> 2493 | O120: ='Acquiror Model'!L77 -> 5994 | P120: ='Acquiror Model'!M77 -> 7035 | Q120: =P120/P3*Q3 -> 2735.833333 | R120: ='[1]Depreciation and Retirement'!D21 -> 9363.693583 | S120: ='[1]Depreciation and Retirement'!E21 -> 9070.277602 | T120: ='[1]Depreciation and Retirement'!F21 -> 8732.849224 | U120: ='[1]Depreciation and Retirement'!G21 -> 8344.806589 | V120: ='[1]Depreciation and Retirement'!H21 -> 7898.557558 | W120: ='[1]Depreciation and Retirement'!I21 -> 7385.371173 | X120: ='[1]Depreciation and Retirement'!J21 -> 6795.206831 | Y120: ='[1]Depreciation and Retirement'!K21 -> 6116.517837
B121: Existing Retirements | Q121: ='[1]Depreciation and Retirement'!D18 -> 3520.991774 | R121: ='[1]Depreciation and Retirement'!E18 -> 4049.14054 | S121: ='[1]Depreciation and Retirement'!F18 -> 4656.511621 | T121: ='[1]Depreciation and Retirement'!G18 -> 5354.988365 | U121: ='[1]Depreciation and Retirement'!H18 -> 6158.236619 | V121: ='[1]Depreciation and Retirement'!I18 -> 7081.972112 | W121: ='[1]Depreciation and Retirement'!J18 -> 8144.267929 | X121: ='[1]Depreciation and Retirement'!K18 -> 9365.908118 | Y121: ='[1]Depreciation and Retirement'!L18 -> 10770.79434
B123: Depreciation Rate
C124: Net Plant | K124: ='Acquiror Model'!H27 -> 9874 | L124: ='Acquiror Model'!I27 -> 18598 | M124: ='Acquiror Model'!J27 -> 37911 | N124: ='Acquiror Model'!K27 -> 30237.801 | O124: ='Acquiror Model'!L27 -> 56313.286 | P124: ='Acquiror Model'!M27 -> 89356.941 | Q124: ='Acquiror Model'!N27 -> 0 | R124: ='Acquiror Model'!O27 -> 0 | S124: ='Acquiror Model'!P27 -> 0 | T124: ='Acquiror Model'!Q27 -> 0 | U124: ='Acquiror Model'!R27 -> 0 | V124: ='Acquiror Model'!S27 -> 0 | W124: ='Acquiror Model'!T27 -> 0 | X124: ='Acquiror Model'!U27 -> 0 | Y124: ='Acquiror Model'!V27 -> 0
C125: Net Plant Rate | K125: =IF(K124,K120/K124/K3) -> 0.09023698602 | L125: 0.0494676847 | M125: 0.02033710533 | N125: 0.08244647155 | O125: 0.1064402457 | P125: 0.1093461037 | Q125: FALSE | R125: FALSE | S125: FALSE | T125: FALSE | U125: FALSE | V125: FALSE | W125: FALSE | X125: FALSE | Y125: FALSE
C127: Gross Plant | K127: ='Acquiror Model'!H25 -> 9874 | L127: ='Acquiror Model'!I25 -> 18598 | M127: ='Acquiror Model'!J25 -> 37911 | N127: ='Acquiror Model'!K25 -> 38032.133 | O127: ='Acquiror Model'!L25 -> 69426.072 | P127: ='Acquiror Model'!M25 -> 112364.323 | Q127: ='Acquiror Model'!N25 -> 0 | R127: ='Acquiror Model'!O25 -> 0 | S127: ='Acquiror Model'!P25 -> 0 | T127: ='Acquiror Model'!Q25 -> 0 | U127: ='Acquiror Model'!R25 -> 0 | V127: ='Acquiror Model'!S25 -> 0 | W127: ='Acquiror Model'!T25 -> 0 | X127: ='Acquiror Model'!U25 -> 0 | Y127: ='Acquiror Model'!V25 -> 0
C128: Gross Plant Rate | K128: =IF(K127,K120/K127/K3) -> 0.09023698602 | L128: 0.0494676847 | M128: 0.02033710533 | N128: 0.06554983387 | O128: 0.08633644145 | P128: 0.08695672321 | Q128: FALSE | R128: FALSE | S128: FALSE | T128: FALSE | U128: FALSE | V128: FALSE | W128: FALSE | X128: FALSE | Y128: FALSE
C129: Average Life | E129: 3 | F129: =AVERAGEIF($5:$5,TRUE,129:129) -> 19.8010818 | G129: =AVERAGEIF($4:$4,TRUE,129:129) -> 11.49997336 | H129: 11.5 | I129: =CHOOSE(E129,F129,G129,H129) -> 11.5 | K129: =IF(K128,1/K128,$I129) -> 11.08193042 | L129: =IF(L128,1/L128,$I129) -> 20.21521739 | M129: 49.17120623 | N129: 15.25556879 | O129: 11.58259459 | P129: 11.49997336 | Q129: 11.5 | R129: 11.5 | S129: 11.5 | T129: 11.5 | U129: 11.5 | V129: 11.5 | W129: 11.5 | X129: 11.5 | Y129: 11.5
A131: Working Capital
B132: Accounts Receivable | K132: =IF(K5,'Acquiror Model'!H9) -> 0 | L132: =IF(L5,'Acquiror Model'!I9) -> 0 | M132: =IF(M5,'Acquiror Model'!J9) -> 0 | N132: =IF(N5,'Acquiror Model'!K9) -> 12967.734 | O132: =IF(O5,'Acquiror Model'!L9) -> 14195.99 | P132: =IF(P5,'Acquiror Model'!M9) -> 21644.727 | Q132: =IF(Q5,'Acquiror Model'!N9) -> FALSE | R132: =IF(R5,'Acquiror Model'!O9) -> FALSE | S132: =IF(S5,'Acquiror Model'!P9) -> FALSE | T132: =IF(T5,'Acquiror Model'!Q9) -> FALSE | U132: =IF(U5,'Acquiror Model'!R9) -> FALSE | V132: =IF(V5,'Acquiror Model'!S9) -> FALSE | W132: =IF(W5,'Acquiror Model'!T9) -> FALSE | X132: =IF(X5,'Acquiror Model'!U9) -> FALSE | Y132: =IF(Y5,'Acquiror Model'!V9) -> FALSE
B133: Revenues | K133: =K99/K3 -> 52653 | L133: 65779 | M133: 107700 | N133: 103710 | O133: 142415 | P133: 141204.1667 | Q133: 0 | R133: 0 | S133: 0 | T133: 0 | U133: 0 | V133: 0 | W133: 0 | X133: 0 | Y133: 0
B134: Percentage | E134: 3 | F134: =AVERAGEIF($5:$5,TRUE,134:134) -> 0.1380009334 | G134: =AVERAGEIF($4:$4,TRUE,134:134) -> 0.1532867444 | H134: 0.15 | I134: =CHOOSE(E134,F134,G134,H134) -> 0.15 | K134: =IF(K132,K132/K133,$I134) -> 0.15 | L134: =IF(L132,L132/L133,$I134) -> 0.15 | M134: 0.15 | N134: 0.1250384148 | O134: 0.09968044096 | P134: 0.1532867444 | Q134: 0.15 | R134: 0.15 | S134: 0.15 | T134: 0.15 | U134: 0.15 | V134: 0.15 | W134: 0.15 | X134: 0.15 | Y134: 0.15
B136: Other Current Assets | K136: =IF(K5,SUM('Acquiror Model'!H10:H15)) -> 0 | L136: =IF(L5,SUM('Acquiror Model'!I10:I15)) -> 0 | M136: =IF(M5,SUM('Acquiror Model'!J10:J15)) -> 0 | N136: =IF(N5,SUM('Acquiror Model'!K10:K15)) -> 946.621 | O136: =IF(O5,SUM('Acquiror Model'!L10:L15)) -> 3554.698 | P136: =IF(P5,SUM('Acquiror Model'!M10:M15)) -> 12395.5 | Q136: =IF(Q5,SUM('Acquiror Model'!N10:N15)) -> FALSE | R136: =IF(R5,SUM('Acquiror Model'!O10:O15)) -> FALSE | S136: =IF(S5,SUM('Acquiror Model'!P10:P15)) -> FALSE | T136: =IF(T5,SUM('Acquiror Model'!Q10:Q15)) -> FALSE | U136: =IF(U5,SUM('Acquiror Model'!R10:R15)) -> FALSE | V136: =IF(V5,SUM('Acquiror Model'!S10:S15)) -> FALSE | W136: =IF(W5,SUM('Acquiror Model'!T10:T15)) -> FALSE | X136: =IF(X5,SUM('Acquiror Model'!U10:U15)) -> FALSE | Y136: =IF(Y5,SUM('Acquiror Model'!V10:V15)) -> FALSE
B137: Revenues | K137: =K103/K3 -> 52653 | L137: 65779 | M137: 107700 | N137: 103710 | O137: 142415 | P137: 141204.1667 | Q137: 0 | R137: 0 | S137: 0 | T137: 0 | U137: 0 | V137: 0 | W137: 0 | X137: 0 | Y137: 0
B138: Percentage | E138: 3 | F138: =AVERAGEIF($5:$5,TRUE,138:138) -> 0.07531199188 | G138: =AVERAGEIF($4:$4,TRUE,138:138) -> 0.08778423677 | H138: 0.11 | I138: =CHOOSE(E138,F138,G138,H138) -> 0.11 | K138: =IF(K136,K136/K137,$I138) -> 0.11 | L138: 0.11 | M138: 0.11 | N138: 0.009127576897 | O138: 0.02496013763 | P138: 0.08778423677 | Q138: 0.11 | R138: 0.11 | S138: 0.11 | T138: 0.11 | U138: 0.11 | V138: 0.11 | W138: 0.11 | X138: 0.11 | Y138: 0.11
B140: Accounts Payable | K140: =IF(K5,'Acquiror Model'!H32) -> 4323 | L140: =IF(L5,'Acquiror Model'!I32) -> 10333 | M140: =IF(M5,'Acquiror Model'!J32) -> 16216 | N140: =IF(N5,'Acquiror Model'!K32) -> 9327.109 | O140: =IF(O5,'Acquiror Model'!L32) -> 12952.18 | P140: =IF(P5,'Acquiror Model'!M32) -> 8522.412 | Q140: =IF(Q5,'Acquiror Model'!N32) -> FALSE | R140: =IF(R5,'Acquiror Model'!O32) -> FALSE | S140: =IF(S5,'Acquiror Model'!P32) -> FALSE | T140: =IF(T5,'Acquiror Model'!Q32) -> FALSE | U140: =IF(U5,'Acquiror Model'!R32) -> FALSE | V140: =IF(V5,'Acquiror Model'!S32) -> FALSE | W140: =IF(W5,'Acquiror Model'!T32) -> FALSE | X140: =IF(X5,'Acquiror Model'!U32) -> FALSE | Y140: =IF(Y5,'Acquiror Model'!V32) -> FALSE
B141: Cash Expenses | K141: =(K54+K95)/K3 -> 47574 | L141: 54281 | M141: 92181 | N141: 83039 | O141: 112906 | P141: 101498.0486 | Q141: 59794.32667 | R141: 60990.2132 | S141: 62210.01746 | T141: 63454.21781 | U141: 64723.30217 | V141: 66017.76821 | W141: 67338.12358 | X141: 68684.88605 | Y141: 70058.58377
B142: Percentage | E142: 3 | F142: =AVERAGEIF($5:$5,TRUE,142:142) -> 0.1280249651 | G142: =AVERAGEIF($4:$4,TRUE,142:142) -> 0.08396626454 | H142: 0.08 | I142: =CHOOSE(E142,F142,G142,H142) -> 0.08 | K142: =IF(K140,K140/K141,$I142) -> 0.09086896204 | L142: 0.1903612682 | M142: 0.1759147764 | N142: 0.1123220294 | O142: 0.1147164898 | P142: 0.08396626454 | Q142: 0.08 | R142: 0.08 | S142: 0.08 | T142: 0.08 | U142: 0.08 | V142: 0.08 | W142: 0.08 | X142: 0.08 | Y142: 0.08
B144: Other Current Liabilities | K144: =IF(K5,SUM('Acquiror Model'!H33:H35)) -> 0 | L144: =IF(L5,SUM('Acquiror Model'!I33:I35)) -> 0 | M144: =IF(M5,SUM('Acquiror Model'!J33:J35)) -> 0 | N144: =IF(N5,SUM('Acquiror Model'!K33:K35)) -> 3362.951 | O144: =IF(O5,SUM('Acquiror Model'!L33:L35)) -> 3903.931 | P144: =IF(P5,SUM('Acquiror Model'!M33:M35)) -> 19445.526 | Q144: =IF(Q5,SUM('Acquiror Model'!N33:N35)) -> FALSE | R144: =IF(R5,SUM('Acquiror Model'!O33:O35)) -> FALSE | S144: =IF(S5,SUM('Acquiror Model'!P33:P35)) -> FALSE | T144: =IF(T5,SUM('Acquiror Model'!Q33:Q35)) -> FALSE | U144: =IF(U5,SUM('Acquiror Model'!R33:R35)) -> FALSE | V144: =IF(V5,SUM('Acquiror Model'!S33:S35)) -> FALSE | W144: =IF(W5,SUM('Acquiror Model'!T33:T35)) -> FALSE | X144: =IF(X5,SUM('Acquiror Model'!U33:U35)) -> FALSE | Y144: =IF(Y5,SUM('Acquiror Model'!V33:V35)) -> FALSE
B145: Revenues | K145: =K137 -> 52653 | L145: =L137 -> 65779 | M145: 107700 | N145: 103710 | O145: 142415 | P145: 141204.1667 | Q145: 0 | R145: 0 | S145: 0 | T145: 0 | U145: 0 | V145: 0 | W145: 0 | X145: 0 | Y145: 0
B146: Percentage | E146: 3 | F146: =AVERAGEIF($5:$5,TRUE,146:146) -> 0.09792516194 | G146: =AVERAGEIF($4:$4,TRUE,146:146) -> 0.1377121261 | H146: 0.13 | I146: =CHOOSE(E146,F146,G146,H146) -> 0.13 | K146: =IF(K144,K144/K145,$I146) -> 0.13 | L146: 0.13 | M146: 0.13 | N146: 0.03242648732 | O146: 0.02741235825 | P146: 0.1377121261 | Q146: 0.13 | R146: 0.13 | S146: 0.13 | T146: 0.13 | U146: 0.13 | V146: 0.13 | W146: 0.13 | X146: 0.13 | Y146: 0.13
A148: Financing
B149: Cash Balance | K149: =IF(K5,'Acquiror Model'!H8) -> 0 | L149: =IF(L5,'Acquiror Model'!I8) -> 0 | M149: =IF(M5,'Acquiror Model'!J8) -> 0 | N149: =IF(N5,'Acquiror Model'!K8) -> 3801.378 | O149: =IF(O5,'Acquiror Model'!L8) -> 5763.904 | P149: =IF(P5,'Acquiror Model'!M8) -> 7503.48 | Q149: =IF(Q5,'Acquiror Model'!N8) -> FALSE | R149: =IF(R5,'Acquiror Model'!O8) -> FALSE | S149: =IF(S5,'Acquiror Model'!P8) -> FALSE | T149: =IF(T5,'Acquiror Model'!Q8) -> FALSE | U149: =IF(U5,'Acquiror Model'!R8) -> FALSE | V149: =IF(V5,'Acquiror Model'!S8) -> FALSE | W149: =IF(W5,'Acquiror Model'!T8) -> FALSE | X149: =IF(X5,'Acquiror Model'!U8) -> FALSE | Y149: =IF(Y5,'Acquiror Model'!V8) -> FALSE
B150: Revenues | K150: =K145 -> 52653 | L150: =L145 -> 65779 | M150: 107700 | N150: 103710 | O150: 142415 | P150: 141204.1667 | Q150: 0 | R150: 0 | S150: 0 | T150: 0 | U150: 0 | V150: 0 | W150: 0 | X150: 0 | Y150: 0
B151: Cash Revenue percent | E151: 3 | F151: =AVERAGEIF($5:$5,TRUE,151:151) -> 0.03171095589 | G151: =AVERAGEIF($4:$4,TRUE,151:151) -> 0.05313922512 | H151: 0.02 | I151: =CHOOSE(E151,F151,G151,H151) -> 0.02 | K151: =I151 -> 0.02 | L151: =I151 -> 0.02 | M151: =I151 -> 0.02 | N151: =IF(N5,N149/N150,$I151) -> 0.03665391958 | O151: 0.04047259067 | P151: 0.05313922512 | Q151: 0.02 | R151: 0.02 | S151: 0.02 | T151: 0.02 | U151: 0.02 | V151: 0.02 | W151: 0.02 | X151: 0.02 | Y151: 0.02
B153: Interest Income Rate | E153: 3 | F153: =AVERAGEIF($5:$5,TRUE,153:153) -> 0.02 | G153: =AVERAGEIF($4:$4,TRUE,153:153) -> 0.02 | H153: ='Acquiror Scenario'!L30 -> 0.02 | I153: =CHOOSE(E153,F153,G153,H153) -> 0.02 | K153: =I153 -> 0.02 | L153: =I153 -> 0.02 | M153: =I153 -> 0.02 | N153: =IF(N7,N151/N152,$I153) -> 0.02 | O153: 0.02 | P153: 0.02 | Q153: 0.02 | R153: 0.02 | S153: 0.02 | T153: 0.02 | U153: 0.02 | V153: 0.02 | W153: 0.02 | X153: 0.02 | Y153: 0.02

Sheet Acquiror Model
H1: 1 | I1: 2 | J1: 3 | K1: 4 | L1: 5 | M1: 6 | N1: 7 | O1: 8 | P1: 9 | Q1: 10 | R1: 11 | S1: 12 | T1: 13 | U1: 14 | V1: 15
H2: 1992 | I2: 1993 | J2: 1994 | K2: 1995 | L2: 1996 | M2: 1997 | N2: =M2 -> 1997 | O2: =N2+1 -> 1998 | P2: =O2+1 -> 1999 | Q2: 2000 | R2: 2001 | S2: 2002 | T2: 2003 | U2: 2004 | V2: 2005
H3: 1 | I3: 1 | J3: 1 | K3: 1 | L3: 1 | M3: 0.72 | N3: =1-M3 -> 0.28 | O3: 1 | P3: 1 | Q3: 1 | R3: 1 | S3: 1 | T3: 1 | U3: 1 | V3: 1
H4: TRUE | I4: TRUE | J4: TRUE | K4: TRUE | L4: TRUE | M4: TRUE | N4: FALSE | O4: FALSE | P4: FALSE | Q4: FALSE | R4: FALSE | S4: FALSE | T4: FALSE | U4: FALSE | V4: FALSE
A5: Balance Sheet
B6: ASSETS
C7: Current assets:
D8: Cash and cash equivalents | E8: -1 | K8: 3801.378 | L8: 5763.904 | M8: 7503.48
D9: Trade accounts receivable, net of allowance for doubtful accounts of $05 million and $01 million, respectively | E9: 0 | F9: 1 | K9: 12967.734 | L9: 14195.99 | M9: 21644.727
D10: Income tax receivable | E10: 0 | F10: 1 | K10: 0 | L10: 765.395 | M10: 0
D11: Deferred income taxes | E11: 0 | F11: 1 | K11: 50.41 | L11: 156.562 | M11: 107.564
D12: Inventory and aircraft supplies | E12: 0 | F12: 1 | K12: 98.386 | L12: 1713.812 | M12: 5587.548
D13: Deposits and prepaid expenses | E13: 0 | F13: 1 | K13: 0 | L13: 0 | M13: 3875.316
D14: Prepaid aircraft fuel | E14: 0 | F14: 1 | K14: 797.825 | L14: 918.929 | M14: 2825.072
D15: Other current assets, net | E15: 0 | F15: 1 | K15: 0 | L15: 0
D16: Total current assets | E16: 0 | K16: 17715.733 | L16: 23514.592 | M16: 41543.707
C18: Aircraft | E18: 0 | K18: 36179.455 | L18: 53695.32 | M18: 93649.024
C19: Aircraft work-in-progress | E19: 0 | K19: 0 | L19: 13476.355 | M19: 8178.161
C20: Machinery and equipment | E20: 0 | K20: 1425.272 | L20: 1776.319 | M20: 5122.368
C21: Leasehold improvements | E21: 0 | K21: 0 | L21: 75.313 | M21: 3053.624
C22: Building | E22: 0 | K22: 251.349 | L22: 166.057 | M22: 1770
C23: Furniture and fixtures | E23: 0 | K23: 176.057 | L23: 236.708 | M23: 173.899
C24: Transportation equipment | E24: 0 | M24: 417.247
D25: Total plant assets | E25: 0 | H25: 9874 | I25: 18598 | J25: 37911 | K25: 38032.133 | L25: 69426.072 | M25: 112364.323
D26: Accumulated Depreciation | E26: 0 | K26: -7794.332 | L26: -13112.786 | M26: -23007.382
C27: Property and equipment, net | E27: 0 | F27: 1 | H27: 9874 | I27: 18598 | J27: 37911 | K27: 30237.801 | L27: 56313.286 | M27: 89356.941
D28: Total assets | H28: 9874 | I28: 18598 | J28: 37911 | K28: 47953.534 | L28: 79827.878 | M28: 130900.648
B30: LIABILITIES AND STOCKHOLDERS’ EQUITY
C31: Current liabilities:
C32: Accounts payable 0 trade | F32: -1 | H32: 4323 | I32: 10333 | J32: 16216 | K32: 9327.109 | L32: 12952.18 | M32: 8522.412
C33: Accrued wages and compensation related expenses | F33: -1 | K33: 1336.696 | L33: 1580.465 | M33: 13226.661
D34: Current portion of accrued aircraft maintenance reserves | E34: 1 | K34: 2026.255 | L34: 2323.466 | M34: 3326.009
C35: Taxes payable | F35: -1 | K35: 0 | L35: 0 | M35: 2892.856
D36: Revolving Credit Facility | E36: 1 | G36: 1 | K36: 0 | L36: 10000 | M36: 0
C37: Current debt | E37: 1 | G37: 1 | K37: 3278.553 | L37: 3620.24 | M37: 8373.261
C38: Total current liabilities | H38: 4323 | I38: 10333 | J38: 16216 | K38: 15968.613 | L38: 30476.351 | M38: 36341.199
D40: Long-term debt | E40: 1 | F40: 0 | G40: 1 | H40: 2367 | I40: 976 | J40: 9145 | K40: 13702.652 | L40: 23291.302 | M40: 26773.469
D41: Deferred income taxes | E41: 0 | F41: -1 | K41: 1316.365 | L41: 2421.48 | M41: 2544.9
D42: Total stockholders’ equity | E42: 1 | H42: 3184 | I42: 7289 | J42: 12550 | K42: 16965.904 | L42: 23638.745 | M42: 65241.08
D43: Total liabilities and stockholders’ equity | E43: 0 | H43: 9874 | I43: 18598 | J43: 37911 | K43: 47953.534 | L43: 79827.878 | M43: 130900.648
D45: Total Debt | H45: 2367 | I45: 976 | J45: 9145 | K45: 16981.205 | L45: 36911.542 | M45: 35146.73
A48: Results of Operations
B49: Revenue:
C50: Scheduled freight | H50: 6760 | I50: 12939 | J50: 28285 | K50: 41117 | L50: 52922 | M50: 55789
C51: Air logistics revenues | H51: 45893 | I51: 52840 | J51: 79415 | K51: 62593 | L51: 89493 | M51: 45878
C52: Total revenue | H52: 52653 | I52: 65779 | J52: 107700 | K52: 103710 | L52: 142415 | M52: 101667
C53: Air freight carrier Cost | H53: 4866.65 | I53: 6059.8 | J53: 19550 | K53: 28104 | L53: 38760 | M53: 38075.855
C54: Air logistics Cost | H54: 43598.35 | I54: 49141.2 | J54: 73402 | K54: 57428 | L54: 80140 | M54: 42037.74
C55: Total cost of revenue | H55: 48465 | I55: 55201 | J55: 92952 | K55: 85532 | L55: 118900 | M55: 80113.595
B56: Gross profit (loss) | H56: 4188 | I56: 10578 | J56: 14748 | K56: 18178 | L56: 23515 | M56: 21553.405
B57: General and administrative expenses | H57: 2930 | I57: 4394 | J57: 6013 | K57: 7832 | L57: 9080 | M57: 7550
B58: Non-qualified profit sharing | H58: 0 | I58: 250 | J58: 732 | K58: 1001 | L58: 1170 | M58: 1161
B59: Stock option grants to | H59: 0 | I59: 0 | J59: 0 | K59: 0 | L59: 4231 | M59: 0
B60: Operating profit (loss) from continuing operations | H60: 1258 | I60: 5934 | J60: 8003 | K60: 9345 | L60: 9034 | M60: 12842.405
B61: Other (income) expense:
C62: Interest expense | H62: -157 | I62: -134 | J62: -343 | K62: -1185 | L62: -1859 | M62: -1809
C63: Other income(3) | H63: 287 | I63: 193 | J63: -432 | K63: -601 | L63: 291 | M63: 579
C64: Contract settlement income | H64: 0 | I64: 725 | J64: 1178 | K64: 0 | L64: 0 | M64: 0
B65: Income (loss) from continuing operations before income taxes | H65: 1388 | I65: 6718 | J65: 8406 | K65: 7559 | L65: 7466 | M65: 11612.405
C66: Income tax expense | H66: 375 | I66: 2613 | J66: 3146 | K66: 3143 | L66: 2768 | M66: 4645
B67: Net income (loss) allocable to common stockholders(6) | H67: 1013 | I67: 4105 | J67: 5260 | K67: 4416 | L67: 4698 | M67: 6967.405
A69: Earnings (Loss) Per Share Data
B70: Continuing operations(6)(7) | H70: 0.12 | I70: 0.52 | J70: 0.66 | K70: 0.55 | L70: 0.52 | M70: 0.67
B71: Weighted average common stock outstanding(7) | H71: 8671 | I71: 7968 | J71: 7968 | K71: 7968 | L71: 7928 | M71: 7928
A72: OTHER FINANCIAL DATA:
B73: Capital expenditures | H73: 3019 | I73: 1318 | J73: 13876 | K73: 17929 | L73: 33538 | M73: 48575
B74: Adjusted EBITDA(3) | H74: 2149 | I74: 7104 | J74: 9507 | K74: 12839 | L74: 19840 | M74: 21039
B75: Depreciation Expense | H75: 0 | I75: 0 | J75: 1935.348 | K75: 4095.156 | L75: 6873.033 | M75: 7617.367
B76: Gross Profit - G&A | H76: 1258 | I76: 6184 | J76: 8736 | K76: 10346 | L76: 13846 | M76: 14004
B77: Implied Depreciation | H77: 891 | I77: 920 | J77: 771 | K77: 2493 | L77: 5994 | M77: 7035
A79: Operating Data
B80: Aircraft owned (at end of | H80: 11 | I80: 10 | J80: 15 | K80: 22 | L80: 25 | M80: 26
B81: Revenue block hours flown(11) | H81: 3567 | I81: 7030 | J81: 11795 | K81: 15183 | L81: 20237 | M81: 21912
A83: Assumptions
B84: Number of Planes
C85: Existing Planes | H85: ='Acquiror Assumptions'!K40 -> 11 | I85: ='Acquiror Assumptions'!L40 -> 10.5 | J85: ='Acquiror Assumptions'!M40 -> 12.5 | K85: ='Acquiror Assumptions'!N40 -> 18.5 | L85: ='Acquiror Assumptions'!O40 -> 23.5 | M85: ='Acquiror Assumptions'!P40 -> 25.5 | N85: ='Acquiror Assumptions'!Q40 -> 25.59263855 | O85: ='Acquiror Assumptions'!R40 -> 24.71681145 | P85: ='Acquiror Assumptions'!S40 -> 23.70961027 | Q85: ='Acquiror Assumptions'!T40 -> 22.55132892 | R85: ='Acquiror Assumptions'!U40 -> 21.21930537 | S85: ='Acquiror Assumptions'!V40 -> 19.68747828 | T85: ='Acquiror Assumptions'!W40 -> 17.92587713 | U85: ='Acquiror Assumptions'!X40 -> 15.90003581 | V85: ='Acquiror Assumptions'!Y40 -> 13.57031829
C86: New Planes | H86: ='Acquiror Assumptions'!K73 -> 0 | I86: ='Acquiror Assumptions'!L73 -> 0 | J86: ='Acquiror Assumptions'!M73 -> 0 | K86: ='Acquiror Assumptions'!N73 -> 0 | L86: ='Acquiror Assumptions'!O73 -> 0 | M86: ='Acquiror Assumptions'!P73 -> 0 | N86: ='Acquiror Assumptions'!Q73 -> 1.814722891 | O86: ='Acquiror Assumptions'!R73 -> 6.751654217 | P86: ='Acquiror Assumptions'!S73 -> 12.22912524 | Q86: ='Acquiror Assumptions'!T73 -> 18.30821692 | R86: ='Acquiror Assumptions'!U73 -> 25.05717235 | S86: ='Acquiror Assumptions'!V73 -> 32.55227109 | T86: ='Acquiror Assumptions'!W73 -> 40.87881465 | U86: ='Acquiror Assumptions'!X73 -> 50.13223773 | V86: ='Acquiror Assumptions'!Y73 -> 60.41936209
D87: Total Planes | H87: =SUM(H85:H86) -> 11 | I87: 10.5 | J87: 12.5 | K87: 18.5 | L87: 23.5 | M87: 25.5 | N87: 27.40736145 | O87: 31.46846566 | P87: 35.93873551 | Q87: 40.85954584 | R87: 46.27647771 | S87: 52.23974937 | T87: 58.80469178 | U87: 66.03227354 | V87: 73.98968038
C89: Added Planes | H89: ='Acquiror Assumptions'!K71 -> 0 | I89: ='Acquiror Assumptions'!L71 -> 0 | J89: ='Acquiror Assumptions'!M71 -> 0 | K89: ='Acquiror Assumptions'!N71 -> 0 | L89: ='Acquiror Assumptions'!O71 -> 0 | M89: ='Acquiror Assumptions'!P71 -> 0 | N89: ='Acquiror Assumptions'!Q71 -> 1.814722891 | O89: ='Acquiror Assumptions'!R71 -> 4.936931325 | P89: ='Acquiror Assumptions'!S71 -> 5.477471024 | Q89: ='Acquiror Assumptions'!T71 -> 6.079091678 | R89: ='Acquiror Assumptions'!U71 -> 6.748955429 | S89: ='Acquiror Assumptions'!V71 -> 7.495098744 | T89: ='Acquiror Assumptions'!W71 -> 8.326543555 | U89: ='Acquiror Assumptions'!X71 -> 9.253423088 | V89: ='Acquiror Assumptions'!Y71 -> 10.28712435
C90: Operational Planes - Existing | H90: =H87 -> 11 | I90: =I87 -> 10.5 | J90: 12.5 | K90: 18.5 | L90: 23.5 | M90: 25.5 | N90: 27.40736145 | O90: 31.46846566 | P90: 35.93873551 | Q90: 40.85954584 | R90: 46.27647771 | S90: 52.23974937 | T90: 58.80469178 | U90: 66.03227354 | V90: 73.98968038
C91: Operational Planes - New | H91: =G86 -> 0 | I91: =H86 -> 0 | J91: 0 | K91: 0 | L91: 0 | M91: 0 | N91: 0 | O91: 1.814722891 | P91: 6.751654217 | Q91: 12.22912524 | R91: 18.30821692 | S91: 25.05717235 | T91: 32.55227109 | U91: 40.87881465 | V91: 50.13223773
B93: Capital Expenditures
C94: Capital Expenditure per Plane | H94: ='Acquiror Assumptions'!K89 -> 6175 | I94: ='Acquiror Assumptions'!L89 -> 6175 | J94: ='Acquiror Assumptions'!M89 -> 6175 | K94: ='Acquiror Assumptions'!N89 -> 6175 | L94: ='Acquiror Assumptions'!O89 -> 6175 | M94: ='Acquiror Assumptions'!P89 -> 6175 | N94: ='Acquiror Assumptions'!Q89 -> 6175 | O94: ='Acquiror Assumptions'!R89 -> 6175 | P94: ='Acquiror Assumptions'!S89 -> 6175 | Q94: ='Acquiror Assumptions'!T89 -> 6175 | R94: ='Acquiror Assumptions'!U89 -> 6175 | S94: ='Acquiror Assumptions'!V89 -> 6175 | T94: ='Acquiror Assumptions'!W89 -> 6175 | U94: ='Acquiror Assumptions'!X89 -> 6175 | V94: ='Acquiror Assumptions'!Y89 -> 6175
C95: Capital Expenditures | H95: =H94*H89 -> 0 | I95: =I94*I89 -> 0 | J95: 0 | K95: 0 | L95: 0 | M95: 0 | N95: 11205.91385 | O95: 30485.55093 | P95: 33823.38357 | Q95: 37538.39111 | R95: 41674.79977 | S95: 46282.23474 | T95: 51416.40645 | U95: 57139.88757 | V95: 63522.99287
B97: Revenues
C98: Flight Hours/Aircraft - Existing | H98: ='Acquiror Assumptions'!K39 -> 324.2727273 | I98: ='Acquiror Assumptions'!L39 -> 669.5238095 | J98: ='Acquiror Assumptions'!M39 -> 943.6 | K98: ='Acquiror Assumptions'!N39 -> 820.7027027 | L98: ='Acquiror Assumptions'!O39 -> 861.1489362 | M98: ='Acquiror Assumptions'!P39 -> 1193.464052 | N98: ='Acquiror Assumptions'!Q39 -> 1100 | O98: ='Acquiror Assumptions'!R39 -> 1100 | P98: ='Acquiror Assumptions'!S39 -> 1100 | Q98: ='Acquiror Assumptions'!T39 -> 1100 | R98: ='Acquiror Assumptions'!U39 -> 1100 | S98: ='Acquiror Assumptions'!V39 -> 1100 | T98: ='Acquiror Assumptions'!W39 -> 1100 | U98: ='Acquiror Assumptions'!X39 -> 1100 | V98: ='Acquiror Assumptions'!Y39 -> 1100
C99: Flight Hours/Aircraft - Incremental | H99: ='Acquiror Assumptions'!K25 -> 1489.2 | I99: ='Acquiror Assumptions'!L25 -> 1489.2 | J99: ='Acquiror Assumptions'!M25 -> 1489.2 | K99: ='Acquiror Assumptions'!N25 -> 1489.2 | L99: ='Acquiror Assumptions'!O25 -> 1489.2 | M99: ='Acquiror Assumptions'!P25 -> 1489.2 | N99: ='Acquiror Assumptions'!Q25 -> 1489.2 | O99: ='Acquiror Assumptions'!R25 -> 1489.2 | P99: ='Acquiror Assumptions'!S25 -> 1489.2 | Q99: ='Acquiror Assumptions'!T25 -> 1489.2 | R99: ='Acquiror Assumptions'!U25 -> 1489.2 | S99: ='Acquiror Assumptions'!V25 -> 1489.2 | T99: ='Acquiror Assumptions'!W25 -> 1489.2 | U99: ='Acquiror Assumptions'!X25 -> 1489.2 | V99: ='Acquiror Assumptions'!Y25 -> 1489.2
C101: Price/Flight Hour - Existing | H101: ='Acquiror Assumptions'!K47 -> 1.895149986 | I101: ='Acquiror Assumptions'!L47 -> 1.840540541 | J101: ='Acquiror Assumptions'!M47 -> 2.398050021 | K101: ='Acquiror Assumptions'!N47 -> 2.708094579 | L101: ='Acquiror Assumptions'!O47 -> 2.615110935 | M101: ='Acquiror Assumptions'!P47 -> 2.546047828 | N101: ='Acquiror Assumptions'!Q47 -> 2.512171557 | O101: ='Acquiror Assumptions'!R47 -> 2.587536704 | P101: ='Acquiror Assumptions'!S47 -> 2.665162805 | Q101: ='Acquiror Assumptions'!T47 -> 2.745117689 | R101: ='Acquiror Assumptions'!U47 -> 2.82747122 | S101: ='Acquiror Assumptions'!V47 -> 2.912295357 | T101: ='Acquiror Assumptions'!W47 -> 2.999664217 | U101: ='Acquiror Assumptions'!X47 -> 3.089654144 | V101: ='Acquiror Assumptions'!Y47 -> 3.182343768
C102: Price/Flight Hour - Incremental | H102: ='Acquiror Assumptions'!K85 -> 2.234654568 | I102: ='Acquiror Assumptions'!L85 -> 1.828898038 | J102: ='Acquiror Assumptions'!M85 -> 2.739999294 | K102: ='Acquiror Assumptions'!N85 -> 2.840216636 | L102: ='Acquiror Assumptions'!O85 -> 2.768568791 | M102: ='Acquiror Assumptions'!P85 -> 2.554284251 | N102: ='Acquiror Assumptions'!Q85 -> 2.520298391 | O102: ='Acquiror Assumptions'!R85 -> 2.595907343 | P102: ='Acquiror Assumptions'!S85 -> 2.673784563 | Q102: ='Acquiror Assumptions'!T85 -> 2.7539981 | R102: ='Acquiror Assumptions'!U85 -> 2.836618043 | S102: ='Acquiror Assumptions'!V85 -> 2.921716585 | T102: ='Acquiror Assumptions'!W85 -> 3.009368082 | U102: ='Acquiror Assumptions'!X85 -> 3.099649125 | V102: ='Acquiror Assumptions'!Y85 -> 3.192638598
C104: Total Revenues - Existing | H104: =H98*H101*H85*H3 -> 6760 | I104: =I98*I101*I85*I3 -> 12939 | J104: 28285 | K104: 41117 | L104: 52922 | M104: 55789 | N104: 19802.27439 | O104: 70351.22251 | P104: 69508.96857 | Q104: 68096.65713 | R104: 65996.67276 | S104: 63069.32674 | T104: 59148.77342 | U104: 54038.17268 | V104: 47503.95963
C105: Total Revenues - Incremental | H105: =H99*H102*H91 -> 0 | I105: =I99*I102*I91 -> 0 | J105: 0 | K105: 0 | L105: 0 | M105: 0 | N105: 0 | O105: 7015.401513 | P105: 26883.73657 | Q105: 50154.74845 | R105: 77339.24676 | S105: 109024.2665 | T105: 145884.6614 | U105: 188696.5052 | V105: 238352.5914
C106: Logistics Revenues | H106: ='Acquiror Assumptions'!K93 -> 45893 | I106: ='Acquiror Assumptions'!L93 -> 52840 | J106: ='Acquiror Assumptions'!M93 -> 79415 | K106: ='Acquiror Assumptions'!N93 -> 62593 | L106: ='Acquiror Assumptions'!O93 -> 89493 | M106: ='Acquiror Assumptions'!P93 -> 45878 | N106: ='Acquiror Assumptions'!Q93 -> 18198.27333 | O106: ='Acquiror Assumptions'!R93 -> 66293.71 | P106: ='Acquiror Assumptions'!S93 -> 67619.5842 | Q106: ='Acquiror Assumptions'!T93 -> 68971.97588 | R106: ='Acquiror Assumptions'!U93 -> 70351.4154 | S106: ='Acquiror Assumptions'!V93 -> 71758.44371 | T106: ='Acquiror Assumptions'!W93 -> 73193.61258 | U106: ='Acquiror Assumptions'!X93 -> 74657.48484 | V106: ='Acquiror Assumptions'!Y93 -> 76150.63453
D107: Total Revenues | H107: =SUM(H104:H106) -> 52653 | I107: =SUM(I104:I106) -> 65779 | J107: 107700 | K107: 103710 | L107: 142415 | M107: 101667 | N107: 38000.54772 | O107: 143660.334 | P107: 164012.2893 | Q107: 187223.3815 | R107: 213687.3349 | S107: 243852.0369 | T107: 278227.0474 | U107: 317392.1628 | V107: 362007.1855
B109: Operating Costs
C110: Freight Costs - Existing | H110: ='Acquiror Assumptions'!K57 -> 3975.65 | I110: ='Acquiror Assumptions'!L57 -> 5139.8 | J110: ='Acquiror Assumptions'!M57 -> 18779 | K110: ='Acquiror Assumptions'!N57 -> 25611 | L110: ='Acquiror Assumptions'!O57 -> 32766 | M110: ='Acquiror Assumptions'!P57 -> 31040.855 | N110: ='Acquiror Assumptions'!Q57 -> 11501.50467 | O110: ='Acquiror Assumptions'!R57 -> 40861.21113 | P110: ='Acquiror Assumptions'!S57 -> 40372.01542 | Q110: ='Acquiror Assumptions'!T57 -> 39551.72042 | R110: ='Acquiror Assumptions'!U57 -> 38332.01305 | S110: ='Acquiror Assumptions'!V57 -> 36631.75967 | T110: ='Acquiror Assumptions'!W57 -> 34354.63425 | U110: ='Acquiror Assumptions'!X57 -> 31386.30864 | V110: ='Acquiror Assumptions'!Y57 -> 27591.12428
C111: Freight Costs - New | H111: ='Acquiror Assumptions'!K83 -> 0 | I111: ='Acquiror Assumptions'!L83 -> 0 | J111: ='Acquiror Assumptions'!M83 -> 0 | K111: ='Acquiror Assumptions'!N83 -> 0 | L111: ='Acquiror Assumptions'!O83 -> 0 | M111: ='Acquiror Assumptions'!P83 -> 0 | N111: ='Acquiror Assumptions'!Q83 -> 0 | O111: ='Acquiror Assumptions'!R83 -> 4061.527989 | P111: ='Acquiror Assumptions'!S83 -> 15564.19092 | Q111: ='Acquiror Assumptions'!T83 -> 29036.81482 | R111: ='Acquiror Assumptions'!U83 -> 44775.13009 | S111: ='Acquiror Assumptions'!V83 -> 63118.9974 | T111: ='Acquiror Assumptions'!W83 -> 84459.11958 | U111: ='Acquiror Assumptions'!X83 -> 109244.8003 | V111: ='Acquiror Assumptions'!Y83 -> 137992.9173
C112: Logistics Costs | H112: ='Acquiror Assumptions'!K95 -> 43598.35 | I112: ='Acquiror Assumptions'!L95 -> 49141.2 | J112: ='Acquiror Assumptions'!M95 -> 73402 | K112: ='Acquiror Assumptions'!N95 -> 57428 | L112: ='Acquiror Assumptions'!O95 -> 80140 | M112: ='Acquiror Assumptions'!P95 -> 42037.74 | N112: ='Acquiror Assumptions'!Q95 -> 16742.41147 | O112: ='Acquiror Assumptions'!R95 -> 60990.2132 | P112: ='Acquiror Assumptions'!S95 -> 62210.01746 | Q112: ='Acquiror Assumptions'!T95 -> 63454.21781 | R112: ='Acquiror Assumptions'!U95 -> 64723.30217 | S112: ='Acquiror Assumptions'!V95 -> 66017.76821 | T112: ='Acquiror Assumptions'!W95 -> 67338.12358 | U112: ='Acquiror Assumptions'!X95 -> 68684.88605 | V112: ='Acquiror Assumptions'!Y95 -> 70058.58377
D113: Total Cash Costs | H113: =SUM(H110:H112) -> 47574 | I113: 54281 | J113: 92181 | K113: 83039 | L113: 112906 | M113: 73078.595 | N113: 28243.91614 | O113: 105912.9523 | P113: 118146.2238 | Q113: 132042.7531 | R113: 147830.4453 | S113: 165768.5253 | T113: 186151.8774 | U113: 209315.995 | V113: 235642.6254
B115: Administrative Expenses
C116: Administrative Expense/Revenue | H116: ='Acquiror Assumptions'!K100 -> 0.05564735153 | I116: ='Acquiror Assumptions'!L100 -> 0.06679943447 | J116: ='Acquiror Assumptions'!M100 -> 0.05583101207 | K116: ='Acquiror Assumptions'!N100 -> 0.0755182721 | L116: ='Acquiror Assumptions'!O100 -> 0.06375732893 | M116: ='Acquiror Assumptions'!P100 -> 0.0742620516 | N116: ='Acquiror Assumptions'!Q100 -> 0.05 | O116: ='Acquiror Assumptions'!R100 -> 0.05 | P116: ='Acquiror Assumptions'!S100 -> 0.05 | Q116: ='Acquiror Assumptions'!T100 -> 0.05 | R116: ='Acquiror Assumptions'!U100 -> 0.05 | S116: ='Acquiror Assumptions'!V100 -> 0.05 | T116: ='Acquiror Assumptions'!W100 -> 0.05 | U116: ='Acquiror Assumptions'!X100 -> 0.05 | V116: ='Acquiror Assumptions'!Y100 -> 0.05
C117: Administrative Expenses | H117: =H116*H107 -> 2930 | I117: 4394 | J117: 6013 | K117: 7832 | L117: 9080 | M117: 7550 | N117: 1900.027386 | O117: 7183.016701 | P117: 8200.614467 | Q117: 9361.169074 | R117: 10684.36675 | S117: 12192.60185 | T117: 13911.35237 | U117: 15869.60814 | V117: 18100.35928
C119: Profit Sharing/Revenue | H119: ='Acquiror Assumptions'!K104 -> 0 | I119: ='Acquiror Assumptions'!L104 -> 0.003800605056 | J119: ='Acquiror Assumptions'!M104 -> 0.006796657382 | K119: ='Acquiror Assumptions'!N104 -> 0.009651913991 | L119: ='Acquiror Assumptions'!O104 -> 0.008215426746 | M119: ='Acquiror Assumptions'!P104 -> 0.01141963469 | N119: ='Acquiror Assumptions'!Q104 -> 0.0082 | O119: ='Acquiror Assumptions'!R104 -> 0.0082 | P119: ='Acquiror Assumptions'!S104 -> 0.0082 | Q119: ='Acquiror Assumptions'!T104 -> 0.0082 | R119: ='Acquiror Assumptions'!U104 -> 0.0082 | S119: ='Acquiror Assumptions'!V104 -> 0.0082 | T119: ='Acquiror Assumptions'!W104 -> 0.0082 | U119: ='Acquiror Assumptions'!X104 -> 0.0082 | V119: ='Acquiror Assumptions'!Y104 -> 0.0082
C120: Profit Sharing | H120: =H119*H107 -> 0 | I120: 250 | J120: 732 | K120: 1001 | L120: 1170 | M120: 1161 | N120: 311.6044913 | O120: 1178.014739 | P120: 1344.900773 | Q120: 1535.231728 | R120: 1752.236146 | S120: 1999.586703 | T120: 2281.461788 | U120: 2602.615735 | V120: 2968.458921
C122: EBITDA | H122: =H107-H113-H117-H120 -> 2149 | I122: =I107-I113-I117-I120 -> 6854 | J122: 8774 | K122: 11838 | L122: 19259 | M122: 19877.405 | N122: 7544.999702 | O122: 29386.35027 | P122: 36320.5503 | Q122: 44284.22761 | R122: 53420.28672 | S122: 63891.32311 | T122: 75882.3558 | U122: 89603.94388 | V122: 105295.7419
B124: Depreciation
C125: Existing Depreciation | H125: ='Acquiror Assumptions'!K120 -> 891 | I125: ='Acquiror Assumptions'!L120 -> 920 | J125: ='Acquiror Assumptions'!M120 -> 771 | K125: ='Acquiror Assumptions'!N120 -> 2493 | L125: ='Acquiror Assumptions'!O120 -> 5994 | M125: ='Acquiror Assumptions'!P120 -> 7035 | N125: ='Acquiror Assumptions'!Q120 -> 2735.833333 | O125: ='Acquiror Assumptions'!R120 -> 9363.693583 | P125: ='Acquiror Assumptions'!S120 -> 9070.277602 | Q125: ='Acquiror Assumptions'!T120 -> 8732.849224 | R125: ='Acquiror Assumptions'!U120 -> 8344.806589 | S125: ='Acquiror Assumptions'!V120 -> 7898.557558 | T125: ='Acquiror Assumptions'!W120 -> 7385.371173 | U125: ='Acquiror Assumptions'!X120 -> 6795.206831 | V125: ='Acquiror Assumptions'!Y120 -> 6116.517837
C127: New Plant and Depreciation
D128: Opening Balance | H128: =G130 -> 0 | I128: =H130 -> 0 | J128: 0 | K128: 0 | L128: 0 | M128: 0 | N128: 0 | O128: 11205.91385 | P128: 41691.46479 | Q128: 75514.84836 | R128: 113053.2395 | S128: 154728.0392 | T128: 201010.274 | U128: 252426.6804 | V128: 309566.568
D129: Add: Capital Expenditures | H129: =H95 -> 0 | I129: =I95 -> 0 | J129: 0 | K129: 0 | L129: 0 | M129: 0 | N129: 11205.91385 | O129: 30485.55093 | P129: 33823.38357 | Q129: 37538.39111 | R129: 41674.79977 | S129: 46282.23474 | T129: 51416.40645 | U129: 57139.88757 | V129: 63522.99287
D130: Closing Balance | H130: =SUM(H128:H129) -> 0 | I130: =SUM(I128:I129) -> 0 | J130: 0 | K130: 0 | L130: 0 | M130: 0 | N130: 11205.91385 | O130: 41691.46479 | P130: 75514.84836 | Q130: 113053.2395 | R130: 154728.0392 | S130: 201010.274 | T130: 252426.6804 | U130: 309566.568 | V130: 373089.5609
D132: New Depreciation Expense | G132: =1/'Acquiror Assumptions'!I129 -> 0.08695652174 | H132: =H130*$G$132 -> 0 | I132: =I130*$G$132 -> 0 | J132: 0 | K132: 0 | L132: 0 | M132: 0 | N132: 974.4272917 | O132: 3625.344764 | P132: 6566.508553 | Q132: 9830.716476 | R132: 13454.61211 | S132: 17479.15426 | T132: 21950.14612 | U132: 26918.832 | V132: 32442.57051
D133: Accumulated Depreciation | H133: =G133+H132 -> 0 | I133: =H133+I132 -> 0 | J133: 0 | K133: 0 | L133: 0 | M133: 0 | N133: 974.4272917 | O133: 4599.772056 | P133: 11166.28061 | Q133: 20996.99708 | R133: 34451.60919 | S133: 51930.76345 | T133: 73880.90958 | U133: 100799.7416 | V133: 133242.3121
C135: Existing Plant Balance
D136: Opening Balance | H136: =G138 -> 0 | I136: =H138 -> 9874 | J136: 18598 | K136: 37911 | L136: 38032.133 | M136: 69426.072 | N136: 112364.323 | O136: 108843.3312 | P136: 104794.1907 | Q136: 100137.6791 | R136: 94782.6907 | S136: 88624.45408 | T136: 81542.48197 | U136: 73398.21404 | V136: 64032.30592
D137: Less: Retirements | H137: ='Acquiror Assumptions'!K121 -> 0 | I137: ='Acquiror Assumptions'!L121 -> 0 | J137: ='Acquiror Assumptions'!M121 -> 0 | K137: ='Acquiror Assumptions'!N121 -> 0 | L137: ='Acquiror Assumptions'!O121 -> 0 | M137: ='Acquiror Assumptions'!P121 -> 0 | N137: ='Acquiror Assumptions'!Q121 -> 3520.991774 | O137: ='Acquiror Assumptions'!R121 -> 4049.14054 | P137: ='Acquiror Assumptions'!S121 -> 4656.511621 | Q137: ='Acquiror Assumptions'!T121 -> 5354.988365 | R137: ='Acquiror Assumptions'!U121 -> 6158.236619 | S137: ='Acquiror Assumptions'!V121 -> 7081.972112 | T137: ='Acquiror Assumptions'!W121 -> 8144.267929 | U137: ='Acquiror Assumptions'!X121 -> 9365.908118 | V137: ='Acquiror Assumptions'!Y121 -> 10770.79434
D138: Closing Balance | H138: =IF(H4,H25,H136-H137) -> 9874 | I138: =IF(I4,I25,I136-I137) -> 18598 | J138: 37911 | K138: 38032.133 | L138: 69426.072 | M138: 112364.323 | N138: 108843.3312 | O138: 104794.1907 | P138: 100137.6791 | Q138: 94782.6907 | R138: 88624.45408 | S138: 81542.48197 | T138: 73398.21404 | U138: 64032.30592 | V138: 53261.51159
C140: Accumulated Deprecitation
D141: Opening Balance | H141: =G144 -> 0 | I141: =H144 -> 0 | J141: 0 | K141: 0 | L141: 7794.332 | M141: 13112.786 | N141: 23007.382 | O141: 22222.22356 | P141: 27536.7766 | Q141: 31950.54258 | R141: 35328.40344 | S141: 37514.97341 | T141: 38331.55886 | U141: 37572.6621 | V141: 35001.96081
D142: Add: Depreciation | H142: =H125 -> 891 | I142: =I125 -> 920 | J142: 771 | K142: 2493 | L142: 5994 | M142: 7035 | N142: 2735.833333 | O142: 9363.693583 | P142: 9070.277602 | Q142: 8732.849224 | R142: 8344.806589 | S142: 7898.557558 | T142: 7385.371173 | U142: 6795.206831 | V142: 6116.517837
D143: Less: Retirements | H143: =H137 -> 0 | I143: =I137 -> 0 | J143: 0 | K143: 0 | L143: 0 | M143: 0 | N143: 3520.991774 | O143: 4049.14054 | P143: 4656.511621 | Q143: 5354.988365 | R143: 6158.236619 | S143: 7081.972112 | T143: 8144.267929 | U143: 9365.908118 | V143: 10770.79434
D144: Closing Balance | H144: =IF(H4,-H26,H141+H142-H143) -> 0 | I144: =IF(I4,-I26,I141+I142-I143) -> 0 | J144: 0 | K144: 7794.332 | L144: 13112.786 | M144: 23007.382 | N144: 22222.22356 | O144: 27536.7766 | P144: 31950.54258 | Q144: 35328.40344 | R144: 37514.97341 | S144: 38331.55886 | T144: 37572.6621 | U144: 35001.96081 | V144: 30347.68432
D146: Total Depreciation | H146: =H125+H132 -> 891 | I146: =I125+I132 -> 920 | J146: 771 | K146: 2493 | L146: 5994 | M146: 7035 | N146: 3710.260625 | O146: 12989.03835 | P146: 15636.78616 | Q146: 18563.5657 | R146: 21799.4187 | S146: 25377.71182 | T146: 29335.5173 | U146: 33714.03883 | V146: 38559.08835
A148: Working Capital
B149: A/R Percent of Revenues | H149: ='Acquiror Assumptions'!K134 -> 0.15 | I149: ='Acquiror Assumptions'!L134 -> 0.15 | J149: ='Acquiror Assumptions'!M134 -> 0.15 | K149: ='Acquiror Assumptions'!N134 -> 0.1250384148 | L149: ='Acquiror Assumptions'!O134 -> 0.09968044096 | M149: ='Acquiror Assumptions'!P134 -> 0.1532867444 | N149: ='Acquiror Assumptions'!Q134 -> 0.15 | O149: ='Acquiror Assumptions'!R134 -> 0.15 | P149: ='Acquiror Assumptions'!S134 -> 0.15 | Q149: ='Acquiror Assumptions'!T134 -> 0.15 | R149: ='Acquiror Assumptions'!U134 -> 0.15 | S149: ='Acquiror Assumptions'!V134 -> 0.15 | T149: ='Acquiror Assumptions'!W134 -> 0.15 | U149: ='Acquiror Assumptions'!X134 -> 0.15 | V149: ='Acquiror Assumptions'!Y134 -> 0.15
B150: Revenues | H150: =H107/H3 -> 52653 | I150: =I107/I3 -> 65779 | J150: 107700 | K150: 103710 | L150: 142415 | M150: 141204.1667 | N150: 135716.2419 | O150: 143660.334 | P150: 164012.2893 | Q150: 187223.3815 | R150: 213687.3349 | S150: 243852.0369 | T150: 278227.0474 | U150: 317392.1628 | V150: 362007.1855
B151: A/R Amount | H151: =IF(OR(H9,NOT(H4)),H150*H149)*1 -> 0 | I151: =IF(OR(I9,NOT(I4)),I150*I149)*1 -> 0 | J151: 0 | K151: 12967.734 | L151: 14195.99 | M151: 21644.727 | N151: 20357.43628 | O151: 21549.0501 | P151: 24601.8434 | Q151: 28083.50722 | R151: 32053.10024 | S151: 36577.80554 | T151: 41734.05711 | U151: 47608.82441 | V151: 54301.07783
B153: Other Current Assets Perent of Revenue | H153: ='Acquiror Assumptions'!K138 -> 0.11 | I153: ='Acquiror Assumptions'!L138 -> 0.11 | J153: ='Acquiror Assumptions'!M138 -> 0.11 | K153: ='Acquiror Assumptions'!N138 -> 0.009127576897 | L153: ='Acquiror Assumptions'!O138 -> 0.02496013763 | M153: ='Acquiror Assumptions'!P138 -> 0.08778423677 | N153: ='Acquiror Assumptions'!Q138 -> 0.11 | O153: ='Acquiror Assumptions'!R138 -> 0.11 | P153: ='Acquiror Assumptions'!S138 -> 0.11 | Q153: ='Acquiror Assumptions'!T138 -> 0.11 | R153: ='Acquiror Assumptions'!U138 -> 0.11 | S153: ='Acquiror Assumptions'!V138 -> 0.11 | T153: ='Acquiror Assumptions'!W138 -> 0.11 | U153: ='Acquiror Assumptions'!X138 -> 0.11 | V153: ='Acquiror Assumptions'!Y138 -> 0.11
B154: Revenues | H154: =H150 -> 52653 | I154: =I150 -> 65779 | J154: 107700 | K154: 103710 | L154: 142415 | M154: 141204.1667 | N154: 135716.2419 | O154: 143660.334 | P154: 164012.2893 | Q154: 187223.3815 | R154: 213687.3349 | S154: 243852.0369 | T154: 278227.0474 | U154: 317392.1628 | V154: 362007.1855
B155: Other Current Assets Amount | H155: =IF(OR(H12,NOT(H4)),H153*H154)*1 -> 0 | I155: =IF(OR(I12,NOT(I4)),I153*I154)*1 -> 0 | J155: 0 | K155: 946.621 | L155: 3554.698 | M155: 12395.5 | N155: 14928.7866 | O155: 15802.63674 | P155: 18041.35183 | Q155: 20594.57196 | R155: 23505.60684 | S155: 26823.72406 | T155: 30604.97521 | U155: 34913.1379 | V155: 39820.79041
B157: A/P as Percent of Cash Op Expenses | H157: ='Acquiror Assumptions'!K142 -> 0.09086896204 | I157: ='Acquiror Assumptions'!L142 -> 0.1903612682 | J157: ='Acquiror Assumptions'!M142 -> 0.1759147764 | K157: ='Acquiror Assumptions'!N142 -> 0.1123220294 | L157: ='Acquiror Assumptions'!O142 -> 0.1147164898 | M157: ='Acquiror Assumptions'!P142 -> 0.08396626454 | N157: ='Acquiror Assumptions'!Q142 -> 0.08 | O157: ='Acquiror Assumptions'!R142 -> 0.08 | P157: ='Acquiror Assumptions'!S142 -> 0.08 | Q157: ='Acquiror Assumptions'!T142 -> 0.08 | R157: ='Acquiror Assumptions'!U142 -> 0.08 | S157: ='Acquiror Assumptions'!V142 -> 0.08 | T157: ='Acquiror Assumptions'!W142 -> 0.08 | U157: ='Acquiror Assumptions'!X142 -> 0.08 | V157: ='Acquiror Assumptions'!Y142 -> 0.08
B158: Cash Operating Costs | H158: =H113/H3 -> 47574 | I158: =I113/I3 -> 54281 | J158: 92181 | K158: 83039 | L158: 112906 | M158: 101498.0486 | N158: 100871.1291 | O158: 105912.9523 | P158: 118146.2238 | Q158: 132042.7531 | R158: 147830.4453 | S158: 165768.5253 | T158: 186151.8774 | U158: 209315.995 | V158: 235642.6254
B159: Accounts Payable | H159: =H157*H158 -> 4323 | I159: =I157*I158 -> 10333 | J159: 16216 | K159: 9327.109 | L159: 12952.18 | M159: 8522.412 | N159: 8069.690326 | O159: 8473.036185 | P159: 9451.697904 | Q159: 10563.42024 | R159: 11826.43562 | S159: 13261.48202 | T159: 14892.15019 | U159: 16745.2796 | V159: 18851.41003
B161: Other CL as Percent of Revenue | H161: ='Acquiror Assumptions'!K146 -> 0.13 | I161: ='Acquiror Assumptions'!L146 -> 0.13 | J161: ='Acquiror Assumptions'!M146 -> 0.13 | K161: ='Acquiror Assumptions'!N146 -> 0.03242648732 | L161: ='Acquiror Assumptions'!O146 -> 0.02741235825 | M161: ='Acquiror Assumptions'!P146 -> 0.1377121261 | N161: ='Acquiror Assumptions'!Q146 -> 0.13 | O161: ='Acquiror Assumptions'!R146 -> 0.13 | P161: ='Acquiror Assumptions'!S146 -> 0.13 | Q161: ='Acquiror Assumptions'!T146 -> 0.13 | R161: ='Acquiror Assumptions'!U146 -> 0.13 | S161: ='Acquiror Assumptions'!V146 -> 0.13 | T161: ='Acquiror Assumptions'!W146 -> 0.13 | U161: ='Acquiror Assumptions'!X146 -> 0.13 | V161: ='Acquiror Assumptions'!Y146 -> 0.13
B162: Revenues | H162: =H154 -> 52653 | I162: =I154 -> 65779 | J162: 107700 | K162: 103710 | L162: 142415 | M162: 141204.1667 | N162: 135716.2419 | O162: 143660.334 | P162: 164012.2893 | Q162: 187223.3815 | R162: 213687.3349 | S162: 243852.0369 | T162: 278227.0474 | U162: 317392.1628 | V162: 362007.1855
B163: Other CL | H163: =IF(OR(H33,NOT(H4)),H161*H162)*1 -> 0 | I163: =IF(OR(I33,NOT(I4)),I161*I162)*1 -> 0 | J163: 0 | K163: 3362.951 | L163: 3903.931 | M163: 19445.526 | N163: 17643.11144 | O163: 18675.84342 | P163: 21321.59761 | Q163: 24339.03959 | R163: 27779.35354 | S163: 31700.7648 | T163: 36169.51616 | U163: 41260.98116 | V163: 47060.93412
B165: Total Working Capital | H165: =H151+H155-H159-H163 -> -4323 | I165: =I151+I155-I159-I163 -> -10333 | J165: -16216 | K165: 1224.295 | L165: 894.577 | M165: 6072.289 | N165: 9573.421115 | O165: 10202.80724 | P165: 11869.89971 | Q165: 13775.61935 | R165: 15952.91792 | S165: 18439.28278 | T165: 21277.36596 | U165: 24515.70156 | V165: 28209.52409
B166: Change in Working Capital | I166: =I165-H165 -> -6010 | J166: =J165-I165 -> -5883 | K166: 17440.295 | L166: -329.718 | M166: 5177.712 | N166: 3501.132115 | O166: 629.3861222 | P166: 1667.092472 | Q166: 1905.719637 | R166: 2177.298568 | S166: 2486.364865 | T166: 2838.083185 | U166: 3238.335593 | V166: 3693.822528
A168: Financing
B169: Minimum Cash as Percent of Revnues | H169: ='Acquiror Assumptions'!K151 -> 0.02 | I169: ='Acquiror Assumptions'!L151 -> 0.02 | J169: ='Acquiror Assumptions'!M151 -> 0.02 | K169: ='Acquiror Assumptions'!N151 -> 0.03665391958 | L169: ='Acquiror Assumptions'!O151 -> 0.04047259067 | M169: ='Acquiror Assumptions'!P151 -> 0.05313922512 | N169: ='Acquiror Assumptions'!Q151 -> 0.02 | O169: ='Acquiror Assumptions'!R151 -> 0.02 | P169: ='Acquiror Assumptions'!S151 -> 0.02 | Q169: ='Acquiror Assumptions'!T151 -> 0.02 | R169: ='Acquiror Assumptions'!U151 -> 0.02 | S169: ='Acquiror Assumptions'!V151 -> 0.02 | T169: ='Acquiror Assumptions'!W151 -> 0.02 | U169: ='Acquiror Assumptions'!X151 -> 0.02 | V169: ='Acquiror Assumptions'!Y151 -> 0.02
B170: Revenues | H170: =H107/H3 -> 52653 | I170: =I107/I3 -> 65779 | J170: 107700 | K170: 103710 | L170: 142415 | M170: 141204.1667 | N170: 135716.2419 | O170: 143660.334 | P170: 164012.2893 | Q170: 187223.3815 | R170: 213687.3349 | S170: 243852.0369 | T170: 278227.0474 | U170: 317392.1628 | V170: 362007.1855
B171: Minimum Cash | H171: =H169*H170 -> 1053.06 | I171: =I169*I170 -> 1315.58 | J171: 2154 | K171: 3801.378 | L171: 5763.904 | M171: 7503.48 | N171: 2714.324837 | O171: 2873.20668 | P171: 3280.245787 | Q171: 3744.467629 | R171: 4273.746698 | S171: 4877.040739 | T171: 5564.540947 | U171: 6347.843255 | V171: 7240.14371
B173: Cash Balance
C174: Opening Balance | H174: =G177 -> 0 | I174: =H177 -> 0 | J174: 0 | K174: 0 | L174: 3801.378 | M174: 5763.904 | N174: 7503.48 | O174: 0 | P174: 0 | Q174: 0 | R174: 0 | S174: 0 | T174: 0 | U174: 0 | V174: 0
C175: Less: Reduction if Negative Cash Flow | H175: =H239 -> 0 | I175: =I239 -> 0 | J175: 0 | K175: 0 | L175: 0 | M175: 0 | N175: 7503.48 | O175: 0 | P175: 0 | Q175: 0 | R175: 0 | S175: 0 | T175: 0 | U175: 0 | V175: 0
C176: Add: Increase from Positive Cash Flow | H176: =H242 -> 1904 | I176: =I242 -> 8668 | J176: 10938 | K176: 0 | L176: 0 | M176: 0 | N176: 0 | O176: 0 | P176: 0 | Q176: 0 | R176: 0 | S176: 0 | T176: 0 | U176: 0 | V176: 0
C177: Closing Balance | H177: =IF(H4,H8,H174-H175+H176) -> 0 | I177: =IF(I4,I8,I174-I175+I176) -> 0 | J177: 0 | K177: 3801.378 | L177: 5763.904 | M177: 7503.48 | N177: 0 | O177: 0 | P177: 0 | Q177: 0 | R177: 0 | S177: 0 | T177: 0 | U177: 0 | V177: 0
C179: Minimum Test | H179: =H174 -> 0 | I179: =I174 -> 0 | J179: 0 | K179: 0 | L179: 3801.378 | M179: 5763.904 | N179: 7503.48 | O179: 0 | P179: 0 | Q179: 0 | R179: 0 | S179: 0 | T179: 0 | U179: 0 | V179: 0
C180: Interest Income Rate | H180: ='Acquiror Assumptions'!K153 -> 0.02 | I180: ='Acquiror Assumptions'!L153 -> 0.02 | J180: ='Acquiror Assumptions'!M153 -> 0.02 | K180: ='Acquiror Assumptions'!N153 -> 0.02 | L180: ='Acquiror Assumptions'!O153 -> 0.02 | M180: ='Acquiror Assumptions'!P153 -> 0.02 | N180: ='Acquiror Assumptions'!Q153 -> 0.02 | O180: ='Acquiror Assumptions'!R153 -> 0.02 | P180: ='Acquiror Assumptions'!S153 -> 0.02 | Q180: ='Acquiror Assumptions'!T153 -> 0.02 | R180: ='Acquiror Assumptions'!U153 -> 0.02 | S180: ='Acquiror Assumptions'!V153 -> 0.02 | T180: ='Acquiror Assumptions'!W153 -> 0.02 | U180: ='Acquiror Assumptions'!X153 -> 0.02 | V180: ='Acquiror Assumptions'!Y153 -> 0.02
C181: Interest Income | H181: =IF(H4,0,H174*H180) -> 0 | I181: =IF(I4,0,I174*I180) -> 0 | J181: 0 | K181: 0 | L181: 0 | M181: 0 | N181: 150.0696 | O181: 0 | P181: 0 | Q181: 0 | R181: 0 | S181: 0 | T181: 0 | U181: 0 | V181: 0
B183: Debt Balance
C184: Opening Balance | H184: =G187 -> 0 | I184: =H187 -> 2367 | J184: 976 | K184: 9145 | L184: 16981.205 | M184: 36911.542 | N184: 35146.73 | O184: 41551.62655 | P184: 54902.96057 | Q184: 66674.21986 | R184: 81370.32362 | S184: 92396.16378 | T184: 104092.0791 | U184: 116550.9806 | V184: 129882.3904
C185: Less: Reduction if Positive Cash Flow | H185: =H240 -> 0 | I185: =I240 -> 2367 | J185: 976 | K185: 0 | L185: 11021.718 | M185: 8824.693 | N185: 0 | O185: 0 | P185: 0 | Q185: 0 | R185: 0 | S185: 0 | T185: 0 | U185: 0 | V185: 0
C186: Add: Increase from Negative Cash Flow | H186: =H243 -> 0 | I186: =I243 -> 0 | J186: 0 | K186: 10531.295 | L186: 0 | M186: 0 | N186: 6404.896554 | O186: 13351.33401 | P186: 11771.25929 | Q186: 14696.10377 | R186: 11025.84016 | S186: 11695.91533 | T186: 12458.90145 | U186: 13331.40989 | V186: 14329.75284
C187: Closing Balance | H187: =IF(H4,H45,H184-H185+H186) -> 2367 | I187: =IF(I4,I45,I184-I185+I186) -> 976 | J187: 9145 | K187: 16981.205 | L187: 36911.542 | M187: 35146.73 | N187: 41551.62655 | O187: 54902.96057 | P187: 66674.21986 | Q187: 81370.32362 | R187: 92396.16378 | S187: 104092.0791 | T187: 116550.9806 | U187: 129882.3904 | V187: 144212.1433
C189: Interest Expense Rate | H189: ='Acquiror Assumptions'!K113 -> 0.0663286861 | I189: ='Acquiror Assumptions'!L113 -> 0.08016751421 | J189: ='Acquiror Assumptions'!M113 -> 0.06777986365 | K189: ='Acquiror Assumptions'!N113 -> 0.09071351924 | L189: ='Acquiror Assumptions'!O113 -> 0.06898887526 | M189: ='Acquiror Assumptions'!P113 -> 0.06973522762 | N189: ='Acquiror Assumptions'!Q113 -> 0.08 | O189: ='Acquiror Assumptions'!R113 -> 0.08 | P189: ='Acquiror Assumptions'!S113 -> 0.08 | Q189: ='Acquiror Assumptions'!T113 -> 0.08 | R189: ='Acquiror Assumptions'!U113 -> 0.08 | S189: ='Acquiror Assumptions'!V113 -> 0.08 | T189: ='Acquiror Assumptions'!W113 -> 0.08 | U189: ='Acquiror Assumptions'!X113 -> 0.08 | V189: ='Acquiror Assumptions'!Y113 -> 0.08
C190: Interest Expense | H190: =IF(H4,-H62,H189*H184) -> 157 | I190: =IF(I4,-I62,I189*I184) -> 134 | J190: 343 | K190: 1185 | L190: 1859 | M190: 1809 | N190: 2811.7384 | O190: 3324.130124 | P190: =IF(P4,-P62,P189*P184) -> 4392.236845 | Q190: 5333.937588 | R190: =IF(R4,-R62,R189*R184) -> 6509.62589 | S190: 7391.693102 | T190: 8327.366329 | U190: 9324.078445 | V190: 10390.59124
C192: Other Income | H192: ='Acquiror Assumptions'!K106 -> 287 | I192: ='Acquiror Assumptions'!L106 -> 918 | J192: ='Acquiror Assumptions'!M106 -> 746 | K192: ='Acquiror Assumptions'!N106 -> -601 | L192: ='Acquiror Assumptions'!O106 -> -3940 | M192: ='Acquiror Assumptions'!P106 -> 579 | N192: ='Acquiror Assumptions'!Q106 -> 0 | O192: ='Acquiror Assumptions'!R106 -> 0 | P192: ='Acquiror Assumptions'!S106 -> 0 | Q192: ='Acquiror Assumptions'!T106 -> 0 | R192: ='Acquiror Assumptions'!U106 -> 0 | S192: ='Acquiror Assumptions'!V106 -> 0 | T192: ='Acquiror Assumptions'!W106 -> 0 | U192: ='Acquiror Assumptions'!X106 -> 0 | V192: ='Acquiror Assumptions'!Y106 -> 0
C193: Deferred Taxes | H193: ='Acquiror Assumptions'!K107 -> 0 | I193: ='Acquiror Assumptions'!L107 -> 0 | J193: ='Acquiror Assumptions'!M107 -> 0 | K193: ='Acquiror Assumptions'!N107 -> 1316.365 | L193: ='Acquiror Assumptions'!O107 -> 2421.48 | M193: ='Acquiror Assumptions'!P107 -> 2544.9 | N193: ='Acquiror Assumptions'!Q107 -> 2544.9 | O193: ='Acquiror Assumptions'!R107 -> 2544.9 | P193: ='Acquiror Assumptions'!S107 -> 2544.9 | Q193: ='Acquiror Assumptions'!T107 -> 2544.9 | R193: ='Acquiror Assumptions'!U107 -> 2544.9 | S193: ='Acquiror Assumptions'!V107 -> 2544.9 | T193: ='Acquiror Assumptions'!W107 -> 2544.9 | U193: ='Acquiror Assumptions'!X107 -> 2544.9 | V193: ='Acquiror Assumptions'!Y107 -> 2544.9
C195: Income Tax Rate | H195: ='Acquiror Assumptions'!K117 -> 0.2701729107 | I195: ='Acquiror Assumptions'!L117 -> 0.3889550461 | J195: ='Acquiror Assumptions'!M117 -> 0.3742564835 | K195: ='Acquiror Assumptions'!N117 -> 0.4157957402 | L195: ='Acquiror Assumptions'!O117 -> 0.3707473882 | M195: ='Acquiror Assumptions'!P117 -> 0.4000032724 | N195: ='Acquiror Assumptions'!Q117 -> 0 | O195: ='Acquiror Assumptions'!R117 -> 0 | P195: ='Acquiror Assumptions'!S117 -> 0 | Q195: ='Acquiror Assumptions'!T117 -> 0 | R195: ='Acquiror Assumptions'!U117 -> 0 | S195: ='Acquiror Assumptions'!V117 -> 0 | T195: ='Acquiror Assumptions'!W117 -> 0 | U195: ='Acquiror Assumptions'!X117 -> 0 | V195: ='Acquiror Assumptions'!Y117 -> 0
A197: Profit and Loss
B198: Revenue
C199: Existing Freight | H199: =H104 -> 6760 | I199: =I104 -> 12939 | J199: 28285 | K199: 41117 | L199: 52922 | M199: 55789 | N199: 19802.27439 | O199: 70351.22251 | P199: 69508.96857 | Q199: 68096.65713 | R199: 65996.67276 | S199: 63069.32674 | T199: 59148.77342 | U199: 54038.17268 | V199: 47503.95963
C200: New Freight | H200: =H105 -> 0 | I200: 0 | J200: 0 | K200: 0 | L200: 0 | M200: 0 | N200: 0 | O200: 7015.401513 | P200: 26883.73657 | Q200: 50154.74845 | R200: 77339.24676 | S200: 109024.2665 | T200: 145884.6614 | U200: 188696.5052 | V200: 238352.5914
C201: Logistics | H201: =H106 -> 45893 | I201: 52840 | J201: 79415 | K201: 62593 | L201: 89493 | M201: 45878 | N201: 18198.27333 | O201: 66293.71 | P201: 67619.5842 | Q201: 68971.97588 | R201: 70351.4154 | S201: 71758.44371 | T201: 73193.61258 | U201: 74657.48484 | V201: 76150.63453
D202: Total | H202: =SUM(H199:H201) -> 52653 | I202: =SUM(I199:I201) -> 65779 | J202: 107700 | K202: 103710 | L202: 142415 | M202: 101667 | N202: 38000.54772 | O202: 143660.334 | P202: 164012.2893 | Q202: 187223.3815 | R202: 213687.3349 | S202: 243852.0369 | T202: 278227.0474 | U202: 317392.1628 | V202: 362007.1855
B203: Operating Costs - Cash
C204: Existing Freight | H204: =H110 -> 3975.65 | I204: =I110 -> 5139.8 | J204: 18779 | K204: 25611 | L204: 32766 | M204: 31040.855 | N204: 11501.50467 | O204: 40861.21113 | P204: 40372.01542 | Q204: 39551.72042 | R204: 38332.01305 | S204: 36631.75967 | T204: 34354.63425 | U204: 31386.30864 | V204: 27591.12428
C205: New Freight | H205: =H111 -> 0 | I205: 0 | J205: 0 | K205: 0 | L205: 0 | M205: 0 | N205: 0 | O205: 4061.527989 | P205: 15564.19092 | Q205: 29036.81482 | R205: 44775.13009 | S205: 63118.9974 | T205: 84459.11958 | U205: 109244.8003 | V205: 137992.9173
C206: Logistics | H206: =H112 -> 43598.35 | I206: 49141.2 | J206: 73402 | K206: 57428 | L206: 80140 | M206: 42037.74 | N206: 16742.41147 | O206: 60990.2132 | P206: 62210.01746 | Q206: 63454.21781 | R206: 64723.30217 | S206: 66017.76821 | T206: 67338.12358 | U206: 68684.88605 | V206: 70058.58377
C207: Administrative | H207: =H117 -> 2930 | I207: =I117 -> 4394 | J207: 6013 | K207: 7832 | L207: 9080 | M207: 7550 | N207: 1900.027386 | O207: 7183.016701 | P207: 8200.614467 | Q207: 9361.169074 | R207: 10684.36675 | S207: 12192.60185 | T207: 13911.35237 | U207: 15869.60814 | V207: 18100.35928
C208: Profit Sharing | H208: =H120 -> 0 | I208: =I120 -> 250 | J208: 732 | K208: 1001 | L208: 1170 | M208: 1161 | N208: 311.6044913 | O208: 1178.014739 | P208: 1344.900773 | Q208: 1535.231728 | R208: 1752.236146 | S208: 1999.586703 | T208: 2281.461788 | U208: 2602.615735 | V208: 2968.458921
D209: Total | H209: =SUM(H204:H208) -> 50504 | I209: =SUM(I204:I208) -> 58925 | J209: 98926 | K209: 91872 | L209: 123156 | M209: 81789.595 | N209: 30455.54802 | O209: 114273.9838 | P209: 127691.739 | Q209: 142939.1539 | R209: 160267.0482 | S209: 179960.7138 | T209: 202344.6916 | U209: 227788.2189 | V209: 256711.4436
C210: EBITDA | H210: =H202-H209 -> 2149 | I210: =I202-I209 -> 6854 | J210: 8774 | K210: =K202-K209 -> 11838 | L210: 19259 | M210: 19877.405 | N210: 7544.999702 | O210: 29386.35027 | P210: 36320.5503 | Q210: 44284.22761 | R210: 53420.28672 | S210: 63891.32311 | T210: 75882.3558 | U210: 89603.94388 | V210: 105295.7419
D211: Less: Depreciation Expense | H211: =H146 -> 891 | I211: =I146 -> 920 | J211: 771 | K211: 2493 | L211: 5994 | M211: 7035 | N211: 3710.260625 | O211: 12989.03835 | P211: 15636.78616 | Q211: 18563.5657 | R211: 21799.4187 | S211: 25377.71182 | T211: 29335.5173 | U211: 33714.03883 | V211: 38559.08835
C212: EBIT | H212: =H210-H211 -> 1258 | I212: =I210-I211 -> 5934 | J212: 8003 | K212: 9345 | L212: 13265 | M212: 12842.405 | N212: 3834.739077 | O212: 16397.31192 | P212: 20683.76414 | Q212: 25720.66191 | R212: 31620.86802 | S212: 38513.61129 | T212: 46546.8385 | U212: 55889.90505 | V212: 66736.65359
D213: Less: Interest Expense | H213: =H190 -> 157 | I213: =I190 -> 134 | J213: 343 | K213: 1185 | L213: 1859 | M213: 1809 | N213: 2811.7384 | O213: 3324.130124 | P213: 4392.236845 | Q213: 5333.937588 | R213: 6509.62589 | S213: 7391.693102 | T213: 8327.366329 | U213: 9324.078445 | V213: 10390.59124
D214: Add: Interest Income | H214: =H181 -> 0 | I214: =I181 -> 0 | J214: 0 | K214: 0 | L214: 0 | M214: 0 | N214: 150.0696 | O214: 0 | P214: 0 | Q214: 0 | R214: 0 | S214: 0 | T214: 0 | U214: 0 | V214: 0
D215: Add: Other Income | H215: =H192 -> 287 | I215: =I192 -> 918 | J215: 746 | K215: -601 | L215: -3940 | M215: 579 | N215: 0 | O215: 0 | P215: 0 | Q215: 0 | R215: 0 | S215: 0 | T215: 0 | U215: 0 | V215: 0
C216: EBT | H216: =H212-H213+H214+H215 -> 1388 | I216: =I212-I213+I214+I215 -> 6718 | J216: 8406 | K216: 7559 | L216: 7466 | M216: 11612.405 | N216: 1173.070277 | O216: 13073.18179 | P216: 16291.52729 | Q216: 20386.72432 | R216: 25111.24213 | S216: 31121.91819 | T216: 38219.47217 | U216: 46565.8266 | V216: 56346.06235
D217: Less: Tax | H217: =H216*H195 -> 375 | I217: =I216*I195 -> 2613 | J217: 3146 | K217: 3143 | L217: 2768 | M217: 4645 | N217: 0 | O217: 0 | P217: 0 | Q217: 0 | R217: 0 | S217: 0 | T217: 0 | U217: 0 | V217: 0
C218: Earnings | H218: =H216-H217 -> 1013 | I218: =I216-I217 -> 4105 | J218: 5260 | K218: 4416 | L218: 4698 | M218: 6967.405 | N218: 1173.070277 | O218: 13073.18179 | P218: 16291.52729 | Q218: 20386.72432 | R218: 25111.24213 | S218: 31121.91819 | T218: 38219.47217 | U218: 46565.8266 | V218: 56346.06235
C220: Actual EBIT | H220: =H60+H59 -> 1258 | I220: 5934 | J220: 8003 | K220: 9345 | L220: 13265 | M220: 12842.405
L221: =L220-L212 -> 0
C222: Actual NI | H222: =H67 -> 1013 | I222: 4105 | J222: 5260 | K222: 4416 | L222: 4698 | M222: 6967.405 | N222: 0 | O222: 0 | P222: 0 | Q222: 0 | R222: 0 | S222: 0 | T222: 0 | U222: 0 | V222: 0
C223: Difference | H223: =H222-H218 -> 0 | I223: 0 | J223: 0 | K223: 0 | L223: 0 | M223: 0 | N223: -1173.070277 | O223: -13073.18179 | P223: -16291.52729 | Q223: -20386.72432 | R223: -25111.24213 | S223: -31121.91819 | T223: -38219.47217 | U223: -46565.8266 | V223: -56346.06235
A225: Cash Flow
C226: EBITDA | H226: =H210 -> 2149 | I226: 6854 | J226: 8774 | K226: 11838 | L226: 19259 | M226: 19877.405 | N226: 7544.999702 | O226: 29386.35027 | P226: 36320.5503 | Q226: 44284.22761 | R226: 53420.28672 | S226: 63891.32311 | T226: 75882.3558 | U226: 89603.94388 | V226: 105295.7419
C227: Less: Taxes | H227: =H217 -> 375 | I227: 2613 | J227: 3146 | K227: 3143 | L227: 2768 | M227: 4645 | N227: 0 | O227: 0 | P227: 0 | Q227: 0 | R227: 0 | S227: 0 | T227: 0 | U227: 0 | V227: 0
C228: Less: Working Capital Change | H228: =H166 -> 0 | I228: -6010 | J228: -5883 | K228: 17440.295 | L228: -329.718 | M228: 5177.712 | N228: 3501.132115 | O228: 629.3861222 | P228: 1667.092472 | Q228: 1905.719637 | R228: 2177.298568 | S228: 2486.364865 | T228: 2838.083185 | U228: 3238.335593 | V228: 3693.822528
D229: Operating Cash Flow | H229: =H226-H227-H228 -> 1774 | I229: =I226-I227-I228 -> 10251 | J229: 11511 | K229: -8745.295 | L229: 16820.718 | M229: 10054.693 | N229: 4043.867587 | O229: 28756.96414 | P229: 34653.45782 | Q229: 42378.50798 | R229: 51242.98815 | S229: 61404.95825 | T229: 73044.27261 | U229: 86365.60828 | V229: 101601.9194
C230: Less: Capital Expenditures | H230: =H95 -> 0 | I230: 0 | J230: 0 | K230: 0 | L230: 0 | M230: 0 | N230: 11205.91385 | O230: 30485.55093 | P230: 33823.38357 | Q230: 37538.39111 | R230: 41674.79977 | S230: 46282.23474 | T230: 51416.40645 | U230: 57139.88757 | V230: 63522.99287
D231: Cash Flow before Financing | H231: =H229-H230 -> 1774 | I231: =I229-I230 -> 10251 | J231: 11511 | K231: -8745.295 | L231: 16820.718 | M231: 10054.693 | N231: -7162.046268 | O231: -1728.586789 | P231: 830.0742505 | Q231: 4840.116867 | R231: 9568.188378 | S231: 15122.72351 | T231: 21627.86616 | U231: 29225.72071 | V231: 38078.92653
C232: Less: Interest Expense | H232: =H213 -> 157 | I232: 134 | J232: 343 | K232: 1185 | L232: 1859 | M232: 1809 | N232: 2811.7384 | O232: 3324.130124 | P232: 4392.236845 | Q232: 5333.937588 | R232: 6509.62589 | S232: 7391.693102 | T232: 8327.366329 | U232: 9324.078445 | V232: 10390.59124
C233: Add: Other Income | H233: =H215 -> 287 | I233: 918 | J233: 746 | K233: -601 | L233: -3940 | M233: 579 | N233: 0 | O233: 0 | P233: 0 | Q233: 0 | R233: 0 | S233: 0 | T233: 0 | U233: 0 | V233: 0
C234: Add: Interest Income | H234: =H214 -> 0 | I234: 0 | J234: 0 | K234: 0 | L234: 0 | M234: 0 | N234: 150.0696 | O234: 0 | P234: 0 | Q234: 0 | R234: 0 | S234: 0 | T234: 0 | U234: 0 | V234: 0
C235: Less: Dividend | O235: 0 | P235: 0 | Q235: 0 | R235: 0 | S235: 0 | T235: 0 | U235: 0 | V235: 0
C236: Net Cash Flow Before Equity | H236: =H231-H232+H233+H234-H235 -> 1904 | I236: =I231-I232+I233+I234-I235 -> 11035 | J236: 11914 | K236: -10531.295 | L236: 11021.718 | M236: 8824.693 | N236: -9823.715068 | O236: =O231-O232+O233+O234-O235 -> -5052.716913 | P236: =P231-P232+P233+P234-P235 -> -3562.162595 | Q236: -493.8207217 | R236: 3058.562488 | S236: 7731.030403 | T236: 13300.49983 | U236: 19901.64227 | V236: 27688.3353
C237: Add: Equity Issuance (Share Buyback) | N237: =N291 -> -4084.661486 | O237: =O291 -> -8298.6171 | P237: -8209.096694 | Q237: -14202.28305 | R237: -14084.40265 | S237: -19426.94573 | T237: -25759.40129 | U237: -33233.05215 | V237: -42018.08814
D238: Net Cash Flow | H238: =H236+H237 -> 1904 | I238: =I236+I237 -> 11035 | J238: 11914 | K238: -10531.295 | L238: 11021.718 | M238: 8824.693 | N238: -13908.37655 | O238: =O236+O237 -> -13351.33401 | P238: =P236+P237 -> -11771.25929 | Q238: =Q236+Q237 -> -14696.10377 | R238: =R236+R237 -> -11025.84016 | S238: =S236+S237 -> -11695.91533 | T238: -12458.90145 | U238: -13331.40989 | V238: -14329.75284
C239: Add: Cash Reduction if Cash is Negative | H239: =MAX(MIN(-H238,H179),0) -> 0 | I239: =MAX(MIN(-I238,I179),0) -> 0 | J239: 0 | K239: 0 | L239: 0 | M239: 0 | N239: =MAX(MIN(-N238,N179),0) -> 7503.48 | O239: =MAX(MIN(-O238,O179),0) -> 0 | P239: =MAX(MIN(-P238,P179),0) -> 0 | Q239: 0 | R239: 0 | S239: 0 | T239: 0 | U239: 0 | V239: 0
... 64 more rows

Sheet Target Scenario
A1: Comparison | D1: 1 | E1: =INDEX(C10:C13,D1) -> Company Case | T1: col input | U1: =COLUMN(P12) -> 16
A2: Sensitivity | D2: 3 | E2: =INDEX(C10:C13,D2) -> Low Case | T2: Row input | U2: =ROW(Q9) -> 9
T3: Start row | U3: =ROW(Q10) -> 10
T4: End row | U4: =ROW(C25) -> 25
E5: Code Number | G5: 2 | T5: start col | U5: =COLUMN(Q10) -> 17
T6: end col | U6: =COLUMN(X9) -> 24
D7: 1 | E7: =D7+1 -> 2 | F7: =E7+1 -> 3 | G7: 4 | H7: 5 | I7: 6 | J7: 7 | K7: 8 | L7: 9 | M7: 10 | N7: 11 | O7: 12 | Q7: 1998 | R7: =Q7+1 -> 1999 | S7: =R7+1 -> 2000 | T7: 2001 | U7: 2002 | V7: 2003 | W7: 2004 | X7: 2005
D8: Planes Grounded | E8: Price Increase | F8: Other Revenues | G8: Flight Expense per Hour | H8: Maint per Hour | I8: Fuel Expense per Hour | J8: SG&A per Revenue | K8: Bad Debt Expense | L8: Cap Exp - Maintenance | M8: A/R to Revenues | N8: A/P to Expenses | O8: Interest Rate | Q8: ='Target Model'!$K$380 &" " &Q7 -> EBITDA 1998 | R8: ='Target Model'!$K$380 &" " &R7 -> EBITDA 1999 | S8: ='Target Model'!$K$380 &" " &S7 -> EBITDA 2000 | T8: ='Target Model'!$K$380 &" " &T7 -> EBITDA 2001 | U8: ='Target Model'!$K$380 &" " &U7 -> EBITDA 2002 | V8: ='Target Model'!$K$380 &" " &V7 -> EBITDA 2003 | W8: ='Target Model'!$K$380 &" " &W7 -> EBITDA 2004 | X8: ='Target Model'!$K$380 &" " &X7 -> EBITDA 2005
Q9: =IFERROR('Target Model'!P382,FALSE) -> 87588.49539 | R9: =IFERROR('Target Model'!Q382,FALSE) -> 107908.5295 | S9: =IFERROR('Target Model'!R382,FALSE) -> 113923.7025 | T9: =IFERROR('Target Model'!S382,FALSE) -> 109405.9239 | U9: =IFERROR('Target Model'!T382,FALSE) -> 104807.2525 | V9: =IFERROR('Target Model'!U382,FALSE) -> 102409.8164 | W9: =IFERROR('Target Model'!V382,FALSE) -> 99687.36206 | X9: =IFERROR('Target Model'!W382,FALSE) -> 96605.68233
C10: Company Case | D10: 1 | E10: 1 | F10: 50000 | G10: 1 | H10: 1 | I10: 1 | J10: 1 | K10: 0.005 | L10: 1 | M10: 0.15 | N10: 0.12 | O10: 0.095 | P10: 1 | Q10: 1.590496465 | R10: 2.429958828 | S10: 3.157833096 | T10: 3.608962108 | U10: 3.99219744 | V10: FALSE | W10: FALSE | X10: FALSE
C11: Base Case | D11: 2 | E11: 2 | F11: 48000 | G11: 2 | H11: 2 | I11: 2 | J11: 2 | K11: 0.0055 | L11: 2 | M11: 0.16 | N11: 0.11 | O11: 0.095 | P11: =P10+1 -> 2 | Q11: 0.8031912307 | R11: 1.170473864 | S11: 1.476257183 | T11: 1.614247734 | U11: 1.804644947 | V11: FALSE | W11: FALSE | X11: FALSE
C12: Low Case | D12: 3 | E12: 3 | F12: 45000 | G12: 3 | H12: 3 | I12: 3 | J12: 3 | K12: 0.006 | L12: 3 | M12: 0.17 | N12: 0.1 | O12: 0.1 | P12: =P11+1 -> 3 | Q12: 0.1979928845 | R12: 0.2645265138 | S12: 0.01772276406 | T12: 0.166147906 | U12: 0.05066242855 | V12: 0.3914666857 | W12: 0.647450207 | X12: 0.6641175071
C13: Worst Case | D13: 4 | E13: 3 | F13: 40000 | G13: 4 | H13: 4 | I13: 4 | J13: 4 | K13: 0.0062 | L13: 4 | M13: 0.18 | N13: 0.09 | O13: 0.11 | P13: 4 | Q13: -0.1490029687 | R13: -0.3089667654 | S13: -0.4595633658 | T13: -0.2795361877 | U13: -0.3233581634 | V13: -0.2778850653 | W13: -0.07382418032 | X13: -0.02180901601
B14: 1 | C14: =TRANSPOSE(D8:O8)&" "&$E$2&" "&" vs "&E1 -> Planes Grounded Low Case vs Company Case | D14: =IF(D$7=$B14,OFFSET(D$10,$D$2-1,0),OFFSET(D$10,$D$1-1,0)) -> 3 | E14: 1 | F14: 50000 | G14: 1 | H14: 1 | I14: 1 | J14: 1 | K14: 0.005 | L14: 1 | M14: 0.15 | N14: 0.12 | O14: 0.095 | P14: 5 | Q14: 1.497190725 | R14: 2.271010169 | S14: 2.962034907 | T14: 3.391836942 | U14: 3.752809537 | V14: FALSE | W14: FALSE | X14: FALSE
B15: =B14+1 -> 2 | C15: Price Increase Low Case vs Company Case | D15: 1 | E15: 3 | F15: 50000 | G15: 1 | H15: 1 | I15: 1 | J15: 1 | K15: 0.005 | L15: 1 | M15: 0.15 | N15: 0.12 | O15: 0.095 | P15: 6 | Q15: 1.347409027 | R15: 1.660100215 | S15: 1.719185526 | T15: 1.961985107 | U15: 2.076704092 | V15: FALSE | W15: FALSE | X15: FALSE
B16: =B15+1 -> 3 | C16: Other Revenues Low Case vs Company Case | D16: 1 | E16: 1 | F16: 45000 | G16: 1 | H16: 1 | I16: 1 | J16: 1 | K16: 0.005 | L16: 1 | M16: 0.15 | N16: 0.12 | O16: 0.095 | P16: 7 | Q16: 1.513967807 | R16: 2.32450094 | S16: 3.058169667 | T16: 3.499189959 | U16: 3.870515765 | V16: FALSE | W16: FALSE | X16: FALSE
B17: 4 | C17: Flight Expense per Hour Low Case vs Company Case | D17: 1 | E17: 1 | F17: 50000 | G17: 3 | H17: 1 | I17: 1 | J17: 1 | K17: 0.005 | L17: 1 | M17: 0.15 | N17: 0.12 | O17: 0.095 | P17: 8 | Q17: 1.272064411 | R17: 1.932244815 | S17: 2.638770699 | T17: 3.112188181 | U17: 3.483424307 | V17: FALSE | W17: FALSE | X17: FALSE
B18: 5 | C18: Maint per Hour Low Case vs Company Case | D18: 1 | E18: 1 | F18: 50000 | G18: 1 | H18: 3 | I18: 1 | J18: 1 | K18: 0.005 | L18: 1 | M18: 0.15 | N18: 0.12 | O18: 0.095 | P18: 9 | Q18: 1.112848384 | R18: 1.820464707 | S18: 2.28580755 | T18: 2.814123825 | U18: 3.178160427 | V18: FALSE | W18: FALSE | X18: FALSE
B19: 6 | C19: Fuel Expense per Hour Low Case vs Company Case | D19: 1 | E19: 1 | F19: 50000 | G19: 1 | H19: 1 | I19: 3 | J19: 1 | K19: 0.005 | L19: 1 | M19: 0.15 | N19: 0.12 | O19: 0.095 | P19: 10 | Q19: 1.590496465 | R19: 2.429958828 | S19: 3.157833096 | T19: 3.608962108 | U19: 3.99219744 | V19: FALSE | W19: FALSE | X19: FALSE
B20: 7 | C20: SG&A per Revenue Low Case vs Company Case | D20: 1 | E20: 1 | F20: 50000 | G20: 1 | H20: 1 | I20: 1 | J20: 3 | K20: 0.005 | L20: 1 | M20: 0.15 | N20: 0.12 | O20: 0.095 | P20: 11 | Q20: 1.555289242 | R20: 2.3505845 | S20: 3.032372352 | T20: 3.477008939 | U20: 3.85367853 | V20: FALSE | W20: FALSE | X20: FALSE
B21: 8 | C21: Bad Debt Expense Low Case vs Company Case | D21: 1 | E21: 1 | F21: 50000 | G21: 1 | H21: 1 | I21: 1 | J21: 1 | K21: 0.006 | L21: 1 | M21: 0.15 | N21: 0.12 | O21: 0.095 | P21: 12 | Q21: 1.583336415 | R21: 2.419966596 | S21: 3.148891987 | T21: 3.599558309 | U21: 3.982325726 | V21: FALSE | W21: FALSE | X21: FALSE
B22: 9 | C22: Cap Exp - Maintenance Low Case vs Company Case | D22: 1 | E22: 1 | F22: 50000 | G22: 1 | H22: 1 | I22: 1 | J22: 1 | K22: 0.005 | L22: 3 | M22: 0.15 | N22: 0.12 | O22: 0.095 | P22: 13 | Q22: 1.369976675 | R22: 2.136704212 | S22: 2.877677454 | T22: 3.407281435 | U22: 3.553841275 | V22: FALSE | W22: FALSE | X22: FALSE
B23: 10 | C23: A/R to Revenues Low Case vs Company Case | D23: 1 | E23: 1 | F23: 50000 | G23: 1 | H23: 1 | I23: 1 | J23: 1 | K23: 0.005 | L23: 1 | M23: 0.17 | N23: 0.12 | O23: 0.095 | P23: 14 | Q23: 1.56968005 | R23: 2.387762118 | S23: 3.157833096 | T23: 3.608962108 | U23: 3.99219744 | V23: FALSE | W23: FALSE | X23: FALSE
B24: 11 | C24: A/P to Expenses Low Case vs Company Case | D24: 1 | E24: 1 | F24: 50000 | G24: 1 | H24: 1 | I24: 1 | J24: 1 | K24: 0.005 | L24: 1 | M24: 0.15 | N24: 0.1 | O24: 0.095 | P24: 15 | Q24: 1.590496465 | R24: 2.429958828 | S24: 3.157833096 | T24: 3.608962108 | U24: 3.99219744 | V24: FALSE | W24: FALSE | X24: FALSE
B25: 12 | C25: Interest Rate Low Case vs Company Case | D25: 1 | E25: 1 | F25: 50000 | G25: 1 | H25: 1 | I25: 1 | J25: 1 | K25: 0.005 | L25: 1 | M25: 0.15 | N25: 0.12 | O25: 0.1 | P25: 16 | Q25: 1.555893085 | R25: 2.378827892 | S25: 3.12139656 | T25: 3.578887424 | U25: 3.974051088 | V25: FALSE | W25: FALSE | X25: FALSE
P26: 17 | Q26: FALSE | R26: FALSE | S26: FALSE | T26: FALSE | U26: FALSE | V26: FALSE | W26: FALSE | X26: FALSE
C27: Custom Scenario | D27: =D34*D31 -> 3 | E27: =E34*E31 -> 2 | F27: =F34*F31 -> 39000 | G27: 3 | H27: 3 | I27: 3 | J27: 3 | K27: 0.005 | L27: 3 | M27: 0.15 | N27: 0.12 | O27: 0.085 | P27: 18 | Q27: 127994.5108 | R27: 128358.4936 | S27: 111567.6009 | T27: 73417.49406 | U27: 33447.72904 | V27: 0 | W27: 0 | X27: 0
F28: =F34*F31 -> 39000 | K28: =K34*K31 -> 0.005 | M28: =M34*M31 -> 0.15 | N28: =N34*N31 -> 0.12 | O28: =O34*O31 -> 0.085 | P28: 19 | Q28: FALSE | R28: FALSE | S28: FALSE | T28: FALSE | U28: FALSE | V28: FALSE | W28: FALSE | X28: FALSE
C29: =INDEX(C10:C28,$G$5) -> Base Case | D29: =INDEX(D10:D28,$G$5) -> 2 | E29: 2 | F29: 48000 | G29: 2 | H29: 2 | I29: 3 | J29: 2 | K29: 0.0055 | L29: 2 | M29: 0.16 | N29: 0.11 | O29: 0.095 | P29: 20 | Q29: FALSE | R29: FALSE | S29: FALSE | T29: FALSE | U29: FALSE | V29: FALSE | W29: FALSE | X29: FALSE
C31: Multiplier | D31: 1 | E31: 1 | F31: 1000 | G31: 1 | H31: 1 | I31: 1 | J31: 1 | K31: 0.0001 | L31: 1 | M31: 0.001 | N31: 0.001 | O31: 0.001
C32: Copied Case | D32: =D10 -> 1 | E32: =E10 -> 1 | F32: 50000 | G32: 1 | H32: 1 | I32: 1 | J32: 1 | K32: 0.005 | L32: 1 | M32: 0.15 | N32: 0.12 | O32: 0.095
C33: Adjusted | D33: =D32 -> 1 | E33: =E32 -> 1 | F33: =F32/F31 -> 50 | G33: =G32 -> 1 | H33: =H32 -> 1 | I33: =I32 -> 1 | J33: =J32 -> 1 | K33: =K32/K31 -> 50 | L33: 2 | M33: =M32/M31 -> 150 | N33: =N32/N31 -> 120 | O33: =O32/O31 -> 95
C34: Fixed | D34: 3 | E34: 2 | F34: 39 | G34: 3 | H34: 3 | I34: 3 | J34: 3 | K34: 50 | L34: 3 | M34: 150 | N34: 120 | O34: 85
D40: =E1&" vs "&E2 -> Company Case vs Low Case
C41: =TRANSPOSE(D8:O8) -> Planes Grounded | D41: =AVERAGE(Q14:X14)-AVERAGE(OFFSET($Q$9,$D$1,0,1,8)) -> -0.1809131314
C42: Price Increase | D42: =AVERAGE(Q15:X15)-AVERAGE(OFFSET($Q$9,$D$1,0,1,8)) -> -1.202812794
C43: Other Revenues | D43: -0.1026207597
C44: Flight Expense per Hour | D44: -0.4681511047
C45: Maint per Hour | D45: -0.7136086088
C46: Fuel Expense per Hour | D46: 0
C47: SG&A per Revenue | D47: -0.1021028749
C48: Bad Debt Expense | D48: -0.009073780617
C49: Cap Exp - Maintenance | D49: -0.2867933772
C50: A/R to Revenues | D50: -0.01260262526
C51: A/P to Expenses | D51: 0
C52: Interest Rate | D52: -0.03407837783

Sheet Target Assumptions
B1: Year | M1: =N1-1 -> 1992 | N1: =O1-1 -> 1993 | O1: =P1-1 -> 1994 | P1: =Q1-1 -> 1995 | Q1: =R1-1 -> 1996 | R1: 1997 | S1: 1997 | T1: =S1+1 -> 1998 | U1: =T1+1 -> 1999 | V1: 2000 | W1: 2001 | X1: 2002 | Y1: 2003 | Z1: 2004 | AA1: 2005
B2: Fraction of Year | M2: 1 | N2: 1 | O2: 1 | P2: 1 | Q2: 1 | R2: ='Target Model'!N4 -> 0.7142857143 | S2: ='Target Model'!O4 -> 0.2857142857 | T2: 1 | U2: 1 | V2: 1 | W2: 1 | X2: 1 | Y2: 1 | Z2: 1 | AA2: 1
B3: Switch | M3: FALSE | N3: FALSE | O3: FALSE | P3: FALSE | Q3: FALSE | R3: TRUE | S3: FALSE | T3: FALSE | U3: FALSE | V3: FALSE | W3: FALSE | X3: FALSE | Y3: FALSE | Z3: FALSE | AA3: FALSE
E4: Method | F4: Last Value | G4: Average | H4: Input | I4: Value Applied | J4: Graph | K4: Graph No | L4: Index Code | M4: TRUE | N4: TRUE | O4: TRUE | P4: TRUE | Q4: TRUE | R4: TRUE | S4: FALSE | T4: FALSE | U4: FALSE | V4: FALSE | W4: FALSE | X4: FALSE | Y4: FALSE | Z4: FALSE | AA4: FALSE
B5: Capacity | K5: 0
C6: Base Capacity | K6: =K5+J6 -> 0 | R6: ='[2]Airline Fleet'!$M$34 -> 6138986.667 | S6: ='[2]Airline Fleet'!$M$34 -> 6138986.667 | T6: =S6 -> 6138986.667 | U6: =T6 -> 6138986.667 | V6: 6138986.667 | W6: 6138986.667 | X6: 6138986.667 | Y6: 6138986.667 | Z6: 6138986.667 | AA6: 6138986.667
C7: Capacity per 747 | K7: =K6+J7 -> 0 | R7: =S7 -> 229000 | S7: ='[2]Airline Fleet'!K9 -> 229000 | T7: =S7 -> 229000 | U7: 229000 | V7: 229000 | W7: 229000 | X7: 229000 | Y7: 229000 | Z7: 229000 | AA7: 229000
C8: Planes Grounded | K8: 0
D9: Company Base | K9: 0 | R9: 4 | S9: 4 | T9: 1 | U9: 0 | V9: 0 | W9: 0 | X9: 0 | Y9: 0 | Z9: 0 | AA9: 0
D10: Base Case | K10: 0 | R10: 4 | S10: 4 | T10: 2 | U10: 1 | V10: 1 | W10: 1 | X10: 1 | Y10: 1 | Z10: 1 | AA10: 1
D11: Downside Case | K11: 0 | R11: 4 | S11: 4 | T11: 3 | U11: 2 | V11: 2 | W11: 2 | X11: 2 | Y11: 2 | Z11: 2 | AA11: 2
D12: Worst Case | K12: 0 | R12: 6 | S12: 6 | T12: 6 | U12: 6 | V12: 6 | W12: 6 | X12: 6 | Y12: 6 | Z12: 6 | AA12: 6
D13: =INDEX(D9:D12,$L$13) -> Base Case | K13: 0 | L13: ='Target Scenario'!D29 -> 2 | R13: =INDEX(R9:R12,$L$13) -> 4 | S13: 4 | T13: 2 | U13: 1 | V13: 1 | W13: 1 | X13: 1 | Y13: 1 | Z13: 1 | AA13: 1
D14: Capacity Not Operable | K14: 0 | R14: =R13*R7 -> 916000 | S14: 916000 | T14: 458000 | U14: 229000 | V14: 229000 | W14: 229000 | X14: 229000 | Y14: 229000 | Z14: 229000 | AA14: 229000
D15: Capacity Before Retirements | K15: 0 | R15: =R6-R14 -> 5222986.667 | S15: 5222986.667 | T15: 5680986.667 | U15: 5909986.667 | V15: 5909986.667 | W15: 5909986.667 | X15: 5909986.667 | Y15: 5909986.667 | Z15: 5909986.667 | AA15: 5909986.667
D16: Retirement Rate | K16: 0 | T16: =[2]Depreciation!F13 -> 0.03331171075 | U16: =[2]Depreciation!G13 -> 0.03664288183 | V16: =[2]Depreciation!H13 -> 0.04030717001 | W16: =[2]Depreciation!I13 -> 0.04433788701 | X16: =[2]Depreciation!J13 -> 0.04877167571 | Y16: =[2]Depreciation!K13 -> 0.05364884328 | Z16: =[2]Depreciation!L13 -> 0.05901372761 | AA16: =[2]Depreciation!M13 -> 0.06491510037
D17: Retirements | K17: 0 | R17: =R8-R16 -> 0 | S17: =S15*S16 -> 0 | T17: =T15*T16+S17 -> 189243.3846 | U17: =U15*U16+T17 -> 405802.3276 | V17: 644017.165 | W17: 906053.486 | X17: 1194293.439 | Y17: 1511357.388 | Z17: 1860127.731 | AA17: 2243775.109
D18: Net Capacity | J18: TRUE | K18: 1 | R18: =R15-R17 -> 5222986.667 | S18: =S15-S17 -> 5222986.667 | T18: =T15-T17 -> 5491743.282 | U18: 5504184.339 | V18: 5265969.502 | W18: 5003933.181 | X18: 4715693.227 | Y18: 4398629.279 | Z18: 4049858.936 | AA18: 3666211.558
K19: 1
C20: Flight Hours | J20: TRUE | K20: 2 | M20: ='Target Model'!I106 -> 39404 | N20: ='Target Model'!J106 -> 55220 | O20: ='Target Model'!K106 -> 76346 | P20: ='Target Model'!L106 -> 84058 | Q20: ='Target Model'!M106 -> 91690 | R20: ='Target Model'!N106 -> 70721 | S20: =R20/R$2*S$2 -> 28288.4 | T20: =(R20+S20)*T$18/S$18 -> 104104.0772 | U20: =T20*U18/T18 -> 104339.9158 | V20: =U20*V18/U18 -> 99824.2029 | W20: 94856.91875 | X20: 89392.90617 | Y20: 83382.49234 | Z20: 76771.03713 | AA20: 69498.43639
C21: Planes | K21: 2 | M21: ='Target Model'!I105 -> 59 | N21: ='Target Model'!J105 -> 65 | O21: ='Target Model'!K105 -> 86 | P21: ='Target Model'!L105 -> 95 | Q21: ='Target Model'!M105 -> 97 | R21: ='Target Model'!N105 -> 86 | S21: =R21 -> 86 | T21: =S21 -> 86 | U21: 86 | V21: 86 | W21: 86 | X21: 86 | Y21: 86 | Z21: 86 | AA21: 86
K22: 2
B23: Growth Rate | E23: 0.25 | K23: 2
B24: Life | E24: 15 | K24: 2
B25: Number | E25: 1 | K25: 2
B26: Initial | E26: =find_initial(E23,E25,E24) ->  | K26: 2
K27: 2
K28: 2
K29: 2
B30: Price Increase per Capacity | K30: 2
C31: Freight Revenues | J31: TRUE | K31: 3 | M31: ='Target Model'!I61 -> 95144 | N31: ='Target Model'!J61 -> 194525 | O31: ='Target Model'!K61 -> 298081 | P31: ='Target Model'!L61 -> 359404 | Q31: ='Target Model'!M61 -> 388193 | R31: ='Target Model'!N61 -> 302345 | S31: ='Target Model'!O61 -> 0 | T31: ='Target Model'!P61 -> 0 | U31: ='Target Model'!Q61 -> 0 | V31: ='Target Model'!R61 -> 0 | W31: ='Target Model'!S61 -> 0 | X31: ='Target Model'!T61 -> 0 | Y31: ='Target Model'!U61 -> 0 | Z31: ='Target Model'!V61 -> 0 | AA31: ='Target Model'!W61 -> 0
C32: Revenues per Flight Hour | K32: 3 | M32: =IF(M4,M31/M20) -> 2.4145772 | N32: =IF(N4,N31/N20) -> 3.522727273 | O32: 3.904343384 | P32: 4.275666801 | Q32: 4.233755044 | R32: 4.275179932 | S32: FALSE | T32: FALSE | U32: FALSE | V32: FALSE | W32: FALSE | X32: FALSE | Y32: FALSE | Z32: FALSE | AA32: FALSE
C33: Base Price | K33: 3 | R33: =R31/(R18*R2)*1000 -> 81.04232827 | S33: =R33 -> 81.04232827 | T33: =S33 -> 81.04232827 | U33: 81.04232827 | V33: 81.04232827 | W33: 81.04232827 | X33: 81.04232827 | Y33: 81.04232827 | Z33: 81.04232827 | AA33: 81.04232827
C34: Price Increase | K34: 3
D35: 2.5% Increase | K35: 3 | S35: 0.01 | T35: 0.025 | U35: 0.025 | V35: 0.025 | W35: 0.025 | X35: 0.025 | Y35: 0.025 | Z35: 0.025 | AA35: 0.025
D36: Flat Case | K36: 3 | S36: 0 | T36: 0 | U36: 0 | V36: 0 | W36: 0 | X36: 0 | Y36: 0 | Z36: 0 | AA36: 0
D37: 10% Decline Case | K37: 3 | S37: 0 | T37: -0.01 | U37: -0.04 | V37: -0.05 | W37: 0 | X37: 0 | Y37: 0 | Z37: 0 | AA37: 0
K38: 3
D39: =INDEX(D35:D37,L39) -> Flat Case | K39: 3 | L39: ='Target Scenario'!E29 -> 2 | M39: =INDEX(M35:M37,$L$39) -> 0 | N39: 0 | O39: 0 | P39: 0 | Q39: 0 | R39: 0 | S39: 0 | T39: 0 | U39: 0 | V39: 0 | W39: 0 | X39: 0 | Y39: 0 | Z39: 0 | AA39: 0
D40: Index | K40: 3 | R40: 1 | S40: =R40*(1+S39)^S2 -> 1 | T40: =S40*(1+T39)^T2 -> 1 | U40: 1 | V40: 1 | W40: 1 | X40: 1 | Y40: 1 | Z40: 1 | AA40: 1
K41: 3
D42: Price per lb Applied | J42: TRUE | K42: 4 | R42: =R40*R33 -> 81.04232827 | S42: =S40*S33 -> 81.04232827 | T42: 81.04232827 | U42: 81.04232827 | V42: 81.04232827 | W42: 81.04232827 | X42: 81.04232827 | Y42: 81.04232827 | Z42: 81.04232827 | AA42: 81.04232827
D43: Revenues | J43: TRUE | K43: 5 | M43: =IF(M4,M31,M42*M18/1000*M2) -> 95144 | N43: =IF(N4,N31,N42*N18/1000*N2) -> 194525 | O43: 298081 | P43: 359404 | Q43: 388193 | R43: 302345 | S43: 120938 | T43: 445063.6618 | U43: 446071.9141 | V43: 426766.429 | W43: 405530.3955 | X43: 382170.7586 | Y43: 356475.158 | Z43: 328209.9973 | AA43: 297118.3206
D44: Revenues per Flight Hour | J44: TRUE | K44: 6 | M44: =M43/M20 -> 2.4145772 | N44: =N43/N20 -> 3.522727273 | O44: 3.904343384 | P44: 4.275666801 | Q44: 4.233755044 | R44: 4.275179932 | S44: 4.275179932 | T44: 4.275179932 | U44: 4.275179932 | V44: 4.275179932 | W44: 4.275179932 | X44: 4.275179932 | Y44: 4.275179932 | Z44: 4.275179932 | AA44: 4.275179932
K45: 6
B46: Other Revenues | K46: 6
D47: ='Target Model'!D62 -> Maintenance and other(1) | K47: 6 | M47: =IF(M4,'Target Model'!I62,$I$46) -> 2606 | N47: =IF(N4,'Target Model'!J62,$I$46) -> 5584 | O47: =IF(O4,'Target Model'!K62,$I$46) -> 7449 | P47: =IF(P4,'Target Model'!L62,$I$46) -> 14279 | Q47: =IF(Q4,'Target Model'!M62,$I$46) -> 36348 | R47: =IF(R4,'Target Model'!N62,$I$46) -> 23299 | S47: =IF(S4,'Target Model'!O62,$I$46) -> 0 | T47: =IF(T4,'Target Model'!P62,$I$46) -> 0 | U47: =IF(U4,'Target Model'!Q62,$I$46) -> 0 | V47: =IF(V4,'Target Model'!R62,$I$46) -> 0 | W47: =IF(W4,'Target Model'!S62,$I$46) -> 0 | X47: =IF(X4,'Target Model'!T62,$I$46) -> 0 | Y47: =IF(Y4,'Target Model'!U62,$I$46) -> 0 | Z47: =IF(Z4,'Target Model'!V62,$I$46) -> 0 | AA47: =IF(AA4,'Target Model'!W62,$I$46) -> 0
D48: Annualized | E48: 3 | F48: =SUMIF(3:3,TRUE,48:48) -> 32618.6 | G48: =AVERAGEIF(4:4,TRUE,48:48) -> 16480.76667 | H48: ='Target Scenario'!F29 -> 48000 | I48: =CHOOSE(E48,F48,G48,H48) -> 48000 | K48: 6 | M48: =IF(M4,M47/M2,$I$48) -> 2606 | N48: =IF(N4,N47/N2,$I$48) -> 5584 | O48: 7449 | P48: 14279 | Q48: 36348 | R48: 32618.6 | S48: 48000 | T48: 48000 | U48: 48000 | V48: 48000 | W48: 48000 | X48: 48000 | Y48: 48000 | Z48: 48000 | AA48: 48000
D49: Escalation | I49: 0.02 | K49: 6 | M49: =IF(M4,1,L49*((1+$I$49)^M2)) -> 1 | N49: =IF(N4,1,M49*((1+$I$49)^N2)) -> 1 | O49: 1 | P49: 1 | Q49: 1 | R49: 1 | S49: =IF(S4,1,R49*((1+$I$49)^S2)) -> 1.00567393 | T49: 1.025787408 | U49: 1.046303156 | V49: 1.06722922 | W49: 1.088573804 | X49: 1.11034528 | Y49: 1.132552186 | Z49: 1.155203229 | AA49: 1.178307294
D50: Escalated Revenues | J50: TRUE | K50: 7 | M50: =PRODUCT(M48:M49)*M2 -> 2606 | N50: =PRODUCT(N48:N49)*N2 -> 5584 | O50: 7449 | P50: 14279 | Q50: 36348 | R50: 23299 | S50: 13792.09961 | T50: 49237.79559 | U50: 50222.55151 | V50: 51227.00254 | W50: 52251.54259 | X50: 53296.57344 | Y50: 54362.50491 | Z50: 55449.75501 | AA50: 56558.75011
K51: 7
A52: Operating Expense | K52: 7
B53: Flight Expense | K53: 7 | M53: ='Target Model'!I65 -> 37259 | N53: ='Target Model'!J65 -> 62877 | O53: ='Target Model'!K65 -> 115614 | P53: ='Target Model'!L65 -> 168775 | Q53: ='Target Model'!M65 -> 150256 | R53: ='Target Model'!N65 -> 126208
C54: Per Plane | K54: 7 | M54: =IF(M4,M53/M21) -> 631.5084746 | N54: =N53/'Target Model'!J105 -> 967.3384615 | O54: =O53/'Target Model'!K105 -> 1344.348837 | P54: =P53/'Target Model'!L105 -> 1776.578947 | Q54: =Q53/'Target Model'!M105 -> 1549.030928 | R54: =R53/'Target Model'!N105 -> 1467.534884
D55: Flight per Hour - Company Case | K55: 7 | M55: =M53/M20 -> 0.9455639021 | N55: 1.138663528 | O55: 1.514342598 | P55: 2.007839825 | Q55: 1.63873923 | R55: 1.78459015 | S55: =R55 -> 1.78459015 | T55: 1.4 | U55: 1.25 | V55: 1.25 | W55: 1.25 | X55: 1.25 | Y55: 1.25 | Z55: 1.25 | AA55: 1.25
D56: Flight per Hour - Base Case | K56: 7 | M56: =M55 -> 0.9455639021 | N56: =N55 -> 1.138663528 | O56: 1.514342598 | P56: 2.007839825 | Q56: 1.63873923 | R56: 1.78459015 | S56: =S55 -> 1.78459015 | T56: 1.6 | U56: 1.5 | V56: 1.4 | W56: 1.4 | X56: 1.4 | Y56: 1.4 | Z56: 1.4 | AA56: 1.4
D57: Flight per Hour - Low Case | K57: 7 | M57: =M56 -> 0.9455639021 | N57: 1.138663528 | O57: 1.514342598 | P57: 2.007839825 | Q57: 1.63873923 | R57: 1.78459015 | S57: 1.78459015 | T57: 1.6 | U57: 1.5 | V57: 1.5 | W57: 1.5 | X57: 1.5 | Y57: 1.5 | Z57: 1.5 | AA57: 1.5
D58: Flight per Hour - Worst Case | K58: 7 | M58: =M57 -> 0.9455639021 | N58: 1.138663528 | O58: 1.514342598 | P58: 2.007839825 | Q58: 1.63873923 | R58: 1.78459015 | S58: 1.78459015 | T58: =S58 -> 1.78459015 | U58: =T58 -> 1.78459015 | V58: 1.78459015 | W58: 1.78459015 | X58: 1.78459015 | Y58: 1.78459015 | Z58: 1.78459015 | AA58: 1.78459015
K59: 7
D60: =INDEX(D55:D58,$L$60) -> Flight per Hour - Base Case | J60: TRUE | K60: 8 | L60: ='Target Scenario'!G29 -> 2 | M60: =INDEX(M55:M58,$L$60) -> 0.9455639021 | N60: =INDEX(N55:N58,$L$60) -> 1.138663528 | O60: 1.514342598 | P60: 2.007839825 | Q60: 1.63873923 | R60: 1.78459015 | S60: 1.78459015 | T60: 1.6 | U60: 1.5 | V60: 1.4 | W60: 1.4 | X60: 1.4 | Y60: 1.4 | Z60: 1.4 | AA60: 1.4
K61: 8
B62: Maintenance Expense | K62: 8 | M62: =IF(M4,'Target Model'!I66) -> 22114 | N62: =IF(N4,'Target Model'!J66) -> 51933 | O62: =IF(O4,'Target Model'!K66) -> 64722 | P62: =IF(P4,'Target Model'!L66) -> 103389 | Q62: =IF(Q4,'Target Model'!M66) -> 115082 | R62: =IF(R4,'Target Model'!N66) -> 107432 | S62: =IF(S4,'Target Model'!O66) -> FALSE | T62: =IF(T4,'Target Model'!P66) -> FALSE | U62: =IF(U4,'Target Model'!Q66) -> FALSE | V62: =IF(V4,'Target Model'!R66) -> FALSE | W62: =IF(W4,'Target Model'!S66) -> FALSE | X62: =IF(X4,'Target Model'!T66) -> FALSE | Y62: =IF(Y4,'Target Model'!U66) -> FALSE | Z62: =IF(Z4,'Target Model'!V66) -> FALSE | AA62: =IF(AA4,'Target Model'!W66) -> FALSE
C63: Per Plane | K63: 8 | M63: =M62/M21 -> 374.8135593 | N63: 798.9692308 | O63: 752.5813953 | P63: 1088.305263 | Q63: 1186.412371 | R63: 1249.209302
C64: Per Hour | K64: 8 | M64: =M62/M20 -> 0.5612120597 | N64: 0.9404744658 | O64: 0.8477457889 | P64: 1.229972162 | Q64: 1.255120515 | R64: 1.519096167
D65: Maint per Hour - Company | K65: 8 | M65: =M64 -> 0.5612120597 | N65: =N64 -> 0.9404744658 | O65: 0.8477457889 | P65: 1.229972162 | Q65: 1.255120515 | R65: 1.519096167 | S65: =R65 -> 1.519096167 | T65: 1.2 | U65: 1.1 | V65: 1 | W65: 1 | X65: 1 | Y65: 1 | Z65: 1 | AA65: 1
D66: Maint per Hour - Base Case | K66: 8 | M66: =M65 -> 0.5612120597 | N66: 0.9404744658 | O66: 0.8477457889 | P66: 1.229972162 | Q66: 1.255120515 | R66: 1.519096167 | S66: =R66 -> 1.519096167 | T66: 1.25 | U66: 1.15 | V66: 1.15 | W66: 1.15 | X66: 1.15 | Y66: 1.15 | Z66: 1.15 | AA66: 1.15
D67: Maint per Hour - Low Case | K67: 8 | M67: =M66 -> 0.5612120597 | N67: 0.9404744658 | O67: 0.8477457889 | P67: 1.229972162 | Q67: 1.255120515 | R67: 1.519096167 | S67: 1.519096167 | T67: 1.5 | U67: 1.4 | V67: =U67 -> 1.4 | W67: 1.4 | X67: 1.4 | Y67: 1.4 | Z67: 1.4 | AA67: 1.4
D68: Maint per Hour - Worst Case | K68: 8 | M68: =M67 -> 0.5612120597 | N68: 0.9404744658 | O68: 0.8477457889 | P68: 1.229972162 | Q68: 1.255120515 | R68: 1.519096167 | S68: =R68 -> 1.519096167 | T68: =S68 -> 1.519096167 | U68: 1.519096167 | V68: 1.519096167 | W68: 1.519096167 | X68: 1.519096167 | Y68: 1.519096167 | Z68: 1.519096167 | AA68: 1.519096167
K69: 8
D70: =INDEX(D65:D68,$L$70) -> Maint per Hour - Base Case | J70: TRUE | K70: 9 | L70: ='Target Scenario'!H29 -> 2 | M70: =INDEX(M65:M68,$L$70) -> 0.5612120597 | N70: =INDEX(N65:N68,$L$70) -> 0.9404744658 | O70: 0.8477457889 | P70: 1.229972162 | Q70: 1.255120515 | R70: 1.519096167 | S70: 1.519096167 | T70: 1.25 | U70: 1.15 | V70: 1.15 | W70: 1.15 | X70: 1.15 | Y70: 1.15 | Z70: 1.15 | AA70: 1.15
K71: =K70+J71 -> 9
B72: Fuel Expense | K72: 9 | M72: ='Target Model'!I67 -> 16508 | N72: ='Target Model'!J67 -> 38554 | O72: ='Target Model'!K67 -> 57362 | P72: ='Target Model'!L67 -> 54538 | Q72: ='Target Model'!M67 -> 82717 | R72: ='Target Model'!N67 -> 55095 | S72: ='Target Model'!O67 -> 0 | T72: ='Target Model'!P67 -> 0 | U72: ='Target Model'!Q67 -> 0 | V72: ='Target Model'!R67 -> 0 | W72: ='Target Model'!S67 -> 0 | X72: ='Target Model'!T67 -> 0 | Y72: ='Target Model'!U67 -> 0 | Z72: ='Target Model'!V67 -> 0 | AA72: ='Target Model'!W67 -> 0
C73: Per Plane | K73: 9 | M73: =IF(M4,M72/M21) -> 279.7966102 | N73: =IF(N4,N72/N21) -> 593.1384615 | O73: 667 | P73: 574.0842105 | Q73: 852.7525773 | R73: 640.6395349 | S73: FALSE | T73: FALSE | U73: FALSE | V73: FALSE | W73: FALSE | X73: FALSE | Y73: FALSE | Z73: FALSE | AA73: FALSE
C74: Per Hour | K74: 9 | M74: =IF(M4,M72/M20) -> 0.4189422394 | N74: =IF(N4,N72/N20) -> 0.6981890619 | O74: 0.751342572 | P74: 0.6488139142 | Q74: 0.9021376377 | R74: 0.779047242 | S74: FALSE | T74: FALSE | U74: FALSE | V74: FALSE | W74: FALSE | X74: FALSE | Y74: FALSE | Z74: FALSE | AA74: FALSE
D75: Fuel per Hour - Company | K75: 9 | M75: =M74 -> 0.4189422394 | N75: =N74 -> 0.6981890619 | O75: 0.751342572 | P75: 0.6488139142 | Q75: 0.9021376377 | R75: 0.779047242 | S75: =R75 -> 0.779047242 | T75: =S75 -> 0.779047242 | U75: =T75 -> 0.779047242 | V75: 0.779047242 | W75: 0.779047242 | X75: 0.779047242 | Y75: 0.779047242 | Z75: 0.779047242 | AA75: 0.779047242
D76: Fuel per Hour - Base Case | K76: 9 | M76: =M75 -> 0.4189422394 | N76: 0.6981890619 | O76: 0.751342572 | P76: 0.6488139142 | Q76: 0.9021376377 | R76: 0.779047242 | S76: 0.779047242 | T76: =S76*1.02 -> 0.7946281868 | U76: =T76*1.02 -> 0.8105207506 | V76: 0.8267311656 | W76: 0.8432657889 | X76: 0.8601311047 | Y76: 0.8773337267 | Z76: 0.8948804013 | AA76: 0.9127780093
D77: Fuel per Hour - Low Case | K77: 9 | M77: =M76 -> 0.4189422394 | N77: 0.6981890619 | O77: 0.751342572 | P77: 0.6488139142 | Q77: 0.9021376377 | R77: 0.779047242 | S77: 0.779047242 | T77: =S77*1.03 -> 0.8024186592 | U77: =T77*1.03 -> 0.826491219 | V77: =U77*1.03 -> 0.8512859556 | W77: =V77*1.03 -> 0.8768245343 | X77: =W77*1.03 -> 0.9031292703 | Y77: =X77 -> 0.9031292703 | Z77: =Y77 -> 0.9031292703 | AA77: =Z77 -> 0.9031292703
D78: Fuel per Hour - Worst Case | K78: 9 | M78: =M77 -> 0.4189422394 | N78: 0.6981890619 | O78: 0.751342572 | P78: 0.6488139142 | Q78: 0.9021376377 | R78: 0.779047242 | S78: 0.779047242 | T78: 0.8024186592 | U78: 0.826491219 | V78: 0.8512859556 | W78: 0.8768245343 | X78: 0.9031292703 | Y78: 0.9031292703 | Z78: 0.9031292703 | AA78: 0.9031292703
K79: 9
D80: =INDEX(D75:D78,$L$80) -> Fuel per Hour - Low Case | J80: TRUE | K80: 10 | L80: ='Target Scenario'!I29 -> 3 | M80: =INDEX(M75:M78,$L$80) -> 0.4189422394 | N80: =INDEX(N75:N78,$L$80) -> 0.6981890619 | O80: 0.751342572 | P80: 0.6488139142 | Q80: 0.9021376377 | R80: 0.779047242 | S80: 0.779047242 | T80: 0.8024186592 | U80: 0.826491219 | V80: 0.8512859556 | W80: 0.8768245343 | X80: 0.9031292703 | Y80: 0.9031292703 | Z80: 0.9031292703 | AA80: 0.9031292703
K81: 10
B82: Selling and Admininstrative | K82: 10 | M82: =IF(M4,'Target Model'!I69) -> 4232 | N82: =IF(N4,'Target Model'!J69) -> 9554 | O82: =IF(O4,'Target Model'!K69) -> 13273 | P82: =IF(P4,'Target Model'!L69) -> 21676 | Q82: =IF(Q4,'Target Model'!M69) -> 21889 | R82: =IF(R4,'Target Model'!N69) -> 17848 | S82: =IF(S4,'Target Model'!O69) -> FALSE | T82: =IF(T4,'Target Model'!P69) -> FALSE | U82: =IF(U4,'Target Model'!Q69) -> FALSE | V82: =IF(V4,'Target Model'!R69) -> FALSE | W82: =IF(W4,'Target Model'!S69) -> FALSE | X82: =IF(X4,'Target Model'!T69) -> FALSE | Y82: =IF(Y4,'Target Model'!U69) -> FALSE | Z82: =IF(Z4,'Target Model'!V69) -> FALSE | AA82: =IF(AA4,'Target Model'!W69) -> FALSE
C83: Per Revenue | K83: 10 | M83: =IF(M31,M82/M31) -> 0.04447994619 | N83: =IF(N31,N82/N31) -> 0.0491145097 | O83: 0.04452816516 | P83: 0.06031095925 | Q83: 0.05638690033 | R83: 0.05903190064 | S83: FALSE | T83: FALSE | U83: FALSE | V83: FALSE | W83: FALSE | X83: FALSE | Y83: FALSE | Z83: FALSE | AA83: FALSE
C84: Increase | K84: 10 | N84: =IF(N4,N82/M82-1) -> 1.257561437 | O84: =IF(O4,O82/N82-1) -> 0.3892610425 | P84: 0.633089731 | Q84: 0.009826536261 | R84: -0.1846132761 | S84: FALSE | T84: FALSE | U84: FALSE | V84: FALSE | W84: FALSE | X84: FALSE | Y84: FALSE | Z84: FALSE | AA84: FALSE
D85: SG&A per Revenue - Company | K85: 10 | M85: =M83 -> 0.04447994619 | N85: 0.0491145097 | O85: 0.04452816516 | P85: 0.06031095925 | Q85: 0.05638690033 | R85: 0.05903190064 | S85: =R85 -> 0.05903190064 | T85: 0.054 | U85: 0.05 | V85: 0.045 | W85: 0.045 | X85: 0.045 | Y85: 0.045 | Z85: 0.045 | AA85: 0.045
D86: SG&A per Revenue - Base Case | K86: 10 | M86: =M85 -> 0.04447994619 | N86: =N85 -> 0.0491145097 | O86: 0.04452816516 | P86: 0.06031095925 | Q86: 0.05638690033 | R86: 0.05903190064 | S86: 0.05903190064 | T86: 0.054 | U86: 0.052 | V86: =U86 -> 0.052 | W86: 0.052 | X86: 0.052 | Y86: 0.052 | Z86: 0.052 | AA86: 0.052
D87: SG&A per Revenue - Low Case | K87: 10 | M87: =M85 -> 0.04447994619 | N87: 0.0491145097 | O87: 0.04452816516 | P87: 0.06031095925 | Q87: 0.05638690033 | R87: 0.05903190064 | S87: =R87 -> 0.05903190064 | T87: =S87 -> 0.05903190064 | U87: =T87 -> 0.05903190064 | V87: 0.05903190064 | W87: 0.05903190064 | X87: 0.05903190064 | Y87: 0.05903190064 | Z87: 0.05903190064 | AA87: 0.05903190064
D88: SG&A per Revenue - Worst Case | K88: 10 | M88: 0.04447994619 | N88: 0.0491145097 | O88: 0.04452816516 | P88: 0.06031095925 | Q88: 0.05638690033 | R88: 0.05903190064 | S88: =R88 -> 0.05903190064 | T88: =S88 -> 0.05903190064 | U88: 0.05903190064 | V88: 0.05903190064 | W88: 0.05903190064 | X88: 0.05903190064 | Y88: 0.05903190064 | Z88: 0.05903190064 | AA88: 0.05903190064
K89: 10
D90: =INDEX(D85:D88,$L$90) -> SG&A per Revenue - Base Case | J90: TRUE | K90: 11 | L90: ='Target Scenario'!J29 -> 2 | M90: =INDEX(M85:M88,$L$90) -> 0.04447994619 | N90: =INDEX(N85:N88,$L$90) -> 0.0491145097 | O90: 0.04452816516 | P90: 0.06031095925 | Q90: 0.05638690033 | R90: 0.05903190064 | S90: 0.05903190064 | T90: 0.054 | U90: 0.052 | V90: 0.052 | W90: 0.052 | X90: 0.052 | Y90: 0.052 | Z90: 0.052 | AA90: 0.052
K91: 11
B92: Bad Debt Expenses | K92: 11 | M92: =IF(M4,'Target Model'!I70) -> 1557 | N92: =IF(N4,'Target Model'!J70) -> 1547 | O92: =IF(O4,'Target Model'!K70) -> 2231 | P92: =IF(P4,'Target Model'!L70) -> 1862 | Q92: =IF(Q4,'Target Model'!M70) -> 1011 | R92: =IF(R4,'Target Model'!N70) -> 1633 | S92: =IF(S4,'Target Model'!O70) -> FALSE | T92: =IF(T4,'Target Model'!P70) -> FALSE | U92: =IF(U4,'Target Model'!Q70) -> FALSE | V92: =IF(V4,'Target Model'!R70) -> FALSE | W92: =IF(W4,'Target Model'!S70) -> FALSE | X92: =IF(X4,'Target Model'!T70) -> FALSE | Y92: =IF(Y4,'Target Model'!U70) -> FALSE | Z92: =IF(Z4,'Target Model'!V70) -> FALSE | AA92: =IF(AA4,'Target Model'!W70) -> FALSE
C93: Per Revenue | E93: 3 | F93: =SUMIF(3:3,TRUE,93:93) -> 0.005401114621 | G93: =AVERAGEIF(4:4,TRUE,93:93) -> 0.007498034161 | H93: ='Target Scenario'!K29 -> 0.0055 | I93: =CHOOSE(E93,F93,G93,H93) -> 0.0055 | J93: TRUE | K93: 12 | M93: =IF(M4,M92/M43,$I$93) -> 0.01636466829 | N93: =IF(N4,N92/N43,$I$93) -> 0.007952705308 | O93: 0.007484542792 | P93: 0.005180799323 | Q93: 0.002604374628 | R93: 0.005401114621 | S93: 0.0055 | T93: 0.0055 | U93: 0.0055 | V93: 0.0055 | W93: 0.0055 | X93: 0.0055 | Y93: 0.0055 | Z93: 0.0055 | AA93: 0.0055
K94: 12
A95: Captial Expenditures | K95: 12
B96: Historic | K96: 12 | M96: =IF(M4,'Target Model'!I87) -> 55863 | N96: =IF(N4,'Target Model'!J87) -> 20468 | O96: =IF(O4,'Target Model'!K87) -> 77832 | P96: =IF(P4,'Target Model'!L87) -> 153719 | Q96: =IF(Q4,'Target Model'!M87) -> 53413 | R96: =IF(R4,'Target Model'!N87) -> 54509 | S96: =IF(S4,'Target Model'!O87) -> FALSE | T96: =IF(T4,'Target Model'!P87) -> FALSE | U96: =IF(U4,'Target Model'!Q87) -> FALSE | V96: =IF(V4,'Target Model'!R87) -> FALSE | W96: =IF(W4,'Target Model'!S87) -> FALSE | X96: =IF(X4,'Target Model'!T87) -> FALSE | Y96: =IF(Y4,'Target Model'!U87) -> FALSE | Z96: =IF(Z4,'Target Model'!V87) -> FALSE | AA96: =IF(AA4,'Target Model'!W87) -> FALSE
B97: Aircraft Owned | K97: 12 | M97: =IF(M4,'Target Model'!I104) -> 52 | N97: =IF(N4,'Target Model'!J104) -> 57 | O97: =IF(O4,'Target Model'!K104) -> 82 | P97: =IF(P4,'Target Model'!L104) -> 91 | Q97: =IF(Q4,'Target Model'!M104) -> 95 | R97: =IF(R4,'Target Model'!N104) -> 84 | S97: =IF(S4,'Target Model'!O104) -> FALSE | T97: =IF(T4,'Target Model'!P104) -> FALSE | U97: =IF(U4,'Target Model'!Q104) -> FALSE | V97: =IF(V4,'Target Model'!R104) -> FALSE | W97: =IF(W4,'Target Model'!S104) -> FALSE | X97: =IF(X4,'Target Model'!T104) -> FALSE | Y97: =IF(Y4,'Target Model'!U104) -> FALSE | Z97: =IF(Z4,'Target Model'!V104) -> FALSE | AA97: =IF(AA4,'Target Model'!W104) -> FALSE
B98: Change in Aircraft | K98: 12 | N98: =N97-M97 -> 5 | O98: =O97-N97 -> 25 | P98: 9 | Q98: 4 | R98: -11 | S98: -84 | T98: 0 | U98: 0 | V98: 0 | W98: 0 | X98: 0 | Y98: 0 | Z98: 0 | AA98: 0
C99: Company Case Maintenance Expenditures | K99: 12 | S99: =R96/R2*S2 -> 21803.6 | T99: 25000 | U99: 25000 | V99: 25000 | W99: 20000 | X99: 20000 | Y99: 20000 | Z99: 20000 | AA99: 20000
C100: Base Case Maintenance Expenditures | K100: 12 | S100: =S99 -> 21803.6 | T100: 35000 | U100: 35000 | V100: 30000 | W100: 30000 | X100: 30000 | Y100: 30000 | Z100: =Z99 -> 20000 | AA100: =AA99 -> 20000
C101: Downside Case Maintenance Expenditures | K101: 12 | S101: =S100 -> 21803.6 | T101: 40000 | U101: 40000 | V101: 40000 | W101: =W100 -> 30000 | X101: 40000 | Y101: =Y100 -> 30000 | Z101: =Z100 -> 20000 | AA101: =AA100 -> 20000
C102: Worst Case Maintenance Expenditures | K102: 12 | S102: =S101 -> 21803.6 | T102: =T101 -> 40000 | U102: =U101 -> 40000 | V102: 40000 | W102: 30000 | X102: 40000 | Y102: 30000 | Z102: 20000 | AA102: 20000
K103: 12
C104: =INDEX(C99:C102,$L$104) -> Base Case Maintenance Expenditures | J104: TRUE | K104: 13 | L104: ='Target Scenario'!L29 -> 2 | M104: =INDEX(M99:M102,$L$104) -> 0 | N104: =INDEX(N99:N102,$L$104) -> 0 | O104: 0 | P104: 0 | Q104: 0 | R104: 0 | S104: 21803.6 | T104: 35000 | U104: 35000 | V104: 30000 | W104: 30000 | X104: 30000 | Y104: 30000 | Z104: 20000 | AA104: 20000
K105: 13
C106: Capital Expenditures for New 747 | S106: 56000
A108: Depreciation Expense | K108: =K105+J108 -> 13
B109: Historic Depreciation | K109: 13 | M109: =IF(M4,'Target Model'!I68/M2) -> 8999 | N109: =IF(N4,'Target Model'!J68/N2) -> 12422 | O109: =IF(O4,'Target Model'!K68/O2) -> 13809 | P109: =IF(P4,'Target Model'!L68/P2) -> 20972 | Q109: =IF(Q4,'Target Model'!M68/Q2) -> 32091 | R109: =IF(R4,'Target Model'!N68/R2) -> 37055.2 | S109: =IF(S4,'Target Model'!O68/S2) -> FALSE | T109: =IF(T4,'Target Model'!P68/T2) -> FALSE | U109: =IF(U4,'Target Model'!Q68/U2) -> FALSE | V109: =IF(V4,'Target Model'!R68/V2) -> FALSE | W109: =IF(W4,'Target Model'!S68/W2) -> FALSE | X109: =IF(X4,'Target Model'!T68/X2) -> FALSE | Y109: =IF(Y4,'Target Model'!U68/Y2) -> FALSE | Z109: =IF(Z4,'Target Model'!V68/Z2) -> FALSE | AA109: =IF(AA4,'Target Model'!W68/AA2) -> FALSE
B110: Historic Net Plant | K110: 13 | M110: =IF(M4,'Target Model'!I27) -> 117295 | N110: =IF(N4,'Target Model'!J27) -> 127098 | O110: =IF(O4,'Target Model'!K27) -> 226541 | P110: =IF(P4,'Target Model'!L27) -> 226841.734 | Q110: =IF(Q4,'Target Model'!M27) -> 264006.688 | R110: =IF(R4,'Target Model'!N27) -> 248466.245 | S110: =IF(S4,'Target Model'!O27) -> FALSE | T110: =IF(T4,'Target Model'!P27) -> FALSE | U110: =IF(U4,'Target Model'!Q27) -> FALSE | V110: =IF(V4,'Target Model'!R27) -> FALSE | W110: =IF(W4,'Target Model'!S27) -> FALSE | X110: =IF(X4,'Target Model'!T27) -> FALSE | Y110: =IF(Y4,'Target Model'!U27) -> FALSE | Z110: =IF(Z4,'Target Model'!V27) -> FALSE | AA110: =IF(AA4,'Target Model'!W27) -> FALSE
B111: Historic Gross Plant | K111: 13 | M111: =IF(M4,'Target Model'!I25) -> 117295 | N111: =IF(N4,'Target Model'!J25) -> 127098 | O111: =IF(O4,'Target Model'!K25) -> 226541 | P111: =IF(P4,'Target Model'!L25) -> 308088.615 | Q111: =IF(Q4,'Target Model'!M25) -> 373714.2 | R111: =IF(R4,'Target Model'!N25) -> 362349.805 | S111: =IF(S4,'Target Model'!O25) -> FALSE | T111: =IF(T4,'Target Model'!P25) -> FALSE | U111: =IF(U4,'Target Model'!Q25) -> FALSE | V111: =IF(V4,'Target Model'!R25) -> FALSE | W111: =IF(W4,'Target Model'!S25) -> FALSE | X111: =IF(X4,'Target Model'!T25) -> FALSE | Y111: =IF(Y4,'Target Model'!U25) -> FALSE | Z111: =IF(Z4,'Target Model'!V25) -> FALSE | AA111: =IF(AA4,'Target Model'!W25) -> FALSE
K112: 13
B113: Net Plant Depreciation Rate | K113: 13 | M113: =IF(M110,M109/M110) -> 0.07672108786 | N113: =IF(N110,N109/N110) -> 0.0977356056 | O113: 0.06095585347 | P113: 0.09245212347 | Q113: 0.1215537388 | R113: 0.1491357508 | S113: FALSE | T113: FALSE | U113: FALSE | V113: FALSE | W113: FALSE | X113: FALSE | Y113: FALSE | Z113: FALSE | AA113: FALSE
B114: Gross Plant Depreciation Rate | E114: 1 | F114: =AVERAGEIF(3:3,TRUE,114:114) -> 0.1022636124 | G114: =AVERAGEIF(4:4,TRUE,114:114) -> 0.08193631934 | H114: =1/13 -> 0.07692307692 | I114: =CHOOSE(E114,F114,G114,H114) -> 0.1022636124 | J114: TRUE | K114: 14 | M114: =IF(AND(M111,M4),M109/M111,$I$114) -> 0.07672108786 | N114: 0.0977356056 | O114: 0.06095585347 | P114: 0.06807132422 | Q114: 0.08587043254 | R114: 0.1022636124 | S114: 0.1022636124 | T114: 0.1022636124 | U114: 0.1022636124 | V114: 0.1022636124 | W114: 0.1022636124 | X114: 0.1022636124 | Y114: 0.1022636124 | Z114: 0.1022636124 | AA114: 0.1022636124
B115: Implied Life of Assets | E115: 1 | K115: 14 | M115: =IF(M114,1/M114) -> 13.03422603 | N115: =IF(N114,1/N114) -> 10.23168572 | O115: 16.40531537 | P115: 14.69047373 | Q115: 11.645452 | R115: 9.778649285 | S115: 9.778649285 | T115: 9.778649285 | U115: 9.778649285 | V115: 9.778649285 | W115: 9.778649285 | X115: 9.778649285 | Y115: 9.778649285 | Z115: 9.778649285 | AA115: 9.778649285
K116: 14
B117: Retirement Rate | K117: 14 | M117: =LOOKUP(M1,[2]Depreciation!2:2,[2]Depreciation!13:13) ->  | N117: =LOOKUP(N1,[2]Depreciation!2:2,[2]Depreciation!13:13) ->  | O117: =LOOKUP(O1,[2]Depreciation!2:2,[2]Depreciation!13:13) ->  | P117: =LOOKUP(P1,[2]Depreciation!2:2,[2]Depreciation!13:13) ->  | Q117: =LOOKUP(Q1,[2]Depreciation!2:2,[2]Depreciation!13:13) ->  | R117: =LOOKUP(R1,[2]Depreciation!2:2,[2]Depreciation!13:13) -> 0 | S117: =LOOKUP(S1,[2]Depreciation!2:2,[2]Depreciation!13:13) -> 0 | T117: =LOOKUP(T1,[2]Depreciation!2:2,[2]Depreciation!13:13) -> 0.03331171075 | U117: =LOOKUP(U1,[2]Depreciation!2:2,[2]Depreciation!13:13) -> 0.03664288183 | V117: =LOOKUP(V1,[2]Depreciation!2:2,[2]Depreciation!13:13) -> 0.04030717001 | W117: =LOOKUP(W1,[2]Depreciation!2:2,[2]Depreciation!13:13) -> 0.04433788701 | X117: =LOOKUP(X1,[2]Depreciation!2:2,[2]Depreciation!13:13) -> 0.04877167571 | Y117: =LOOKUP(Y1,[2]Depreciation!2:2,[2]Depreciation!13:13) -> 0.05364884328 | Z117: =LOOKUP(Z1,[2]Depreciation!2:2,[2]Depreciation!13:13) -> 0.05901372761 | AA117: =LOOKUP(AA1,[2]Depreciation!2:2,[2]Depreciation!13:13) -> 0.06491510037
K118: 14
B119: Depreciation Life on Maintenance Expenditures | K119: 14 | L119: 13 | M119: =IF(M4,L119,L119-1) -> 13 | N119: 13 | O119: 13 | P119: 13 | Q119: 13 | R119: 13 | S119: 12 | T119: 11 | U119: 10 | V119: 9 | W119: 8 | X119: 7 | Y119: 6 | Z119: 5 | AA119: 4
B120: Depreciation Rate on Maintenance Expenditures | K120: 14 | M120: =1/M119 -> 0.07692307692 | N120: =1/N119 -> 0.07692307692 | O120: 0.07692307692 | P120: 0.07692307692 | Q120: 0.07692307692 | R120: 0.07692307692 | S120: 0.08333333333 | T120: 0.09090909091 | U120: 0.1 | V120: 0.1111111111 | W120: 0.125 | X120: 0.1428571429 | Y120: 0.1666666667 | Z120: 0.2 | AA120: 0.25
K121: 14
A122: Working Capital | K122: 14
B123: Accounts Receivable | K123: 14 | M123: ='Target Model'!I11+'Target Model'!I12 -> 5478 | N123: ='Target Model'!J11+'Target Model'!J12 -> 35827 | O123: ='Target Model'!K11+'Target Model'!K12 -> 44920 | P123: ='Target Model'!L11+'Target Model'!L12 -> 92664.084 | Q123: ='Target Model'!M11+'Target Model'!M12 -> 70041.903 | R123: ='Target Model'!N11+'Target Model'!N12 -> 66163.482 | S123: ='Target Model'!O11+'Target Model'!O12 -> 0 | T123: ='Target Model'!P11+'Target Model'!P12 -> 0 | U123: ='Target Model'!Q11+'Target Model'!Q12 -> 0 | V123: ='Target Model'!R11+'Target Model'!R12 -> 0 | W123: ='Target Model'!S11+'Target Model'!S12 -> 0 | X123: ='Target Model'!T11+'Target Model'!T12 -> 0 | Y123: ='Target Model'!U11+'Target Model'!U12 -> 0 | Z123: ='Target Model'!V11+'Target Model'!V12 -> 0 | AA123: ='Target Model'!W11+'Target Model'!W12 -> 0
B124: Total Revenues | K124: 14 | M124: ='Target Model'!I63/M2 -> 97750 | N124: ='Target Model'!J63/N2 -> 200109 | O124: ='Target Model'!K63/O2 -> 305530 | P124: ='Target Model'!L63/P2 -> 373683 | Q124: ='Target Model'!M63/Q2 -> 424541 | R124: ='Target Model'!N63/R2 -> 455901.6 | S124: ='Target Model'!O63/S2 -> 0 | T124: ='Target Model'!P63/T2 -> 0 | U124: ='Target Model'!Q63/U2 -> 0 | V124: ='Target Model'!R63/V2 -> 0 | W124: ='Target Model'!S63/W2 -> 0 | X124: ='Target Model'!T63/X2 -> 0 | Y124: ='Target Model'!U63/Y2 -> 0 | Z124: ='Target Model'!V63/Z2 -> 0 | AA124: ='Target Model'!W63/AA2 -> 0
B125: A/R Percent | E125: 3 | F125: =SUMIF($3:$3,TRUE,125:125) -> 0.1451266721 | G125: =AVERAGEIF($4:$4,TRUE,125:125) -> 0.1566976657 | H125: ='Target Scenario'!M29 -> 0.16 | I125: =CHOOSE(E125,F125,G125,H125) -> 0.16 | J125: TRUE | K125: 15 | M125: =IF(M$4,M123/M124,$I$125) -> 0.05604092072 | N125: 0.1790374246 | O125: 0.1470232056 | P125: 0.2479751126 | Q125: 0.1649826589 | R125: 0.1451266721 | S125: 0.16 | T125: 0.16 | U125: 0.16 | V125: 0.16 | W125: 0.16 | X125: 0.16 | Y125: 0.16 | Z125: 0.16 | AA125: 0.16
K126: 15
B127: Inventories | K127: 15 | M127: ='Target Model'!I13 -> 0 | N127: ='Target Model'!J13 -> 0 | O127: ='Target Model'!K13 -> 0 | P127: ='Target Model'!L13 -> 12330.854 | Q127: ='Target Model'!M13 -> 20742.14 | R127: ='Target Model'!N13 -> 24624.354 | S127: ='Target Model'!O13 -> 0 | T127: ='Target Model'!P13 -> 0 | U127: ='Target Model'!Q13 -> 0 | V127: ='Target Model'!R13 -> 0 | W127: ='Target Model'!S13 -> 0 | X127: ='Target Model'!T13 -> 0 | Y127: ='Target Model'!U13 -> 0 | Z127: ='Target Model'!V13 -> 0 | AA127: ='Target Model'!W13 -> 0
B128: Total Operating Costs | K128: 15 | M128: ='Target Model'!I132/M2 -> 81670 | N128: ='Target Model'!J132/N2 -> 164465 | O128: ='Target Model'!K132/O2 -> 253202 | P128: ='Target Model'!L132/P2 -> 350240 | Q128: ='Target Model'!M132/Q2 -> 370955 | R128: ='Target Model'!N132/R2 -> 431502.4 | S128: ='Target Model'!O132/S2 -> 431544.2565 | T128: ='Target Model'!P132/T2 -> 406712.9621 | U128: ='Target Model'!Q132/U2 -> 388385.936 | V128: ='Target Model'!R132/V2 -> 364069.729 | W128: ='Target Model'!S132/W2 -> 348376.0141 | X128: ='Target Model'!T132/X2 -> 330660.0795 | Y128: ='Target Model'!U132/Y2 -> 308427.8465 | Z128: ='Target Model'!V132/Z2 -> 283972.3903 | AA128: ='Target Model'!W132/AA2 -> 257071.3884
B129: Inventory Percent of Total Expense | E129: 1 | F129: =SUMIF($3:$3,TRUE,129:129) -> 0.05706655166 | G129: =AVERAGEIF($4:$4,TRUE,129:129) -> 0.0246981561 | H129: 0.05 | I129: =CHOOSE(E129,F129,G129,H129) -> 0.05706655166 | J129: TRUE | K129: 16 | M129: =IF(M$4,M127/M128,$I129) -> 0 | N129: =IF(N$4,N127/N128,$I129) -> 0 | O129: 0 | P129: 0.03520686958 | Q129: 0.05591551536 | R129: 0.05706655166 | S129: 0.05706655166 | T129: 0.05706655166 | U129: 0.05706655166 | V129: 0.05706655166 | W129: 0.05706655166 | X129: 0.05706655166 | Y129: 0.05706655166 | Z129: 0.05706655166 | AA129: 0.05706655166
K130: 16
B131: Pre-paid and Other | K131: 16 | M131: ='Target Model'!I15+'Target Model'!I16 -> 0 | N131: ='Target Model'!J15+'Target Model'!J16 -> 0 | O131: ='Target Model'!K15+'Target Model'!K16 -> 0 | P131: ='Target Model'!L15+'Target Model'!L16 -> 8994.429 | Q131: ='Target Model'!M15+'Target Model'!M16 -> 13846.32 | R131: ='Target Model'!N15+'Target Model'!N16 -> 14325.573 | S131: ='Target Model'!O15+'Target Model'!O16 -> 0 | T131: ='Target Model'!P15+'Target Model'!P16 -> 0 | U131: ='Target Model'!Q15+'Target Model'!Q16 -> 0 | V131: ='Target Model'!R15+'Target Model'!R16 -> 0 | W131: ='Target Model'!S15+'Target Model'!S16 -> 0 | X131: ='Target Model'!T15+'Target Model'!T16 -> 0 | Y131: ='Target Model'!U15+'Target Model'!U16 -> 0 | Z131: ='Target Model'!V15+'Target Model'!V16 -> 0 | AA131: ='Target Model'!W15+'Target Model'!W16 -> 0
B132: Total Revenues | K132: 16 | M132: =M124 -> 97750 | N132: =N124 -> 200109 | O132: 305530 | P132: 373683 | Q132: 424541 | R132: 455901.6 | S132: 0 | T132: 0 | U132: 0 | V132: 0 | W132: 0 | X132: 0 | Y132: 0 | Z132: 0 | AA132: 0
B133: Pre-Paid Pct of Revenue | E133: 1 | F133: =SUMIF($3:$3,TRUE,133:133) -> 0.03142251091 | G133: =AVERAGEIF($4:$4,TRUE,133:133) -> 0.01468449801 | H133: 0.03 | I133: =CHOOSE(E133,F133,G133,H133) -> 0.03142251091 | J133: TRUE | K133: 17 | M133: =IF(M$4,M131/M132,$I133) -> 0 | N133: =IF(N$4,N131/N132,$I133) -> 0 | O133: 0 | P133: 0.0240696767 | Q133: 0.03261480046 | R133: 0.03142251091 | S133: 0.03142251091 | T133: 0.03142251091 | U133: 0.03142251091 | V133: 0.03142251091 | W133: 0.03142251091 | X133: 0.03142251091 | Y133: 0.03142251091 | Z133: 0.03142251091 | AA133: 0.03142251091
K134: 17
B135: Accounts Payable | K135: =K134+J135 -> 17 | M135: ='Target Model'!I38+'Target Model'!I39 -> 0 | N135: ='Target Model'!J38+'Target Model'!J39 -> 0 | O135: ='Target Model'!K38+'Target Model'!K39 -> 0 | P135: ='Target Model'!L38+'Target Model'!L39 -> 66546.371 | Q135: ='Target Model'!M38+'Target Model'!M39 -> 46147.68 | R135: ='Target Model'!N38+'Target Model'!N39 -> 49898.926 | S135: ='Target Model'!O38+'Target Model'!O39 -> 0 | T135: ='Target Model'!P38+'Target Model'!P39 -> 0 | U135: ='Target Model'!Q38+'Target Model'!Q39 -> 0 | V135: ='Target Model'!R38+'Target Model'!R39 -> 0 | W135: ='Target Model'!S38+'Target Model'!S39 -> 0 | X135: ='Target Model'!T38+'Target Model'!T39 -> 0 | Y135: ='Target Model'!U38+'Target Model'!U39 -> 0 | Z135: ='Target Model'!V38+'Target Model'!V39 -> 0 | AA135: ='Target Model'!W38+'Target Model'!W39 -> 0
B136: Total Operating Cost | K136: 17 | M136: =M128 -> 81670 | N136: =N128 -> 164465 | O136: 253202 | P136: 350240 | Q136: 370955 | R136: 431502.4 | S136: 431544.2565 | T136: 406712.9621 | U136: 388385.936 | V136: 364069.729 | W136: 348376.0141 | X136: 330660.0795 | Y136: 308427.8465 | Z136: 283972.3903 | AA136: 257071.3884
B137: Accounts Payable Percent of Op Cost | E137: 1 | F137: =SUMIF($3:$3,TRUE,137:137) -> 0.1156399733 | G137: =AVERAGEIF($4:$4,TRUE,137:137) -> 0.07167409025 | H137: ='Target Scenario'!N29 -> 0.11 | I137: =CHOOSE(E137,F137,G137,H137) -> 0.1156399733 | J137: TRUE | K137: 18 | M137: =IF(M$4,M135/M136,$I137) -> 0 | N137: =IF(N$4,N135/N136,$I137) -> 0 | O137: 0 | P137: 0.1900022013 | Q137: 0.1244023669 | R137: 0.1156399733 | S137: 0.1156399733 | T137: 0.1156399733 | U137: 0.1156399733 | V137: 0.1156399733 | W137: 0.1156399733 | X137: 0.1156399733 | Y137: 0.1156399733 | Z137: 0.1156399733 | AA137: 0.1156399733
K138: 18
B139: Accrued Expenses | K139: 18 | M139: ='Target Model'!I40 -> 12720 | N139: ='Target Model'!J40 -> 32528 | O139: ='Target Model'!K40 -> 57957 | P139: ='Target Model'!L40 -> 20342.988 | Q139: ='Target Model'!M40 -> 24172.883 | R139: ='Target Model'!N40 -> 22969.507 | S139: ='Target Model'!O40 -> 0 | T139: ='Target Model'!P40 -> 0 | U139: ='Target Model'!Q40 -> 0 | V139: ='Target Model'!R40 -> 0 | W139: ='Target Model'!S40 -> 0 | X139: ='Target Model'!T40 -> 0 | Y139: ='Target Model'!U40 -> 0 | Z139: ='Target Model'!V40 -> 0 | AA139: ='Target Model'!W40 -> 0
B140: Total Operating Cost | K140: 18 | M140: =M136 -> 81670 | N140: =N136 -> 164465 | O140: 253202 | P140: 350240 | Q140: 370955 | R140: 431502.4 | S140: 431544.2565 | T140: 406712.9621 | U140: 388385.936 | V140: 364069.729 | W140: 348376.0141 | X140: 330660.0795 | Y140: 308427.8465 | Z140: 283972.3903 | AA140: 257071.3884
B141: Accrued Expenses Percent of Op Cost | E141: 1 | F141: =SUMIF($3:$3,TRUE,141:141) -> 0.05323146986 | G141: =AVERAGEIF($4:$4,TRUE,141:141) -> 0.1264840185 | H141: 0.05 | I141: =CHOOSE(E141,F141,G141,H141) -> 0.05323146986 | J141: TRUE | K141: 19 | M141: =IF(M$4,M139/M140,$I141) -> 0.1557487449 | N141: =IF(N$4,N139/N140,$I141) -> 0.1977806828 | O141: 0.2288962962 | P141: 0.05808299452 | Q141: 0.06516392285 | R141: 0.05323146986 | S141: 0.05323146986 | T141: 0.05323146986 | U141: 0.05323146986 | V141: 0.05323146986 | W141: 0.05323146986 | X141: 0.05323146986 | Y141: 0.05323146986 | Z141: 0.05323146986 | AA141: 0.05323146986
K142: 19
B143: Deferred Revenue | K143: 19 | M143: ='Target Model'!I42 -> 0 | N143: ='Target Model'!J42 -> 0 | O143: ='Target Model'!K42 -> 0 | P143: ='Target Model'!L42 -> 0 | Q143: ='Target Model'!M42 -> 795.03 | R143: ='Target Model'!N42 -> 3036.924 | S143: ='Target Model'!O42 -> 0 | T143: ='Target Model'!P42 -> 0 | U143: ='Target Model'!Q42 -> 0 | V143: ='Target Model'!R42 -> 0 | W143: ='Target Model'!S42 -> 0 | X143: ='Target Model'!T42 -> 0 | Y143: ='Target Model'!U42 -> 0 | Z143: ='Target Model'!V42 -> 0 | AA143: ='Target Model'!W42 -> 0
B144: Total Revenues | K144: 19 | M144: =M124 -> 97750 | N144: =N124 -> 200109 | O144: 305530 | P144: 373683 | Q144: 424541 | R144: 455901.6 | S144: 0 | T144: 0 | U144: 0 | V144: 0 | W144: 0 | X144: 0 | Y144: 0 | Z144: 0 | AA144: 0
B145: Deferred Revenue Percent | E145: 1 | F145: =SUMIF($3:$3,TRUE,145:145) -> 0.006661358504 | G145: =AVERAGEIF($4:$4,TRUE,145:145) -> 0.001422339971 | H145: 0.01 | I145: =CHOOSE(E145,F145,G145,H145) -> 0.006661358504 | J145: TRUE | K145: 20 | M145: =IF(M$4,M143/M144,$I145) -> 0 | N145: =IF(N$4,N143/N144,$I145) -> 0 | O145: 0 | P145: 0 | Q145: 0.001872681319 | R145: 0.006661358504 | S145: 0.006661358504 | T145: 0.006661358504 | U145: 0.006661358504 | V145: 0.006661358504 | W145: 0.006661358504 | X145: 0.006661358504 | Y145: 0.006661358504 | Z145: 0.006661358504 | AA145: 0.006661358504
K146: 20
A147: Other Assets and Liabilities | K147: 20
B148: Aircraft Held for Sale | K148: 20 | M148: =IF(M4,'Target Model'!I14,L148) -> 0 | N148: =IF(N4,'Target Model'!J14,M148) -> 0 | O148: =IF(O4,'Target Model'!K14,N148) -> 0 | P148: =IF(P4,'Target Model'!L14,O148) -> 6593.069 | Q148: =IF(Q4,'Target Model'!M14,P148) -> 6117.266 | R148: =IF(R4,'Target Model'!N14,Q148) -> 5346.453 | S148: =IF(S4,'Target Model'!O14,R148) -> 5346.453 | T148: =IF(T4,'Target Model'!P14,S148) -> 5346.453 | U148: =IF(U4,'Target Model'!Q14,T148) -> 5346.453 | V148: =IF(V4,'Target Model'!R14,U148) -> 5346.453 | W148: =IF(W4,'Target Model'!S14,V148) -> 5346.453 | X148: =IF(X4,'Target Model'!T14,W148) -> 5346.453 | Y148: =IF(Y4,'Target Model'!U14,X148) -> 5346.453 | Z148: =IF(Z4,'Target Model'!V14,Y148) -> 5346.453 | AA148: =IF(AA4,'Target Model'!W14,Z148) -> 5346.453
B149: Notes Receivable | K149: 20 | M149: =IF(M4,'Target Model'!I17+'Target Model'!I31+'Target Model'!I32,L149) -> 0 | N149: =IF(N4,'Target Model'!J17+'Target Model'!J31+'Target Model'!J32,M149) -> 0 | O149: =IF(O4,'Target Model'!K17+'Target Model'!K31+'Target Model'!K32,N149) -> 0 | P149: =IF(P4,'Target Model'!L17+'Target Model'!L31+'Target Model'!L32,O149) -> 371.053 | Q149: =IF(Q4,'Target Model'!M17+'Target Model'!M31+'Target Model'!M32,P149) -> 317.89 | R149: =IF(R4,'Target Model'!N17+'Target Model'!N31+'Target Model'!N32,Q149) -> 878.088 | S149: =IF(S4,'Target Model'!O17+'Target Model'!O31+'Target Model'!O32,R149) -> 878.088 | T149: =IF(T4,'Target Model'!P17+'Target Model'!P31+'Target Model'!P32,S149) -> 878.088 | U149: =IF(U4,'Target Model'!Q17+'Target Model'!Q31+'Target Model'!Q32,T149) -> 878.088 | V149: =IF(V4,'Target Model'!R17+'Target Model'!R31+'Target Model'!R32,U149) -> 878.088 | W149: =IF(W4,'Target Model'!S17+'Target Model'!S31+'Target Model'!S32,V149) -> 878.088 | X149: =IF(X4,'Target Model'!T17+'Target Model'!T31+'Target Model'!T32,W149) -> 878.088 | Y149: =IF(Y4,'Target Model'!U17+'Target Model'!U31+'Target Model'!U32,X149) -> 878.088 | Z149: =IF(Z4,'Target Model'!V17+'Target Model'!V31+'Target Model'!V32,Y149) -> 878.088 | AA149: =IF(AA4,'Target Model'!W17+'Target Model'!W31+'Target Model'!W32,Z149) -> 878.088
C150: Total Other Assets | K150: 20 | M150: =IF(M4,SUM(M148:M149)) -> 0 | N150: =SUM(N148:N149) -> 0 | O150: 0 | P150: 6964.122 | Q150: 6435.156 | R150: 6224.541 | S150: 6224.541 | T150: 6224.541 | U150: 6224.541 | V150: 6224.541 | W150: 6224.541 | X150: 6224.541 | Y150: 6224.541 | Z150: 6224.541 | AA150: 6224.541
K151: 20
B152: Deferred Gain on Sale | K152: 20 | M152: =IF(M4,'Target Model'!I41,L152) -> 0 | N152: =IF(N4,'Target Model'!J41,M152) -> 0 | O152: =IF(O4,'Target Model'!K41,N152) -> 0 | P152: =IF(P4,'Target Model'!L41,O152) -> 0 | Q152: =IF(Q4,'Target Model'!M41,P152) -> 0 | R152: =IF(R4,'Target Model'!N41,Q152) -> 30255.291 | S152: =IF(S4,'Target Model'!O41,R152) -> 30255.291 | T152: =IF(T4,'Target Model'!P41,S152) -> 30255.291 | U152: =IF(U4,'Target Model'!Q41,T152) -> 30255.291 | V152: =IF(V4,'Target Model'!R41,U152) -> 30255.291 | W152: =IF(W4,'Target Model'!S41,V152) -> 30255.291 | X152: =IF(X4,'Target Model'!T41,W152) -> 30255.291 | Y152: =IF(Y4,'Target Model'!U41,X152) -> 30255.291 | Z152: =IF(Z4,'Target Model'!V41,Y152) -> 30255.291 | AA152: =IF(AA4,'Target Model'!W41,Z152) -> 30255.291
K153: 20
B154: Restricted Cash | E154: 1 | F154: =SUMIF($3:$3,TRUE,154:154) -> 14036.924 | G154: =AVERAGEIF($4:$4,TRUE,154:154) -> 2471.992333 | H154: 0 | I154: =CHOOSE(E154,F154,G154,H154) -> 14036.924 | J154: TRUE | K154: 21 | M154: =IF(M4,'Target Model'!I10,$I$154) -> 0 | N154: =IF(N4,'Target Model'!J10,$I$154) -> 0 | O154: =IF(O4,'Target Model'!K10,$I$154) -> 0 | P154: =IF(P4,'Target Model'!L10,$I$154) -> 0 | Q154: =IF(Q4,'Target Model'!M10,$I$154) -> 795.03 | R154: =IF(R4,'Target Model'!N10,$I$154) -> 14036.924 | S154: =IF(S4,'Target Model'!O10,$I$154) -> 14036.924 | T154: =IF(T4,'Target Model'!P10,$I$154) -> 14036.924 | U154: =IF(U4,'Target Model'!Q10,$I$154) -> 14036.924 | V154: =IF(V4,'Target Model'!R10,$I$154) -> 14036.924 | W154: =IF(W4,'Target Model'!S10,$I$154) -> 14036.924 | X154: =IF(X4,'Target Model'!T10,$I$154) -> 14036.924 | Y154: =IF(Y4,'Target Model'!U10,$I$154) -> 14036.924 | Z154: =IF(Z4,'Target Model'!V10,$I$154) -> 14036.924 | AA154: =IF(AA4,'Target Model'!W10,$I$154) -> 14036.924
K155: 21
B156: Other Income | E156: 3 | F156: =SUMIF($3:$3,TRUE,156:156) -> -103 | G156: =AVERAGEIF($4:$4,TRUE,156:156) -> 4714 | H156: 0 | I156: =CHOOSE(E156,F156,G156,H156) -> 0 | J156: TRUE | K156: 22 | M156: =IF(M4,SUM('Target Model'!I76:I79),$I$156) -> 2900 | N156: =IF(N4,SUM('Target Model'!J76:J79),$I$156) -> 1524 | O156: =IF(O4,SUM('Target Model'!K76:K79),$I$156) -> 2840 | P156: =IF(P4,SUM('Target Model'!L76:L79),$I$156) -> 19856 | Q156: =IF(Q4,SUM('Target Model'!M76:M79),$I$156) -> 1267 | R156: =IF(R4,SUM('Target Model'!N76:N79),$I$156) -> -103 | S156: =IF(S4,SUM('Target Model'!O76:O79),$I$156) -> 0 | T156: =IF(T4,SUM('Target Model'!P76:P79),$I$156) -> 0 | U156: =IF(U4,SUM('Target Model'!Q76:Q79),$I$156) -> 0 | V156: =IF(V4,SUM('Target Model'!R76:R79),$I$156) -> 0 | W156: =IF(W4,SUM('Target Model'!S76:S79),$I$156) -> 0 | X156: =IF(X4,SUM('Target Model'!T76:T79),$I$156) -> 0 | Y156: =IF(Y4,SUM('Target Model'!U76:U79),$I$156) -> 0 | Z156: =IF(Z4,SUM('Target Model'!V76:V79),$I$156) -> 0 | AA156: =IF(AA4,SUM('Target Model'!W76:W79),$I$156) -> 0
K157: 22
A158: Cash, Debt and Minority Interest | K158: 22
B159: Cash Balance | K159: 22 | M159: ='Target Model'!I9 -> 1000 | N159: ='Target Model'!J9 -> 1000 | O159: ='Target Model'!K9 -> 1000 | P159: ='Target Model'!L9 -> 1091.96 | Q159: ='Target Model'!M9 -> 2324.353 | R159: ='Target Model'!N9 -> 3282.142 | S159: ='Target Model'!O9 -> 0 | T159: ='Target Model'!P9 -> 0 | U159: ='Target Model'!Q9 -> 0 | V159: ='Target Model'!R9 -> 0 | W159: ='Target Model'!S9 -> 0 | X159: ='Target Model'!T9 -> 0 | Y159: ='Target Model'!U9 -> 0 | Z159: ='Target Model'!V9 -> 0 | AA159: ='Target Model'!W9 -> 0
B160: Restricted Cash | K160: 22 | M160: ='Target Model'!I10 -> 0 | N160: ='Target Model'!J10 -> 0 | O160: ='Target Model'!K10 -> 0 | P160: ='Target Model'!L10 -> 0 | Q160: ='Target Model'!M10 -> 795.03 | R160: ='Target Model'!N10 -> 14036.924 | S160: ='Target Model'!O10 -> 0 | T160: ='Target Model'!P10 -> 0 | U160: ='Target Model'!Q10 -> 0 | V160: ='Target Model'!R10 -> 0 | W160: ='Target Model'!S10 -> 0 | X160: ='Target Model'!T10 -> 0 | Y160: ='Target Model'!U10 -> 0 | Z160: ='Target Model'!V10 -> 0 | AA160: ='Target Model'!W10 -> 0
B161: Total | K161: 22 | M161: =SUM(M159:M160) -> 1000 | N161: =SUM(N159:N160) -> 1000 | O161: 1000 | P161: 1091.96 | Q161: 3119.383 | R161: 17319.066 | S161: 0 | T161: 0 | U161: 0 | V161: 0 | W161: 0 | X161: 0 | Y161: 0 | Z161: 0 | AA161: 0
B162: Average | K162: 22 | M162: =AVERAGE(L161:M161) -> 1000 | N162: =AVERAGE(M161:N161) -> 1000 | O162: 1000 | P162: 1045.98 | Q162: 2105.6715 | R162: 10219.2245 | S162: 8659.533 | T162: 0 | U162: 0 | V162: 0 | W162: 0 | X162: 0 | Y162: 0 | Z162: 0 | AA162: 0
K163: 22
B164: Interest Income | K164: 22 | M164: ='Target Model'!I75 -> 0 | N164: ='Target Model'!J75 -> 36 | O164: ='Target Model'!K75 -> 113 | P164: ='Target Model'!L75 -> 315 | Q164: ='Target Model'!M75 -> 379 | R164: ='Target Model'!N75 -> 349 | S164: ='Target Model'!O75 -> 0 | T164: ='Target Model'!P75 -> 0 | U164: ='Target Model'!Q75 -> 0 | V164: ='Target Model'!R75 -> 0 | W164: ='Target Model'!S75 -> 0 | X164: ='Target Model'!T75 -> 0 | Y164: ='Target Model'!U75 -> 0 | Z164: ='Target Model'!V75 -> 0 | AA164: ='Target Model'!W75 -> 0
B165: Interest Income Rate | E165: 3 | F165: =SUMIF($3:$3,TRUE,165:165) -> 0.04781184717 | G165: =AVERAGEIF($4:$4,TRUE,165:165) -> 0.1129924869 | H165: 0.095 | I165: 0.03 | J165: TRUE | K165: 23 | M165: =IF(M$4,M164/M162,$I$165) -> 0 | N165: =IF(N$4,N164/N162,$I$165) -> 0.036 | O165: =IF(O$4,O164/O162,$I$165) -> 0.113 | P165: =IF(P$4,P164/P162,$I$165) -> 0.3011529857 | Q165: =IF(Q$4,Q164/Q162,$I$165) -> 0.1799900887 | R165: =IF(R$4,R164/R162/R2,$I$165) -> 0.04781184717 | S165: =IF(S$4,S164/S162,$I$165) -> 0.03 | T165: 0.03 | U165: 0.03 | V165: 0.03 | W165: 0.03 | X165: 0.03 | Y165: 0.03 | Z165: 0.03 | AA165: 0.03
K166: 23
B167: Total Debt | K167: 23 | M167: ='Target Model'!I56 -> 80010 | N167: ='Target Model'!J56 -> 84936 | O167: ='Target Model'!K56 -> 137405 | P167: ='Target Model'!L56 -> 220471.593 | Q167: ='Target Model'!M56 -> 238350.842 | R167: ='Target Model'!N56 -> 255092.981 | S167: ='Target Model'!O56 -> 0 | T167: ='Target Model'!P56 -> 0 | U167: ='Target Model'!Q56 -> 0 | V167: ='Target Model'!R56 -> 0 | W167: ='Target Model'!S56 -> 0 | X167: ='Target Model'!T56 -> 0 | Y167: ='Target Model'!U56 -> 0 | Z167: ='Target Model'!V56 -> 0 | AA167: ='Target Model'!W56 -> 0
B168: Average | K168: 23 | M168: =AVERAGE(L167:M167) -> 80010 | N168: =AVERAGE(M167:N167) -> 82473 | O168: 111170.5 | P168: 178938.2965 | Q168: 229411.2175 | R168: 246721.9115 | S168: 127546.4905 | T168: 0 | U168: 0 | V168: 0 | W168: 0 | X168: 0 | Y168: 0 | Z168: 0 | AA168: 0
K169: 23
B170: Interest Expense | K170: 23 | M170: =-'Target Model'!I74 -> 4396 | N170: =-'Target Model'!J74 -> 6781 | O170: =-'Target Model'!K74 -> 8121 | P170: =-'Target Model'!L74 -> 15064 | Q170: =-'Target Model'!M74 -> 22012 | R170: =-'Target Model'!N74 -> 20089 | S170: =-'Target Model'!O74 -> 0 | T170: =-'Target Model'!P74 -> 0 | U170: =-'Target Model'!Q74 -> 0 | V170: =-'Target Model'!R74 -> 0 | W170: =-'Target Model'!S74 -> 0 | X170: =-'Target Model'!T74 -> 0 | Y170: =-'Target Model'!U74 -> 0 | Z170: =-'Target Model'!V74 -> 0 | AA170: =-'Target Model'!W74 -> 0
B171: Interest Expense Rate | E171: 3 | F171: =SUMIF($3:$3,TRUE,171:171) -> 0.1139931181 | G171: =AVERAGEIF($4:$4,TRUE,171:171) -> 0.08405707831 | H171: ='Target Scenario'!O29 -> 0.095 | I171: =CHOOSE(E171,F171,G171,H171) -> 0.095 | J171: TRUE | K171: 24 | M171: =IF(M$4,M170/M168,$I$171) -> 0.05494313211 | N171: =IF(N$4,N170/N168,$I$171) -> 0.08222084804 | O171: =IF(O$4,O170/O168,$I$171) -> 0.0730499548 | P171: =IF(P$4,P170/P168,$I$171) -> 0.08418544434 | Q171: =IF(Q$4,Q170/Q168,$I$171) -> 0.09594997246 | R171: =IF(R$4,R170/R168/R2,$I$171) -> 0.1139931181 | S171: =IF(S$4,S170/S168,$I$171) -> 0.095 | T171: 0.095 | U171: 0.095 | V171: 0.095 | W171: 0.095 | X171: 0.095 | Y171: 0.095 | Z171: 0.095 | AA171: 0.095
K172: 24
B173: Minority Interest Balance | K173: 24 | M173: ='Target Model'!I52 -> 0 | N173: ='Target Model'!J52 -> 0 | O173: ='Target Model'!K52 -> 0 | P173: ='Target Model'!L52 -> 3944.07 | Q173: ='Target Model'!M52 -> 3551.735 | R173: ='Target Model'!N52 -> 3572.437 | S173: ='Target Model'!O52 -> 0 | T173: ='Target Model'!P52 -> 0 | U173: ='Target Model'!Q52 -> 0 | V173: ='Target Model'!R52 -> 0 | W173: ='Target Model'!S52 -> 0 | X173: ='Target Model'!T52 -> 0 | Y173: ='Target Model'!U52 -> 0 | Z173: ='Target Model'!V52 -> 0 | AA173: ='Target Model'!W52 -> 0
B174: Minority Interest Income | K174: 24 | M174: =-'Target Model'!I82 -> 424 | N174: =-'Target Model'!J82 -> 1458 | O174: =-'Target Model'!K82 -> 2758 | P174: =-'Target Model'!L82 -> 3092 | Q174: =-'Target Model'!M82 -> 1146 | R174: =-'Target Model'!N82 -> 1859 | S174: =-'Target Model'!O82 -> 0 | T174: =-'Target Model'!P82 -> 0 | U174: =-'Target Model'!Q82 -> 0 | V174: =-'Target Model'!R82 -> 0 | W174: =-'Target Model'!S82 -> 0 | X174: =-'Target Model'!T82 -> 0 | Y174: =-'Target Model'!U82 -> 0 | Z174: =-'Target Model'!V82 -> 0 | AA174: =-'Target Model'!W82 -> 0
K175: 24
B176: Income Before Minority Interest | K176: 24 | M176: ='Target Model'!I81 -> 5585 | N176: ='Target Model'!J81 -> 18001 | O176: ='Target Model'!K81 -> 33351 | P176: ='Target Model'!L81 -> 7578 | Q176: ='Target Model'!M81 -> 1129 | R176: ='Target Model'!N81 -> -28883 | S176: ='Target Model'!O81 -> 0 | T176: ='Target Model'!P81 -> 0 | U176: ='Target Model'!Q81 -> 0 | V176: ='Target Model'!R81 -> 0 | W176: ='Target Model'!S81 -> 0 | X176: ='Target Model'!T81 -> 0 | Y176: ='Target Model'!U81 -> 0 | Z176: ='Target Model'!V81 -> 0 | AA176: ='Target Model'!W81 -> 0
B177: Minority Interest Rate | E177: 3 | F177: =SUMIF($3:$3,TRUE,177:177) -> -0.06436312017 | G177: =AVERAGEIF($4:$4,TRUE,177:177) -> 0.266387831 | H177: 0.07 | I177: =CHOOSE(E177,F177,G177,H177) -> 0.07 | J177: TRUE | K177: 25 | M177: =IF(M4,M174/M176,$I$177) -> 0.07591763653 | N177: 0.08099550025 | O177: 0.08269617103 | P177: 0.4080232251 | Q177: 1.015057573 | R177: -0.06436312017 | S177: 0.07 | T177: 0.07 | U177: 0.07 | V177: 0.07 | W177: 0.07 | X177: 0.07 | Y177: 0.07 | Z177: 0.07 | AA177: 0.07
K178: 25
B179: Cash as Percent of Revenues | E179: 3 | F179: =SUMIF($3:$3,TRUE,179:179) -> 0.007199233343 | G179: =AVERAGEIF($4:$4,TRUE,179:179) -> 0.005682804112 | H179: 0.005 | I179: =CHOOSE(E179,F179,G179,H179) -> 0.005 | J179: TRUE | K179: 26 | M179: =IF(M4,M159/M124,$I$179) -> 0.01023017903 | N179: 0.004997276484 | O179: 0.003273001015 | P179: 0.002922155945 | Q179: 0.00547497886 | R179: 0.007199233343 | S179: 0.005 | T179: 0.005 | U179: 0.005 | V179: 0.005 | W179: 0.005 | X179: 0.005 | Y179: 0.005 | Z179: 0.005 | AA179: 0.005
A181: Existing Debt Financing
B182: Initial Debt | E182: 250000
B183: Repayment Years | E183: 6
B184: Repayment Amount | E184: =E182/E183 -> 41666.66667
B185: Interest Rate | E185: ='Target Scenario'!O29 -> 0.095
B186: Date of Issue | E186: 1997
A196: Graph Data | E196: Number | F196: Row
D197: =INDEX(B:B,F197)&INDEX(C:C,F197)&INDEX(D:D,F197) -> Net Capacity | E197: 1 | F197: =MATCH(E197,K:K,0) -> 18 | M197: =INDEX(M:M,$F197) -> 0 | N197: 0 | O197: 0 | P197: 0 | Q197: 0 | R197: 5222986.667 | S197: 5222986.667 | T197: 5491743.282 | U197: 5504184.339 | V197: 5265969.502 | W197: 5003933.181 | X197: 4715693.227 | Y197: 4398629.279 | Z197: 4049858.936 | AA197: 3666211.558
D198: Flight Hours | E198: 2 | F198: 20 | M198: 39404 | N198: 55220 | O198: 76346 | P198: 84058 | Q198: 91690 | R198: 70721 | S198: 28288.4 | T198: 104104.0772 | U198: 104339.9158 | V198: 99824.2029 | W198: 94856.91875 | X198: 89392.90617 | Y198: 83382.49234 | Z198: 76771.03713 | AA198: 69498.43639
D199: Freight Revenues | E199: 3 | F199: 31 | M199: 95144 | N199: 194525 | O199: 298081 | P199: 359404 | Q199: 388193 | R199: 302345 | S199: 0 | T199: 0 | U199: 0 | V199: 0 | W199: 0 | X199: 0 | Y199: 0 | Z199: 0 | AA199: 0
D200: Price per lb Applied | E200: 4 | F200: 42 | M200: 0 | N200: 0 | O200: 0 | P200: 0 | Q200: 0 | R200: 81.04232827 | S200: 81.04232827 | T200: 81.04232827 | U200: 81.04232827 | V200: 81.04232827 | W200: 81.04232827 | X200: 81.04232827 | Y200: 81.04232827 | Z200: 81.04232827 | AA200: 81.04232827
D201: Revenues | E201: 5 | F201: 43 | M201: 95144 | N201: 194525 | O201: 298081 | P201: 359404 | Q201: 388193 | R201: 302345 | S201: 120938 | T201: 445063.6618 | U201: 446071.9141 | V201: 426766.429 | W201: 405530.3955 | X201: 382170.7586 | Y201: 356475.158 | Z201: 328209.9973 | AA201: 297118.3206
D202: Revenues per Flight Hour | E202: 6 | F202: 44 | M202: 2.4145772 | N202: 3.522727273 | O202: 3.904343384 | P202: 4.275666801 | Q202: 4.233755044 | R202: 4.275179932 | S202: 4.275179932 | T202: 4.275179932 | U202: 4.275179932 | V202: 4.275179932 | W202: 4.275179932 | X202: 4.275179932 | Y202: 4.275179932 | Z202: 4.275179932 | AA202: 4.275179932
D203: Escalated Revenues | E203: 7 | F203: 50 | M203: 2606 | N203: 5584 | O203: 7449 | P203: 14279 | Q203: 36348 | R203: 23299 | S203: 13792.09961 | T203: 49237.79559 | U203: 50222.55151 | V203: 51227.00254 | W203: 52251.54259 | X203: 53296.57344 | Y203: 54362.50491 | Z203: 55449.75501 | AA203: 56558.75011
D204: Flight per Hour - Base Case | E204: 8 | F204: 60 | M204: 0.9455639021 | N204: 1.138663528 | O204: 1.514342598 | P204: 2.007839825 | Q204: 1.63873923 | R204: 1.78459015 | S204: 1.78459015 | T204: 1.6 | U204: 1.5 | V204: 1.4 | W204: 1.4 | X204: 1.4 | Y204: 1.4 | Z204: 1.4 | AA204: 1.4
D205: Maint per Hour - Base Case | E205: 9 | F205: 70 | M205: 0.5612120597 | N205: 0.9404744658 | O205: 0.8477457889 | P205: 1.229972162 | Q205: 1.255120515 | R205: 1.519096167 | S205: 1.519096167 | T205: 1.25 | U205: 1.15 | V205: 1.15 | W205: 1.15 | X205: 1.15 | Y205: 1.15 | Z205: 1.15 | AA205: 1.15
D206: Fuel per Hour - Low Case | E206: 10 | F206: 80 | M206: 0.4189422394 | N206: 0.6981890619 | O206: 0.751342572 | P206: 0.6488139142 | Q206: 0.9021376377 | R206: 0.779047242 | S206: 0.779047242 | T206: 0.8024186592 | U206: 0.826491219 | V206: 0.8512859556 | W206: 0.8768245343 | X206: 0.9031292703 | Y206: 0.9031292703 | Z206: 0.9031292703 | AA206: 0.9031292703
D207: SG&A per Revenue - Base Case | E207: 11 | F207: 90 | M207: 0.04447994619 | N207: 0.0491145097 | O207: 0.04452816516 | P207: 0.06031095925 | Q207: 0.05638690033 | R207: 0.05903190064 | S207: 0.05903190064 | T207: 0.054 | U207: 0.052 | V207: 0.052 | W207: 0.052 | X207: 0.052 | Y207: 0.052 | Z207: 0.052 | AA207: 0.052
D208: Per Revenue | E208: 12 | F208: 93 | M208: 0.01636466829 | N208: 0.007952705308 | O208: 0.007484542792 | P208: 0.005180799323 | Q208: 0.002604374628 | R208: 0.005401114621 | S208: 0.0055 | T208: 0.0055 | U208: 0.0055 | V208: 0.0055 | W208: 0.0055 | X208: 0.0055 | Y208: 0.0055 | Z208: 0.0055 | AA208: 0.0055
D209: Base Case Maintenance Expenditures | E209: 13 | F209: 104 | M209: 0 | N209: 0 | O209: 0 | P209: 0 | Q209: 0 | R209: 0 | S209: 21803.6 | T209: 35000 | U209: 35000 | V209: 30000 | W209: 30000 | X209: 30000 | Y209: 30000 | Z209: 20000 | AA209: 20000
D210: Gross Plant Depreciation Rate | E210: 14 | F210: 114 | M210: 0.07672108786 | N210: 0.0977356056 | O210: 0.06095585347 | P210: 0.06807132422 | Q210: 0.08587043254 | R210: 0.1022636124 | S210: 0.1022636124 | T210: 0.1022636124 | U210: 0.1022636124 | V210: 0.1022636124 | W210: 0.1022636124 | X210: 0.1022636124 | Y210: 0.1022636124 | Z210: 0.1022636124 | AA210: 0.1022636124
D211: A/R Percent | E211: 15 | F211: 125 | M211: 0.05604092072 | N211: 0.1790374246 | O211: 0.1470232056 | P211: 0.2479751126 | Q211: 0.1649826589 | R211: 0.1451266721 | S211: 0.16 | T211: 0.16 | U211: 0.16 | V211: 0.16 | W211: 0.16 | X211: 0.16 | Y211: 0.16 | Z211: 0.16 | AA211: 0.16
... 49 more rows

Sheet Target Model
A1: Timing | I1: 1 | J1: 2 | K1: 3 | L1: 4 | M1: 5 | N1: 6 | O1: 7 | P1: 8 | Q1: 9 | R1: 10 | S1: 11 | T1: 12 | U1: 13 | V1: 14 | W1: 15
B2: Year | I2: 1992 | J2: 1993 | K2: 1994 | L2: 1995 | M2: 1996 | N2: 1997 | O2: =N2 -> 1997 | P2: =O2+1 -> 1998 | Q2: =P2+1 -> 1999 | R2: 2000 | S2: 2001 | T2: 2002 | U2: 2003 | V2: 2004 | W2: 2005
B3: Months | I3: 12 | J3: 12 | K3: 12 | L3: 12 | M3: 12 | N3: 9 | O3: 3 | P3: 12 | Q3: 12 | R3: 12 | S3: 12 | T3: 12 | U3: 12 | V3: 12 | W3: 12
B4: Annualisation Factor | I4: 1 | J4: 1 | K4: 1 | L4: 1 | M4: 1 | N4: =1/1.4 -> 0.7142857143 | O4: =1-N4 -> 0.2857142857 | P4: 1 | Q4: 1 | R4: 1 | S4: 1 | T4: 1 | U4: 1 | V4: 1 | W4: 1
B5: Historic Switch | E5: Debt | F5: IC Cap | G5: IC Dir | H5: Test | I5: TRUE | J5: TRUE | K5: TRUE | L5: TRUE | M5: TRUE | N5: TRUE | O5: FALSE | P5: FALSE | Q5: FALSE | R5: FALSE | S5: FALSE | T5: FALSE | U5: FALSE | V5: FALSE | W5: FALSE
A6: Historic Financial Statements
B7: Balance Sheet
C8: CURRENT ASSETS:
D9: Cash | I9: 1000 | J9: 1000 | K9: 1000 | L9: 1091.96 | M9: 2324.353 | N9: 3282.142
D10: Restricted cash | L10: 0 | M10: 795.03 | N10: 14036.924
D11: Accounts receivable, net (Notes 1 and 3) | I11: 5478 | J11: 35827 | K11: 44920 | L11: 88273.823 | M11: 67081.125 | N11: 64908.684
D12: Accounts receivable 0 related parties | L12: 4390.261 | M12: 2960.778 | N12: 1254.798
D13: Expendable parts and supplies | L13: 12330.854 | M13: 20742.14 | N13: 24624.354
D14: Aircraft held for resale (Note 4) | L14: 6593.069 | M14: 6117.266 | N14: 5346.453
D15: Deposits, prepaid expenses and other assets | L15: 4914.056 | M15: 8018.273 | N15: 7326.008
D16: Prepaid fuel | L16: 4080.373 | M16: 5828.047 | N16: 6999.565
D17: Notes receivable, current | L17: 186.085 | M17: 186.085 | N17: 100.804
D18: Total current assets | L18: 121860.481 | M18: 114053.097 | N18: 127879.732
D19: PROPERTY AND EQUIPMENT: | L19: 0 | M19: 0 | N19: 0
D20: Land and improvements | L20: 228.678 | M20: 228.678 | N20: 228.678
D21: Building and leasehold improvements (Note 4) | L21: 9347.825 | M21: 12752.356 | N21: 14363.228
D22: Rotable parts (Note 3) | L22: 14560.287 | M22: 16779.386 | N22: 17661.392
D23: Equipment (Note 3) | L23: 19685.442 | M23: 23677.64 | N23: 26317.512
D24: Aircraft (Note 3) | L24: 264266.383 | M24: 320276.14 | N24: 303778.995
D25: Total | I25: 117295 | J25: 127098 | K25: 226541 | L25: 308088.615 | M25: 373714.2 | N25: 362349.805
D26: Less accumulated depreciation | L26: 81246.881 | M26: 109707.512 | N26: 113883.56
D27: Net | I27: 117295 | J27: 127098 | K27: 226541 | L27: 226841.734 | M27: 264006.688 | N27: 248466.245
D28: Aircraft in modification (Note 3) | L28: 25557.078 | M28: 988.541 | N28: 21925.586
D29: Construction in progress | L29: 3152.56 | M29: 923.15 | N29: 1427.361
D30: Total property and equipment, net | L30: 255551.372 | M30: 265918.379 | N30: 271819.192
D31: NOTES RECEIVABLE, LESS CURRENT PORTION | L31: 184.968 | M31: 131.805 | N31: 0
D32: RECEIVABLE FROM AFFILIATED COMPANY | L32: 0 | M32: 0 | N32: 777.284
D33: TOTAL ASSETS (Notes 3 and 4) | I33: 123773 | J33: 163925 | K33: 272461 | L33: 377596.821 | M33: 380103.281 | N33: 400476.208
B35: LIABILITIES AND STOCKHOLDER'S EQUITY | L35: 6779.154 | M35: 6303.351 | N35: 6224.541
C36: CURRENT LIABILITIES:
D37: Accounts payable:
D38: Trade (Note 1) | L38: 62125.228 | M38: 46070.23 | N38: 49898.805
D39: Related parties | L39: 4421.143 | M39: 77.45 | N39: 0.121
D40: Accrued liabilities | I40: 12720 | J40: 32528 | K40: 57957 | L40: 20342.988 | M40: 24172.883 | N40: 22969.507
D41: Deferred gain on sale of aircraft (Note 12) | L41: 0 | M41: 0 | N41: 30255.291
D42: Deferred revenue | L42: 0 | M42: 795.03 | N42: 3036.924
D43: Notes payable to bank, reclassified as current (Note 3) | E43: 1 | L43: 0 | M43: 47105.413 | N43: 55434.351
D44: Long term debt, reclassified as current (Note 4) | E44: 1 | L44: 0 | M44: 155910.954 | N44: 104623.812
D45: Notes payable to bank (Note 3) | E45: 1 | L45: 12226.496 | M45: 1024.035 | N45: 2994.849
D46: Current maturities of long-term debt (Note 4) | E46: 1 | L46: 42444.612 | M46: 34310.44 | N46: 91739.507
D47: Total current liabilities | E47: 0 | L47: 141560.467 | M47: 309466.435 | N47: 360953.167
D48: NOTES PAYABLE, NONCURRENT (Note 3) | E48: 1 | L48: 34983 | M48: 0 | N48: 0
D49: LONG-TERM DEBT, LESS CURRENT PORTION (Note 4) | E49: 1 | I49: 80010 | J49: 84936 | K49: 137405 | L49: 130717.485 | M49: 0 | N49: 0
D50: NOTE PAYABLE TO STOCKHOLDER (Note 8) | E50: 1 | L50: 100 | M50: 0 | N50: 300.462
D51: Total liabilities | L51: 307360.952 | M51: 309466.435 | N51: 361253.629
D52: MINORITY INTEREST IN AMERICAN INTERNATIONAL CARGO | L52: 3944.07 | M52: 3551.735 | N52: 3572.437
D53: Total stockholder's equity | I53: 31043 | J53: 46461 | K53: 77099 | L53: 66291.799 | M53: 67085.111 | N53: 35650.142
D54: TOTAL LIABILITIES AND STOCKHOLDER'S EQUITY | I54: 123773 | J54: 163925 | K54: 272461 | L54: 377596.821 | M54: 380103.281 | N54: 400476.208
D56: Total Debt | I56: =SUMPRODUCT(I37:I50,$E$37:$E$50) -> 80010 | J56: 84936 | K56: 137405 | L56: 220471.593 | M56: 238350.842 | N56: 255092.981
D57: Historic Test | I57: TRUE | J57: TRUE | K57: TRUE | L57: TRUE | M57: TRUE | N57: TRUE
B59: Income Statement
C60: Revenue
D61: Air freight carrier services | I61: 95144 | J61: 194525 | K61: 298081 | L61: 359404 | M61: 388193 | N61: 302345
D62: Maintenance and other(1) | I62: 2606 | J62: 5584 | K62: 7449 | L62: 14279 | M62: 36348 | N62: 23299
D63: Total revenues | I63: 97750 | J63: 200109 | K63: 305530 | L63: 373683 | M63: 424541 | N63: 325644
C64: Operating Costs
D65: Flight | I65: 37259 | J65: 62877 | K65: 115614 | L65: 168775 | M65: 150256 | N65: 126208
D66: Maintenance | I66: 22114 | J66: 51933 | K66: 64722 | L66: 103389 | M66: 115082 | N66: 107432
D67: Fuel | I67: 16508 | J67: 38554 | K67: 57362 | L67: 54538 | M67: 82717 | N67: 55095
D68: Depreciation | I68: 8999 | J68: 12422 | K68: 13809 | L68: 20972 | M68: 32091 | N68: 26468
D69: Selling, general and administrative | I69: 4232 | J69: 9554 | K69: 13273 | L69: 21676 | M69: 21889 | N69: 17848
D70: Provision for doubtful accounts | I70: 1557 | J70: 1547 | K70: 2231 | L70: 1862 | M70: 1011 | N70: 1633
D71: Total operating costs and expenses | I71: 90669 | J71: 176887 | K71: 267011 | L71: 371212 | M71: 403046 | N71: 334684
D72: Income (loss) from operations | I72: 7081 | J72: 23222 | K72: 38519 | L72: 2471 | M72: 21495 | N72: -9040
C73: Other Income (Expense)
D74: Interest expense | I74: -4396 | J74: -6781 | K74: -8121 | L74: -15064 | M74: -22012 | N74: -20089
D75: Interest income | I75: 0 | J75: 36 | K75: 113 | L75: 315 | M75: 379 | N75: 349
D76: Gain on disposition of aircraft held for resale | I76: 3018 | J76: 1945 | K76: 3390 | L76: 11708 | M76: 131 | N76: 624
D77: Gain on contract termination | I77: 0 | J77: 0 | K77: 0 | L77: 0 | M77: 1123 | N77: 0
D78: Gain on insurance settlement(3) | I78: 0 | J78: 0 | K78: 0 | L78: 8148 | M78: 0 | N78: 542
D79: Miscellaneous | I79: -118 | J79: -421 | K79: -550 | L79: 0 | M79: 13 | N79: -1269
D80: Total other income (expense) | I80: -1496 | J80: -5221 | K80: -5168 | L80: 5107 | M80: -20365 | N80: -19843
D81: Income (loss) before minority interest | I81: 5585 | J81: 18001 | K81: 33351 | L81: 7578 | M81: 1129 | N81: -28883
D82: Minority interest(4) | I82: -424 | J82: -1458 | K82: -2758 | L82: -3092 | M82: -1146 | N82: -1859
D83: Net income (loss)(5) | I83: 5161 | J83: 16543 | K83: 30593 | L83: 4486 | M83: -17 | N83: -30742
D85: Unaudited pro forma net income (loss)(6) | I85: 3200 | J85: 10257 | K85: 18968 | L85: 2781 | M85: -17 | N85: -30742
D86: OTHER FINANCIAL DATA:
D87: Capital expenditures | I87: 55863 | J87: 20468 | K87: 77832 | L87: 153719 | M87: 53413 | N87: 54509
D88: Adjusted EBITDA(7) | I88: 16080 | J88: 35645 | K88: 52328 | L88: 23443 | M88: 53586 | N88: 16159
D89: Ratio of adjusted EBITDA to total interest
D90: epense(8) | I90: 3.7 | J90: 5.3 | K90: 6.4 | L90: 1.6 | M90: 2.4
D91: Ratio of earnings to fied charges(9) | I91: 2 | J91: 2.4 | K91: 3.3 | L91: 1.2 | M91: 1
B92: Other Data
D93: Working capital (deficit)(10) | I93: -6242 | J93: 4299 | K93: -12037 | L93: -19700 | M93: -195413 | N93: -233073
D94: Current Liabilities | I94: 12720 | J94: 32528 | K94: 57957 | L94: 20342.988 | M94: 24172.883 | N94: 22969.507
D95: Current Assets | I95: 6478 | J95: 36827 | K95: 45920 | L95: 642.988 | M95: -171240.117 | N95: -210103.493
D96: Cash Assumed | I96: 1000 | J96: 1000 | K96: 1000 | L96: 1091.96 | M96: 2324.353 | N96: 3282.142
D97: Remaining Current Assets | I97: 5478 | J97: 35827 | K97: 44920
D98: Total assets | I98: 123773 | J98: 163925 | K98: 272461 | L98: 377597 | M98: 380103 | N98: 400476
D99: Total debt | I99: 80010 | J99: 84936 | K99: 137405 | L99: 220471 | M99: 238350 | N99: 255093
D100: Stockholder's equity | I100: 31043 | J100: 46461 | K100: 77099 | L100: 66292 | M100: 67085 | N100: 35650
C102: OPERATING DATA:
D103: Aircraft under operating leases | I103: 7 | J103: 8 | K103: 4 | L103: 4 | M103: 2 | N103: 2
D104: Aircraft owned | I104: 52 | J104: 57 | K104: 82 | L104: 91 | M104: 95 | N104: 84
D105: Total aircraft | I105: 59 | J105: 65 | K105: 86 | L105: 95 | M105: 97 | N105: 86
D106: Flight hours(11) | I106: 39404 | J106: 55220 | K106: 76346 | L106: 84058 | M106: 91690 | N106: 70721
A108: Operating Analysis
B109: Airfreight
C110: Capacity of Planes | N110: ='Target Assumptions'!R15*N4 -> 3730704.762 | O110: ='Target Assumptions'!S18*'Target Model'!O4 -> 1492281.905 | P110: ='Target Assumptions'!T18*'Target Model'!P4 -> 5491743.282 | Q110: ='Target Assumptions'!U18*'Target Model'!Q4 -> 5504184.339 | R110: ='Target Assumptions'!V18*'Target Model'!R4 -> 5265969.502 | S110: ='Target Assumptions'!W18*'Target Model'!S4 -> 5003933.181 | T110: ='Target Assumptions'!X18*'Target Model'!T4 -> 4715693.227 | U110: ='Target Assumptions'!Y18*'Target Model'!U4 -> 4398629.279 | V110: ='Target Assumptions'!Z18*'Target Model'!V4 -> 4049858.936 | W110: ='Target Assumptions'!AA18*'Target Model'!W4 -> 3666211.558
C111: Flight Hours | I111: ='Target Assumptions'!M20 -> 39404 | J111: ='Target Assumptions'!N20 -> 55220 | K111: ='Target Assumptions'!O20 -> 76346 | L111: ='Target Assumptions'!P20 -> 84058 | M111: ='Target Assumptions'!Q20 -> 91690 | N111: ='Target Assumptions'!R20 -> 70721 | O111: ='Target Assumptions'!S20 -> 28288.4 | P111: ='Target Assumptions'!T20 -> 104104.0772 | Q111: ='Target Assumptions'!U20 -> 104339.9158 | R111: ='Target Assumptions'!V20 -> 99824.2029 | S111: ='Target Assumptions'!W20 -> 94856.91875 | T111: ='Target Assumptions'!X20 -> 89392.90617 | U111: ='Target Assumptions'!Y20 -> 83382.49234 | V111: ='Target Assumptions'!Z20 -> 76771.03713 | W111: ='Target Assumptions'!AA20 -> 69498.43639
B113: Price per Pound | N113: ='Target Assumptions'!R42 -> 81.04232827 | O113: ='Target Assumptions'!S42 -> 81.04232827 | P113: ='Target Assumptions'!T42 -> 81.04232827 | Q113: ='Target Assumptions'!U42 -> 81.04232827 | R113: ='Target Assumptions'!V42 -> 81.04232827 | S113: ='Target Assumptions'!W42 -> 81.04232827 | T113: ='Target Assumptions'!X42 -> 81.04232827 | U113: ='Target Assumptions'!Y42 -> 81.04232827 | V113: ='Target Assumptions'!Z42 -> 81.04232827 | W113: ='Target Assumptions'!AA42 -> 81.04232827
B115: Air Transport Revenues | I115: =IF(I5,I61,I110*I113/1000) -> 95144 | J115: 194525 | K115: 298081 | L115: 359404 | M115: 388193 | N115: 302345 | O115: 120938 | P115: 445063.6618 | Q115: 446071.9141 | R115: 426766.429 | S115: 405530.3955 | T115: 382170.7586 | U115: 356475.158 | V115: 328209.9973 | W115: 297118.3206
B116: Maintenance Revenues | I116: ='Target Assumptions'!M50 -> 2606 | J116: ='Target Assumptions'!N50 -> 5584 | K116: ='Target Assumptions'!O50 -> 7449 | L116: ='Target Assumptions'!P50 -> 14279 | M116: ='Target Assumptions'!Q50 -> 36348 | N116: ='Target Assumptions'!R50 -> 23299 | O116: ='Target Assumptions'!S50 -> 13792.09961 | P116: ='Target Assumptions'!T50 -> 49237.79559 | Q116: ='Target Assumptions'!U50 -> 50222.55151 | R116: ='Target Assumptions'!V50 -> 51227.00254 | S116: ='Target Assumptions'!W50 -> 52251.54259 | T116: ='Target Assumptions'!X50 -> 53296.57344 | U116: ='Target Assumptions'!Y50 -> 54362.50491 | V116: ='Target Assumptions'!Z50 -> 55449.75501 | W116: ='Target Assumptions'!AA50 -> 56558.75011
C117: Total Revenues | I117: =SUM(I115:I116) -> 97750 | J117: =SUM(J115:J116) -> 200109 | K117: 305530 | L117: 373683 | M117: 424541 | N117: 325644 | O117: 134730.0996 | P117: 494301.4574 | Q117: 496294.4656 | R117: 477993.4316 | S117: 457781.9381 | T117: 435467.332 | U117: 410837.6629 | V117: 383659.7523 | W117: 353677.0707
B119: Operating Expense
C120: Flight Hours | I120: ='Target Assumptions'!M20 -> 39404 | J120: ='Target Assumptions'!N20 -> 55220 | K120: ='Target Assumptions'!O20 -> 76346 | L120: ='Target Assumptions'!P20 -> 84058 | M120: ='Target Assumptions'!Q20 -> 91690 | N120: ='Target Assumptions'!R20 -> 70721 | O120: ='Target Assumptions'!S20 -> 28288.4 | P120: ='Target Assumptions'!T20 -> 104104.0772 | Q120: ='Target Assumptions'!U20 -> 104339.9158 | R120: ='Target Assumptions'!V20 -> 99824.2029 | S120: ='Target Assumptions'!W20 -> 94856.91875 | T120: ='Target Assumptions'!X20 -> 89392.90617 | U120: ='Target Assumptions'!Y20 -> 83382.49234 | V120: ='Target Assumptions'!Z20 -> 76771.03713 | W120: ='Target Assumptions'!AA20 -> 69498.43639
C121: Flight Expense per Hour | I121: ='Target Assumptions'!M60 -> 0.9455639021 | J121: ='Target Assumptions'!N60 -> 1.138663528 | K121: ='Target Assumptions'!O60 -> 1.514342598 | L121: ='Target Assumptions'!P60 -> 2.007839825 | M121: ='Target Assumptions'!Q60 -> 1.63873923 | N121: ='Target Assumptions'!R60 -> 1.78459015 | O121: ='Target Assumptions'!S60 -> 1.78459015 | P121: ='Target Assumptions'!T60 -> 1.6 | Q121: ='Target Assumptions'!U60 -> 1.5 | R121: ='Target Assumptions'!V60 -> 1.4 | S121: ='Target Assumptions'!W60 -> 1.4 | T121: ='Target Assumptions'!X60 -> 1.4 | U121: ='Target Assumptions'!Y60 -> 1.4 | V121: ='Target Assumptions'!Z60 -> 1.4 | W121: ='Target Assumptions'!AA60 -> 1.4
C122: Maintenance Expense per Hour | I122: ='Target Assumptions'!M70 -> 0.5612120597 | J122: ='Target Assumptions'!N70 -> 0.9404744658 | K122: ='Target Assumptions'!O70 -> 0.8477457889 | L122: ='Target Assumptions'!P70 -> 1.229972162 | M122: ='Target Assumptions'!Q70 -> 1.255120515 | N122: ='Target Assumptions'!R70 -> 1.519096167 | O122: ='Target Assumptions'!S70 -> 1.519096167 | P122: ='Target Assumptions'!T70 -> 1.25 | Q122: ='Target Assumptions'!U70 -> 1.15 | R122: ='Target Assumptions'!V70 -> 1.15 | S122: ='Target Assumptions'!W70 -> 1.15 | T122: ='Target Assumptions'!X70 -> 1.15 | U122: ='Target Assumptions'!Y70 -> 1.15 | V122: ='Target Assumptions'!Z70 -> 1.15 | W122: ='Target Assumptions'!AA70 -> 1.15
C123: Fuel Expense per Hour | I123: ='Target Assumptions'!M80 -> 0.4189422394 | J123: ='Target Assumptions'!N80 -> 0.6981890619 | K123: ='Target Assumptions'!O80 -> 0.751342572 | L123: ='Target Assumptions'!P80 -> 0.6488139142 | M123: ='Target Assumptions'!Q80 -> 0.9021376377 | N123: ='Target Assumptions'!R80 -> 0.779047242 | O123: ='Target Assumptions'!S80 -> 0.779047242 | P123: ='Target Assumptions'!T80 -> 0.8024186592 | Q123: ='Target Assumptions'!U80 -> 0.826491219 | R123: ='Target Assumptions'!V80 -> 0.8512859556 | S123: ='Target Assumptions'!W80 -> 0.8768245343 | T123: ='Target Assumptions'!X80 -> 0.9031292703 | U123: ='Target Assumptions'!Y80 -> 0.9031292703 | V123: ='Target Assumptions'!Z80 -> 0.9031292703 | W123: ='Target Assumptions'!AA80 -> 0.9031292703
C124: SG&A Expense per Revenue | I124: ='Target Assumptions'!M90 -> 0.04447994619 | J124: ='Target Assumptions'!N90 -> 0.0491145097 | K124: ='Target Assumptions'!O90 -> 0.04452816516 | L124: ='Target Assumptions'!P90 -> 0.06031095925 | M124: ='Target Assumptions'!Q90 -> 0.05638690033 | N124: ='Target Assumptions'!R90 -> 0.05903190064 | O124: ='Target Assumptions'!S90 -> 0.05903190064 | P124: ='Target Assumptions'!T90 -> 0.054 | Q124: ='Target Assumptions'!U90 -> 0.052 | R124: ='Target Assumptions'!V90 -> 0.052 | S124: ='Target Assumptions'!W90 -> 0.052 | T124: ='Target Assumptions'!X90 -> 0.052 | U124: ='Target Assumptions'!Y90 -> 0.052 | V124: ='Target Assumptions'!Z90 -> 0.052 | W124: ='Target Assumptions'!AA90 -> 0.052
C125: Bad Debt Expense per Revenue | I125: ='Target Assumptions'!M93 -> 0.01636466829 | J125: ='Target Assumptions'!N93 -> 0.007952705308 | K125: ='Target Assumptions'!O93 -> 0.007484542792 | L125: ='Target Assumptions'!P93 -> 0.005180799323 | M125: ='Target Assumptions'!Q93 -> 0.002604374628 | N125: ='Target Assumptions'!R93 -> 0.005401114621 | O125: ='Target Assumptions'!S93 -> 0.0055 | P125: ='Target Assumptions'!T93 -> 0.0055 | Q125: ='Target Assumptions'!U93 -> 0.0055 | R125: ='Target Assumptions'!V93 -> 0.0055 | S125: ='Target Assumptions'!W93 -> 0.0055 | T125: ='Target Assumptions'!X93 -> 0.0055 | U125: ='Target Assumptions'!Y93 -> 0.0055 | V125: ='Target Assumptions'!Z93 -> 0.0055 | W125: ='Target Assumptions'!AA93 -> 0.0055
C127: Flight Expense | I127: =I121*I120 -> 37259 | J127: =J121*J120 -> 62877 | K127: 115614 | L127: 168775 | M127: 150256 | N127: 126208 | O127: 50483.2 | P127: 166566.5236 | Q127: 156509.8737 | R127: 139753.8841 | S127: 132799.6862 | T127: 125150.0686 | U127: 116735.4893 | V127: 107479.452 | W127: 97297.81095
C128: Maintenance Expense | I128: =I120*I122 -> 22114 | J128: =J120*J122 -> 51933 | K128: 64722 | L128: 103389 | M128: 115082 | N128: 107432 | O128: 42972.8 | P128: 130130.0965 | Q128: 119990.9031 | R128: 114797.8333 | S128: 109085.4566 | T128: 102801.8421 | U128: 95889.86619 | V128: 88286.6927 | W128: 79923.20185
C129: Fuel Expense | I129: =I123*I120 -> 16508 | J129: =J123*J120 -> 38554 | K129: 57362 | L129: 54538 | M129: 82717 | N129: 55095 | O129: 22038 | P129: 83535.05407 | Q129: 86236.02418 | R129: 84978.94196 | S129: 83172.8736 | T129: 80733.35012 | U129: 75305.16946 | V129: 69334.17074 | W129: 62766.07215
C130: SG&A Expense | I130: =I124*I115 -> 4232 | J130: =J124*J115 -> 9554 | K130: 13273 | L130: 21676 | M130: 21889 | N130: 17848 | O130: 7139.2 | P130: 24033.43774 | Q130: 23195.73953 | R130: 22191.85431 | S130: 21087.58056 | T130: 19872.87945 | U130: 18536.70821 | V130: 17066.91986 | W130: 15450.15267
C131: Bad Debt Expense | I131: =I125*I115 -> 1557 | J131: =J125*J115 -> 1547 | K131: 2231 | L131: 1862 | M131: 1011 | N131: 1633 | O131: 665.159 | P131: 2447.85014 | Q131: 2453.395527 | R131: 2347.21536 | S131: 2230.417175 | T131: 2101.939172 | U131: 1960.613369 | V131: 1805.154985 | W131: 1634.150763
D132: Total Operating Expense | I132: =SUM(I127:I131) -> 81670 | J132: 164465 | K132: 253202 | L132: 350240 | M132: 370955 | N132: 308216 | O132: 123298.359 | P132: 406712.9621 | Q132: 388385.936 | R132: 364069.729 | S132: 348376.0141 | T132: 330660.0795 | U132: 308427.8465 | V132: 283972.3903 | W132: 257071.3884
C134: Historic EBITDA | I134: =I117-I132 -> 16080 | J134: =J117-J132 -> 35644 | K134: 52328 | L134: 23443 | M134: 53586 | N134: 17428 | O134: 11431.74061 | P134: 87588.49539 | Q134: 107908.5295 | R134: 113923.7025 | S134: 109405.9239 | T134: 104807.2525 | U134: 102409.8164 | V134: 99687.36206 | W134: 96605.68233
C135: Computed EBITDA | I135: =I72+I68 -> 16080 | J135: =J72+J68 -> 35644 | K135: 52328 | L135: 23443 | M135: 53586 | N135: 17428 | O135: 0 | P135: 0 | Q135: 0 | R135: 0 | S135: 0 | T135: 0 | U135: 0 | V135: 0 | W135: 0
C136: Difference | I136: =I134-I135 -> 0 | J136: =J134-J135 -> 0 | K136: 0 | L136: 0 | M136: 0 | N136: 0 | O136: 11431.74061 | P136: 87588.49539 | Q136: 107908.5295 | R136: 113923.7025 | S136: 109405.9239 | T136: 104807.2525 | U136: 102409.8164 | V136: 99687.36206 | W136: 96605.68233
C137: Check | H137: =AND(I137:W137) -> TRUE | I137: =IF(I5,I136=0,TRUE) -> TRUE | J137: =IF(J5,J136=0,TRUE) -> TRUE | K137: TRUE | L137: TRUE | M137: TRUE | N137: TRUE | O137: TRUE | P137: TRUE | Q137: TRUE | R137: TRUE | S137: TRUE | T137: TRUE | U137: TRUE | V137: TRUE | W137: TRUE
C139: Total Capital Expenditures | I139: ='Target Assumptions'!M104*I4+'Target Assumptions'!M106 -> 0 | J139: ='Target Assumptions'!N104*J4+'Target Assumptions'!N106 -> 0 | K139: ='Target Assumptions'!O104*K4+'Target Assumptions'!O106 -> 0 | L139: ='Target Assumptions'!P104*L4+'Target Assumptions'!P106 -> 0 | M139: ='Target Assumptions'!Q104*M4+'Target Assumptions'!Q106 -> 0 | N139: ='Target Assumptions'!R104*N4+'Target Assumptions'!R106 -> 0 | O139: ='Target Assumptions'!S104*O4+'Target Assumptions'!S106 -> 62229.6 | P139: ='Target Assumptions'!T104*P4+'Target Assumptions'!T106 -> 35000 | Q139: ='Target Assumptions'!U104*Q4+'Target Assumptions'!U106 -> 35000 | R139: ='Target Assumptions'!V104*R4+'Target Assumptions'!V106 -> 30000 | S139: ='Target Assumptions'!W104*S4+'Target Assumptions'!W106 -> 30000 | T139: ='Target Assumptions'!X104*T4+'Target Assumptions'!X106 -> 30000 | U139: ='Target Assumptions'!Y104*U4+'Target Assumptions'!Y106 -> 30000 | V139: ='Target Assumptions'!Z104*V4+'Target Assumptions'!Z106 -> 20000 | W139: ='Target Assumptions'!AA104*W4+'Target Assumptions'!AA106 -> 20000
A141: Depreciation
B142: Depreciation Rate | I142: ='Target Assumptions'!M114 -> 0.07672108786 | J142: ='Target Assumptions'!N114 -> 0.0977356056 | K142: ='Target Assumptions'!O114 -> 0.06095585347 | L142: ='Target Assumptions'!P114 -> 0.06807132422 | M142: ='Target Assumptions'!Q114 -> 0.08587043254 | N142: ='Target Assumptions'!R114 -> 0.1022636124 | O142: ='Target Assumptions'!S114 -> 0.1022636124 | P142: ='Target Assumptions'!T114 -> 0.1022636124 | Q142: ='Target Assumptions'!U114 -> 0.1022636124 | R142: ='Target Assumptions'!V114 -> 0.1022636124 | S142: ='Target Assumptions'!W114 -> 0.1022636124 | T142: ='Target Assumptions'!X114 -> 0.1022636124 | U142: ='Target Assumptions'!Y114 -> 0.1022636124 | V142: ='Target Assumptions'!Z114 -> 0.1022636124 | W142: ='Target Assumptions'!AA114 -> 0.1022636124
B143: Retirement Rate | I143: ='Target Assumptions'!M117 ->  | J143: ='Target Assumptions'!N117 ->  | K143: ='Target Assumptions'!O117 ->  | L143: ='Target Assumptions'!P117 ->  | M143: ='Target Assumptions'!Q117 ->  | N143: ='Target Assumptions'!R117 -> 0 | O143: ='Target Assumptions'!S117 -> 0 | P143: ='Target Assumptions'!T117 -> 0.03331171075 | Q143: ='Target Assumptions'!U117 -> 0.03664288183 | R143: ='Target Assumptions'!V117 -> 0.04030717001 | S143: ='Target Assumptions'!W117 -> 0.04433788701 | T143: ='Target Assumptions'!X117 -> 0.04877167571 | U143: ='Target Assumptions'!Y117 -> 0.05364884328 | V143: ='Target Assumptions'!Z117 -> 0.05901372761 | W143: ='Target Assumptions'!AA117 -> 0.06491510037
B144: Plant Balance | I144: =[2]Depreciation!$E$8 -> 385702.752 | J144: =[2]Depreciation!$E$8 -> 385702.752 | K144: =[2]Depreciation!$E$8 -> 385702.752 | L144: =[2]Depreciation!$E$8 -> 385702.752 | M144: =[2]Depreciation!$E$8 -> 385702.752 | N144: =[2]Depreciation!$E$8 -> 385702.752 | O144: =[2]Depreciation!$E$8 -> 385702.752 | P144: =[2]Depreciation!$E$8 -> 385702.752 | Q144: =[2]Depreciation!$E$8 -> 385702.752 | R144: =[2]Depreciation!$E$8 -> 385702.752 | S144: =[2]Depreciation!$E$8 -> 385702.752 | T144: =[2]Depreciation!$E$8 -> 385702.752 | U144: =[2]Depreciation!$E$8 -> 385702.752 | V144: =[2]Depreciation!$E$8 -> 385702.752 | W144: =[2]Depreciation!$E$8 -> 385702.752
B146: Existing Plant
C147: Opening Balance | I147: =H149 -> 0 | J147: =I149 -> 117295 | K147: 127098 | L147: 226541 | M147: 336798.253 | N147: 375625.891 | O147: 385702.752 | P147: 385702.752 | Q147: 372854.3335 | R147: 358721.0731 | S147: 343174.4867 | T147: 326073.2417 | U147: 307261.8722 | V147: 286569.3657 | W147: 263807.6085
C148: Less: Retirements | I148: =IFERROR(I144*I143,0) -> 0 | J148: =IFERROR(J144*J143,0) -> 0 | K148: 0 | L148: 0 | M148: 0 | N148: 0 | O148: 0 | P148: 12848.41851 | Q148: 14133.26036 | R148: 15546.5864 | S148: 17101.24504 | T148: 18811.36954 | U148: 20692.5065 | V148: 22761.75714 | W148: 25037.93286
C149: Closing Balance | I149: =IF(I5,I25+I28+I29,I147-I148) -> 117295 | J149: =IF(J5,J25+J28+J29,J147-J148) -> 127098 | K149: 226541 | L149: 336798.253 | M149: 375625.891 | N149: 385702.752 | O149: 385702.752 | P149: 372854.3335 | Q149: 358721.0731 | R149: 343174.4867 | S149: 326073.2417 | T149: 307261.8722 | U149: 286569.3657 | V149: 263807.6085 | W149: 238769.6757
C150: Depreciation | I150: =IF(I5,I68,I147*I142*I4) -> 8999 | J150: =IF(J5,J68,J147*J142*J4) -> 12422 | K150: 13809 | L150: 20972 | M150: 32091 | N150: 26468 | O150: 11269.53049 | P150: 39443.35672 | Q150: 38129.43103 | R150: 36684.11277 | S150: 35094.26269 | T150: 33345.42759 | U150: 31421.70899 | V150: 29305.61853 | W150: 26977.91902
B152: Accumulated Depreciation
C153: Opening Balance | I153: =H156 -> 0 | J153: =I156 -> 0 | K153: 0 | L153: 0 | M153: 81246.881 | N153: 109707.512 | O153: 113883.56 | P153: 125153.0905 | Q153: 151748.0287 | R153: 175744.1994 | S153: 196881.7257 | T153: 214874.7434 | U153: 229408.8014 | V153: 240138.0039 | W153: 246681.8653
C154: Add: Depreciation | I154: =I150 -> 8999 | J154: =J150 -> 12422 | K154: 13809 | L154: 20972 | M154: 32091 | N154: 26468 | O154: 11269.53049 | P154: 39443.35672 | Q154: 38129.43103 | R154: 36684.11277 | S154: 35094.26269 | T154: 33345.42759 | U154: 31421.70899 | V154: 29305.61853 | W154: 26977.91902
C155: Less: Retirements | I155: =I148 -> 0 | J155: =J148 -> 0 | K155: 0 | L155: 0 | M155: 0 | N155: 0 | O155: 0 | P155: 12848.41851 | Q155: 14133.26036 | R155: 15546.5864 | S155: 17101.24504 | T155: 18811.36954 | U155: 20692.5065 | V155: 22761.75714 | W155: 25037.93286
C156: Closing Balance | I156: =IF(I5,I26,I153+I154-I155) -> 0 | J156: =IF(J5,J26,J153+J154-J155) -> 0 | K156: 0 | L156: 81246.881 | M156: 109707.512 | N156: 113883.56 | O156: 125153.0905 | P156: 151748.0287 | Q156: 175744.1994 | R156: 196881.7257 | S156: 214874.7434 | T156: 229408.8014 | U156: 240138.0039 | V156: 246681.8653 | W156: 248621.8515
B158: New Plant for Maintenance Cap Exp
C159: Opening Balance | I159: =H161 -> 0 | J159: =I161 -> 0 | K159: 0 | L159: 0 | M159: 0 | N159: 0 | O159: 0 | P159: 62229.6 | Q159: 97229.6 | R159: 132229.6 | S159: 162229.6 | T159: 192229.6 | U159: 222229.6 | V159: 252229.6 | W159: 272229.6
C160: Add: New Expenditures | I160: =I139 -> 0 | J160: =J139 -> 0 | K160: 0 | L160: 0 | M160: 0 | N160: 0 | O160: 62229.6 | P160: 35000 | Q160: 35000 | R160: 30000 | S160: 30000 | T160: 30000 | U160: 30000 | V160: 20000 | W160: 20000
C161: Closing Balance | I161: =SUM(I159:I160) -> 0 | J161: =SUM(J159:J160) -> 0 | K161: 0 | L161: 0 | M161: 0 | N161: 0 | O161: 62229.6 | P161: 97229.6 | Q161: 132229.6 | R161: 162229.6 | S161: 192229.6 | T161: 222229.6 | U161: 252229.6 | V161: 272229.6 | W161: 292229.6
C162: Depreciation Rate | I162: ='Target Assumptions'!M120 -> 0.07692307692 | J162: ='Target Assumptions'!N120 -> 0.07692307692 | K162: ='Target Assumptions'!O120 -> 0.07692307692 | L162: ='Target Assumptions'!P120 -> 0.07692307692 | M162: ='Target Assumptions'!Q120 -> 0.07692307692 | N162: ='Target Assumptions'!R120 -> 0.07692307692 | O162: ='Target Assumptions'!S120 -> 0.08333333333 | P162: ='Target Assumptions'!T120 -> 0.09090909091 | Q162: ='Target Assumptions'!U120 -> 0.1 | R162: ='Target Assumptions'!V120 -> 0.1111111111 | S162: ='Target Assumptions'!W120 -> 0.125 | T162: ='Target Assumptions'!X120 -> 0.1428571429 | U162: ='Target Assumptions'!Y120 -> 0.1666666667 | V162: ='Target Assumptions'!Z120 -> 0.2 | W162: ='Target Assumptions'!AA120 -> 0.25
C163: Depreciation Expense | I163: =I162*I159 -> 0 | J163: =J162*J159 -> 0 | K163: 0 | L163: 0 | M163: 0 | N163: 0 | O163: 0 | P163: 5657.236364 | Q163: 9722.96 | R163: 14692.17778 | S163: 20278.7 | T163: 27461.37143 | U163: 37038.26667 | V163: 50445.92 | W163: 68057.4
C164: Accumulated Deprecaiton | I164: =H164+I163 -> 0 | J164: =I164+J163 -> 0 | K164: 0 | L164: 0 | M164: 0 | N164: 0 | O164: 0 | P164: 5657.236364 | Q164: 15380.19636 | R164: 30072.37414 | S164: 50351.07414 | T164: 77812.44557 | U164: 114850.7122 | V164: 165296.6322 | W164: 233354.0322
B166: Total Depreciation Expenditure | I166: =I163+I150 -> 8999 | J166: =J163+J150 -> 12422 | K166: 13809 | L166: 20972 | M166: 32091 | N166: 26468 | O166: 11269.53049 | P166: 45100.59308 | Q166: 47852.39103 | R166: 51376.29055 | S166: 55372.96269 | T166: 60806.79902 | U166: 68459.97566 | V166: 79751.53853 | W166: 95035.31902
A168: Working Capital
B169: A/R as Pct of Revenue | I169: ='Target Assumptions'!M125 -> 0.05604092072 | J169: ='Target Assumptions'!N125 -> 0.1790374246 | K169: ='Target Assumptions'!O125 -> 0.1470232056 | L169: ='Target Assumptions'!P125 -> 0.2479751126 | M169: ='Target Assumptions'!Q125 -> 0.1649826589 | N169: ='Target Assumptions'!R125 -> 0.1451266721 | O169: ='Target Assumptions'!S125 -> 0.16 | P169: ='Target Assumptions'!T125 -> 0.16 | Q169: ='Target Assumptions'!U125 -> 0.16 | R169: ='Target Assumptions'!V125 -> 0.16 | S169: ='Target Assumptions'!W125 -> 0.16 | T169: ='Target Assumptions'!X125 -> 0.16 | U169: ='Target Assumptions'!Y125 -> 0.16 | V169: ='Target Assumptions'!Z125 -> 0.16 | W169: ='Target Assumptions'!AA125 -> 0.16
B170: A/R Amount | I170: =I169*I117/I4 -> 5478 | J170: =J169*J117/J4 -> 35827 | K170: 44920 | L170: 92664.084 | M170: 70041.903 | N170: 66163.482 | O170: 75448.85578 | P170: 79088.23319 | Q170: 79407.11449 | R170: 76478.94905 | S170: 73245.11009 | T170: 69674.77312 | U170: 65734.02606 | V170: 61385.56037 | W170: 56588.33131
B172: Inventory Percent of Total Expense | I172: ='Target Assumptions'!M129 -> 0 | J172: ='Target Assumptions'!N129 -> 0 | K172: ='Target Assumptions'!O129 -> 0 | L172: ='Target Assumptions'!P129 -> 0.03520686958 | M172: ='Target Assumptions'!Q129 -> 0.05591551536 | N172: ='Target Assumptions'!R129 -> 0.05706655166 | O172: ='Target Assumptions'!S129 -> 0.05706655166 | P172: ='Target Assumptions'!T129 -> 0.05706655166 | Q172: ='Target Assumptions'!U129 -> 0.05706655166 | R172: ='Target Assumptions'!V129 -> 0.05706655166 | S172: ='Target Assumptions'!W129 -> 0.05706655166 | T172: ='Target Assumptions'!X129 -> 0.05706655166 | U172: ='Target Assumptions'!Y129 -> 0.05706655166 | V172: ='Target Assumptions'!Z129 -> 0.05706655166 | W172: ='Target Assumptions'!AA129 -> 0.05706655166
B173: Total Inventory | I173: =I172*I132/I4 -> 0 | J173: =J172*J132/J4 -> 0 | K173: 0 | L173: 12330.854 | M173: 20742.14 | N173: 24624.354 | O173: 24626.74261 | P173: 23209.70626 | Q173: 22163.84608 | R173: 20776.204 | S173: 19880.61781 | T173: 18869.63051 | U173: 17600.91364 | V173: 16205.32508 | W173: 14670.17766
B175: Pre-Paid Pct of Revenue | I175: ='Target Assumptions'!M133 -> 0 | J175: ='Target Assumptions'!N133 -> 0 | K175: ='Target Assumptions'!O133 -> 0 | L175: ='Target Assumptions'!P133 -> 0.0240696767 | M175: ='Target Assumptions'!Q133 -> 0.03261480046 | N175: ='Target Assumptions'!R133 -> 0.03142251091 | O175: ='Target Assumptions'!S133 -> 0.03142251091 | P175: ='Target Assumptions'!T133 -> 0.03142251091 | Q175: ='Target Assumptions'!U133 -> 0.03142251091 | R175: ='Target Assumptions'!V133 -> 0.03142251091 | S175: ='Target Assumptions'!W133 -> 0.03142251091 | T175: ='Target Assumptions'!X133 -> 0.03142251091 | U175: ='Target Assumptions'!Y133 -> 0.03142251091 | V175: ='Target Assumptions'!Z133 -> 0.03142251091 | W175: ='Target Assumptions'!AA133 -> 0.03142251091
B176: Total Prepaid | I176: =I175*I117/I4 -> 0 | J176: =J175*J117/J4 -> 0 | K176: 0 | L176: 8994.429 | M176: 13846.32 | N176: 14325.573 | O176: 14817.45309 | P176: 15532.19294 | Q176: 15594.81826 | R176: 15019.75382 | S176: 14384.65794 | T176: 13683.47699 | U176: 12909.55094 | V176: 12055.55275 | W176: 11113.42161
B178: Accounts Payable Percent of Op Cost | I178: ='Target Assumptions'!M137 -> 0 | J178: ='Target Assumptions'!N137 -> 0 | K178: ='Target Assumptions'!O137 -> 0 | L178: ='Target Assumptions'!P137 -> 0.1900022013 | M178: ='Target Assumptions'!Q137 -> 0.1244023669 | N178: ='Target Assumptions'!R137 -> 0.1156399733 | O178: ='Target Assumptions'!S137 -> 0.1156399733 | P178: ='Target Assumptions'!T137 -> 0.1156399733 | Q178: ='Target Assumptions'!U137 -> 0.1156399733 | R178: ='Target Assumptions'!V137 -> 0.1156399733 | S178: ='Target Assumptions'!W137 -> 0.1156399733 | T178: ='Target Assumptions'!X137 -> 0.1156399733 | U178: ='Target Assumptions'!Y137 -> 0.1156399733 | V178: ='Target Assumptions'!Z137 -> 0.1156399733 | W178: ='Target Assumptions'!AA137 -> 0.1156399733
B179: Accounts Payable | I179: =I178*I132/I4 -> 0 | J179: =J178*J132/J4 -> 0 | K179: 0 | L179: 66546.371 | M179: 46147.68 | N179: 49898.926 | O179: 49903.76628 | P179: 47032.27606 | Q179: 44912.93926 | R179: 42101.01373 | S179: 40286.19296 | T179: 38237.52275 | U179: 35666.58793 | V179: 32838.55962 | W179: 29727.72848
B181: Accrued Expenses Percent of Op Cost | I181: ='Target Assumptions'!M141 -> 0.1557487449 | J181: ='Target Assumptions'!N141 -> 0.1977806828 | K181: ='Target Assumptions'!O141 -> 0.2288962962 | L181: ='Target Assumptions'!P141 -> 0.05808299452 | M181: ='Target Assumptions'!Q141 -> 0.06516392285 | N181: ='Target Assumptions'!R141 -> 0.05323146986 | O181: ='Target Assumptions'!S141 -> 0.05323146986 | P181: ='Target Assumptions'!T141 -> 0.05323146986 | Q181: ='Target Assumptions'!U141 -> 0.05323146986 | R181: ='Target Assumptions'!V141 -> 0.05323146986 | S181: ='Target Assumptions'!W141 -> 0.05323146986 | T181: ='Target Assumptions'!X141 -> 0.05323146986 | U181: ='Target Assumptions'!Y141 -> 0.05323146986 | V181: ='Target Assumptions'!Z141 -> 0.05323146986 | W181: ='Target Assumptions'!AA141 -> 0.05323146986
B182: Accrued Expenses | I182: =I181*I132/I4 -> 12720 | J182: =J181*J132/J4 -> 32528 | K182: 57957 | L182: 20342.988 | M182: 24172.883 | N182: 22969.507 | O182: 22971.73508 | P182: 21649.92878 | Q182: 20674.35425 | R182: 19379.96681 | S182: 18544.5673 | T182: 17601.52205 | U182: 16418.06762 | V182: 15116.26773 | W182: 13684.28786
B184: Deferred Revenue Percent | I184: ='Target Assumptions'!M145 -> 0 | J184: ='Target Assumptions'!N145 -> 0 | K184: ='Target Assumptions'!O145 -> 0 | L184: ='Target Assumptions'!P145 -> 0 | M184: ='Target Assumptions'!Q145 -> 0.001872681319 | N184: ='Target Assumptions'!R145 -> 0.006661358504 | O184: ='Target Assumptions'!S145 -> 0.006661358504 | P184: ='Target Assumptions'!T145 -> 0.006661358504 | Q184: ='Target Assumptions'!U145 -> 0.006661358504 | R184: ='Target Assumptions'!V145 -> 0.006661358504 | S184: ='Target Assumptions'!W145 -> 0.006661358504 | T184: ='Target Assumptions'!X145 -> 0.006661358504 | U184: ='Target Assumptions'!Y145 -> 0.006661358504 | V184: ='Target Assumptions'!Z145 -> 0.006661358504 | W184: ='Target Assumptions'!AA145 -> 0.006661358504
B185: Deferred Revenues | I185: =I184*I117/I4 -> 0 | J185: =J184*J117/J4 -> 0 | K185: 0 | L185: 0 | M185: 795.03 | N185: 3036.924 | O185: 3141.199231 | P185: 3292.719217 | Q185: 3305.995359 | R185: 3184.08561 | S185: 3049.449606 | T185: 2900.804015 | U185: 2736.736959 | V185: 2555.695154 | W185: 2355.969763
B187: Total Working Capital | I187: =I170+I173+I176-I179-I182-I185 -> -7242 | J187: =J170+J173+J176-J179-J182-J185 -> 3299 | K187: -13037 | L187: 27100.008 | M187: 33514.77 | N187: 29208.052 | O187: 38876.35087 | P187: 45855.20833 | Q187: 48272.48997 | R187: 47609.84072 | S187: 45630.17598 | T187: 43488.0318 | U187: 41423.09814 | V187: 39135.9157 | W187: 36603.94449
C188: Change in Working Capital | I188: =I187-H187 -> -7242 | J188: =J187-I187 -> 10541 | K188: -16336 | L188: 40137.008 | M188: 6414.762 | N188: -4306.718 | O188: 9668.298873 | P188: 6978.857459 | Q188: 2417.281633 | R188: -662.6492494 | S188: -1979.664741 | T188: -2142.144177 | U188: -2064.933658 | V188: -2287.182442 | W188: -2531.971213
A190: Other Assets and Liabilities
B191: Total Other Assets | I191: ='Target Assumptions'!M150 -> 0 | J191: ='Target Assumptions'!N150 -> 0 | K191: ='Target Assumptions'!O150 -> 0 | L191: ='Target Assumptions'!P150 -> 6964.122 | M191: ='Target Assumptions'!Q150 -> 6435.156 | N191: ='Target Assumptions'!R150 -> 6224.541 | O191: ='Target Assumptions'!S150 -> 6224.541 | P191: ='Target Assumptions'!T150 -> 6224.541 | Q191: ='Target Assumptions'!U150 -> 6224.541 | R191: ='Target Assumptions'!V150 -> 6224.541 | S191: ='Target Assumptions'!W150 -> 6224.541 | T191: ='Target Assumptions'!X150 -> 6224.541 | U191: ='Target Assumptions'!Y150 -> 6224.541 | V191: ='Target Assumptions'!Z150 -> 6224.541 | W191: ='Target Assumptions'!AA150 -> 6224.541
B192: Total Other Liabilities | I192: ='Target Assumptions'!M152 -> 0 | J192: ='Target Assumptions'!N152 -> 0 | K192: ='Target Assumptions'!O152 -> 0 | L192: ='Target Assumptions'!P152 -> 0 | M192: ='Target Assumptions'!Q152 -> 0 | N192: ='Target Assumptions'!R152 -> 30255.291 | O192: ='Target Assumptions'!S152 -> 30255.291 | P192: ='Target Assumptions'!T152 -> 30255.291 | Q192: ='Target Assumptions'!U152 -> 30255.291 | R192: ='Target Assumptions'!V152 -> 30255.291 | S192: ='Target Assumptions'!W152 -> 30255.291 | T192: ='Target Assumptions'!X152 -> 30255.291 | U192: ='Target Assumptions'!Y152 -> 30255.291 | V192: ='Target Assumptions'!Z152 -> 30255.291 | W192: ='Target Assumptions'!AA152 -> 30255.291
B193: Restricted Cash | I193: ='Target Assumptions'!M154 -> 0 | J193: ='Target Assumptions'!N154 -> 0 | K193: ='Target Assumptions'!O154 -> 0 | L193: ='Target Assumptions'!P154 -> 0 | M193: ='Target Assumptions'!Q154 -> 795.03 | N193: ='Target Assumptions'!R154 -> 14036.924 | O193: ='Target Assumptions'!S154 -> 14036.924 | P193: ='Target Assumptions'!T154 -> 14036.924 | Q193: ='Target Assumptions'!U154 -> 14036.924 | R193: ='Target Assumptions'!V154 -> 14036.924 | S193: ='Target Assumptions'!W154 -> 14036.924 | T193: ='Target Assumptions'!X154 -> 14036.924 | U193: ='Target Assumptions'!Y154 -> 14036.924 | V193: ='Target Assumptions'!Z154 -> 14036.924 | W193: ='Target Assumptions'!AA154 -> 14036.924
B195: Other Income | I195: ='Target Assumptions'!M156 -> 2900 | J195: ='Target Assumptions'!N156 -> 1524 | K195: ='Target Assumptions'!O156 -> 2840 | L195: ='Target Assumptions'!P156 -> 19856 | M195: ='Target Assumptions'!Q156 -> 1267 | N195: ='Target Assumptions'!R156 -> -103 | O195: ='Target Assumptions'!S156 -> 0 | P195: ='Target Assumptions'!T156 -> 0 | Q195: ='Target Assumptions'!U156 -> 0 | R195: ='Target Assumptions'!V156 -> 0 | S195: ='Target Assumptions'!W156 -> 0 | T195: ='Target Assumptions'!X156 -> 0 | U195: ='Target Assumptions'!Y156 -> 0 | V195: ='Target Assumptions'!Z156 -> 0 | W195: ='Target Assumptions'!AA156 -> 0
A197: Financing
B198: Cash Balance
C199: Opening Balance | I199: =H202 -> 0 | J199: =I202 -> 1000 | K199: 1000 | L199: 1000 | M199: 1091.96 | N199: 2324.353 | O199: 3282.142 | P199: 2357.776743 | Q199: 2471.507287 | R199: 2481.472328 | S199: 2481.472328 | T199: 2481.472328 | U199: 2481.472328 | V199: 2481.472328 | W199: 37872.2934
C200: Add: Cash increase from Positive Cash Flow | I200: =I263 -> 20826 | J200: =J263 -> 0 | K200: 0 | L200: 0 | M200: 0 | N200: 0 | O200: 0 | P200: 0 | Q200: 0 | R200: 0 | S200: 0 | T200: 0 | U200: 0 | V200: 35390.82107 | W200: 80273.82234
C201: Less: Cash reduction with Negative Cash Flow | I201: =I260 -> -1000 | J201: =J260 -> 0 | K201: 0 | L201: -91.96 | M201: -1232.393 | N201: -957.789 | O201: 924.3652569 | P201: -113.7305441 | Q201: -9.965040679 | R201: 0 | S201: 0 | T201: 0 | U201: 0 | V201: 0 | W201: 0
C202: Closing Balance | I202: =IF(I5,I9,I199+I200-I201) -> 1000 | J202: =IF(J5,J9,J199+J200-J201) -> 1000 | K202: 1000 | L202: 1091.96 | M202: 2324.353 | N202: 3282.142 | O202: 2357.776743 | P202: 2471.507287 | Q202: 2481.472328 | R202: 2481.472328 | S202: 2481.472328 | T202: 2481.472328 | U202: 2481.472328 | V202: 37872.2934 | W202: 118146.1157
C204: Interest Income Rate | I204: ='Target Assumptions'!M165*'Target Model'!I4 -> 0 | J204: ='Target Assumptions'!N165*'Target Model'!J4 -> 0.036 | K204: ='Target Assumptions'!O165*'Target Model'!K4 -> 0.113 | L204: ='Target Assumptions'!P165*'Target Model'!L4 -> 0.3011529857 | M204: ='Target Assumptions'!Q165*'Target Model'!M4 -> 0.1799900887 | N204: ='Target Assumptions'!R165*'Target Model'!N4 -> 0.03415131941 | O204: ='Target Assumptions'!S165*'Target Model'!O4 -> 0.008571428571 | P204: ='Target Assumptions'!T165*'Target Model'!P4 -> 0.03 | Q204: ='Target Assumptions'!U165*'Target Model'!Q4 -> 0.03 | R204: ='Target Assumptions'!V165*'Target Model'!R4 -> 0.03 | S204: ='Target Assumptions'!W165*'Target Model'!S4 -> 0.03 | T204: ='Target Assumptions'!X165*'Target Model'!T4 -> 0.03 | U204: ='Target Assumptions'!Y165*'Target Model'!U4 -> 0.03 | V204: ='Target Assumptions'!Z165*'Target Model'!V4 -> 0.03 | W204: ='Target Assumptions'!AA165*'Target Model'!W4 -> 0.03
C205: Interest Income | I205: =IF(I5,I75,I204*I199) -> 0 | J205: =IF(J5,J75,J204*J199) -> 36 | K205: 113 | L205: 315 | M205: 379 | N205: 349 | O205: 28.13264571 | P205: 70.73330229 | Q205: 74.14521862 | R205: 74.44416984 | S205: 74.44416984 | T205: 74.44416984 | U205: 74.44416984 | V205: 74.44416984 | W205: 1136.168802
C207: Minimum Cash Balance as Pct of Revenue | I207: ='Target Assumptions'!M179 -> 0.01023017903 | J207: ='Target Assumptions'!N179 -> 0.004997276484 | K207: ='Target Assumptions'!O179 -> 0.003273001015 | L207: ='Target Assumptions'!P179 -> 0.002922155945 | M207: ='Target Assumptions'!Q179 -> 0.00547497886 | N207: ='Target Assumptions'!R179 -> 0.007199233343 | O207: ='Target Assumptions'!S179 -> 0.005 | P207: ='Target Assumptions'!T179 -> 0.005 | Q207: ='Target Assumptions'!U179 -> 0.005 | R207: ='Target Assumptions'!V179 -> 0.005 | S207: ='Target Assumptions'!W179 -> 0.005 | T207: ='Target Assumptions'!X179 -> 0.005 | U207: ='Target Assumptions'!Y179 -> 0.005 | V207: ='Target Assumptions'!Z179 -> 0.005 | W207: ='Target Assumptions'!AA179 -> 0.005
C208: Minimum Cash Balance | I208: =I207*I117 -> 1000 | J208: =J207*J117/J4 -> 1000 | K208: 1000 | L208: 1091.96 | M208: 2324.353 | N208: 3282.142 | O208: 2357.776743 | P208: 2471.507287 | Q208: 2481.472328 | R208: 2389.967158 | S208: 2288.90969 | T208: 2177.33666 | U208: 2054.188314 | V208: 1918.298762 | W208: 1768.385354
C210: Test for Cash Balance | I210: =I199-I208 -> -1000 | J210: =J199-J208 -> 0 | K210: 0 | L210: -91.96 | M210: -1232.393 | N210: -957.789 | O210: 924.3652569 | P210: -113.7305441 | Q210: -9.965040679 | R210: 91.50517008 | S210: 192.5626376 | T210: 304.1356678 | U210: 427.2840135 | V210: 563.1735663 | W210: 36103.90804
B212: Existing Debt Balance
C213: Base Amount | I213: ='Target Assumptions'!$E$182 -> 250000 | J213: ='Target Assumptions'!$E$182 -> 250000 | K213: ='Target Assumptions'!$E$182 -> 250000 | L213: ='Target Assumptions'!$E$182 -> 250000 | M213: ='Target Assumptions'!$E$182 -> 250000 | N213: ='Target Assumptions'!$E$182 -> 250000 | O213: ='Target Assumptions'!$E$182 -> 250000 | P213: ='Target Assumptions'!$E$182 -> 250000 | Q213: ='Target Assumptions'!$E$182 -> 250000 | R213: ='Target Assumptions'!$E$182 -> 250000 | S213: ='Target Assumptions'!$E$182 -> 250000 | T213: ='Target Assumptions'!$E$182 -> 250000 | U213: ='Target Assumptions'!$E$182 -> 250000 | V213: ='Target Assumptions'!$E$182 -> 250000 | W213: ='Target Assumptions'!$E$182 -> 250000
C215: Opening Balance | I215: =H218 -> 0 | J215: =I218 -> 0 | K215: 0 | L215: 0 | M215: 0 | N215: 0 | O215: 250000 | P215: 208333.3333 | Q215: 166666.6667 | R215: 125000 | S215: 83333.33333 | T215: 41666.66667 | U215: 0 | V215: 0 | W215: 0
C216: Add: New Debt Issued | I216: =(I2='Target Assumptions'!$E$186)*'Target Assumptions'!$E$182 -> 0 | J216: =(J2='Target Assumptions'!$E$186)*'Target Assumptions'!$E$182 -> 0 | K216: =(K2='Target Assumptions'!$E$186)*'Target Assumptions'!$E$182 -> 0 | L216: =(L2='Target Assumptions'!$E$186)*'Target Assumptions'!$E$182 -> 0 | M216: =(M2='Target Assumptions'!$E$186)*'Target Assumptions'!$E$182 -> 0 | N216: =(N2='Target Assumptions'!$E$186)*'Target Assumptions'!$E$182 -> 250000 | P216: =(P2='Target Assumptions'!$E$186)*'Target Assumptions'!$E$182 -> 0 | Q216: =(Q2='Target Assumptions'!$E$186)*'Target Assumptions'!$E$182 -> 0 | R216: =(R2='Target Assumptions'!$E$186)*'Target Assumptions'!$E$182 -> 0 | S216: =(S2='Target Assumptions'!$E$186)*'Target Assumptions'!$E$182 -> 0 | T216: =(T2='Target Assumptions'!$E$186)*'Target Assumptions'!$E$182 -> 0 | U216: =(U2='Target Assumptions'!$E$186)*'Target Assumptions'!$E$182 -> 0 | V216: =(V2='Target Assumptions'!$E$186)*'Target Assumptions'!$E$182 -> 0 | W216: =(W2='Target Assumptions'!$E$186)*'Target Assumptions'!$E$182 -> 0
C217: Less: Scheduled Debt Repaid | I217: =NOT(I5)*'Target Assumptions'!$E$184 -> 0 | J217: =NOT(J5)*'Target Assumptions'!$E$184 -> 0 | K217: =NOT(K5)*'Target Assumptions'!$E$184 -> 0 | L217: =NOT(L5)*'Target Assumptions'!$E$184 -> 0 | M217: =NOT(M5)*'Target Assumptions'!$E$184 -> 0 | N217: =NOT(N5)*'Target Assumptions'!$E$184 -> 0 | O217: =MIN(NOT(O5)*'Target Assumptions'!$E$184,O215) -> 41666.66667 | P217: =MIN(NOT(P5)*'Target Assumptions'!$E$184,P215) -> 41666.66667 | Q217: =MIN(NOT(Q5)*'Target Assumptions'!$E$184,Q215) -> 41666.66667 | R217: =MIN(NOT(R5)*'Target Assumptions'!$E$184,R215) -> 41666.66667 | S217: =MIN(NOT(S5)*'Target Assumptions'!$E$184,S215) -> 41666.66667 | T217: =MIN(NOT(T5)*'Target Assumptions'!$E$184,T215) -> 41666.66667 | U217: =MIN(NOT(U5)*'Target Assumptions'!$E$184,U215) -> 0 | V217: =MIN(NOT(V5)*'Target Assumptions'!$E$184,V215) -> 0 | W217: =MIN(NOT(W5)*'Target Assumptions'!$E$184,W215) -> 0
C218: Closing Balance | I218: =I215+I216-I217 -> 0 | J218: =J215+J216-J217 -> 0 | K218: 0 | L218: 0 | M218: 0 | N218: 250000 | O218: 208333.3333 | P218: 166666.6667 | Q218: 125000 | R218: 83333.33333 | S218: 41666.66667 | T218: 0 | U218: 0 | V218: 0 | W218: 0
C219: Interest Expense | I219: ='Target Assumptions'!$E$185*I215 -> 0 | J219: ='Target Assumptions'!$E$185*J215 -> 0 | K219: ='Target Assumptions'!$E$185*K215 -> 0 | L219: ='Target Assumptions'!$E$185*L215 -> 0 | M219: ='Target Assumptions'!$E$185*M215 -> 0 | N219: ='Target Assumptions'!$E$185*N215 -> 0 | O219: ='Target Assumptions'!$E$185*O215 -> 23750 | P219: ='Target Assumptions'!$E$185*P215 -> 19791.66667 | Q219: ='Target Assumptions'!$E$185*Q215 -> 15833.33333 | R219: ='Target Assumptions'!$E$185*R215 -> 11875 | S219: ='Target Assumptions'!$E$185*S215 -> 7916.666667 | T219: ='Target Assumptions'!$E$185*T215 -> 3958.333333 | U219: ='Target Assumptions'!$E$185*U215 -> 0 | V219: ='Target Assumptions'!$E$185*V215 -> 0 | W219: ='Target Assumptions'!$E$185*W215 -> 0
B221: Remaining Debt Balance
C222: Opening Balance | I222: =H225 -> 0 | J222: =I225 -> 80010 | K222: 84936 | L222: 137405 | M222: 220471.593 | N222: 238350.842 | O222: 5092.981 | P222: 130161.5461 | Q222: 158418.5856 | R222: 160412.9232 | S222: 144533.0216 | T222: 126386.9591 | U222: 106994.8794 | V222: 42610.19873 | W222: 0
C223: Less: Reduction in Debt from Positive Cash | I223: =I261 -> 0 | J223: =J261 -> 19882 | K223: 63496 | L223: 0 | M223: 26805.238 | N223: 1891.718 | O223: 0 | P223: 0 | Q223: 0 | R223: 15879.90158 | S223: 18146.06245 | T223: 19392.07976 | U223: 64384.68065 | V223: 42610.19873 | W223: 0
C224: Add: New Debt from Negative Cash Flow | I224: =I264 -> 0 | J224: =J264 -> 0 | K224: 0 | L224: 11678.968 | M224: 1232.393 | N224: 957.789 | O224: 125068.5651 | P224: 28257.03952 | Q224: 1994.337555 | R224: 0 | S224: 0 | T224: 0 | U224: 0 | V224: 0 | W224: 0
C225: Closing Balance | I225: =IF(I5,I56-I218,I222-I223+I224) -> 80010 | J225: =IF(J5,J56-J218,J222-J223+J224) -> 84936 | K225: 137405 | L225: 220471.593 | M225: 238350.842 | N225: 5092.981 | O225: 130161.5461 | P225: 158418.5856 | Q225: 160412.9232 | R225: 144533.0216 | S225: 126386.9591 | T225: 106994.8794 | U225: 42610.19873 | V225: 0 | W225: 0
C227: Interest Expense Rate | I227: ='Target Assumptions'!M171*I4 -> 0.05494313211 | J227: ='Target Assumptions'!N171*J4 -> 0.08222084804 | K227: ='Target Assumptions'!O171*K4 -> 0.0730499548 | L227: ='Target Assumptions'!P171*L4 -> 0.08418544434 | M227: ='Target Assumptions'!Q171*M4 -> 0.09594997246 | N227: ='Target Assumptions'!R171*N4 -> 0.0814236558 | O227: ='Target Assumptions'!S171*O4 -> 0.02714285714 | P227: ='Target Assumptions'!T171*P4 -> 0.095 | Q227: ='Target Assumptions'!U171*Q4 -> 0.095 | R227: ='Target Assumptions'!V171*R4 -> 0.095 | S227: ='Target Assumptions'!W171*S4 -> 0.095 | T227: ='Target Assumptions'!X171*T4 -> 0.095 | U227: ='Target Assumptions'!Y171*U4 -> 0.095 | V227: ='Target Assumptions'!Z171*V4 -> 0.095 | W227: ='Target Assumptions'!AA171*W4 -> 0.095
C228: Total Interest Expense | I228: =IF(I5,-I74,I227*I222)+I219 -> 4396 | J228: =IF(J5,-J74,J227*J222)+J219 -> 6781 | K228: 8121 | L228: 15064 | M228: 22012 | N228: 20089 | O228: 23888.23806 | P228: 32157.01354 | Q228: 30883.09897 | R228: 27114.2277 | S228: 21647.30372 | T228: 15965.09445 | U228: 10164.51354 | V228: 4047.968879 | W228: 0
C230: Minority Interest Percent of Income | I230: ='Target Assumptions'!M177 -> 0.07591763653 | J230: ='Target Assumptions'!N177 -> 0.08099550025 | K230: ='Target Assumptions'!O177 -> 0.08269617103 | L230: ='Target Assumptions'!P177 -> 0.4080232251 | M230: ='Target Assumptions'!Q177 -> 1.015057573 | N230: ='Target Assumptions'!R177 -> -0.06436312017 | O230: ='Target Assumptions'!S177 -> 0.07 | P230: ='Target Assumptions'!T177 -> 0.07 | Q230: ='Target Assumptions'!U177 -> 0.07 | R230: ='Target Assumptions'!V177 -> 0.07 | S230: ='Target Assumptions'!W177 -> 0.07 | T230: ='Target Assumptions'!X177 -> 0.07 | U230: ='Target Assumptions'!Y177 -> 0.07 | V230: ='Target Assumptions'!Z177 -> 0.07 | W230: ='Target Assumptions'!AA177 -> 0.07
A232: Profit and Loss
C233: Revenues | I233: =I117 -> 97750 | J233: 200109 | K233: 305530 | L233: 373683 | M233: 424541 | N233: 325644 | O233: 134730.0996 | P233: 494301.4574 | Q233: 496294.4656 | R233: 477993.4316 | S233: 457781.9381 | T233: 435467.332 | U233: 410837.6629 | V233: 383659.7523 | W233: 353677.0707
C234: Less: Cash Operating Cost | I234: =I132 -> 81670 | J234: 164465 | K234: 253202 | L234: 350240 | M234: 370955 | N234: 308216 | O234: 123298.359 | P234: 406712.9621 | Q234: 388385.936 | R234: 364069.729 | S234: 348376.0141 | T234: 330660.0795 | U234: 308427.8465 | V234: 283972.3903 | W234: 257071.3884
D235: EBITDA | I235: =I233-I234 -> 16080 | J235: =J233-J234 -> 35644 | K235: 52328 | L235: 23443 | M235: 53586 | N235: 17428 | O235: 11431.74061 | P235: 87588.49539 | Q235: 107908.5295 | R235: 113923.7025 | S235: 109405.9239 | T235: 104807.2525 | U235: 102409.8164 | V235: 99687.36206 | W235: 96605.68233
C236: Less: Depreciation | I236: =I166 -> 8999 | J236: 12422 | K236: 13809 | L236: 20972 | M236: 32091 | N236: 26468 | O236: 11269.53049 | P236: 45100.59308 | Q236: 47852.39103 | R236: 51376.29055 | S236: 55372.96269 | T236: 60806.79902 | U236: 68459.97566 | V236: 79751.53853 | W236: 95035.31902
... 131 more rows

Sheet Airline Fleet (2)
A1: NUMBER NUMBER OPERATED
A2: OWNED BY LEASED BY IN
A3: MANUFACTURER THE THE REVENUE MAXIMUM NUMBER STAGE III
A4: AND MODEL SERIES(1) COMPANY COMPANY SERVICE CONFIGURATION PAYLOAD(2) COMPLIANT(3)
C6: Company | F6: In Revenue | G6: Out of | M6: Noise | N6: Not
B7: Model | C7: Owned | D7: Leased | E7: Total | F7: Service | G7: Service | I7: Min | J7: Max | K7: Average | M7: Complaint | N7: Compliant
A9: Boeing 747............ | B9: 200 | C9: 6 | D9: 0 | E9: =C9+D9 -> 6 | F9: 2 | G9: =C9+D9-F9 -> 4 | H9: Freight | I9: 213000 | J9: 245000 | K9: =AVERAGE(I9:J9) -> 229000 | M9: 6 | N9: =C9+D9-M9 -> 0
A10: Boeing 747............ | B10: 100 | C10: 3 | D10: 0 | E10: =C10+D10 -> 3 | F10: 2 | G10: =C10+D10-F10 -> 1 | H10: Freight | I10: 218000 | J10: 218000 | K10: =AVERAGE(I10:J10) -> 218000 | M10: 3 | N10: =C10+D10-M10 -> 0
A11: Boeing 747............ | B11: 100 | C11: 2 | D11: 0 | E11: 2 | F11: 2 | G11: 0 | H11: Passenger | I11: 476 | J11: 476 | K11: 476 | M11: 2 | N11: 0
A12: Lockheed L-1011....... | B12: 200 | C12: 6 | D12: 0 | E12: 6 | F12: 6 | G12: 0 | H12: Freight | I12: 125000 | J12: 125000 | K12: 125000 | M12: 6 | N12: 0
A13: Lockheed L-1011....... | B13: 200 | C13: 2 | D13: 0 | E13: 2 | F13: 2 | G13: 0 | H13: Passenger | I13: 354 | J13: 354 | K13: 354 | M13: 2 | N13: 0
A14: Douglas DC-8.......... | B14: 60 | C14: 11 | D14: 0 | E14: 11 | F14: 11 | G14: 0 | H14: Freight | I14: 80000 | J14: 112000 | M14: 6 | N14: 5
A15: Douglas DC-8.......... | B15: 50 | C15: 9 | D15: 0 | E15: 9 | F15: 8 | G15: 1 | H15: Freight | I15: 58500 | J15: 97300 | K15: 77900 | M15: 0 | N15: 9
A16: Boeing 727............ | B16: 200 | C16: 24 | D16: 4 | E16: 28 | F16: 28 | G16: 0 | H16: Freight | I16: 44000 | J16: 63000 | K16: 53500 | M16: 10 | N16: 18
A17: Boeing 727............ | B17: 200 | C17: 4 | D17: 0 | E17: 4 | F17: 0 | G17: 4 | H17: Passenger | I17: 160 | J17: 160 | K17: 160 | M17: 1 | N17: 3
A18: Boeing 727............ | B18: 100 | C18: 1 | D18: 1 | E18: 2 | F18: 2 | G18: 0 | H18: Freight | I18: 40000 | J18: 54500 | K18: 47250 | M18: 0 | N18: 2
A19: Douglas DC-9.......... | B19: 15 | C19: 5 | D19: 0 | E19: 5 | F19: 5 | G19: 0 | H19: Freight | I19: 22000 | J19: 24000 | K19: 23000 | M19: 3 | N19: 2
B20: 0 | C20: 0 | D20: 0 | E20: 0 | F20: 0 | G20: 0
A21: Total......... | C21: =SUM(C9:C20) -> 73 | D21: =SUM(D9:D20) -> 5 | E21: =SUM(E9:E20) -> 78 | F21: =SUM(F9:F20) -> 68 | G21: =SUM(G9:G20) -> 10 | M21: =SUM(M9:M20) -> 39 | N21: =SUM(N9:N20) -> 39
H23: Concentration of Fleet After Merger measured in Capacity
A24: Total 747 | E24: =SUM(E9:E11) -> 11
E25: 6 | I25: 747 | J25: 727 | K25: L-1011 | L25: DC | M25: Total
E26: =E24*E25 -> 66 | H26: Average Capacity | I26: =SUMPRODUCT(K9:K10*E9:E10)/SUM(E9:E10) -> 225333.3333 | J26: =K16 -> 53500 | K26: =K12 -> 125000 | L26: =SUMPRODUCT(K14:K15,E14:E15)/SUM(E14:E15) -> 35055 | M26: =SUM(I26:L26) -> 438888.3333
H27: Total Planes | I27: =SUM(E9:E11) -> 11 | J27: =SUM(E16:E18) -> 34 | K27: =SUM(E12:E13) -> 8 | L27: =F19+F14+F15 -> 24 | M27: =SUM(I27:L27) -> 77
A28: Total 727 | E28: =SUM(E16:E18) -> 34 | H28: Before Merger | J28: 9 | L28: 5 | M28: =SUM(I28:L28) -> 14
H29: Kalitta | I29: =I27-I28 -> 11 | J29: =J27-J28 -> 25 | K29: =K27-K28 -> 8 | L29: =L27-L28 -> 19 | M29: =M27-M28 -> 63
I31: =I25 -> 747 | J31: =J25 -> 727 | K31: =K25 -> L-1011 | L31: =L25 -> DC | M31: Total
H32: After Merger | I32: =I26*I27 -> 2478666.667 | J32: =J26*J27 -> 1819000 | K32: =K26*K27 -> 1000000 | L32: =L26*L27 -> 841320 | M32: =SUM(I32:L32) -> 6138986.667
H33: Before Merger | J33: 425250 | K33: 0 | L33: 65000 | M33: =SUM(I33:L33) -> 490250
H34: Kalitta | I34: =I32 -> 2478666.667 | J34: =J32 -> 1819000 | K34: =K32 -> 1000000 | L34: =L32 -> 841320 | M34: =SUM(I34:L34) -> 6138986.667

Sheet Debt 1998
A2: Debt Assumptions | B2: Amount | C2: Rate | D2: Perent | E2: Repayment
E3: 1998 | F3: =E3+1 -> 1999 | G3: =F3+1 -> 2000 | H3: =G3+1 -> 2001 | I3: =H3+1 -> 2002 | J3: After
A4: Notes | B4: =C53 -> 340000000 | C4: 0.0995 | D4: =B4/$B$8 -> 0.8402458797 | E4: =$D4*E$8 -> 10415022.45 | F4: 9535608.508 | G4: 8647853.446 | H4: 8705273.329 | I4: 16732280.86 | J4: 285963961.4
A5: Term Loan | B5: =C54 -> 45900000 | C5: 0.088 | D5: =B5/$B$8 -> 0.1134331938 | E5: =$D5*E$8 -> 1406028.031 | F5: 1287307.149 | G5: 1167460.215 | H5: 1175211.899 | I5: 2258857.916 | J5: 38605134.79
A6: Revolving Credit | B6: =C55 -> 10000000 | C6: =C5 -> 0.088 | D6: =B6/$B$8 -> 0.02471311411 | E6: 306324.1897 | F6: 280459.0738 | G6: 254348.6308 | H6: 256037.4508 | I6: 492125.9076 | J6: 8410704.747
A7: Other | B7: =C66 -> 8743460 | C7: =C6 -> 0.088 | D7: =B7/$B$8 -> 0.02160781247 | E7: 267833.33 | F7: 245218.2693 | G7: 222388.7079 | H7: 223865.321 | I7: 430288.3188 | J7: 7353866.053
A8: Total | B8: =SUM(B4:B7) -> 404643460 | C8: =SUMPRODUCT(C4:C7,D4:D7) -> 0.09766282762 | E8: =TRANSPOSE(F51:F56) -> 12395208 | F8: 11348593 | G8: 10292051 | H8: 10360388 | I8: 19913553 | J8: 340333667
B11: 1997 | C11: =B11+1 -> 1998 | D11: =C11+1 -> 1999 | E11: =D11+1 -> 2000 | F11: =E11+1 -> 2001 | G11: =F11+1 -> 2002
A12: Opening Balance | C12: =B14 -> 404643460 | D12: =C14 -> 392248252 | E12: =D14 -> 380899659 | F12: =E14 -> 370607608 | G12: =F14 -> 360247220
A13: Repayment | C13: =E8 -> 12395208 | D13: =F8 -> 11348593 | E13: =G8 -> 10292051 | F13: =H8 -> 10360388 | G13: =I8 -> 19913553
A14: Closing Balance | B14: =B8 -> 404643460 | C14: =C12-C13 -> 392248252 | D14: =D12-D13 -> 380899659 | E14: =E12-E13 -> 370607608 | F14: =F12-F13 -> 360247220 | G14: =G12-G13 -> 340333667
A15: Interest | B15: =C8 -> 0.09766282762 | C15: =AVERAGE(C14,C12)*$B$15 -> 38913348.95 | D15: =AVERAGE(D14,D12)*$B$15 -> 37753905.58 | E15: =AVERAGE(E14,E12)*$B$15 -> 36697162.33 | F15: =AVERAGE(F14,F12)*$B$15 -> 35688674.54 | G15: =AVERAGE(G14,G12)*$B$15 -> 34210355.2
A17: Debt Service | C17: =C13+C15 -> 51308556.95 | D17: =D13+D15 -> 49102498.58 | E17: =E13+E15 -> 46989213.33 | F17: =F13+F15 -> 46049062.54 | G17: =G13+G15 -> 54123908.2
A20: Growth | B20: 0
A21: EBITDA | B21: ='Transaction Assumptions'!D101*1000000 -> 104917923.2 | C21: =B21*(1+$B$20) -> 104917923.2 | D21: =C21*(1+$B$20) -> 104917923.2 | E21: =D21*(1+$B$20) -> 104917923.2 | F21: =E21*(1+$B$20) -> 104917923.2 | G21: =F21*(1+$B$20) -> 104917923.2
A22: Capital Expenditures | C22: =F108*1000 -> 160000000 | D22: =G108*1000 -> 115000000 | E22: =H108*1000 -> 65000000 | F22: =I108*1000 -> 65000000 | G22: =J108*1000 -> 65000000
A23: Net Cash Flow | C23: =C21-C22 -> -55082076.82 | D23: =D21-D22 -> -10082076.82 | E23: =E21-E22 -> 39917923.18 | F23: =F21-F22 -> 39917923.18 | G23: =G21-G22 -> 39917923.18
A24: Debt Service | C24: =C17 -> 51308556.95 | D24: =D17 -> 49102498.58 | E24: =E17 -> 46989213.33 | F24: =F17 -> 46049062.54 | G24: =G17 -> 54123908.2
A25: Net After Debt Service | C25: =C23-C24 -> -106390633.8 | D25: =D23-D24 -> -59184575.4 | E25: =E23-E24 -> -7071290.153 | F25: =F23-F24 -> -6131139.358 | G25: =G23-G24 -> -14205985.02
A28: Debt | C28: =B14 -> 404643460 | D28: =C28 -> 404643460
A30: EBITDA | C30: 100000000 | D30: =C30/2 -> 50000000
A31: Interest | C31: =C15 -> 38913348.95 | D31: =D15 -> 37753905.58
A32: Net | C32: =C30-C31 -> 61086651.05 | D32: =D30-D31 -> 12246094.42
A34: Debt to EBITDA - Interest | C34: =C28/C32 -> 6.624089765 | D34: =D28/D32 -> 33.04265393
A36: EBITDA | B36: =B21 -> 104917923.2
A37: Debt Service | B37: =C13+C15 -> 51308556.95
A38: DSCR | B38: =B36/B37 -> 2.044842604
A40: Break-even Capital Expenditures | B40: =B36-B37 -> 53609366.23
A51: DECEMBER 31, DECEMBER 31, | E51: 1998........................................................ | F51: 12395208 | G51: =F51/$F$57 -> 0.03063241897
B52: 1996 | C52: 1997 | E52: 1999........................................................ | F52: 11348593 | G52: =F52/$F$57 -> 0.02804590738
A53: 9.95 Senior Secured Notes............................... | B53: 0 | C53: 340000000 | E53: 2000........................................................ | F53: 10292051 | G53: =F53/$F$57 -> 0.02543486308
A54: Term Loan................................................ | B54: 0 | C54: 45900000 | E54: 2001........................................................ | F54: 10360388 | G54: =F54/$F$57 -> 0.02560374508
A55: Revolving Credit Facility................................ | B55: 1500000 | C55: 10000000 | E55: 2002........................................................ | F55: 19913553 | G55: =F55/$F$57 -> 0.04921259076
A56: Note payable, bearing interest at an adjusted Eurodollar | E56: Thereafter.................................................. | F56: 340333667
A57: rate plus to based upon a fixed charge | B57: 1.5 | C57: 2 | F57: 404643460
A58: coverage ratio of the Company. Note was paid in full in
A59: November 1997.......................................... | B59: 10605923 | C59: 0
A60: Note payable, bearing interest at an adjusted Eurodollar
A61: rate plus to based upon a fixed charge | B61: 1.5 | C61: 2
A62: coverage ratio of the Company. Note was paid in full in
A63: November 1997.......................................... | B63: 11682000 | C63: 0
A64: Other notes payable due in monthly installments with
A65: interest rates ranging from to with maturity | B65: 7.5 | C65: 10.5
A66: dates ranging from 1998 through 2009................... | B66: 980417 | C66: 8743460
B67: 24768340 | C67: 404643460
A68: Less current portion..................................... | B68: 3687888 | C68: 12395208
B69: 21080452 | C69: 392248252
A73: Applicable
A74: Funded Debt Applicable Base Rate Margin
A75: to Base Rate during Loan Pricing
A76: Adjusted EBITDA Ratio Margin Increase Period
A77: Greater than 4.25 to 4.0 | C77: 1 | D77: 0.0125 | E77: 0.0175
A78: but equal to or less than 4.25 to 3.5 | C78: 1 | D78: 0.01 | E78: 0.0175
A79: but equal to or less than 4 to 3.0 | C79: 1 | D79: 0.0075 | E79: 0.0175
A80: but equal to or less than 3.5 to 2.5 | C80: 1 | D80: 0.005 | E80: 0.0175
A81: but equal to or less than 3 to 2 | C81: 1 | D81: 0.0025 | E81: 0.0175
A82: Equal to or less than 2 to | C82: 1 | D82: 0 | E82: 0.0175
A86: "'Applicable Base Rate Margin' means, for the period
A87: commencing with the Closing Date and thereafter, the rate per annum
A88: set forth in the table below under the heading 'Applicable Base Rate
A89: Margin' that corresponds to the ratio of Funded Debt to Adjusted
A90: EBITDA for the four fiscal quarters of Kitty Hawk and its Subsidiaries
A91: on a consolidated basis then most recently ended, provided, however,
A92: that the Applicable Base Rate Margin during the Loan Pricing Increase
A93: Period shall be 1.75% per annum as set forth in the table below under
A94: the heading 'Applicable Base Rate Margin during Loan Pricing Increase
A95: Period':
A98: "'Applicable Eurodollar Margin' means, for the period commencing with the Closing Date and thereafter, the rate per annum set forth in the table below under the heading 'Applicable Eurodollar Margin' that corresponds to the ratio of Funded Debt to Adjusted EBITDA for the four fiscal quarters of Kitty Hawk and its Subsidiaries on a consolidated basis then most recently ended, provided, however, that the Applicable Eurodollar Margin during the Loan Pricing Increase Period shall be 3.25% per annum as set forth under the heading 'Applicable Eurodollar Margin during Loan Pricing Increase Period':
A99: Applicable Funded Debt Applicable Eurodollar Margin to Eurodollar during Loan Pricing Adjusted EBITDA Ratio Margin Increase Period --------------------- ------ --------------- Greater than 4.25 to 1.00 2.75% 3.25% Greater than 4.00 to 1.00, but equal to or less than 4.25 to 1.00 2.50% 3.25% Greater than 3.50 to 1.00, but equal to or less than 4.00 to 1.00 2.25% 3.25% Greater than 3.00 to 1.00, but equal to or less than 3.50 to 1.00 2.00% 3.25% Greater than 2.50 to 1.00, but equal to or less than 3.00 to 1.00 1.75% 3.25% Greater than 2.00 to 1.00, but equal to or less than 2.50 to 1.00 1.50% 3.25% Equal to or less than 2.00 to 1.00 1.25% 3.25%
A101: For purposes hereof and notwithstanding the preceding sentence, the Applicable Eurodollar Margin for the period from the Closing Date to May 19, 1998 shall be deemed to be 2.75% for Revolving Credit Loans and 3.00% for Term Loans and shall thereafter be calculated on each Calculation Date based upon the preceding table and the financial statements delivered by Kitty Hawk pursuant to Section 8.1(b) and the certificate delivered by Kitty Hawk pursuant to Section 8.1(c); provided, that (a) if Kitty Hawk fails to deliver to Agent such financial statements or certificate at least five Business Days before the relevant Calculation Date, the Applicable Eurodollar Margin shall be deemed to be 2.75% for Revolving Credit Loans and 3.00% for Term Loans until five Business Days after such statements and certificate are delivered by Kitty Hawk to Agent, after which the Applicable Eurodollar Margin shall be determined as otherwise provided herein, and (b) the Applicable Eurodollar Margin during the Loan Pricing Increase Period shall be as set forth in the preceding sentence." THIRD AMENDMENT AGREEMENT - Page 11 12 "'Borrowing Base' means, as of any date of determination in accordance with this Agreement, the sum of (a) the product of the Advance Rate for Eligible Receivables multiplied by the amount of Eligible Receivables, plus (b) the lesser of the product of the Advance Rate for Eligible Parts multiplied by the amount of Eligible Parts or $25,000,000, plus (c) (i) at any time prior to the Increase Termination Date, the lesser of 50% of the Appraised Value of the Sixty Series Aircraft or $30,000,000 and (ii) at any time on or after the Increase Termination Date, zero."
A104: Section 2.28 Capital Expenditures. Section 10.4 of the Credit Agreement is
A105: hereby amended and restated to read in its entirety as follows:
A107: "Section 10.4 Capital Expenditures. Kitty Hawk and its Subsidiaries will | F107: 1998 | G107: 1999 | H107: 2000 | I107: 2000 | J107: 2000
A108: not permit the aggregate of Capital Expenditures (a) during fiscal year 1998 | D108: Max Cap Exp | F108: 160000 | G108: 115000 | H108: 65000 | I108: 65000 | J108: 65000
A109: to exceed $160,000,000, (b) during fiscal year 1999 to exceed $115,000,000,
A110: and (c) during fiscal year 2000 and each fiscal year thereafter to exceed
A111: $65,000,000; provided, however, that, for purposes of clause (a) preceding,
A112: Capital Expenditures shall exclude the cost of the acquisition of two model
A113: 747 aircraft from Middle Eastern Airlines during January or February 1998."
A117: The New Notes will bear interest from the date of issuance of the Old Notes
A118: at a rate per annum of 9.95%. Interest on the New Notes will be payable in cash,
A119: semiannually on each May 15 and November 15, commencing May 15, 1998. No
A120: interest will be paid on Old Notes which are exchanged for New Notes, and
A121: holders of Old Notes which are exchanged for New Notes will be deemed to have
A122: waived the right to receive interest accrued thereon to the date of exchange.
A125: Interest expense on the Notes is based upon an interest rate of 9.95%. Interest
A126: expense on the Term Loan is calculated assuming an interest rate of 8.8%.
A127: Interest on the Term Loan accrues initially at LIBOR plus 3% or the Base Rate
A128: plus 1.5%, subject to reduction. See "Description of Other Indebtedness."

Sheet Pro Forma BS
A1: HISTORICAL
A2: KITTY KALITTA | F2: EV Capital
A3: HAWK COMPANIES ADJUSTMENTS COMBINED | B3: KittyHawk | C3: Kalitta | D3: Adjustment | E3: Adjusted
A4: Current Assets
A5: Cash and cash equivalents.................. | B5: 2403 | C5: 3282 | D5: 5965 | E5: 11650 | F5: -1 | I5: Asset Increase - PP&E | L5: =D13 -> 46276
A6: Restricted cash............................ | B6: 0 | C6: 14037 | D6: 56000 | E6: 70037 | F6: -1 | I6: Asset Increase - Other | L6: =D14 -> 10123
A7: Trade accounts receivable.................. | B7: 21645 | C7: 64909 | D7: 0 | E7: 86554 | I7: Asset Increase - Current | L7: =D12-D6-D5 -> -101
A8: Accounts receivable 0 related parties..... | B8: 0 | C8: 1255 | D8: 0 | E8: 1255
A9: Inventory and aircraft supplies............ | B9: 5588 | C9: 24624 | D9: 0 | E9: 30212
A10: Prepaid expenses and other current
A11: assets.................................. | B11: 6808 | C11: 19773 | D11: -101 | E11: 26480 | I11: Total Debt
A12: Total current assets............... | B12: 36444 | C12: 127880 | D12: 61864 | E12: 226188 | I12: Existing KH Debt Current | L12: =B23 -> 8373
A13: Property and equipment, net.................. 3d | B13: 140357 | C13: 271819 | D13: 46276 | E13: 458452 | I13: Existing Kalitta Current | L13: =SUM(C20:C23) -> 254793
A14: Other assets................................. | B14: 0 | C14: 777 | D14: 10123 | E14: 10900 | I14: Existing KH LT | L14: =SUM(B26:B28) -> 72674 | M14: 45900
A15: Total assets....................... | B15: 176801 | C15: 400476 | D15: 118263 | E15: 695540 | I15: Existing Kalitta LT | L15: =SUM(C26:C28) -> 0
A16: Current Liabilities | I16: Total Debt | L16: =SUM(L12:L15) -> 335840
A17: Accounts payable and accrued expenses...... 3f | B17: 27968 | C17: 75906 | D17: 15683 | E17: 119557
A18: Deferred gain on sale of aircraft.......... | B18: 0 | C18: 30255 | D18: -30255 | E18: 0 | I18: New Debt Notes | L18: =D27 -> 340000
A19: Notes payable to bank, classified as | I19: New Debt Term Loan | L19: =D28 -> 45900
A20: current................................. | B20: 0 | C20: 55434 | D20: -55434 | E20: 0 | F20: 1 | I20: Total | L20: =SUM(L18:L19) -> 385900
A21: Long-term debt, classified as current...... | B21: 0 | C21: 196364 | D21: -196364 | E21: 0 | F21: 1
A22: Note payable and bank line of credit....... | B22: 0 | C22: 2995 | D22: -2995 | E22: 0 | F22: 1 | I22: Retired Debt | L22: =SUM(D20:D23,D25:D26) -> -325840
A23: Current maturities of long-term debt....... | B23: 8373 | C23: 0 | D23: -4573 | E23: 3800 | F23: 1 | G23: 1 | H23: 1
A24: Total current liabilities.......... | B24: 36341 | C24: 360954 | D24: -273938 | E24: 123357 | I24: Net Existing Debt | L24: =L16+L22 -> 10000
A25: Note payable................................. | B25: 0 | C25: 300 | D25: 0 | E25: 300 | F25: 1 | G25: 1 | H25: 1
A26: Existing long-term debt...................... | B26: 72674 | C26: 0 | D26: -66474 | E26: 6200 | F26: 1 | G26: 1 | H26: 1 | I26: KH Debt | L26: =L12+L14 -> 81047 | M26: =M14 -> 45900
A27: Notes........................................ | B27: 0 | C27: 0 | D27: 340000 | E27: 340000 | F27: 1 | G27: 1 | H27: 1
A28: Term Loan.................................... | B28: 0 | C28: 0 | D28: 45900 | E28: 45900 | F28: 1 | G28: 1 | H28: 1 | I28: Adjusted Retired Debt | L28: =L22+M26 -> -279940
A29: Deferred income taxes........................ | B29: 2545 | C29: 0 | D29: 8955 | E29: 11500 | G29: 0
A30: Minority interest............................ | B30: 0 | C30: 3572 | D30: 0 | E30: 3572 | F30: 1 | G30: 1 | H30: 0
A31: Stockholders' equity, net.................... | B31: 65241 | C31: 35650 | D31: 63820 | E31: 164711 | G31: 1 | H31: 0 | I31: =E31-B31 -> 99470
A32: Total liabilities and stockholders'
A33: equity........................... | B33: 176801 | C33: 400476 | D33: 118263 | E33: 695540
E36: Capital | G36: =SUM(G23:G31,E23:E31) -> 699347
E37: Debt | G37: =SUMPRODUCT(E23:E31,H23:H31) -> 396200
E38: Debt to Cap | G38: =G37/G36 -> 0.5665284901 | I38: =1-G38 -> 0.4334715099
E40: EBITDA | G40: 126462
E41: Debt to EBITA | G41: =G37/G40 -> 3.132956936
G43: 40326
G45: =G40/G43 -> 3.135991668
E48: Cap After | G48: ='Airline Fleet'!L31 -> 841320 | H48: =E13 -> 458452 | I48: =H48/G48 -> 0.5449198878
E49: Cap Before | G49: ='Airline Fleet'!L32 -> 0 | H49: =B13 -> 140357 | I49: =H49/G49 -> 

Sheet Airline Fleet
A1: NUMBER NUMBER OPERATED
A2: OWNED BY LEASED BY IN
A3: MANUFACTURER THE THE REVENUE MAXIMUM NUMBER STAGE III
A4: AND MODEL SERIES(1) COMPANY COMPANY SERVICE CONFIGURATION PAYLOAD(2) COMPLIANT(3)
C6: Company | F6: In Revenue | G6: Out of | M6: Noise | N6: Not
B7: Model | C7: Owned | D7: Leased | E7: Total | F7: Service | G7: Service | I7: Min | J7: Max | K7: Average | M7: Complaint | N7: Compliant
A9: Boeing 747............ | B9: 200 | C9: 6 | D9: 0 | E9: =C9+D9 -> 6 | F9: 2 | G9: =C9+D9-F9 -> 4 | H9: Freight | I9: 213000 | J9: 245000 | K9: =AVERAGE(I9:J9) -> 229000 | M9: 6 | N9: =C9+D9-M9 -> 0
A10: Boeing 747............ | B10: 100 | C10: 3 | D10: 0 | E10: =C10+D10 -> 3 | F10: 2 | G10: =C10+D10-F10 -> 1 | H10: Freight | I10: 218000 | J10: 218000 | K10: =AVERAGE(I10:J10) -> 218000 | M10: 3 | N10: =C10+D10-M10 -> 0
A11: Boeing 747............ | B11: 100 | C11: 2 | D11: 0 | E11: 2 | F11: 2 | G11: 0 | H11: Passenger | I11: 476 | J11: 476 | K11: 476 | M11: 2 | N11: 0
A12: Lockheed L-1011....... | B12: 200 | C12: 6 | D12: 0 | E12: 6 | F12: 6 | G12: 0 | H12: Freight | I12: 125000 | J12: 125000 | K12: 125000 | M12: 6 | N12: 0
A13: Lockheed L-1011....... | B13: 200 | C13: 2 | D13: 0 | E13: 2 | F13: 2 | G13: 0 | H13: Passenger | I13: 354 | J13: 354 | K13: 354 | M13: 2 | N13: 0
A14: Douglas DC-8.......... | B14: 60 | C14: 11 | D14: 0 | E14: 11 | F14: 11 | G14: 0 | H14: Freight | I14: 80000 | J14: 112000 | M14: 6 | N14: 5
A15: Douglas DC-8.......... | B15: 50 | C15: 9 | D15: 0 | E15: 9 | F15: 8 | G15: 1 | H15: Freight | I15: 58500 | J15: 97300 | K15: 77900 | M15: 0 | N15: 9
A16: Boeing 727............ | B16: 200 | C16: 24 | D16: 4 | E16: 28 | F16: 28 | G16: 0 | H16: Freight | I16: 44000 | J16: 63000 | K16: 53500 | M16: 10 | N16: 18
A17: Boeing 727............ | B17: 200 | C17: 4 | D17: 0 | E17: 4 | F17: 0 | G17: 4 | H17: Passenger | I17: 160 | J17: 160 | K17: 160 | M17: 1 | N17: 3
A18: Boeing 727............ | B18: 100 | C18: 1 | D18: 1 | E18: 2 | F18: 2 | G18: 0 | H18: Freight | I18: 40000 | J18: 54500 | K18: 47250 | M18: 0 | N18: 2
A19: Douglas DC-9.......... | B19: 15 | C19: 5 | D19: 0 | E19: 5 | F19: 5 | G19: 0 | H19: Freight | I19: 22000 | J19: 24000 | K19: 23000 | M19: 3 | N19: 2
B20: 0 | C20: 0 | D20: 0 | E20: 0 | F20: 0 | G20: 0
A21: Total......... | C21: =SUM(C9:C20) -> 73 | D21: =SUM(D9:D20) -> 5 | E21: =SUM(E9:E20) -> 78 | F21: =SUM(F9:F20) -> 68 | G21: =SUM(G9:G20) -> 10 | M21: =SUM(M9:M20) -> 39 | N21: =SUM(N9:N20) -> 39
H23: Concentration of Fleet After Merger measured in Capacity
A24: Total 747 | E24: =SUM(E9:E11) -> 11
E25: 6 | I25: 747 | J25: 727 | K25: L-1011 | L25: DC | M25: Total
E26: =E24*E25 -> 66 | H26: Average Capacity | I26: =SUMPRODUCT(K9:K10*E9:E10)/SUM(E9:E10) -> 225333.3333 | J26: =K16 -> 53500 | K26: =K12 -> 125000 | L26: =SUMPRODUCT(K14:K15,E14:E15)/SUM(E14:E15) -> 35055 | M26: =SUM(I26:L26) -> 438888.3333
H27: Total Planes | I27: =SUM(E9:E11) -> 11 | J27: =SUM(E16:E18) -> 34 | K27: =SUM(E12:E13) -> 8 | L27: =F19+F14+F15 -> 24 | M27: =SUM(I27:L27) -> 77
A28: Total 727 | E28: =SUM(E16:E18) -> 34 | H28: Before Merger | J28: ='Fleet Before Merger'!J25 -> 9 | L28: ='Fleet Before Merger'!J26 -> 5 | M28: =SUM(I28:L28) -> 14
I30: =I25 -> 747 | J30: =J25 -> 727 | K30: =K25 -> L-1011 | L30: =L25 -> DC
H31: After Merger | I31: =I26*I27 -> 2478666.667 | J31: =J26*J27 -> 1819000 | K31: =K26*K27 -> 1000000 | L31: =L26*L27 -> 841320
H32: Before Merger | J32: ='Fleet Before Merger'!M25 -> 425250 | K32: 0 | L32: ='Fleet Before Merger'!M26 -> 0
H33: Kalitta

Sheet Fleet Before Merger
A1: Revenue Fleet
A3: The Company owns and operates 23 aircraft in revenue service. In | J3: 23 | K3: Planes
A4: addition, the Company owns one additional aircraft that it expects to place into
A5: revenue service prior to January 1997. These aircraft do not include (i) two | J5: 2 | K5: 727 | L5: Avaitaion Partners
A6: Boeing 727-200 aircraft the Company recently entered into an agreement to | J6: 1 | K6: 727 | L6: International Areo
A7: purchase from Intrepid Aviation Partners, LLC, (ii) one Boeing 727-200 aircraft | J7: 1 | K7: 727 | L7: International Technical Consultants
A8: the Company recently entered into an agreement to purchase from International
A9: Aero Components, Inc., (iii) one Boeing 727-200F aircraft the Company recently
A10: entered into an agreement to purchase from International Technical Consultants,
A11: Inc., and (iv) the Company's undivided one-third interest in four Falcon 20 jet
A12: aircraft leased to a third-party operator. See "Item 1. Business --
A13: Acquisition Program" and "Item 11. Executive Compensation -- Compensation
A14: Committee Interlocks and Insider Participation."
L16: Pounds
A17: As of November 22, 1996, Kitty Hawk was operating eight Boeing | J17: 8 | K17: 727 | L17: ='Airline Fleet'!K18 -> 47250
A18: 727-200Fs, seven Convairs and three Douglas DC-9-15Fs under ACMI contracts | J18: 7 | K18: Convairs
A19: with Burlington Air Express, Inc., Ting Hong Oceanic Enterprises Co., Ltd., | J19: 3 | K19: DC9's | L19: ='Airline Fleet'!K19 -> 23000
A20: Pacific East Asia Cargo Airlines, Inc., DHL Airways, Inc., Emery Worldwide | J20: =SUM(J17:J19) -> 18
A21: Airlines, Inc., and Pan Air Lineas, S.A.
J22: =J3-J20 -> 5 | K22: Difference
O24: Addition
A25: The Company's revenue fleet is comprised of nine Boeing 727-200F | J25: 9 | K25: 727 | L25: =L17 -> 47250 | M25: =J25*L25 -> 425250 | O25: =L25*4 -> 189000
A26: aircraft manufactured between 1969 and 1978, five Douglas DC-9-15F aircraft | J26: 5 | K26: DC9 | L26: =L18 -> 0 | M26: =J26*L26 -> 0
A27: manufactured during 1967 and 1968, and nine turbo-prop Convairs manufactured | J27: 9 | K27: Convairs | L27: =L19 -> 23000 | M27: =J27*L27 -> 207000
A28: between 1948 and 1957. Manufacturer's Service Bulletins ("Service Bulletins")
I29: Total | J29: =SUM(J25:J28) -> 23 | M29: =SUM(M25:M28) -> 632250 | O29: =O25/(M29-O25) -> 0.4263959391

Sheet Aircraft Purchase
A2: IPO
A3: In October 1996, Kitty Hawk sold in an initial public offering 2,700,000 | H3: 2700000 | I3: 29300000 | J3: =I3/H3 -> 10.85185185
A4: shares of Common Stock, raising net proceeds of approximately $29.3 million
J5: Cost/Plane
A6: (iv) one Boeing 727-200 aircraft for $3.5 million | H6: 3500 | I6: 2500 | J6: =H6+I6 -> 6000 | K6: 4 | L6: =J6+J14+J19+J21 -> 24700 | M6: =L6/K6 -> 6175
A7: which was placed into revenue service as a leased passenger aircraft and which
A8: was modified to be in compliance with the Stage III noise control standards for
A9: an additional $2.5 million
A14: one Boeing 727-200 aircraft for $3.5 million | H14: 3500 | I14: 5200 | J14: =H14+I14 -> 8700
A15: which was modified to cargo configuration for an additional cost of
A16: approximately $5.2 million (including noise abatement equipment for
A17: approximately $2.5 million)
A19: one Boeing | H19: 4400 | J19: =H19 -> 4400
A20: 727-200 freighter aircraft for $4.4 million, (ii) one Boeing 727-200 aircraft
A21: for $2.3 million which was modified to cargo configuration for an additional | H21: 2300 | I21: 3300 | J21: =H21+I21 -> 5600
A22: cost of approximately $3.3 million (including approximately $2.2 million for
A23: noise abatement equipment),
A26: In 1998, Kitty Hawk anticipates an aggregate capital expenditure
A27: ranging from $27 million to $32 million for noise abatement modifications to
A28: aircraft currently owned.
A30: Kalitta 747
A31: In February 1998, the Company purchased two
A32: Boeing 747s for approximately $39.6 million and expects to modify these aircraft | H32: 39600 | I32: 25400 | J32: =(H32+I32)/2 -> 32500
A33: to freighter configuration for approximately $25.4 million.
A36: In September 1997, the Kalitta Companies
A37: acquired one Boeing 747, its associated engines and one spare engine for | H37: 21000 | I37: 8000 | J37: =H37+I37 -> 29000
A38: approximately $21 million. The Company is currently converting this Boeing 747
A39: to freighter configuration at its Oscoda, Michigan facility for an estimated
A40: additional $8 million.
A42: In February 1998, the Company acquired for approximately | H42: 39600 | I42: 25400 | J42: =(H42+I42)/2 -> 32500
A43: $39.6 million (i) two additional used Boeing 747s and associated engines, (ii)
A44: two additional spare engines and (iii) certain other related spare parts and
A45: support equipment. The Company is currently negotiating with a third party to
A46: have these two recently acquired Boeing 747s converted from passenger to
A47: freighter configuration in 1998 at a cost of up to $25.4 million.
A49: Aircraft Leases. In October 2002, we entered into four new operating leases for Boeing 727-200 cargo aircraft with affiliates of Pegasus Aviation with monthly lease rates ranging from $65,000 to $85,000. Each of these leases expires in May 2004.
I51: 75000 | J51: =I51*12 -> 900000 | K51: =J51/0.2 -> 4500000
A54: We purchased one aircraft in October 2002 for $382,474 and executed a promissory note for that amount. This promissory note bears interest at a fixed rate of 8.0% per annum and provides for monthly principal and interest payments of approximately $65,000. This promissory note matures on April 1, 2003 and is secured by a first priority aircraft chattel mortgage and security agreement. During 2002, we paid $0.2 million in principal and interest on this note. In 2002, we also paid an affiliate of Pegasus Aviation $326,205 for operation of this aircraft from May 2002 through September 2002, which amounts were credited toward the purchase price of the aircraft in October 2002. In 2002, we also paid an affiliate of Pegasus Aviation $159,912 under a prior operating lease for this aircraft.
A57: In September 1996, the Company entered into an agreement to purchase
A58: from Intrepid Aviation Partners, LLC for an aggregate purchase price of $7.0
A59: million two Boeing 727-200 aircraft, which aircraft represent two of the five
A60: Boeing 727-200 aircraft the Company intends to purchase with the net proceeds
A61: of the Offering. Both aircraft are currently utilized in passenger service
A62: and the Company intends to commence noise suppression and cargo conversion
A63: modifications
A66: In November 1996, the Company entered into an agreement to purchase
A67: from International Technical Consultants, Inc., for an aggregate purchase price
A68: of $4.7 million, one Boeing 727-200F aircraft, which also represents one of the
A69: five Boeing 727-200 aircraft the Company intends to purchase with the net
A70: proceeds of the Offering. Subject to fulfillment of customary final
A71: inspections and closing conditions, this aircraft is to be delivered by the end
A72: of November 1996.
A76: On September 17, 1997, Kitty Hawk, Inc. (the "Company"), through its
A77: wholly owned subsidiary Kitty Hawk Aircargo, Inc., acquired sixteen Boeing 727
A78: aircraft (fifteen of which are in freighter configuration) (the "Aircraft") and
